Workbook

Sheet Main
B2: Year | C2: 2021
B3: Month | C3: 12
B4: Value Date | C4: =DATE(C2,C3+1,1)-1 -> 2021-12-31
B5: End of Previous Year | C5: =DATE(C2-1,12,31) -> 2020-12-31

Sheet TB
A1: TBDate | B1: qFundCode | C1: qCurrencyCode | D1: ShortGL | E1: Value | F1: Acc | G1: Product | H1: AccGP | I1: ProductGP | J1: EOYValue | L1: Acc | M1: Acc Group | P1: Product | Q1: Product Group | T1: Account | U1: Forced Product Code
A2: 2020-12-31 | B2: ANWQF-FI | C2: 0 | D2: 100186 | E2: 11312400 | F2: =LEFT(D2,3) -> 100 | G2: =IF(ISNA(VLOOKUP(D2,$T$2:$U$6,2,0))=TRUE,RIGHT(D2,3),VLOOKUP(D2,$T$2:$U$6,2,0)) -> 186 | H2: =VLOOKUP(F2,$L$2:$M$39,2,0) -> 100 | I2: =IF(ISNA(VLOOKUP(G2,$P$2:$Q$45,2,0))=TRUE,"010",VLOOKUP(G2,$P$2:$Q$45,2,0)) -> 186 | J2: =C2*E2 -> 0 | L2: 100 | M2: 100 | N2: Cost | P2: 000 | Q2: 010 | R2: Equity | T2: 500000 | U2: 211 | V2: Deposit
A3: 2020-12-31 | B3: ANWQF-FI | C3: 0 | D3: 100187 | E3: 5000000 | F3: =LEFT(D3,3) -> 100 | G3: =IF(ISNA(VLOOKUP(D3,$T$2:$U$6,2,0))=TRUE,RIGHT(D3,3),VLOOKUP(D3,$T$2:$U$6,2,0)) -> 187 | H3: =VLOOKUP(F3,$L$2:$M$39,2,0) -> 100 | I3: =IF(ISNA(VLOOKUP(G3,$P$2:$Q$45,2,0))=TRUE,"010",VLOOKUP(G3,$P$2:$Q$45,2,0)) -> 147 | J3: =C3*E3 -> 0 | L3: 101 | M3: 100 | N3: Costimp | P3: 001 | Q3: 010 | R3: Equity | T3: 636006 | U3: 211 | V3: Deposit
A4: 2020-12-31 | B4: ANWQF-FI | C4: 0 | D4: 100211 | E4: 23229000 | F4: 100 | G4: 211 | H4: 100 | I4: 211 | J4: 0 | L4: 110 | M4: 110 | N4: AmortBS | P4: 003 | Q4: 010 | R4: Equity | T4: 710102 | U4: 211 | V4: Deposit
A5: 2020-12-31 | B5: ANWQF-FI | C5: 0 | D5: 100212 | E5: 3974000 | F5: 100 | G5: 212 | H5: 100 | I5: 212 | J5: 0 | L5: 120 | M5: 120 | N5: AccBS | P5: 004 | Q5: 010 | R5: Equity | T5: 700301 | U5: 010 | V5: Deposit
A6: 2020-12-31 | B6: ANWQF-FI | C6: 0 | D6: 110186 | E6: -75143.11 | F6: 110 | G6: 186 | H6: 110 | I6: 186 | J6: 0 | L6: 130 | M6: XXX | N6: CostPreact | P6: 006 | Q6: 010 | R6: Equity | T6: 799440 | U6: 440 | V6: ITA
A7: 2020-12-31 | B7: ANWQF-FI | C7: 0 | D7: 139186 | E7: 137212.33 | F7: 139 | G7: 186 | H7: 139 | I7: 186 | J7: 0 | L7: 139 | M7: 139 | N7: AccProfit | P7: 010 | Q7: 010 | R7: Equity
A8: 2020-12-31 | B8: ANWQF-FI | C8: 0 | D8: 139187 | E8: 27328.77 | F8: 139 | G8: 187 | H8: 139 | I8: 147 | J8: 0 | L8: 160 | M8: 169 | N8: Impair | P8: 100 | Q8: 100 | R8: na
A9: 2020-12-31 | B9: ANWQF-FI | C9: 0 | D9: 139211 | E9: 57243.01 | F9: 139 | G9: 211 | H9: 139 | I9: 211 | J9: 0 | L9: 189 | M9: 189 | N9: GainBS | P9: 102 | Q9: 102 | R9: na
A10: 2020-12-31 | B10: ANWQF-FI | C10: 0 | D10: 139212 | E10: 147038 | F10: 139 | G10: 212 | H10: 139 | I10: 212 | J10: 0 | L10: 200 | M10: 200 | N10: Dr | P10: 103 | Q10: 103 | R10: na | T10: 700301
A11: 2020-12-31 | B11: ANWQF-FI | C11: 0 | D11: 160186 | E11: -751.94 | F11: 160 | G11: 186 | H11: 169 | I11: 186 | J11: 0 | L11: 220 | M11: 220 | P11: 105 | Q11: 105 | R11: na | T11: 710102
A12: 2020-12-31 | B12: ANWQF-FI | C12: 0 | D12: 189186 | E12: 1384793.11 | F12: 189 | G12: 186 | H12: 189 | I12: 186 | J12: 0 | L12: 299 | M12: 299 | N12: DrDiv | P12: 106 | Q12: 106 | R12: na | T12: 710106
A13: 2020-12-31 | B13: ANWQF-FI | C13: 0 | D13: 189187 | E13: 895750 | F13: 189 | G13: 187 | H13: 189 | I13: 147 | J13: 0 | L13: 300 | M13: 300 | N13: Cr | P13: 108 | Q13: 108 | R13: na | T13: 710198
A14: 2020-12-31 | B14: ANWQF-FI | C14: 0 | D14: 500000 | E14: 291.9 | F14: 500 | G14: 211 | H14: 100 | I14: 211 | J14: 0 | L14: 320 | M14: 320 | N14: CrAcc | P14: 110 | Q14: 180 | R14: Bond (PL) | T14: 710199
A15: 2020-12-31 | B15: ANWQF-FI | C15: 1 | D15: 619186 | E15: 75143.11 | F15: 619 | G15: 186 | H15: 610 | I15: 186 | J15: 75143.11 | L15: 500 | M15: 100 | N15: Bank | P15: 115 | Q15: 115 | R15: na | T15: 710876
A16: 2020-12-31 | B16: ANWQF-FI | C16: 0 | D16: 619186 | E16: -73330.06 | F16: 619 | G16: 186 | H16: 610 | I16: 186 | J16: 0 | L16: 600 | M16: 600 | N16: Profit | P16: 116 | Q16: 186 | R16: Bond (FVOCI) | T16: 799440
A17: 2020-12-31 | B17: ANWQF-FI | C17: 0 | D17: 630186 | E17: -611518.55 | F17: 630 | G17: 186 | H17: 630 | I17: 186 | J17: 0 | L17: 610 | M17: 610 | N17: AmortPL | P17: 126 | Q17: 126 | R17: Banca CP | T17: 636004
A18: 2020-12-31 | B18: ANWQF-FI | C18: 0 | D18: 630186 | E18: 501206.22 | F18: 630 | G18: 186 | H18: 630 | I18: 186 | J18: 0 | L18: 619 | M18: 610 | N18: AmortPLVal | P18: 131 | Q18: 137 | R18: GII - FVOCI | T18: 636006
A19: 2020-12-31 | B19: ANWQF-FI | C19: 0 | D19: 630187 | E19: -263219.18 | F19: 630 | G19: 187 | H19: 630 | I19: 147 | J19: 0 | L19: 620 | M19: 610 | N19: AccPL | P19: 132 | Q19: 132 | R19: PTPTN | T19: 636003
A20: 2020-12-31 | B20: ANWQF-FI | C20: 0 | D20: 630187 | E20: 263219.18 | F20: 630 | G20: 187 | H20: 630 | I20: 147 | J20: 0 | L20: 629 | M20: 610 | N20: AccPLVal | P20: 136 | Q20: 147 | R20: GG - FVOCI
A21: 2020-12-31 | B21: ANWQF-FI | C21: 0 | D21: 630211 | E21: -331869.85 | F21: 630 | G21: 211 | H21: 630 | I21: 211 | J21: 0 | L21: 630 | M21: 630 | N21: Income | P21: 137 | Q21: 137 | R21: GII - FVOCI
A22: 2020-12-31 | B22: ANWQF-FI | C22: 0 | D22: 630211 | E22: 324143.92 | F22: 630 | G22: 211 | H22: 630 | I22: 211 | J22: 0 | L22: 635 | M22: 635 | P22: 180 | Q22: 180 | R22: Bond (PL)
A23: 2020-12-31 | B23: ANWQF-FI | C23: 0 | D23: 630212 | E23: -188292.39 | F23: 630 | G23: 212 | H23: 630 | I23: 212 | J23: 0 | L23: 636 | M23: 636 | N23: Income | P23: 181 | Q23: 147 | R23: GG - FVOCI
A24: 2020-12-31 | B24: ANWQF-FI | C24: 0 | D24: 630212 | E24: 3292.39 | F24: 630 | G24: 212 | H24: 630 | I24: 212 | J24: 0 | L24: 639 | M24: 630 | N24: AccPLVal | P24: 186 | Q24: 186 | R24: Bond (FVOCI)
A25: 2020-12-31 | B25: ANWQF-FI | C25: 0 | D25: 636006 | E25: -23.52 | F25: 636 | G25: 211 | H25: 636 | I25: 211 | J25: 0 | L25: 660 | M25: 660 | N25: ImpairPL | P25: 187 | Q25: 147 | R25: GG - FVOCI
A26: 2020-12-31 | B26: ANWQF-FI | C26: 0 | D26: 636006 | E26: 21.27 | F26: 636 | G26: 211 | H26: 636 | I26: 211 | J26: 0 | L26: 689 | M26: 689 | N26: GainPL | P26: 190 | Q26: 190 | R26: Structured Product
A27: 2020-12-31 | B27: ANWQF-FI | C27: 1 | D27: 639186 | E27: -137212.33 | F27: 639 | G27: 186 | H27: 630 | I27: 186 | J27: -137212.33 | L27: 700 | M27: 700 | N27: Expense | P27: 198 | Q27: 198 | R27: na
A28: 2020-12-31 | B28: ANWQF-FI | C28: 0 | D28: 639186 | E28: 196560.55 | F28: 639 | G28: 186 | H28: 630 | I28: 186 | J28: 0 | L28: 710 | M28: 710 | N28: Expense | P28: 199 | Q28: 199 | R28: na
A29: 2020-12-31 | B29: ANWQF-FI | C29: 1 | D29: 639187 | E29: -27328.77 | F29: 639 | G29: 187 | H29: 630 | I29: 147 | J29: -27328.77 | L29: 799 | M29: 799 | N29: ExpenseBnd | P29: 200 | Q29: 200 | R29: Deposit
A30: 2020-12-31 | B30: ANWQF-FI | C30: 0 | D30: 639187 | E30: 5034.25 | F30: 639 | G30: 187 | H30: 630 | I30: 147 | J30: 0 | L30: 800 | M30: 800 | N30: Capital | P30: 211 | Q30: 211 | R30: Deposit
A31: 2020-12-31 | B31: ANWQF-FI | C31: 1 | D31: 639211 | E31: -57243.01 | F31: 639 | G31: 211 | H31: 630 | I31: 211 | J31: -57243.01 | L31: 801 | M31: 801 | N31: Capitl Seed | P31: 212 | Q31: 212 | R31: Deposit
A32: 2020-12-31 | B32: ANWQF-FI | C32: 0 | D32: 639211 | E32: 33440.38 | F32: 639 | G32: 211 | H32: 630 | I32: 211 | J32: 0 | L32: 810 | M32: 810 | N32: Reserve | P32: 213 | Q32: 223 | R32: Banca
A33: 2020-12-31 | B33: ANWQF-FI | C33: 1 | D33: 639212 | E33: -147038 | F33: 639 | G33: 212 | H33: 630 | I33: 212 | J33: -147038 | L33: 830 | M33: 830 | N33: Retained | P33: 214 | Q33: 223 | R33: Banca
A34: 2020-12-31 | B34: ANWQF-FI | C34: 0 | D34: 639212 | E34: 305358.06 | F34: 639 | G34: 212 | H34: 630 | I34: 212 | J34: 0 | L34: 919 | M34: 919 | N34: Controll | P34: 300 | Q34: 010 | R34: na ?
A35: 2020-12-31 | B35: ANWQF-FI | C35: 1 | D35: 660186 | E35: 751.94 | F35: 660 | G35: 186 | H35: 660 | I35: 186 | J35: 751.94 | L35: 929 | M35: 929 | P35: 301 | Q35: 010 | R35: Seed ?
A36: 2020-12-31 | B36: ANWQF-FI | C36: 0 | D36: 660186 | E36: -852.56 | F36: 660 | G36: 186 | H36: 660 | I36: 186 | J36: 0 | L36: 939 | M36: 939 | P36: 410 | Q36: 410 | R36: TrustProp
A37: 2020-12-31 | B37: ANWQF-FI | C37: 1 | D37: 689186 | E37: -1384793.11 | F37: 689 | G37: 186 | H37: 689 | I37: 186 | J37: -1384793.11 | L37: 960 | M37: 960 | P37: 411 | Q37: 410 | R37: TrustProp
A38: 2020-12-31 | B38: ANWQF-FI | C38: 0 | D38: 689186 | E38: 1439170.06 | F38: 689 | G38: 186 | H38: 689 | I38: 186 | J38: 0 | L38: 989 | M38: 989 | P38: 415 | Q38: 410 | R38: TrustProp
A39: 2020-12-31 | B39: ANWQF-FI | C39: 1 | D39: 689187 | E39: -895750 | F39: 689 | G39: 187 | H39: 689 | I39: 147 | J39: -895750 | L39: 601 | M39: 601 | P39: 416 | Q39: 410 | R39: TrustProp
A40: 2020-12-31 | B40: ANWQF-FI | C40: 0 | D40: 689187 | E40: 867100 | F40: 689 | G40: 187 | H40: 689 | I40: 147 | J40: 0 | P40: 420 | Q40: 420 | R40: Seed
A41: 2020-12-31 | B41: ANWQF-FI | C41: 0 | D41: 710102 | E41: 108 | F41: 710 | G41: 211 | H41: 710 | I41: 211 | J41: 0 | P41: 440 | Q41: 440 | R41: ITA
A42: 2020-12-31 | B42: ANWQF-FI | C42: 0 | D42: 710102 | E42: -92 | F42: 710 | G42: 211 | H42: 710 | I42: 211 | J42: 0 | P42: 460 | Q42: 010 | R42: Tust Put in Equity
A43: 2020-12-31 | B43: ANWQF-FI | C43: 0 | D43: 800000 | E43: -40123371.8 | F43: 800 | G43: 000 | H43: 800 | I43: 010 | J43: 0 | P43: 800 | Q43: 800 | R43: na
A44: 2020-12-31 | B44: ANWQF-FI | C44: 0 | D44: 810000 | E44: -1661742.41 | F44: 810 | G44: 000 | H44: 810 | I44: 010 | J44: 0 | P44: 876 | Q44: 876 | R44: na
A45: 2020-12-31 | B45: ANWQF-FI | C45: 0 | D45: 830000 | E45: -2141640.52 | F45: 830 | G45: 000 | H45: 830 | I45: 010 | J45: 0 | P45: 999 | Q45: 999 | R45: na
A46: 2020-12-31 | B46: ANWQF-FI | C46: 0 | D46: 919186 | E46: -53254.94 | F46: 919 | G46: 186 | H46: 919 | I46: 186 | J46: 0
A47: 2020-12-31 | B47: ANWQF-FI | C47: 0 | D47: 919186 | E47: 53254.94 | F47: 919 | G47: 186 | H47: 919 | I47: 186 | J47: 0
A48: 2020-12-31 | B48: ANWQF-FI | C48: 0 | D48: 939186 | E48: -137084.93 | F48: 939 | G48: 186 | H48: 939 | I48: 186 | J48: 0
A49: 2020-12-31 | B49: ANWQF-FI | C49: 0 | D49: 939186 | E49: 137084.93 | F49: 939 | G49: 186 | H49: 939 | I49: 186 | J49: 0
A50: 2020-12-31 | B50: ANWQF-FI | C50: 0 | D50: 939187 | E50: 26609.59 | F50: 939 | G50: 187 | H50: 939 | I50: 147 | J50: 0
A51: 2020-12-31 | B51: ANWQF-FI | C51: 0 | D51: 939187 | E51: -26609.59 | F51: 939 | G51: 187 | H51: 939 | I51: 147 | J51: 0
A52: 2020-12-31 | B52: ANWQF-FI | C52: 0 | D52: 939211 | E52: -32682.63 | F52: 939 | G52: 211 | H52: 939 | I52: 211 | J52: 0
A53: 2020-12-31 | B53: ANWQF-FI | C53: 0 | D53: 939211 | E53: 32682.63 | F53: 939 | G53: 211 | H53: 939 | I53: 211 | J53: 0
A54: 2020-12-31 | B54: ANWQF-FI | C54: 0 | D54: 939212 | E54: 1013.7 | F54: 939 | G54: 212 | H54: 939 | I54: 212 | J54: 0
A55: 2020-12-31 | B55: ANWQF-FI | C55: 0 | D55: 939212 | E55: -1013.7 | F55: 939 | G55: 212 | H55: 939 | I55: 212 | J55: 0
A56: 2020-12-31 | B56: ANWQF-FI | C56: 0 | D56: 960186 | E56: 812.53 | F56: 960 | G56: 186 | H56: 960 | I56: 186 | J56: 0
A57: 2020-12-31 | B57: ANWQF-FI | C57: 0 | D57: 960186 | E57: -812.53 | F57: 960 | G57: 186 | H57: 960 | I57: 186 | J57: 0
A58: 2020-12-31 | B58: ANWQF-FI | C58: 0 | D58: 989186 | E58: 886504.94 | F58: 989 | G58: 186 | H58: 989 | I58: 186 | J58: 0
A59: 2020-12-31 | B59: ANWQF-FI | C59: 0 | D59: 989186 | E59: -886504.94 | F59: 989 | G59: 186 | H59: 989 | I59: 186 | J59: 0
A60: 2020-12-31 | B60: ANWQF-FI | C60: 0 | D60: 989187 | E60: -776050 | F60: 989 | G60: 187 | H60: 989 | I60: 147 | J60: 0
A61: 2020-12-31 | B61: ANWQF-FI | C61: 0 | D61: 989187 | E61: 776050 | F61: 989 | G61: 187 | H61: 989 | I61: 147 | J61: 0
A62: 2020-12-31 | B62: DRISK-FI | C62: 0 | D62: 100211 | E62: 2038635.36 | F62: 100 | G62: 211 | H62: 100 | I62: 211 | J62: 0
A63: 2020-12-31 | B63: DRISK-FI | C63: 0 | D63: 139211 | E63: 390.97 | F63: 139 | G63: 211 | H63: 139 | I63: 211 | J63: 0
A64: 2020-12-31 | B64: DRISK-FI | C64: 0 | D64: 200800 | E64: 55928.81 | F64: 200 | G64: 800 | H64: 200 | I64: 800 | J64: 0
A65: 2020-12-31 | B65: DRISK-FI | C65: 0 | D65: 300800 | E65: -3281.45 | F65: 300 | G65: 800 | H65: 300 | I65: 800 | J65: 0
A66: 2020-12-31 | B66: DRISK-FI | C66: 0 | D66: 500000 | E66: 1607.99 | F66: 500 | G66: 211 | H66: 100 | I66: 211 | J66: 0
A67: 2020-12-31 | B67: DRISK-FI | C67: 0 | D67: 630211 | E67: -44928.52 | F67: =LEFT(D67,3) -> 630 | G67: =IF(ISNA(VLOOKUP(D67,$T$2:$U$6,2,0))=TRUE,RIGHT(D67,3),VLOOKUP(D67,$T$2:$U$6,2,0)) -> 211 | H67: =VLOOKUP(F67,$L$2:$M$39,2,0) -> 630 | I67: =IF(ISNA(VLOOKUP(G67,$P$2:$Q$45,2,0))=TRUE,"010",VLOOKUP(G67,$P$2:$Q$45,2,0)) -> 211 | J67: =C67*E67 -> 0
A68: 2020-12-31 | B68: DRISK-FI | C68: 0 | D68: 630211 | E68: 41697.71 | F68: 630 | G68: 211 | H68: 630 | I68: 211 | J68: 0
A69: 2020-12-31 | B69: DRISK-FI | C69: 0 | D69: 630212 | E69: -642.69 | F69: 630 | G69: 212 | H69: 630 | I69: 212 | J69: 0
A70: 2020-12-31 | B70: DRISK-FI | C70: 0 | D70: 630212 | E70: 642.69 | F70: 630 | G70: 212 | H70: 630 | I70: 212 | J70: 0
A71: 2020-12-31 | B71: DRISK-FI | C71: 0 | D71: 636006 | E71: -0.15 | F71: 636 | G71: 211 | H71: 636 | I71: 211 | J71: 0
A72: 2020-12-31 | B72: DRISK-FI | C72: 0 | D72: 636006 | E72: 0.15 | F72: 636 | G72: 211 | H72: 636 | I72: 211 | J72: 0
A73: 2020-12-31 | B73: DRISK-FI | C73: 1 | D73: 639211 | E73: -390.97 | F73: 639 | G73: 211 | H73: 630 | I73: 211 | J73: -390.97
A74: 2020-12-31 | B74: DRISK-FI | C74: 0 | D74: 639211 | E74: 644.16 | F74: 639 | G74: 211 | H74: 630 | I74: 211 | J74: 0
A75: 2020-12-31 | B75: DRISK-FI | C75: 0 | D75: 710102 | E75: 36 | F75: 710 | G75: 211 | H75: 710 | I75: 211 | J75: 0
A76: 2020-12-31 | B76: DRISK-FI | C76: 0 | D76: 710102 | E76: -24 | F76: 710 | G76: 211 | H76: 710 | I76: 211 | J76: 0
A77: 2020-12-31 | B77: DRISK-FI | C77: 0 | D77: 800000 | E77: -1931220.42 | F77: 800 | G77: 000 | H77: 800 | I77: 010 | J77: 0
A78: 2020-12-31 | B78: DRISK-FI | C78: 0 | D78: 830000 | E78: -118355.33 | F78: 830 | G78: 000 | H78: 830 | I78: 010 | J78: 0
A79: 2020-12-31 | B79: DRISK-FI | C79: 0 | D79: 939211 | E79: -2220.4 | F79: 939 | G79: 211 | H79: 939 | I79: 211 | J79: 0
A80: 2020-12-31 | B80: DRISK-FI | C80: 0 | D80: 939211 | E80: 2220.4 | F80: 939 | G80: 211 | H80: 939 | I80: 211 | J80: 0
A81: 2020-12-31 | B81: GEN-EQ | C81: 0 | D81: 100010 | E81: 588688.16 | F81: 100 | G81: 010 | H81: 100 | I81: 010 | J81: 0
A82: 2020-12-31 | B82: GEN-EQ | C82: 0 | D82: 101010 | E82: -588688.16 | F82: 101 | G82: 010 | H82: 100 | I82: 010 | J82: 0
A83: 2020-12-31 | B83: GEN-EQ | C83: 0 | D83: 800000 | E83: -2885853.8 | F83: 800 | G83: 000 | H83: 800 | I83: 010 | J83: 0
A84: 2020-12-31 | B84: GEN-EQ | C84: 0 | D84: 830000 | E84: 2885853.8 | F84: 830 | G84: 000 | H84: 830 | I84: 010 | J84: 0
A85: 2020-12-31 | B85: GEN-FI | C85: 0 | D85: 100116 | E85: 10032915 | F85: 100 | G85: 116 | H85: 100 | I85: 186 | J85: 0
A86: 2020-12-31 | B86: GEN-FI | C86: 0 | D86: 100137 | E86: 4971000 | F86: 100 | G86: 137 | H86: 100 | I86: 137 | J86: 0
A87: 2020-12-31 | B87: GEN-FI | C87: 0 | D87: 100186 | E87: 210989720.9 | F87: 100 | G87: 186 | H87: 100 | I87: 186 | J87: 0
A88: 2020-12-31 | B88: GEN-FI | C88: 0 | D88: 100187 | E88: 45000000 | F88: 100 | G88: 187 | H88: 100 | I88: 147 | J88: 0
A89: 2020-12-31 | B89: GEN-FI | C89: 0 | D89: 100211 | E89: 305161302.4 | F89: 100 | G89: 211 | H89: 100 | I89: 211 | J89: 0
A90: 2020-12-31 | B90: GEN-FI | C90: 0 | D90: 100212 | E90: 128252000 | F90: 100 | G90: 212 | H90: 100 | I90: 212 | J90: 0
A91: 2020-12-31 | B91: GEN-FI | C91: 0 | D91: 100213 | E91: 64509452.05 | F91: 100 | G91: 213 | H91: 100 | I91: 223 | J91: 0
A92: 2020-12-31 | B92: GEN-FI | C92: 0 | D92: 100410 | E92: 515852.89 | F92: 100 | G92: 410 | H92: 100 | I92: 410 | J92: 0
A93: 2020-12-31 | B93: GEN-FI | C93: 0 | D93: 100440 | E93: 59103005.92 | F93: 100 | G93: 440 | H93: 100 | I93: 440 | J93: 0
A94: 2020-12-31 | B94: GEN-FI | C94: 0 | D94: 101410 | E94: -515852.89 | F94: 101 | G94: 410 | H94: 100 | I94: 410 | J94: 0
A95: 2020-12-31 | B95: GEN-FI | C95: 0 | D95: 110116 | E95: -9113.92 | F95: 110 | G95: 116 | H95: 110 | I95: 186 | J95: 0
A96: 2020-12-31 | B96: GEN-FI | C96: 0 | D96: 110186 | E96: -3964322.13 | F96: 110 | G96: 186 | H96: 110 | I96: 186 | J96: 0
A97: 2020-12-31 | B97: GEN-FI | C97: 0 | D97: 120137 | E97: 3533.31 | F97: 120 | G97: 137 | H97: 120 | I97: 137 | J97: 0
A98: 2020-12-31 | B98: GEN-FI | C98: 0 | D98: 120186 | E98: 834393.93 | F98: 120 | G98: 186 | H98: 120 | I98: 186 | J98: 0
A99: 2020-12-31 | B99: GEN-FI | C99: 0 | D99: 139116 | E99: 20780.82 | F99: 139 | G99: 116 | H99: 139 | I99: 186 | J99: 0
A100: 2020-12-31 | B100: GEN-FI | C100: 0 | D100: 139137 | E100: 11031.32 | F100: 139 | G100: 137 | H100: 139 | I100: 137 | J100: 0
A101: 2020-12-31 | B101: GEN-FI | C101: 0 | D101: 139186 | E101: 2100350.69 | F101: 139 | G101: 186 | H101: 139 | I101: 186 | J101: 0
A102: 2020-12-31 | B102: GEN-FI | C102: 0 | D102: 139187 | E102: 402624.66 | F102: 139 | G102: 187 | H102: 139 | I102: 147 | J102: 0
A103: 2020-12-31 | B103: GEN-FI | C103: 0 | D103: 139211 | E103: 4629490.02 | F103: 139 | G103: 211 | H103: 139 | I103: 211 | J103: 0
A104: 2020-12-31 | B104: GEN-FI | C104: 0 | D104: 139212 | E104: 976783.03 | F104: 139 | G104: 212 | H104: 139 | I104: 212 | J104: 0
A105: 2020-12-31 | B105: GEN-FI | C105: 0 | D105: 139213 | E105: 706751.11 | F105: 139 | G105: 213 | H105: 139 | I105: 223 | J105: 0
A106: 2020-12-31 | B106: GEN-FI | C106: 0 | D106: 139440 | E106: 105576.63 | F106: 139 | G106: 440 | H106: 139 | I106: 440 | J106: 0
A107: 2020-12-31 | B107: GEN-FI | C107: 0 | D107: 160116 | E107: -1111.39 | F107: 160 | G107: 116 | H107: 169 | I107: 186 | J107: 0
A108: 2020-12-31 | B108: GEN-FI | C108: 0 | D108: 160186 | E108: -325128.83 | F108: 160 | G108: 186 | H108: 169 | I108: 186 | J108: 0
A109: 2020-12-31 | B109: GEN-FI | C109: 0 | D109: 160440 | E109: -215164.63 | F109: 160 | G109: 440 | H109: 169 | I109: 440 | J109: 0
A110: 2020-12-31 | B110: GEN-FI | C110: 0 | D110: 189116 | E110: 771913.92 | F110: 189 | G110: 116 | H110: 189 | I110: 186 | J110: 0
A111: 2020-12-31 | B111: GEN-FI | C111: 0 | D111: 189137 | E111: 742466.69 | F111: 189 | G111: 137 | H111: 189 | I111: 137 | J111: 0
A112: 2020-12-31 | B112: GEN-FI | C112: 0 | D112: 189186 | E112: 13120510.61 | F112: 189 | G112: 186 | H112: 189 | I112: 186 | J112: 0
A113: 2020-12-31 | B113: GEN-FI | C113: 0 | D113: 189187 | E113: 5813700 | F113: 189 | G113: 187 | H113: 189 | I113: 147 | J113: 0
A114: 2020-12-31 | B114: GEN-FI | C114: 0 | D114: 200100 | E114: 8406208.53 | F114: 200 | G114: 100 | H114: 200 | I114: 100 | J114: 0
A115: 2020-12-31 | B115: GEN-FI | C115: 0 | D115: 500000 | E115: 21802.68 | F115: 500 | G115: 211 | H115: 100 | I115: 211 | J115: 0
A116: 2020-12-31 | B116: GEN-FI | C116: 0 | D116: 600136 | E116: -788000 | F116: 600 | G116: 136 | H116: 600 | I116: 147 | J116: 0
A117: 2020-12-31 | B117: GEN-FI | C117: 0 | D117: 600136 | E117: 788000 | F117: 600 | G117: 136 | H117: 600 | I117: 147 | J117: 0
A118: 2020-12-31 | B118: GEN-FI | C118: 0 | D118: 600186 | E118: -696288.87 | F118: 600 | G118: 186 | H118: 600 | I118: 186 | J118: 0
A119: 2020-12-31 | B119: GEN-FI | C119: 0 | D119: 600186 | E119: 696288.87 | F119: 600 | G119: 186 | H119: 600 | I119: 186 | J119: 0
A120: 2020-12-31 | B120: GEN-FI | C120: 0 | D120: 600187 | E120: -1001500 | F120: 600 | G120: 187 | H120: 600 | I120: 147 | J120: 0
A121: 2020-12-31 | B121: GEN-FI | C121: 0 | D121: 600187 | E121: 1001500 | F121: 600 | G121: 187 | H121: 600 | I121: 147 | J121: 0
A122: 2020-12-31 | B122: GEN-FI | C122: 0 | D122: 610180 | E122: 134000 | F122: 610 | G122: 180 | H122: 610 | I122: 180 | J122: 0
A123: 2020-12-31 | B123: GEN-FI | C123: 0 | D123: 610186 | E123: 299788.87 | F123: 610 | G123: 186 | H123: 610 | I123: 186 | J123: 0
A124: 2020-12-31 | B124: GEN-FI | C124: 0 | D124: 610186 | E124: -130288.87 | F124: 610 | G124: 186 | H124: 610 | I124: 186 | J124: 0
A125: 2020-12-31 | B125: GEN-FI | C125: 1 | D125: 619116 | E125: 9113.92 | F125: 619 | G125: 116 | H125: 610 | I125: 186 | J125: 9113.92
A126: 2020-12-31 | B126: GEN-FI | C126: 0 | D126: 619116 | E126: -8624.38 | F126: 619 | G126: 116 | H126: 610 | I126: 186 | J126: 0
A127: 2020-12-31 | B127: GEN-FI | C127: 0 | D127: 619180 | E127: -132924.61 | F127: 619 | G127: 180 | H127: 610 | I127: 180 | J127: 0
A128: 2020-12-31 | B128: GEN-FI | C128: 1 | D128: 619186 | E128: 3964322.13 | F128: 619 | G128: 186 | H128: 610 | I128: 186 | J128: 3964322.13
A129: 2020-12-31 | B129: GEN-FI | C129: 0 | D129: 619186 | E129: -4069515.85 | F129: 619 | G129: 186 | H129: 610 | I129: 186 | J129: 0
A130: 2020-12-31 | B130: GEN-FI | C130: 1 | D130: 629137 | E130: -3533.31 | F130: 629 | G130: 137 | H130: 610 | I130: 137 | J130: -3533.31
A131: 2020-12-31 | B131: GEN-FI | C131: 0 | D131: 629137 | E131: 3412.73 | F131: =LEFT(D131,3) -> 629 | G131: =IF(ISNA(VLOOKUP(D131,$T$2:$U$6,2,0))=TRUE,RIGHT(D131,3),VLOOKUP(D131,$T$2:$U$6,2,0)) -> 137 | H131: =VLOOKUP(F131,$L$2:$M$39,2,0) -> 610 | I131: =IF(ISNA(VLOOKUP(G131,$P$2:$Q$45,2,0))=TRUE,"010",VLOOKUP(G131,$P$2:$Q$45,2,0)) -> 137 | J131: =C131*E131 -> 0
A132: 2020-12-31 | B132: GEN-FI | C132: 1 | D132: 629186 | E132: -834393.93 | F132: 629 | G132: 186 | H132: 610 | I132: 186 | J132: -834393.93
A133: 2020-12-31 | B133: GEN-FI | C133: 0 | D133: 629186 | E133: 833388.16 | F133: 629 | G133: 186 | H133: 610 | I133: 186 | J133: 0
A134: 2020-12-31 | B134: GEN-FI | C134: 0 | D134: 630116 | E134: -473625.33 | F134: 630 | G134: 116 | H134: 630 | I134: 186 | J134: 0
A135: 2020-12-31 | B135: GEN-FI | C135: 0 | D135: 630116 | E135: 343770.54 | F135: 630 | G135: 116 | H135: 630 | I135: 186 | J135: 0
A136: 2020-12-31 | B136: GEN-FI | C136: 0 | D136: 630132 | E136: -114813.69 | F136: 630 | G136: 132 | H136: 630 | I136: 132 | J136: 0
A137: 2020-12-31 | B137: GEN-FI | C137: 0 | D137: 630132 | E137: 114813.69 | F137: 630 | G137: 132 | H137: 630 | I137: 132 | J137: 0
A138: 2020-12-31 | B138: GEN-FI | C138: 0 | D138: 630136 | E138: -315265.75 | F138: 630 | G138: 136 | H138: 630 | I138: 147 | J138: 0
A139: 2020-12-31 | B139: GEN-FI | C139: 0 | D139: 630136 | E139: 315265.75 | F139: 630 | G139: 136 | H139: 630 | I139: 147 | J139: 0
A140: 2020-12-31 | B140: GEN-FI | C140: 0 | D140: 630137 | E140: -236200 | F140: 630 | G140: 137 | H140: 630 | I140: 137 | J140: 0
A141: 2020-12-31 | B141: GEN-FI | C141: 0 | D141: 630137 | E141: 118100 | F141: 630 | G141: 137 | H141: 630 | I141: 137 | J141: 0
A142: 2020-12-31 | B142: GEN-FI | C142: 0 | D142: 630180 | E142: -651027.4 | F142: 630 | G142: 180 | H142: 630 | I142: 180 | J142: 0
A143: 2020-12-31 | B143: GEN-FI | C143: 0 | D143: 630180 | E143: 513150.69 | F143: 630 | G143: 180 | H143: 630 | I143: 180 | J143: 0
A144: 2020-12-31 | B144: GEN-FI | C144: 0 | D144: 630186 | E144: -10942546.97 | F144: 630 | G144: 186 | H144: 630 | I144: 186 | J144: 0
A145: 2020-12-31 | B145: GEN-FI | C145: 0 | D145: 630186 | E145: 8862512.98 | F145: 630 | G145: 186 | H145: 630 | I145: 186 | J145: 0
A146: 2020-12-31 | B146: GEN-FI | C146: 0 | D146: 630187 | E146: -2395483.6 | F146: 630 | G146: 187 | H146: 630 | I146: 147 | J146: 0
A147: 2020-12-31 | B147: GEN-FI | C147: 0 | D147: 630187 | E147: 2148308.25 | F147: 630 | G147: 187 | H147: 630 | I147: 147 | J147: 0
A148: 2020-12-31 | B148: GEN-FI | C148: 0 | D148: 630211 | E148: -5402373.45 | F148: 630 | G148: 211 | H148: 630 | I148: 211 | J148: 0
A149: 2020-12-31 | B149: GEN-FI | C149: 0 | D149: 630211 | E149: 5264414 | F149: 630 | G149: 211 | H149: 630 | I149: 211 | J149: 0
A150: 2020-12-31 | B150: GEN-FI | C150: 0 | D150: 630212 | E150: -3927808.35 | F150: 630 | G150: 212 | H150: 630 | I150: 212 | J150: 0
A151: 2020-12-31 | B151: GEN-FI | C151: 0 | D151: 630212 | E151: 2435693.09 | F151: 630 | G151: 212 | H151: 630 | I151: 212 | J151: 0
A152: 2020-12-31 | B152: GEN-FI | C152: 0 | D152: 630213 | E152: -2181462.45 | F152: 630 | G152: 213 | H152: 630 | I152: 223 | J152: 0
A153: 2020-12-31 | B153: GEN-FI | C153: 0 | D153: 630213 | E153: 2181462.45 | F153: 630 | G153: 213 | H153: 630 | I153: 223 | J153: 0
A154: 2020-12-31 | B154: GEN-FI | C154: 0 | D154: 630440 | E154: -2660278.06 | F154: 630 | G154: 440 | H154: 630 | I154: 440 | J154: 0
A155: 2020-12-31 | B155: GEN-FI | C155: 0 | D155: 630440 | E155: 2206208.62 | F155: 630 | G155: 440 | H155: 630 | I155: 440 | J155: 0
A156: 2020-12-31 | B156: GEN-FI | C156: 0 | D156: 636006 | E156: -114.96 | F156: 636 | G156: 211 | H156: 636 | I156: 211 | J156: 0
A157: 2020-12-31 | B157: GEN-FI | C157: 0 | D157: 636006 | E157: 106.19 | F157: 636 | G157: 211 | H157: 636 | I157: 211 | J157: 0
A158: 2020-12-31 | B158: GEN-FI | C158: 1 | D158: 639116 | E158: -20780.82 | F158: 639 | G158: 116 | H158: 630 | I158: 186 | J158: -20780.82
A159: 2020-12-31 | B159: GEN-FI | C159: 0 | D159: 639116 | E159: 110569.18 | F159: 639 | G159: 116 | H159: 630 | I159: 186 | J159: 0
A160: 2020-12-31 | B160: GEN-FI | C160: 1 | D160: 639137 | E160: -11031.32 | F160: 639 | G160: 137 | H160: 630 | I160: 137 | J160: -11031.32
A161: 2020-12-31 | B161: GEN-FI | C161: 0 | D161: 639137 | E161: 109065.03 | F161: 639 | G161: 137 | H161: 630 | I161: 137 | J161: 0
A162: 2020-12-31 | B162: GEN-FI | C162: 0 | D162: 639180 | E162: 127328.77 | F162: 639 | G162: 180 | H162: 630 | I162: 180 | J162: 0
A163: 2020-12-31 | B163: GEN-FI | C163: 1 | D163: 639186 | E163: -2100350.69 | F163: 639 | G163: 186 | H163: 630 | I163: 186 | J163: -2100350.69
A164: 2020-12-31 | B164: GEN-FI | C164: 0 | D164: 639186 | E164: 3256701.55 | F164: 639 | G164: 186 | H164: 630 | I164: 186 | J164: 0
A165: 2020-12-31 | B165: GEN-FI | C165: 1 | D165: 639187 | E165: -402624.66 | F165: 639 | G165: 187 | H165: 630 | I165: 147 | J165: -402624.66
A166: 2020-12-31 | B166: GEN-FI | C166: 0 | D166: 639187 | E166: 469065.75 | F166: 639 | G166: 187 | H166: 630 | I166: 147 | J166: 0
A167: 2020-12-31 | B167: GEN-FI | C167: 1 | D167: 639211 | E167: -4629490.02 | F167: 639 | G167: 211 | H167: 630 | I167: 211 | J167: -4629490.02
A168: 2020-12-31 | B168: GEN-FI | C168: 0 | D168: 639211 | E168: 4056689.94 | F168: 639 | G168: 211 | H168: 630 | I168: 211 | J168: 0
A169: 2020-12-31 | B169: GEN-FI | C169: 1 | D169: 639212 | E169: -976783.03 | F169: 639 | G169: 212 | H169: 630 | I169: 212 | J169: -976783.03
A170: 2020-12-31 | B170: GEN-FI | C170: 0 | D170: 639212 | E170: 2216350.38 | F170: 639 | G170: 212 | H170: 630 | I170: 212 | J170: 0
A171: 2020-12-31 | B171: GEN-FI | C171: 1 | D171: 639213 | E171: -706751.11 | F171: 639 | G171: 213 | H171: 630 | I171: 223 | J171: -706751.11
A172: 2020-12-31 | B172: GEN-FI | C172: 0 | D172: 639213 | E172: 578252.13 | F172: 639 | G172: 213 | H172: 630 | I172: 223 | J172: 0
A173: 2020-12-31 | B173: GEN-FI | C173: 1 | D173: 639440 | E173: -105576.63 | F173: 639 | G173: 440 | H173: 630 | I173: 440 | J173: -105576.63
A174: 2020-12-31 | B174: GEN-FI | C174: 0 | D174: 639440 | E174: 351515.69 | F174: 639 | G174: 440 | H174: 630 | I174: 440 | J174: 0
A175: 2020-12-31 | B175: GEN-FI | C175: 1 | D175: 660116 | E175: 1111.39 | F175: 660 | G175: 116 | H175: 660 | I175: 186 | J175: 1111.39
A176: 2020-12-31 | B176: GEN-FI | C176: 0 | D176: 660116 | E176: -1262.51 | F176: 660 | G176: 116 | H176: 660 | I176: 186 | J176: 0
A177: 2020-12-31 | B177: GEN-FI | C177: 1 | D177: 660186 | E177: 325128.83 | F177: 660 | G177: 186 | H177: 660 | I177: 186 | J177: 325128.83
A178: 2020-12-31 | B178: GEN-FI | C178: 0 | D178: 660186 | E178: -79640.29 | F178: 660 | G178: 186 | H178: 660 | I178: 186 | J178: 0
A179: 2020-12-31 | B179: GEN-FI | C179: 1 | D179: 660440 | E179: 215164.63 | F179: 660 | G179: 440 | H179: 660 | I179: 440 | J179: 215164.63
A180: 2020-12-31 | B180: GEN-FI | C180: 0 | D180: 660440 | E180: -221724.4 | F180: 660 | G180: 440 | H180: 660 | I180: 440 | J180: 0
A181: 2020-12-31 | B181: GEN-FI | C181: 1 | D181: 689116 | E181: -771913.92 | F181: 689 | G181: 116 | H181: 689 | I181: 186 | J181: -771913.92
A182: 2020-12-31 | B182: GEN-FI | C182: 0 | D182: 689116 | E182: 796374.38 | F182: 689 | G182: 116 | H182: 689 | I182: 186 | J182: 0
A183: 2020-12-31 | B183: GEN-FI | C183: 1 | D183: 689137 | E183: -742466.69 | F183: 689 | G183: 137 | H183: 689 | I183: 137 | J183: -742466.69
A184: 2020-12-31 | B184: GEN-FI | C184: 0 | D184: 689137 | E184: 716837.27 | F184: 689 | G184: 137 | H184: 689 | I184: 137 | J184: 0
A185: 2020-12-31 | B185: GEN-FI | C185: 0 | D185: 689180 | E185: 4674.61 | F185: 689 | G185: 180 | H185: 689 | I185: 180 | J185: 0
A186: 2020-12-31 | B186: GEN-FI | C186: 1 | D186: 689186 | E186: -13120510.61 | F186: 689 | G186: 186 | H186: 689 | I186: 186 | J186: -13120510.61
A187: 2020-12-31 | B187: GEN-FI | C187: 0 | D187: 689186 | E187: 13849576.46 | F187: 689 | G187: 186 | H187: 689 | I187: 186 | J187: 0
A188: 2020-12-31 | B188: GEN-FI | C188: 1 | D188: 689187 | E188: -5813700 | F188: 689 | G188: 187 | H188: 689 | I188: 147 | J188: -5813700
A189: 2020-12-31 | B189: GEN-FI | C189: 0 | D189: 689187 | E189: 5790950 | F189: 689 | G189: 187 | H189: 689 | I189: 147 | J189: 0
A190: 2020-12-31 | B190: GEN-FI | C190: 0 | D190: 710102 | E190: 339.6 | F190: 710 | G190: 211 | H190: 710 | I190: 211 | J190: 0
A191: 2020-12-31 | B191: GEN-FI | C191: 0 | D191: 710102 | E191: -309.6 | F191: 710 | G191: 211 | H191: 710 | I191: 211 | J191: 0
A192: 2020-12-31 | B192: GEN-FI | C192: 0 | D192: 710109 | E192: 7600.92 | F192: 710 | G192: 109 | H192: 710 | I192: 010 | J192: 0
A193: 2020-12-31 | B193: GEN-FI | C193: 0 | D193: 710109 | E193: -7600.92 | F193: 710 | G193: 109 | H193: 710 | I193: 010 | J193: 0
A194: 2020-12-31 | B194: GEN-FI | C194: 0 | D194: 799440 | E194: 145152.85 | F194: 799 | G194: 440 | H194: 799 | I194: 440 | J194: 0
A195: 2020-12-31 | B195: GEN-FI | C195: 0 | D195: 799440 | E195: -145152.85 | F195: =LEFT(D195,3) -> 799 | G195: =IF(ISNA(VLOOKUP(D195,$T$2:$U$6,2,0))=TRUE,RIGHT(D195,3),VLOOKUP(D195,$T$2:$U$6,2,0)) -> 440 | H195: =VLOOKUP(F195,$L$2:$M$39,2,0) -> 799 | I195: =IF(ISNA(VLOOKUP(G195,$P$2:$Q$45,2,0))=TRUE,"010",VLOOKUP(G195,$P$2:$Q$45,2,0)) -> 440 | J195: =C195*E195 -> 0
A196: 2020-12-31 | B196: GEN-FI | C196: 0 | D196: 800000 | E196: -749774040.8 | F196: 800 | G196: 000 | H196: 800 | I196: 010 | J196: 0
A197: 2020-12-31 | B197: GEN-FI | C197: 0 | D197: 810000 | E197: -15154173.66 | F197: 810 | G197: 000 | H197: 810 | I197: 010 | J197: 0
A198: 2020-12-31 | B198: GEN-FI | C198: 0 | D198: 830000 | E198: -59975055.03 | F198: 830 | G198: 000 | H198: 830 | I198: 010 | J198: 0
A199: 2020-12-31 | B199: GEN-FI | C199: 0 | D199: 919116 | E199: -1144.8 | F199: 919 | G199: 116 | H199: 919 | I199: 186 | J199: 0
A200: 2020-12-31 | B200: GEN-FI | C200: 0 | D200: 919116 | E200: 1144.8 | F200: 919 | G200: 116 | H200: 919 | I200: 186 | J200: 0
... 4300 more rows

Sheet Achievement
A1: Budget 5.17%
A3: OVERALL
B4: ------------RM RETURN----------- | K4: ------% YIELD-----
B5: Budget FY2016 | C5: =SCOREBOARD!G2 -> 2021-12-31 | D5: Monthly Budget | E5: % Monthly Budget | F5: YTD | G5: YTD Budget | H5: % YTD Budget | I5: (12 mths) | K5: (12 mths)
A7: 1. Deposits
A8: Deposits & Money Market | B8: 12992820 | C8: =SCOREBOARD!AA9 -> 3580623.76 | D8: =B8/12 -> 1082735 | E8: =C8/D8*100 -> 330.7017654 | F8: =SCOREBOARD!AC9 -> 43765021.97 | G8: =D8*VLOOKUP($C$5,$A$58:$B$69,2,FALSE) ->  | H8: =F8/G8*100 ->  | I8: 20007411 | K8: 3.51
A9: Banca Deposit | B9: 17475211 | C9: =SCOREBOARD!AA10 -> 739234.67 | D9: =B9/12 -> 1456267.583 | E9: =C9/D9*100 -> 50.76228287 | F9: =SCOREBOARD!AC10 -> 9318207.73 | G9: =D9*VLOOKUP($C$5,$A$58:$B$69,2,FALSE) -> 
A10: Alternative Asset | B10: 19465749 | C10: =SCOREBOARD!AA12+SCOREBOARD!AA11 -> 0 | D10: =B10/12 -> 1622145.75 | E10: =C10/D10*100 -> 0 | F10: =SCOREBOARD!AC12 -> 0 | G10: =D10*VLOOKUP($C$5,$A$58:$B$69,2,FALSE) ->  | I10: 16937438 | K10: 5.64
A11: ITA | B11: 7260848 | C11: =SCOREBOARD!AA23 -> 2447549.94 | D11: =B11/12 -> 605070.6667 | E11: =C11/D11*100 -> 404.506461 | F11: =SCOREBOARD!AC23 -> 29826407.79 | G11: =D11*VLOOKUP($C$5,$A$58:$B$69,2,FALSE) ->  | I11: 5759549 | K11: 4.02
A12: Sub-total | B12: =SUM(B8:B11) -> 57194628 | C12: =SUM(C8:C11) -> 6767408.37 | D12: =SUM(D8:D11) -> 4766219 | E12: =C12/D12*100 -> 141.986937 | F12: =SUM(F8:F11) -> 82909637.49 | G12: =SUM(G8:G11) -> 
A14: 2. Sukuk
A15: GII | B15: 11985895 | C15: =SCOREBOARD!AA15 -> 4319866.52 | D15: =B15/12 -> 998824.5833 | E15: =C15/D15*100 -> 432.4950138 | F15: =SCOREBOARD!AC15 -> 36363553.87 | G15: =D15*VLOOKUP($C$5,$A$58:$B$69,2,FALSE) ->  | I15: 32786109 | K15: 4.17
A16: GG | B16: 23046112 | C16: =SCOREBOARD!AA16 -> 12782408.12 | D16: =B16/12 -> 1920509.333 | E16: =C16/D16*100 -> 665.573861 | F16: =SCOREBOARD!AC16 -> 73457095.62 | G16: =D16*VLOOKUP($C$5,$A$58:$B$69,2,FALSE) ->  | H16: =F16/G16*100 -> 
A17: Corporate Sukuk | B17: 139006613 | C17: =SCOREBOARD!AA24 -> 13639029.99 | D17: =B17/12 -> 11583884.42 | E17: =C17/D17*100 -> 117.7414199 | F17: =SCOREBOARD!AC24 -> 165646531.1 | G17: =D17*VLOOKUP($C$5,$A$58:$B$69,2,FALSE) ->  | I17: 118315455 | K17: 5.14
A18: Sub-total | B18: =SUM(B15:B17) -> 174038620 | C18: =SUM(C15:C17) -> 30741304.63 | D18: =SUM(D15:D17) -> 14503218.33 | E18: =C18/D18*100 -> 211.9619516 | F18: =SUM(F15:F17) -> 275467180.6 | G18: =SUM(G15:G17) -> 
A20: 3. Equity
A21: Equity | B21: 44497222 | C21: =SCOREBOARD!AA17 -> 210175.76 | D21: =B21/12 -> 3708101.833 | E21: =C21/D21*100 -> 5.668014781 | F21: =SCOREBOARD!AC17 -> 34041845.18 | G21: =D21*VLOOKUP($C$5,$A$58:$B$69,2,FALSE) ->  | I21: 146849967 | K21: 13.12
A22: Unit Trust | B22: 15268424 | C22: =SCOREBOARD!AA20 -> -148407.03 | D22: =B22/12 -> 1272368.667 | E22: =C22/D22*100 -> -11.66383878 | F22: =SCOREBOARD!AC20 -> -4215781.47 | G22: =D22*VLOOKUP($C$5,$A$58:$B$69,2,FALSE) ->  | I22: 15977972 | K22: 7.57
A23: Sub-total | B23: =SUM(B21:B22) -> 59765646 | C23: =SUM(C21:C22) -> 61768.73 | D23: =SUM(D21:D22) -> 4980470.5 | E23: =C23/D23*100 -> 1.24021877 | F23: =SUM(F21:F22) -> 29826063.71 | G23: =SUM(G21:G22) -> 
A25: 4. Properties | B25: 12086271 | C25: =SCOREBOARD!AA25 -> 6001062.47 | D25: =B25/12 -> 1007189.25 | E25: =C25/D25*100 -> 595.8227284 | F25: =SCOREBOARD!AC25 -> 13085335.66 | G25: 5043135.443 | H25: =F25/G25*100 -> 259.4682575 | I25: 12027261 | K25: 5.03
A27: TOTAL | B27: =B12+B18+B23+B25 -> 303085165 | C27: =C12+C18+C23+C25 -> 43571544.2 | D27: =D12+D18+D23+D25 -> 25257097.08 | E27: =C27/D27*100 -> 172.5120827 | F27: =F12+F18+F23+F25 -> 401288217.4 | G27: =G12+G18+G23+G25 ->  | H27: =F27/G27*100 ->  | I27: 368661163 | K27: 6.50
C28: =C27+SCOREBOARD!AA26+SCOREBOARD!AA11 -> 44063100.61
A29: Target 5.22%
A31: OVERALL
B32: ------------RM RETURN----------- | K32: ------% YIELD-----
B33: Target FY2016 | C33: =C5 -> 2021-12-31 | D33: Monthly Budget | E33: % Monthly Budget | F33: YTD | G33: YTD Budget | H33: % YTD Budget | I33: (12 mths) | K33: (12 mths)
A35: 1. Deposits
A36: Deposits & Money Market | B36: 12992820 | C36: =C8 -> 3580623.76 | D36: =B36/12 -> 1082735 | E36: =C36/D36*100 -> 330.7017654 | F36: =F8 -> 43765021.97 | G36: =D36*11 -> 11910085 | H36: =F36/G36*100 -> 367.4618776 | I36: 20007411 | K36: 3.51
A37: Banca Deposit | B37: 17475211 | C37: =C9 -> 739234.67 | D37: =B37/12 -> 1456267.583 | E37: =C37/D37*100 -> 50.76228287 | F37: =F9 -> 9318207.73 | G37: =D37*11 -> 16018943.42 | H37: =F37/G37*100 -> 58.16992724
A38: Alternative Asset | B38: 19465749 | C38: =C10 -> 0 | D38: =B38/12 -> 1622145.75 | E38: =C38/D38*100 -> 0 | F38: =F10 -> 0 | G38: =D38*11 -> 17843603.25 | H38: =F38/G38*100 -> 0 | I38: 16937438 | K38: 5.64
A39: ITA | B39: 7260848 | C39: =C11 -> 2447549.94 | D39: =B39/12 -> 605070.6667 | E39: =C39/D39*100 -> 404.506461 | F39: =F11 -> 29826407.79 | G39: =D39*11 -> 6655777.333 | H39: =F39/G39*100 -> 448.1280893 | I39: 5759549 | K39: 4.02
A40: Sub-total | B40: =SUM(B36:B39) -> 57194628 | C40: =SUM(C36:C39) -> 6767408.37 | D40: =SUM(D36:D39) -> 4766219 | E40: =C40/D40*100 -> 141.986937 | F40: =SUM(F36:F39) -> 82909637.49 | G40: =SUM(G36:G39) -> 52428409 | H40: =F40/G40*100 -> 158.1387631
A42: 2. Sukuk
A43: GII | B43: 11985895 | C43: =C15 -> 4319866.52 | D43: =B43/12 -> 998824.5833 | E43: =C43/D43*100 -> 432.4950138 | F43: =F15 -> 36363553.87 | G43: =D43*11 -> 10987070.42 | H43: =F43/G43*100 -> 330.9667863 | I43: 32786109 | K43: 4.17
A44: GG | B44: 23046112 | C44: =C16 -> 12782408.12 | D44: =B44/12 -> 1920509.333 | E44: =C44/D44*100 -> 665.573861 | F44: =F16 -> 73457095.62 | G44: =D44*11 -> 21125602.67 | H44: =F44/G44*100 -> 347.7159766
A45: Corporate Sukuk | B45: 140334083 | C45: =C17 -> 13639029.99 | D45: =B45/12 -> 11694506.92 | E45: =C45/D45*100 -> 116.6276619 | F45: =F17 -> 165646531.1 | G45: =D45*11 -> 128639576.1 | H45: =F45/G45*100 -> 128.7679392 | I45: 118315455 | K45: 5.14
A46: Sub-total | B46: =SUM(B43:B45) -> 175366090 | C46: =SUM(C43:C45) -> 30741304.63 | D46: =SUM(D43:D45) -> 14613840.83 | E46: =C46/D46*100 -> 210.3574617 | F46: =SUM(F43:F45) -> 275467180.6 | G46: =SUM(G43:G45) -> 160752249.2 | H46: =F46/G46*100 -> 171.3613228
A48: 3. Equity
A49: Equity | B49: 46404245 | C49: =C21 -> 210175.76 | D49: =B49/12 -> 3867020.417 | E49: =C49/D49*100 -> 5.43508276 | F49: =F21 -> 34041845.18 | G49: =D49*11 -> 42537224.58 | H49: =F49/G49*100 -> 80.0283646 | I49: 146849967 | K49: 13.12
A50: Unit Trust | B50: 15268424 | C50: =C22 -> -148407.03 | D50: =B50/12 -> 1272368.667 | E50: =C50/D50*100 -> -11.66383878 | F50: =F22 -> -4215781.47 | G50: =D50*11 -> 13996055.33 | H50: =F50/G50*100 -> -30.1212118 | I50: 15977972 | K50: 7.57
A51: Sub-total | B51: =SUM(B49:B50) -> 61672669 | C51: =SUM(C49:C50) -> 61768.73 | D51: =SUM(D49:D50) -> 5139389.083 | E51: =C51/D51*100 -> 1.201869113 | F51: =SUM(F49:F50) -> 29826063.71 | G51: =SUM(G49:G50) -> 56533279.92 | H51: =F51/G51*100 -> 52.75841726
A53: 4. Properties | B53: 12086271 | C53: =C25 -> 6001062.47 | D53: =B53/12 -> 1007189.25 | E53: =C53/D53*100 -> 595.8227284 | F53: =F25 -> 13085335.66 | G53: =D53*11 -> 11079081.75 | H53: =F53/G53*100 -> 118.1084855 | I53: 12027261 | K53: 5.03
A55: TOTAL | B55: =B40+B46+B51+B53 -> 306319658 | C55: =C40+C46+C51+C53 -> 43571544.2 | D55: =D40+D46+D51+D53 -> 25526638.17 | E55: =C55/D55*100 -> 170.6904917 | F55: =F40+F46+F51+F53 -> 401288217.4 | G55: =G40+G46+G51+G53 -> 280793019.8 | H55: =F55/G55*100 -> 142.9124619 | I55: 368661163 | K55: 6.50
A58: 2016-01-01 | B58: 1
A59: 2016-02-01 | B59: 2
A60: 2016-03-01 | B60: 3
A61: 2016-04-01 | B61: 4
A62: 2016-05-01 | B62: 5
A63: 2016-06-01 | B63: 6
A64: 2016-07-01 | B64: 7
A65: 2016-08-01 | B65: 8
A66: 2016-09-01 | B66: 9
A67: 2016-10-01 | B67: 10
A68: 2016-11-01 | B68: 11
A69: 2016-12-01 | B69: 12

Sheet Slides
A2: Asset Classes | B2: Asset Allocation | G2: Investment Income
B3: =SCOREBOARD!V7 -> 2021-12-31 | C3: % | D3: Budget | E3: % | F3: Actual vs Budget | G3: =SCOREBOARD!AA7 -> 2021-12-31 | H3: Budget | I3: Budget Achv (%) | J3: =Comparison!P11 -> 2020-12-31
A4: Deposit | B4: =SCOREBOARD!V9 -> 2092852147 | C4: =SCOREBOARD!W9 -> 20.97457143 | D4: =SCOREBOARD!X9 -> 1066350900 | E4: =SCOREBOARD!Y9 -> 10.49956713 | F4: =B4-D4 -> 1026501246 | G4: =SCOREBOARD!AA9 -> 3580623.76 | H4: =SCOREBOARD!AB9 -> 2088633.158 | I4: =G4/H4*100 -> 171.4338272 | J4: =Comparison!P13 -> 0
A5: Deposit (Banca Reciprocal) | B5: =SCOREBOARD!V10+SCOREBOARD!V11 -> 416130784.9 | C5: =SCOREBOARD!W10+SCOREBOARD!W11 -> 4.170464162 | D5: =SCOREBOARD!X10+SCOREBOARD!X11 -> 618929177.1 | E5: =SCOREBOARD!Y10+SCOREBOARD!Y11 -> 6.094136966 | F5: =B5-D5 -> -202798392.2 | G5: =SCOREBOARD!AA10+SCOREBOARD!AA11 -> 739234.67 | H5: =SCOREBOARD!AB10+SCOREBOARD!AB11 -> 1173726.566 | I5: =G5/H5*100 -> 62.981847 | J5: =Comparison!P14+Comparison!P15 -> 0
A6: Structured Deposit | B6: =SCOREBOARD!V12 -> 0 | C6: =SCOREBOARD!W12 -> 0 | D6: =SCOREBOARD!X12 -> 0 | E6: =SCOREBOARD!Y12 -> 0 | F6: 0 | G6: =SCOREBOARD!AA12 -> 0 | H6: =SCOREBOARD!AB12 -> 0 | J6: =Comparison!P16 -> 0
A7: Income | G7: =SCOREBOARD!AA13 -> 0 | J7: =Comparison!P17 -> 0
A8: FV Gain/Loss | G8: =SCOREBOARD!AA14 -> 0 | J8: =Comparison!P18 -> 0
A9: GII | B9: =SCOREBOARD!V15 -> 475536300 | C9: =SCOREBOARD!W15 -> 4.765826439 | D9: =SCOREBOARD!X15 -> 807516925 | E9: =SCOREBOARD!Y15 -> 7.951020771 | F9: -331980625 | G9: =SCOREBOARD!AA15 -> 4319866.52 | H9: =SCOREBOARD!AB15 -> 2872511.797 | I9: 150.3863805 | J9: =Comparison!P19 -> 0
A10: GG | B10: =SCOREBOARD!V16 -> 1508242710 | C10: =SCOREBOARD!W16 -> 15.11561364 | D10: =SCOREBOARD!X16 -> 1335239666 | E10: =SCOREBOARD!Y16 -> 13.14711555 | F10: 173003043.5 | G10: =SCOREBOARD!AA16 -> 12782408.12 | H10: =SCOREBOARD!AB16 -> 4933360.335 | I10: 259.1014492 | J10: =Comparison!P20 -> 0
A11: Corporate Sukuk | B11: =SCOREBOARD!V24 -> 4280061180 | C11: =SCOREBOARD!W24 -> 42.89478791 | D11: =SCOREBOARD!X24 -> 4797343749 | E11: =SCOREBOARD!Y24 -> 47.23588895 | F11: -517282568.9 | G11: =SCOREBOARD!AA24 -> 13639029.99 | H11: =SCOREBOARD!AB24 -> 15589103.44 | I11: 87.49079152 | J11: =Comparison!P28 -> 0
A12: Equity | B12: =SCOREBOARD!V17 -> 179206098.2 | C12: =SCOREBOARD!W17 -> 1.796004134 | D12: =SCOREBOARD!X17 -> 374846386.3 | E12: =SCOREBOARD!Y17 -> 3.690834596 | F12: -195640288.2 | G12: =SCOREBOARD!AA17 -> 210175.76 | H12: =SCOREBOARD!AB17 -> 2588490.187 | I12: 8.119627458 | J12: =Comparison!P21 -> 0
A13: Income | G13: =SCOREBOARD!AA18 -> 154027.49 | J13: =Comparison!P22 -> 0
A14: FV Gain/Loss | G14: =SCOREBOARD!AA19 -> 56148.27 | J14: =Comparison!P23 -> 0
A15: Unit Trust | B15: =SCOREBOARD!V20 -> 104465980 | C15: =SCOREBOARD!W20 -> 1.046958412 | D15: =SCOREBOARD!X20 -> 181626635.3 | E15: =SCOREBOARD!Y20 -> 1.788342888 | F15: -77160655.3 | G15: =SCOREBOARD!AA20 -> -148407.03 | H15: =SCOREBOARD!AB20 -> 1117508.845 | I15: -13.28016603 | J15: =Comparison!P24 -> 0
A16: Income | G16: =SCOREBOARD!AA21 -> 0 | J16: =Comparison!P25 -> 0
A17: FV Gain/Loss | G17: =SCOREBOARD!AA22 -> -148407.03 | J17: =Comparison!P26 -> 0
A18: ITA | B18: =SCOREBOARD!V23 -> 615494659.3 | C18: =SCOREBOARD!W23 -> 6.168489599 | D18: =SCOREBOARD!X23 -> 669849320.2 | E18: =SCOREBOARD!Y23 -> 6.595509882 | F18: -54354660.86 | G18: =SCOREBOARD!AA23 -> 2447549.94 | H18: =SCOREBOARD!AB23 -> 2471725.532 | I18: 99.0219144 | J18: =Comparison!P27 -> 0
A19: Properties | B19: =SCOREBOARD!V25 -> 263915000 | C19: =SCOREBOARD!W25 -> 2.64495704 | D19: =SCOREBOARD!X25 -> 258560000 | E19: =SCOREBOARD!Y25 -> 2.545848721 | F19: 5355000 | G19: =SCOREBOARD!AA25 -> 6001062.47 | H19: =SCOREBOARD!AB25 -> 2631972.083 | I19: 228.0063116 | J19: =Comparison!P29 -> 0
A20: ILP Seed Capital | B20: =SCOREBOARD!V26 -> 42140000 | C20: =SCOREBOARD!W26 -> 0.4223272254 | D20: =SCOREBOARD!X26 -> 45878800 | E20: =SCOREBOARD!Y26 -> 0.4517345463 | F20: -3738800 | G20: =SCOREBOARD!AA26 -> 491556.41 | H20: =SCOREBOARD!AB26 -> 347566.6667 | I20: 141.4279496 | J20: =Comparison!P30 -> 0
A21: TOTAL | B21: =SUM(B4:B20) -> 9978044859 | C21: =SUM(C4:C20) -> 100 | D21: =SUM(D4:D20) -> 1.015614156e+10 | E21: =SUM(E4:E20) -> 100 | F21: =SUM(F4:F20) -> -178096700.6 | G21: =SUM(G4+G5+G6+G9+G10+G11+G12+G15+G18+G19+G20) -> 44063100.61 | H21: =SUM(H4+H5+H6+H9+H10+H11+H12+H15+H18+H19+H20) -> 35814598.61 | I21: 123.0311167 | J21: =SUM(J4+J5+J6+J9+J10+J11+J12+J15+J18+J19+J20) -> 0
A26: Asset Classes | B26: YTD Income (RM mil) | F26: YTD Yield (%)
B27: YTD2019 | C27: Budget | D27: Budget Achv (%) | E27: YTD2018 | F27: YTD2019 | G27: Budget | H27: YTD2018
A28: Deposit | B28: =SCOREBOARD!AC9 -> 43765021.97 | C28: =SCOREBOARD!AD9 -> 37521339.03 | D28: =B28/C28*100 -> 116.6403521 | E28: =Comparison!U13 -> 0 | F28: =SCOREBOARD!AF9 -> 2.043556425 | G28: =SCOREBOARD!AG9 -> 2.3 | H28: =Comparison!Z13 -> 0
A29: Deposit (Banca Reciprocal) | B29: =SCOREBOARD!AC10+SCOREBOARD!AC11 -> 9318207.73 | C29: =SCOREBOARD!AD10+SCOREBOARD!AD11 -> 12289035.11 | D29: =B29/C29*100 -> 75.82538131 | E29: =Comparison!U14+Comparison!U15 -> 0 | F29: =SCOREBOARD!AF10 -> 2.131338409 | G29: =SCOREBOARD!AG10 -> 2.3 | H29: =Comparison!Z14 -> 0
A30: Structured Deposit | B30: =SCOREBOARD!AC12 -> 0 | C30: =SCOREBOARD!AD12 -> 0 | E30: =Comparison!U16 -> 0 | F30: =SCOREBOARD!AF12 -> 0 | G30: =SCOREBOARD!AG12 -> 0 | H30: =Comparison!Z16 -> 0
A31: Income | B31: =SCOREBOARD!AC13 -> 0 | E31: =Comparison!U17 -> 0
A32: FV Gain/Loss | B32: =SCOREBOARD!AC14 -> 0 | E32: =Comparison!U18 -> 0
A33: GII | B33: =SCOREBOARD!AC15 -> 36363553.87 | C33: =SCOREBOARD!AD15 -> 29554138.13 | D33: 123.0404815 | E33: =Comparison!U19 -> 0 | F33: =SCOREBOARD!AF15 -> 7.891901696 | G33: =SCOREBOARD!AG15 -> 4.526338325 | H33: =Comparison!Z19 -> 0
A34: GG | B34: =SCOREBOARD!AC16 -> 73457095.62 | C34: =SCOREBOARD!AD16 -> 55364767.8 | D34: 132.6784136 | E34: =Comparison!U20 -> 0 | F34: =SCOREBOARD!AF16 -> 6.039323644 | G34: =SCOREBOARD!AG16 -> 4.617059576 | H34: =Comparison!Z20 -> 0
A35: Corporate Sukuk | B35: =SCOREBOARD!AC24 -> 165646531.1 | C35: =SCOREBOARD!AD24 -> 200266211.3 | D35: 82.71316965 | E35: =Comparison!U28 -> 0 | F35: =SCOREBOARD!AF24 -> 4.365872593 | G35: =SCOREBOARD!AG24 -> 4.853078856 | H35: =Comparison!Z28 -> 0
A36: Equity | B36: =SCOREBOARD!AC17 -> 34041845.18 | C36: =SCOREBOARD!AD17 -> 25281927.9 | D36: 134.6489291 | E36: =Comparison!U21 -> 0 | F36: =SCOREBOARD!AF17 -> 18.97800502 | G36: =SCOREBOARD!AG17 -> 9.001146293 | H36: =Comparison!Z21 -> 0
A37: Income | B37: =SCOREBOARD!AC18 -> 31186124.38 | E37: =Comparison!U22 -> 0
A38: FV Gain/Loss | B38: =SCOREBOARD!AC19 -> 2855720.8 | E38: =Comparison!U23 -> 0
A39: Unit Trust | B39: =SCOREBOARD!AC20 -> -4215781.47 | C39: =SCOREBOARD!AD20 -> 7573351.441 | D39: -55.66599547 | E39: =Comparison!U24 -> 0 | F39: =SCOREBOARD!AF20 -> -6.806699556 | G39: =SCOREBOARD!AG20 -> 8.000376515 | H39: =Comparison!Z24 -> 0
A40: Income | B40: =SCOREBOARD!AC21 -> 8007.89 | E40: =Comparison!U25 -> 0
A41: FV Gain/Loss | B41: =SCOREBOARD!AC22 -> -4223789.36 | E41: =Comparison!U26 -> 0
A42: ITA | B42: =SCOREBOARD!AC23 -> 29826407.79 | C42: =SCOREBOARD!AD23 -> 29515226.88 | D42: 101.0543064 | E42: =Comparison!U27 -> 0 | F42: =SCOREBOARD!AF23 -> 4.816465162 | G42: =SCOREBOARD!AG23 -> 4.588222058 | H42: =Comparison!Z27 -> 0
A43: Properties | B43: =SCOREBOARD!AC25 -> 13085335.66 | C43: =SCOREBOARD!AD25 -> 9766705 | D43: 133.9790202 | E43: =Comparison!U29 -> 0 | F43: =SCOREBOARD!AF25 -> 5.137652597 | G43: =SCOREBOARD!AG25 -> 3.777345684 | H43: =Comparison!Z29 -> 0
A44: ILP Seed Capital | B44: =SCOREBOARD!AC26 -> 2237643.3 | C44: =SCOREBOARD!AD26 -> 4170800 | D44: 53.65021818 | E44: =Comparison!U30 -> 0 | F44: =SCOREBOARD!AF26 -> 5.483723857 | G44: =SCOREBOARD!AG26 -> 10 | H44: =Comparison!Z30 -> 0
A45: TOTAL | B45: =SUM(B28+B29+B30+B33+B34+B35+B36+B39+B42+B43+B44) -> 403525860.7 | C45: =SUM(C28+C29+C30+C33+C34+C35+C36+C39+C42+C43+C44) -> 411303502.6 | D45: =B45/C45*100 -> 98.10902611 | E45: =SUM(E28+E29+E30+E33+E34+E35+E36+E39+E42+E43+E44) -> 0 | F45: =SCOREBOARD!AF27 -> 4.383250795 | G45: =SCOREBOARD!AG27 -> 4.337458809 | H45: 1.48
A51: Funds | B51: Fund Size | C51: Budget Fund Size | D51: Investment Income | E51: Budgeted Income | F51: Budget Achv (%) | G51: Yield (%) | H51: Budget Yield (%)
A52: PA | B52: =SCOREBOARD!V282 -> 4025309379 | C52: =SCOREBOARD!X282 -> 4281819310 | D52: =SCOREBOARD!AC282 -> 169094382.5 | E52: =SCOREBOARD!AD282 -> 179297938.2 | F52: =D52/E52*100 -> 94.30916173 | G52: =SCOREBOARD!AF282 -> 4.577833132 | H52: =SCOREBOARD!AG282 -> 4.615130541 | J52: =D52-E52 -> -10203555.69 | K52: =G52-H52 -> -0.03729740902
A53: PSA | B53: =SCOREBOARD!V306 -> 2295053570 | C53: =SCOREBOARD!X306 -> 2373188153 | D53: =SCOREBOARD!AC306 -> 111518455.5 | E53: =SCOREBOARD!AD306 -> 109321247.6 | F53: =D53/E53*100 -> 102.0098636 | G53: =SCOREBOARD!AF306 -> 5.076033464 | H53: =SCOREBOARD!AG306 -> 4.702729924 | J53: =D53-E53 -> 2197207.918 | K53: =G53-H53 -> 0.3733035395
A54: GFTA | B54: =SCOREBOARD!V330 -> 408204682.2 | C54: =SCOREBOARD!X330 -> 310800265.7 | D54: =SCOREBOARD!AC330 -> 13590674.15 | E54: =SCOREBOARD!AD330 -> 12300119.2 | F54: 110.492215 | G54: =SCOREBOARD!AF330 -> 3.679936118 | H54: =SCOREBOARD!AG330 -> 3.732053217 | J54: 1290554.954 | K54: -0.05211709917
A55: Annuity | B55: =SCOREBOARD!V354 -> 317642405.2 | C55: =SCOREBOARD!X354 -> 330255943.3 | D55: =SCOREBOARD!AC354 -> 15613170.11 | E55: =SCOREBOARD!AD354 -> 14965636.11 | F55: 104.3268057 | G55: =SCOREBOARD!AF354 -> 5.039941783 | H55: =SCOREBOARD!AG354 -> 4.597993453 | J55: 647533.9977 | K55: 0.4419483296
A56: SHF - STMKB | B56: =SCOREBOARD!V180 -> 1461197628 | C56: =SCOREBOARD!X180 -> 1511240466 | D56: =SCOREBOARD!AC180 -> 51046439.2 | E56: =SCOREBOARD!AD180 -> 52898164.28 | F56: 96.49945305 | G56: =SCOREBOARD!AF180 -> 3.914554074 | H56: =SCOREBOARD!AG180 -> 4.11431429 | J56: -1851725.077 | K56: -0.1997602168
A57: Total STMKB | B57: =SUM(B52:B56) -> 8507407665 | C57: =SUM(C52:C56) -> 8807304138 | D57: =SUM(D52:D56) -> 360863121.4 | E57: =SUM(E52:E56) -> 368783105.3 | F57: 97.85240056 | G57: =SCOREBOARD!AF129 -> 4.583058765 | H57: =SCOREBOARD!AG129 -> 4.525128977 | J57: -7919983.899 | K57: 0.05792978888
A58: General | B58: =SCOREBOARD!V230 -> 993032778.7 | C58: =SCOREBOARD!X230 -> 891115399.8 | D58: =SCOREBOARD!AC230 -> 27526146.52 | E58: =SCOREBOARD!AD230 -> 27454363.95 | F58: 100.2614614 | G58: =SCOREBOARD!AF230 -> 3.061221378 | H58: =SCOREBOARD!AG230 -> 3.171636762 | J58: 71782.56545 | K58: -0.1104153848
A59: SHF - STMAB | B59: =SCOREBOARD!V255 -> 477604416.1 | C59: =SCOREBOARD!X255 -> 457722022.4 | D59: =SCOREBOARD!AC255 -> 15136592.8 | E59: =SCOREBOARD!AD255 -> 15066033.31 | F59: 100.4683349 | G59: =SCOREBOARD!AF255 -> 3.495351168 | H59: =SCOREBOARD!AG255 -> 3.226590487 | J59: 70559.49183 | K59: 0.2687606801
A60: Total STMAB | B60: =SUM(B58:B59) -> 1470637195 | C60: =SUM(C58:C59) -> 1348837422 | D60: =SUM(D58:D59) -> 42662739.32 | E60: =SUM(E58:E59) -> 42520397.26 | F60: 100.3347618 | G60: =SCOREBOARD!AF205 -> 3.202337035 | H60: =SCOREBOARD!AG205 -> 3.190185735 | J60: 142342.0573 | K60: 0.01215129967
A61: Overall | B61: =B57+B60 -> 9978044859 | C61: =C57+C60 -> 1.015614156e+10 | D61: =D57+D60 -> 403525860.7 | E61: =E57+E60 -> 411303502.6 | F61: 98.10902611 | G61: =SCOREBOARD!AF27 -> 4.383250795 | H61: =SCOREBOARD!AG27 -> 4.337458809 | J61: -7777641.841 | K61: 0.04579198618
A65: STMAB
A67: Asset Classes | B67: Asset Allocation | G67: YTD Income (RM mil) | J67: YTD Yield (%)
B68: =B3 -> 2021-12-31 | C68: % | D68: Budget | E68: % | F68: Actual vs Budget | G68: YTD2019 | H68: Budget | I68: Budget Achv (%) | J68: YTD2019 | K68: Budget
A69: Deposits & Money Market | B69: =SCOREBOARD!V188 -> 729478016.9 | C69: =SCOREBOARD!W188 -> 49.60285375 | D69: =SCOREBOARD!X188 -> 609600372.2 | E69: =SCOREBOARD!Y188 -> 45.19450322 | F69: =B69-D69 -> 119877644.7 | G69: =SCOREBOARD!AC188 -> 16534289.31 | H69: =SCOREBOARD!AD188 -> 14938290.22 | I69: =G69/H69*100 -> 110.6839475 | J69: =SCOREBOARD!AF188 -> 2.400321546 | K69: =SCOREBOARD!AG188 -> 2.3
A70: Banca Deposit | B70: =SCOREBOARD!V189 -> 76092405 | C70: =SCOREBOARD!W189 -> 5.174111281 | D70: =SCOREBOARD!X189 -> 84518360.27 | E70: =SCOREBOARD!Y189 -> 6.266015376 | F70: =B70-D70 -> -8425955.274 | G70: =SCOREBOARD!AC189 -> 1735315.79 | H70: =SCOREBOARD!AD189 -> 1929288.306 | I70: =G70/H70*100 -> 89.94590307 | J70: =SCOREBOARD!AF189 -> 2.241509906 | K70: =SCOREBOARD!AG189 -> 2.3
A71: Banca Commercial Paper | B71: =SCOREBOARD!V190 -> 0 | C71: =SCOREBOARD!W190 -> 0 | D71: =SCOREBOARD!X190 -> 0 | E71: =SCOREBOARD!Y190 -> 0 | F71: =B71-D71 -> 0 | G71: =SCOREBOARD!AC190 -> 0 | H71: =SCOREBOARD!AD190 -> 0 | I71: =G71/H71*100 ->  | J71: =SCOREBOARD!AF190 -> 0 | K71: =SCOREBOARD!AG190 -> 
A72: Structured Deposit | B72: =SCOREBOARD!V191 -> 0 | C72: =SCOREBOARD!W191 -> 0 | D72: =SCOREBOARD!X191 -> 0 | E72: =SCOREBOARD!Y191 -> 0 | G72: =SCOREBOARD!AC191 -> 0 | H72: =SCOREBOARD!AD191 -> 0 | J72: =SCOREBOARD!AF191 -> 0 | K72: =SCOREBOARD!AG191 -> 0
A73: Income | B73: =SCOREBOARD!V192 -> 0 | C73: =SCOREBOARD!W192 -> 0 | D73: =SCOREBOARD!X192 -> 0 | E73: =SCOREBOARD!Y192 -> 0 | G73: =SCOREBOARD!AC192 -> 0 | H73: =SCOREBOARD!AD192 -> 0 | J73: =SCOREBOARD!AF192 -> 0 | K73: =SCOREBOARD!AG192 -> 0
A74: Fair Value Gain/Loss | B74: =SCOREBOARD!V193 -> 0 | C74: =SCOREBOARD!W193 -> 0 | D74: =SCOREBOARD!X193 -> 0 | E74: =SCOREBOARD!Y193 -> 0 | F74: =B74-D74 -> 0 | G74: =SCOREBOARD!AC193 -> 0 | H74: =SCOREBOARD!AD193 -> 0 | I74: =G74/H74*100 ->  | J74: =SCOREBOARD!AF193 -> 0 | K74: =SCOREBOARD!AG193 -> 0
A75: GII | B75: =SCOREBOARD!V194 -> 19784000 | C75: =SCOREBOARD!W194 -> 1.345267213 | D75: =SCOREBOARD!X194 -> 40582210.95 | E75: =SCOREBOARD!Y194 -> 3.008680682 | F75: =B75-D75 -> -20798210.95 | G75: =SCOREBOARD!AC194 -> 2300620.44 | H75: =SCOREBOARD!AD194 -> 1176190.78 | I75: =G75/H75*100 -> 195.5992582 | J75: =SCOREBOARD!AF194 -> 14.14783461 | K75: =SCOREBOARD!AG194 -> 3.899636985
A76: GG | B76: =SCOREBOARD!V195 -> 122761950 | C76: =SCOREBOARD!W195 -> 8.34753469 | D76: =SCOREBOARD!X195 -> 117675805.3 | E76: =SCOREBOARD!Y195 -> 8.724239361 | F76: =B76-D76 -> 5086144.697 | G76: =SCOREBOARD!AC195 -> 4491755.1 | H76: =SCOREBOARD!AD195 -> 4317323.521 | I76: =G76/H76*100 -> 104.0402712 | J76: =SCOREBOARD!AF195 -> 4.571523065 | K76: =SCOREBOARD!AG195 -> 4.052445155
A77: Equity | B77: =SCOREBOARD!V196 -> 0 | C77: =SCOREBOARD!W196 -> 0 | D77: =SCOREBOARD!X196 -> 1.2415112e-06 | E77: =SCOREBOARD!Y196 -> 9.204305716e-14 | F77: =B77-D77 -> -1.2415112e-06 | G77: =SCOREBOARD!AC196 -> 0 | H77: =SCOREBOARD!AD196 -> 1.955380139e-07 | I77: =G77/H77*100 -> 0 | J77: =SCOREBOARD!AF196 -> 0 | K77: =SCOREBOARD!AG196 -> 9
A78: Income | B78: =SCOREBOARD!V197 -> 0 | C78: =SCOREBOARD!W197 -> 0 | D78: =SCOREBOARD!X197 -> 0 | E78: =SCOREBOARD!Y197 -> 0 | G78: =SCOREBOARD!AC197 -> 0 | H78: =SCOREBOARD!AD197 -> 0 | J78: =SCOREBOARD!AF197 -> 0 | K78: =SCOREBOARD!AG197 -> 0
A79: Fair Value Gain/Loss | B79: =SCOREBOARD!V198 -> 0 | C79: =SCOREBOARD!W198 -> 0 | D79: =SCOREBOARD!X198 -> 0 | E79: =SCOREBOARD!Y198 -> 0 | G79: =SCOREBOARD!AC198 -> 0 | H79: =SCOREBOARD!AD198 -> 0 | J79: =SCOREBOARD!AF198 -> 0 | K79: =SCOREBOARD!AG198 -> 0
A80: Unit Trust | B80: =SCOREBOARD!V199 -> 0 | C80: =SCOREBOARD!W199 -> 0 | D80: =SCOREBOARD!X199 -> 0 | E80: =SCOREBOARD!Y199 -> 0 | F80: =B80-D80 -> 0 | G80: =SCOREBOARD!AC199 -> 3452.13 | H80: =SCOREBOARD!AD199 -> 0 | I80: =G80/H80*100 ->  | J80: =SCOREBOARD!AF199 -> -200 | K80: =SCOREBOARD!AG199 -> 0
A81: Income | B81: =SCOREBOARD!V200 -> 0 | C81: =SCOREBOARD!W200 -> 0 | D81: =SCOREBOARD!X200 -> 0 | E81: =SCOREBOARD!Y200 -> 0 | G81: =SCOREBOARD!AC200 -> 3452.13 | H81: =SCOREBOARD!AD200 -> 0 | J81: =SCOREBOARD!AF200 -> 0 | K81: =SCOREBOARD!AG200 -> 0
A82: Fair Value Gain/Loss | B82: =SCOREBOARD!V201 -> 0 | C82: =SCOREBOARD!W201 -> 0 | D82: =SCOREBOARD!X201 -> 0 | E82: =SCOREBOARD!Y201 -> 0 | G82: =SCOREBOARD!AC201 -> 0 | H82: =SCOREBOARD!AD201 -> 0 | J82: =SCOREBOARD!AF201 -> 0 | K82: =SCOREBOARD!AG201 -> 0
A83: ITA | B83: =SCOREBOARD!V202 -> 83160539.46 | C83: =SCOREBOARD!W202 -> 5.654728424 | D83: =SCOREBOARD!X202 -> 77450803.14 | E83: =SCOREBOARD!Y202 -> 5.742041396 | F83: =B83-D83 -> 5709736.316 | G83: =SCOREBOARD!AC202 -> 3576207.64 | H83: =SCOREBOARD!AD202 -> 3498341.536 | I83: =G83/H83*100 -> 102.2258005 | J83: =SCOREBOARD!AF202 -> 4.38404789 | K83: =SCOREBOARD!AG202 -> 4.38281549
A84: Corporate Sukuk | B84: =SCOREBOARD!V203 -> 428650283.5 | C84: =SCOREBOARD!W203 -> 29.14724889 | D84: =SCOREBOARD!X203 -> 408369870.4 | E84: =SCOREBOARD!Y203 -> 30.27569251 | F84: =B84-D84 -> 20280413.07 | G84: =SCOREBOARD!AC203 -> 13780769.2 | H84: =SCOREBOARD!AD203 -> 16474762.9 | I84: =G84/H84*100 -> 83.64775436 | J84: =SCOREBOARD!AF203 -> 3.835009118 | K84: =SCOREBOARD!AG203 -> 4.42550194
A85: Properties | B85: =SCOREBOARD!V204 -> 10710000 | C85: =SCOREBOARD!W204 -> 0.7282557546 | D85: =SCOREBOARD!X204 -> 10640000 | E85: =SCOREBOARD!Y204 -> 0.7888274617 | F85: =B85-D85 -> 70000 | G85: =SCOREBOARD!AC204 -> 240329.71 | H85: =SCOREBOARD!AD204 -> 186200 | I85: =G85/H85*100 -> 129.0707358 | J85: =SCOREBOARD!AF204 -> 2.27696318 | K85: =SCOREBOARD!AG204 -> 1.75
A86: TOTAL | B86: =SCOREBOARD!V205 -> 1470637195 | C86: =SCOREBOARD!W205 -> 100 | D86: =SCOREBOARD!X205 -> 1348837422 | E86: =SCOREBOARD!Y205 -> 100 | F86: =SUM(F69:F85) -> 121799772.5 | G86: =SCOREBOARD!AC205 -> 42662739.32 | H86: =SCOREBOARD!AD205 -> 42520397.26 | I86: =G86/H86*100 -> 100.3347618 | J86: =SCOREBOARD!AF205 -> 3.202337035 | K86: =SCOREBOARD!AG205 -> 3.190185735
A88: GTF
A90: Asset Classes | B90: Asset Allocation | G90: YTD Income (RM mil) | J90: YTD Yield (%)
B91: =B68 -> 2021-12-31 | C91: % | D91: Budget | E91: % | F91: Actual vs Budget | G91: YTD2019 | H91: Budget | I91: Budget Achv (%) | J91: YTD2019 | K91: Budget
A92: Deposits & Money Market | B92: =SCOREBOARD!V213 -> 516728940.4 | C92: =SCOREBOARD!W213 -> 52.03543644 | D92: =SCOREBOARD!X213 -> 405066667.8 | E92: =SCOREBOARD!Y213 -> 45.45614046 | F92: =B92-D92 -> 111662272.6 | G92: =SCOREBOARD!AC213 -> 11135028.83 | H92: =SCOREBOARD!AD213 -> 9599780.939 | I92: =G92/H92*100 -> 115.9925305 | J92: =SCOREBOARD!AF213 -> 2.371604846 | K92: =SCOREBOARD!AG213 -> 2.3
A93: Banca Deposit | B93: =SCOREBOARD!V214 -> 63524405 | C93: =SCOREBOARD!W214 -> 6.397009884 | D93: =SCOREBOARD!X214 -> 61903818.04 | E93: =SCOREBOARD!Y214 -> 6.946779065 | F93: =B93-D93 -> 1620586.961 | G93: =SCOREBOARD!AC214 -> 1380413.76 | H93: =SCOREBOARD!AD214 -> 1447545.527 | I93: =G93/H93*100 -> 95.36237265 | J93: =SCOREBOARD!AF214 -> 2.179828237 | K93: =SCOREBOARD!AG214 -> 2.3
A94: Banca Commercial Paper | B94: =SCOREBOARD!V215 -> 0 | C94: =SCOREBOARD!W215 -> 0 | D94: =SCOREBOARD!X215 -> 0 | E94: =SCOREBOARD!Y215 -> 0 | F94: =B94-D94 -> 0 | G94: =SCOREBOARD!AC215 -> 0 | H94: =SCOREBOARD!AD215 -> 0 | I94: =G94/H94*100 ->  | J94: =SCOREBOARD!AF215 -> 0 | K94: =SCOREBOARD!AG215 -> 0
A95: Structured Deposit | B95: =SCOREBOARD!V216 -> 0 | C95: =SCOREBOARD!W216 -> 0 | D95: =SCOREBOARD!X216 -> 0 | E95: =SCOREBOARD!Y216 -> 0 | G95: =SCOREBOARD!AC216 -> 0 | H95: =SCOREBOARD!AD216 -> 0 | J95: =SCOREBOARD!AF216 -> 0 | K95: =SCOREBOARD!AG216 -> 0
A96: Income | B96: =SCOREBOARD!V217 -> 0 | C96: =SCOREBOARD!W217 -> 0 | D96: =SCOREBOARD!X217 -> 0 | E96: =SCOREBOARD!Y217 -> 0 | G96: =SCOREBOARD!AC217 -> 0 | H96: =SCOREBOARD!AD217 -> 0 | J96: =SCOREBOARD!AF217 -> 0 | K96: =SCOREBOARD!AG217 -> 0
A97: Fair Value Gain/Loss | B97: =SCOREBOARD!V218 -> 0 | C97: =SCOREBOARD!W218 -> 0 | D97: =SCOREBOARD!X218 -> 0 | E97: =SCOREBOARD!Y218 -> 0 | F97: =B97-D97 -> 0 | G97: =SCOREBOARD!AC218 -> 0 | H97: =SCOREBOARD!AD218 -> 0 | I97: =G97/H97*100 ->  | J97: =SCOREBOARD!AF218 -> 0 | K97: =SCOREBOARD!AG218 -> 0
A98: GII | B98: =SCOREBOARD!V219 -> 9892000 | C98: =SCOREBOARD!W219 -> 0.9961403302 | D98: =SCOREBOARD!X219 -> 17693054.69 | E98: =SCOREBOARD!Y219 -> 1.985495335 | F98: =B98-D98 -> -7801054.69 | G98: =SCOREBOARD!AC219 -> 875277.25 | H98: =SCOREBOARD!AD219 -> 419833.9724 | I98: =G98/H98*100 -> 208.4817589 | J98: =SCOREBOARD!AF219 -> 12.46268129 | K98: =SCOREBOARD!AG219 -> 3.649978747
A99: GG | B99: =SCOREBOARD!V220 -> 74861650 | C99: =SCOREBOARD!W220 -> 7.538688713 | D99: =SCOREBOARD!X220 -> 71504403.58 | E99: =SCOREBOARD!Y220 -> 8.024146322 | F99: =B99-D99 -> 3357246.419 | G99: =SCOREBOARD!AC220 -> 2684428.41 | H99: =SCOREBOARD!AD220 -> 2411520.711 | I99: =G99/H99*100 -> 111.31683 | J99: =SCOREBOARD!AF220 -> 4.679613196 | K99: =SCOREBOARD!AG220 -> 3.991280446
A100: Equity | B100: =SCOREBOARD!V221 -> 0 | C100: =SCOREBOARD!W221 -> 0 | D100: =SCOREBOARD!X221 -> 0 | E100: =SCOREBOARD!Y221 -> 0 | F100: =B100-D100 -> 0 | G100: =SCOREBOARD!AC221 -> 0 | H100: =SCOREBOARD!AD221 -> 0 | I100: =G100/H100*100 ->  | J100: =SCOREBOARD!AF221 -> 0 | K100: =SCOREBOARD!AG221 -> 0
A101: Income | B101: =SCOREBOARD!V222 -> 0 | C101: =SCOREBOARD!W222 -> 0 | D101: =SCOREBOARD!X222 -> 0 | E101: =SCOREBOARD!Y222 -> 0 | G101: =SCOREBOARD!AC222 -> 0 | H101: =SCOREBOARD!AD222 -> 0 | J101: =SCOREBOARD!AF222 -> 0 | K101: =SCOREBOARD!AG222 -> 0
A102: Fair Value Gain/Loss | B102: =SCOREBOARD!V223 -> 0 | C102: =SCOREBOARD!W223 -> 0 | D102: =SCOREBOARD!X223 -> 0 | E102: =SCOREBOARD!Y223 -> 0 | G102: =SCOREBOARD!AC223 -> 0 | H102: =SCOREBOARD!AD223 -> 0 | J102: =SCOREBOARD!AF223 -> 0 | K102: =SCOREBOARD!AG223 -> 0
A103: Unit Trust | B103: =SCOREBOARD!V224 -> 0 | C103: =SCOREBOARD!W224 -> 0 | D103: =SCOREBOARD!X224 -> 0 | E103: =SCOREBOARD!Y224 -> 0 | F103: =B103-D103 -> 0 | G103: =SCOREBOARD!AC224 -> 3452.13 | H103: =SCOREBOARD!AD224 -> 0 | I103: =G103/H103*100 ->  | J103: =SCOREBOARD!AF224 -> -200 | K103: =SCOREBOARD!AG224 -> 0
A104: Income | B104: =SCOREBOARD!V225 -> 0 | C104: =SCOREBOARD!W225 -> 0 | D104: =SCOREBOARD!X225 -> 0 | E104: =SCOREBOARD!Y225 -> 0 | G104: =SCOREBOARD!AC225 -> 3452.13 | H104: =SCOREBOARD!AD225 -> 0 | J104: =SCOREBOARD!AF225 -> 0 | K104: =SCOREBOARD!AG225 -> 0
A105: Fair Value Gain/Loss | B105: =SCOREBOARD!V226 -> 0 | C105: =SCOREBOARD!W226 -> 0 | D105: =SCOREBOARD!X226 -> 0 | E105: =SCOREBOARD!Y226 -> 0 | G105: =SCOREBOARD!AC226 -> 0 | H105: =SCOREBOARD!AD226 -> 0 | J105: =SCOREBOARD!AF226 -> 0 | K105: =SCOREBOARD!AG226 -> 0
A106: ITA | B106: =SCOREBOARD!V227 -> 59325472.86 | C106: =SCOREBOARD!W227 -> 5.974170655 | D106: =SCOREBOARD!X227 -> 54142759.18 | E106: =SCOREBOARD!Y227 -> 6.075841489 | F106: =B106-D106 -> 5182713.683 | G106: =SCOREBOARD!AC227 -> 2422478.25 | H106: =SCOREBOARD!AD227 -> 2323097.024 | I106: =G106/H106*100 -> 104.2779628 | J106: =SCOREBOARD!AF227 -> 4.113887937 | K106: =SCOREBOARD!AG227 -> 4.19881041
A107: Corporate Sukuk | B107: =SCOREBOARD!V228 -> 257990310.4 | C107: =SCOREBOARD!W228 -> 25.98003973 | D107: =SCOREBOARD!X228 -> 270164696.5 | E107: =SCOREBOARD!Y228 -> 30.31758811 | F107: =B107-D107 -> -12174386.11 | G107: =SCOREBOARD!AC228 -> 8784738.18 | H107: =SCOREBOARD!AD228 -> 11066385.78 | I107: =G107/H107*100 -> 79.3821791 | J107: =SCOREBOARD!AF228 -> 3.778038383 | K107: =SCOREBOARD!AG228 -> 4.470501603
A108: Properties | B108: =SCOREBOARD!V229 -> 10710000 | C108: =SCOREBOARD!W229 -> 1.078514247 | D108: =SCOREBOARD!X229 -> 10640000 | E108: =SCOREBOARD!Y229 -> 1.194009216 | F108: =B108-D108 -> 70000 | G108: =SCOREBOARD!AC229 -> 240329.71 | H108: =SCOREBOARD!AD229 -> 186200 | I108: =G108/H108*100 -> 129.0707358 | J108: =SCOREBOARD!AF229 -> 2.27696318 | K108: =SCOREBOARD!AG229 -> 1.75
A109: TOTAL | B109: =SCOREBOARD!V230 -> 993032778.7 | C109: =SCOREBOARD!W230 -> 100 | D109: =SCOREBOARD!X230 -> 891115399.8 | E109: =SCOREBOARD!Y230 -> 100 | F109: =SUM(F92:F108) -> 101917378.8 | G109: =SCOREBOARD!AC230 -> 27526146.52 | H109: =SCOREBOARD!AD230 -> 27454363.95 | I109: =G109/H109*100 -> 100.2614614 | J109: =SCOREBOARD!AF230 -> 3.061221378 | K109: =SCOREBOARD!AG230 -> 3.171636762
A111: SHF STMAB
A113: Asset Classes | B113: Asset Allocation | G113: YTD Income (RM mil) | J113: YTD Yield (%)
B114: =B91 -> 2021-12-31 | C114: % | D114: Budget | E114: % | F114: Actual vs Budget | G114: YTD2019 | H114: Budget | I114: Budget Achv (%) | J114: YTD2019 | K114: Budget
A115: Deposits & Money Market | B115: =SCOREBOARD!V238 -> 212749076.5 | C115: =SCOREBOARD!W238 -> 44.54503964 | D115: =SCOREBOARD!X238 -> 204533704.4 | E115: =SCOREBOARD!Y238 -> 44.68513516 | F115: =B115-D115 -> 8215372.094 | G115: =SCOREBOARD!AC238 -> 5399260.48 | H115: =SCOREBOARD!AD238 -> 5338509.284 | I115: =G115/H115*100 -> 101.1379805 | J115: =SCOREBOARD!AF238 -> 2.461796967 | K115: =SCOREBOARD!AG238 -> 2.3
A116: Banca Deposit | B116: =SCOREBOARD!V239 -> 12568000 | C116: =SCOREBOARD!W239 -> 2.631466455 | D116: =SCOREBOARD!X239 -> 22614542.23 | E116: =SCOREBOARD!Y239 -> 4.940671658 | F116: =B116-D116 -> -10046542.23 | G116: =SCOREBOARD!AC239 -> 354902.03 | H116: =SCOREBOARD!AD239 -> 481742.7792 | I116: =G116/H116*100 -> 73.67044102 | J116: =SCOREBOARD!AF239 -> 2.518723936 | K116: =SCOREBOARD!AG239 -> 2.3
A117: Banca Commercial Paper | B117: =SCOREBOARD!V240 -> 0 | C117: =SCOREBOARD!W240 -> 0 | D117: =SCOREBOARD!X240 -> 0 | E117: =SCOREBOARD!Y240 -> 0 | F117: =B117-D117 -> 0 | G117: =SCOREBOARD!AC240 -> 0 | H117: =SCOREBOARD!AD240 -> 0 | I117: =G117/H117*100 ->  | J117: =SCOREBOARD!AF240 -> 0 | K117: =SCOREBOARD!AG240 -> 0
A118: Structured Deposit | B118: =SCOREBOARD!V241 -> 0 | C118: =SCOREBOARD!W241 -> 0 | D118: =SCOREBOARD!X241 -> 0 | E118: =SCOREBOARD!Y241 -> 0 | G118: =SCOREBOARD!AC241 -> 0 | H118: =SCOREBOARD!AD241 -> 0 | J118: =SCOREBOARD!AF241 -> 0 | K118: =SCOREBOARD!AG241 -> 0
A119: Income | B119: =SCOREBOARD!V242 -> 0 | C119: =SCOREBOARD!W242 -> 0 | D119: =SCOREBOARD!X242 -> 0 | E119: =SCOREBOARD!Y242 -> 0 | G119: =SCOREBOARD!AC242 -> 0 | H119: =SCOREBOARD!AD242 -> 0 | J119: =SCOREBOARD!AF242 -> 0 | K119: =SCOREBOARD!AG242 -> 0
A120: Fair Value Gain/Loss | B120: =SCOREBOARD!V243 -> 0 | C120: =SCOREBOARD!W243 -> 0 | D120: =SCOREBOARD!X243 -> 0 | E120: =SCOREBOARD!Y243 -> 0 | F120: =B120-D120 -> 0 | G120: =SCOREBOARD!AC243 -> 0 | H120: =SCOREBOARD!AD243 -> 0 | I120: =G120/H120*100 ->  | J120: =SCOREBOARD!AF243 -> 0 | K120: =SCOREBOARD!AG243 -> 0
A121: GII | B121: =SCOREBOARD!V244 -> 9892000 | C121: =SCOREBOARD!W244 -> 2.071170129 | D121: =SCOREBOARD!X244 -> 22889156.26 | E121: =SCOREBOARD!Y244 -> 5.000667467 | F121: =B121-D121 -> -12997156.26 | G121: =SCOREBOARD!AC244 -> 1425343.19 | H121: =SCOREBOARD!AD244 -> 756356.8074 | I121: =G121/H121*100 -> 188.4485174 | J121: =SCOREBOARD!AF244 -> 15.42895725 | K121: =SCOREBOARD!AG244 -> 4.056421709
A122: GG | B122: =SCOREBOARD!V245 -> 47900300 | C122: =SCOREBOARD!W245 -> 10.02928331 | D122: =SCOREBOARD!X245 -> 46171401.72 | E122: =SCOREBOARD!Y245 -> 10.08721439 | F122: =B122-D122 -> 1728898.279 | G122: =SCOREBOARD!AC245 -> 1807326.69 | H122: =SCOREBOARD!AD245 -> 1905802.81 | I122: =G122/H122*100 -> 94.83282744 | J122: =SCOREBOARD!AF245 -> 4.41988703 | K122: =SCOREBOARD!AG245 -> 4.13372934
A123: Equity | B123: =SCOREBOARD!V246 -> 0 | C123: =SCOREBOARD!W246 -> 0 | D123: =SCOREBOARD!X246 -> 1.2415112e-06 | E123: =SCOREBOARD!Y246 -> 2.712369383e-13 | F123: =B123-D123 -> -1.2415112e-06 | G123: =SCOREBOARD!AC246 -> 0 | H123: =SCOREBOARD!AD246 -> 1.955380139e-07 | I123: =G123/H123*100 -> 0 | J123: =SCOREBOARD!AF246 -> 0 | K123: =SCOREBOARD!AG246 -> 9
A124: Income | B124: =SCOREBOARD!V247 -> 0 | C124: =SCOREBOARD!W247 -> 0 | D124: =SCOREBOARD!X247 -> 0 | E124: =SCOREBOARD!Y247 -> 0 | G124: =SCOREBOARD!AC247 -> 0 | H124: =SCOREBOARD!AD247 -> 0 | J124: =SCOREBOARD!AF247 -> 0 | K124: =SCOREBOARD!AG247 -> 0
A125: Fair Value Gain/Loss | B125: =SCOREBOARD!V248 -> 0 | C125: =SCOREBOARD!W248 -> 0 | D125: =SCOREBOARD!X248 -> 0 | E125: =SCOREBOARD!Y248 -> 0 | G125: =SCOREBOARD!AC248 -> 0 | H125: =SCOREBOARD!AD248 -> 0 | J125: =SCOREBOARD!AF248 -> 0 | K125: =SCOREBOARD!AG248 -> 0
A126: Unit Trust | B126: =SCOREBOARD!V249 -> 0 | C126: =SCOREBOARD!W249 -> 0 | D126: =SCOREBOARD!X249 -> 0 | E126: =SCOREBOARD!Y249 -> 0 | F126: =B126-D126 -> 0 | G126: =SCOREBOARD!AC249 -> 0 | H126: =SCOREBOARD!AD249 -> 0 | I126: =G126/H126*100 ->  | J126: =SCOREBOARD!AF249 -> 0 | K126: =SCOREBOARD!AG249 -> 0
A127: Income | B127: =SCOREBOARD!V250 -> 0 | C127: =SCOREBOARD!W250 -> 0 | D127: =SCOREBOARD!X250 -> 0 | E127: =SCOREBOARD!Y250 -> 0 | G127: =SCOREBOARD!AC250 -> 0 | H127: =SCOREBOARD!AD250 -> 0 | J127: =SCOREBOARD!AF250 -> 0 | K127: =SCOREBOARD!AG250 -> 0
A128: Fair Value Gain/Loss | B128: =SCOREBOARD!V251 -> 0 | C128: =SCOREBOARD!W251 -> 0 | D128: =SCOREBOARD!X251 -> 0 | E128: =SCOREBOARD!Y251 -> 0 | G128: =SCOREBOARD!AC251 -> 0 | H128: =SCOREBOARD!AD251 -> 0 | J128: =SCOREBOARD!AF251 -> 0 | K128: =SCOREBOARD!AG251 -> 0
A129: ITA | B129: =SCOREBOARD!V252 -> 23835066.6 | C129: =SCOREBOARD!W252 -> 4.990545689 | D129: =SCOREBOARD!X252 -> 23308043.97 | E129: =SCOREBOARD!Y252 -> 5.092183208 | F129: =B129-D129 -> 527022.6329 | G129: =SCOREBOARD!AC252 -> 1153729.39 | H129: =SCOREBOARD!AD252 -> 1175244.511 | I129: =G129/H129*100 -> 98.1693068 | J129: =SCOREBOARD!AF252 -> 5.085237899 | K129: =SCOREBOARD!AG252 -> 4.80013292
A130: Corporate Sukuk | B130: =SCOREBOARD!V253 -> 170659973 | C130: =SCOREBOARD!W253 -> 35.73249478 | D130: =SCOREBOARD!X253 -> 138205173.9 | E130: =SCOREBOARD!Y253 -> 30.19412811 | F130: =B130-D130 -> 32454799.19 | G130: =SCOREBOARD!AC253 -> 4996031.02 | H130: =SCOREBOARD!AD253 -> 5408377.116 | I130: =G130/H130*100 -> 92.37578876 | J130: =SCOREBOARD!AF253 -> 3.939463394 | K130: =SCOREBOARD!AG253 -> 4.356866914
A131: Properties | B131: =SCOREBOARD!V254 -> 0 | C131: =SCOREBOARD!W254 -> 0 | D131: =SCOREBOARD!X254 -> 0 | E131: =SCOREBOARD!Y254 -> 0 | F131: =B131-D131 -> 0 | G131: =SCOREBOARD!AC254 -> 0 | H131: =SCOREBOARD!AD254 -> 0 | I131: =G131/H131*100 ->  | J131: =SCOREBOARD!AF254 -> 0 | K131: =SCOREBOARD!AG254 -> 0
A132: TOTAL | B132: =SCOREBOARD!V255 -> 477604416.1 | C132: =SCOREBOARD!W255 -> 100 | D132: =SCOREBOARD!X255 -> 457722022.4 | E132: =SCOREBOARD!Y255 -> 100 | F132: =SUM(F115:F131) -> 19882393.7 | G132: =SCOREBOARD!AC255 -> 15136592.8 | H132: =SCOREBOARD!AD255 -> 15066033.31 | I132: =G132/H132*100 -> 100.4683349 | J132: =SCOREBOARD!AF255 -> 3.495351168 | K132: =SCOREBOARD!AG255 -> 3.226590487
A135: STMKB
A136: Asset Classes | B136: Asset Allocation | G136: Investment Income
B137: =SCOREBOARD!V141 -> 00:00:00 | C137: % | D137: Budget | E137: % | F137: Actual vs Budget | G137: =SCOREBOARD!AA141 -> 00:00:00 | H137: Budget | I137: Budget Achv (%) | J137: =Comparison!P145 -> 00:00:00
A138: Deposit | B138: =SCOREBOARD!V143 -> 392072500 | C138: =SCOREBOARD!W143 -> 5.564303334 | D138: =SCOREBOARD!X143 -> 683454545 | E138: =SCOREBOARD!Y143 -> 9.367442169 | F138: =B138-D138 -> -291382045 | G138: =SCOREBOARD!AA143 -> 4038729.03 | H138: =SCOREBOARD!AB143 -> 2474090.737 | I138: =G138/H138*100 -> 163.2409422 | J138: =Comparison!P147 -> 0
A139: Deposit (Banca Reciprocal) | B139: =SCOREBOARD!V144+SCOREBOARD!V145 -> 1326818727 | C139: =SCOREBOARD!W144+SCOREBOARD!W145 -> 18.83024661 | D139: =SCOREBOARD!X144+SCOREBOARD!X145 -> 1406646905 | E139: =SCOREBOARD!Y144+SCOREBOARD!Y145 -> 19.27953166 | F139: =B139-D139 -> -79828178.59 | G139: =SCOREBOARD!AA144+SCOREBOARD!AA145 -> 9885745.22 | H139: =SCOREBOARD!AB144+SCOREBOARD!AB145 -> 6403429.658 | I139: =G139/H139*100 -> 154.3820382 | J139: =Comparison!P148+Comparison!P149 -> 0
A140: Structured Deposit | B140: =SCOREBOARD!V146 -> 0 | C140: =SCOREBOARD!W146 -> 0 | D140: =SCOREBOARD!X146 -> 0 | E140: =SCOREBOARD!Y146 -> 0 | F140: 0 | G140: =SCOREBOARD!AA146 -> 147049.88 | H140: =SCOREBOARD!AB146 -> 0 | J140: =Comparison!P150 -> 0
A141: Income | G141: =SCOREBOARD!AA147 -> 52626.09 | J141: =Comparison!P151 -> 0
A142: FV Gain/Loss | G142: =SCOREBOARD!AA148 -> -148407.03 | J142: =Comparison!P152 -> 0
A143: GII | B143: =SCOREBOARD!V149 -> 0 | C143: =SCOREBOARD!W149 -> 0 | D143: =SCOREBOARD!X149 -> 0 | E143: =SCOREBOARD!Y149 -> 0 | F143: =B143-D143 -> 0 | G143: =SCOREBOARD!AA149 -> 0 | H143: =SCOREBOARD!AB149 -> 0 | I143: =G143/H143*100 ->  | J143: =Comparison!P153 -> 0
A144: GG | B144: =SCOREBOARD!V150 -> 0 | C144: =SCOREBOARD!W150 -> 0 | D144: =SCOREBOARD!X150 -> 0 | E144: =SCOREBOARD!Y150 -> 0 | F144: 0 | G144: =SCOREBOARD!AA150 -> -148407.03 | H144: =SCOREBOARD!AB150 -> 0 | J144: =Comparison!P154 -> 0
A145: Corporate Sukuk | B145: =SCOREBOARD!V158 -> 0 | C145: =SCOREBOARD!W158 -> 0 | D145: =SCOREBOARD!X158 -> 0 | E145: =SCOREBOARD!Y158 -> 0 | F145: 0 | G145: =SCOREBOARD!AA158 -> 0 | H145: =SCOREBOARD!AB158 -> 0 | J145: =Comparison!P162 -> 0
A146: Equity | B146: =SCOREBOARD!V151 -> 469510348.9 | C146: =SCOREBOARD!W151 -> 6.663303343 | D146: =SCOREBOARD!X151 -> 507493581.3 | E146: =SCOREBOARD!Y151 -> 6.955717551 | F146: -37983232.43 | G146: =SCOREBOARD!AA151 -> 1879549.78 | H146: =SCOREBOARD!AB151 -> 1902144.315 | I146: 98.81215456 | J146: =Comparison!P155 -> 0
A147: Income | G147: =SCOREBOARD!AA152 -> 10111006.39 | J147: =Comparison!P156 -> 0
A148: FV Gain/Loss | G148: =SCOREBOARD!AA153 -> 5724468.17 | J148: =Comparison!P157 -> 0
A149: Unit Trust | B149: =SCOREBOARD!V154 -> 7046210036 | C149: =SCOREBOARD!W154 -> 100 | D149: =SCOREBOARD!X154 -> 7296063671 | E149: =SCOREBOARD!Y154 -> 100 | F149: =B149-D149 -> -249853634.9 | G149: =SCOREBOARD!AA154 -> 33472992.39 | H149: =SCOREBOARD!AB154 -> 27127689.75 | I149: =G149/H149*100 -> 123.3905013 | J149: =Comparison!P158 -> 0
A150: Income | G150: =SCOREBOARD!AA155 -> 0 | J150: =Comparison!P159 -> 0
A151: FV Gain/Loss | G151: =SCOREBOARD!AA156 -> 0 | J151: =Comparison!P160 -> 0
A152: ITA | B152: =SCOREBOARD!V157 -> 0 | C152: =SCOREBOARD!W157 -> 0 | D152: =SCOREBOARD!X157 -> 0 | E152: =SCOREBOARD!Y157 -> 0 | F152: =B152-D152 -> 0 | G152: =SCOREBOARD!AA157 -> 0 | H152: =SCOREBOARD!AB157 -> 0 | I152: =G152/H152*100 ->  | J152: =Comparison!P161 -> 0
A153: Properties | B153: =SCOREBOARD!V159 -> 0 | C153: =SCOREBOARD!W159 -> 0 | D153: =SCOREBOARD!X159 -> 0 | E153: =SCOREBOARD!Y159 -> 0 | F153: 0 | G153: =SCOREBOARD!AA159 -> 0 | H153: =SCOREBOARD!AB159 -> 0 | J153: =Comparison!P163 -> 0
A154: ILP Seed Capital | B154: =SCOREBOARD!V160 -> 44561 | C154: =SCOREBOARD!W160 -> % | D154: =SCOREBOARD!X160 -> BUDGET (RM) | E154: =SCOREBOARD!Y160 -> BUDGET (%) | G154: =SCOREBOARD!AA160 -> 44561 | H154: =SCOREBOARD!AB160 -> MONTHLY BUDGET | J154: =Comparison!P164 -> 44196
A155: TOTAL | B155: =SUM(B138:B154) -> 9234656173 | C155: =SUM(C138:C154) -> 131.0578533 | D155: =SUM(D138:D154) -> 9893658703 | E155: =SUM(E138:E154) -> 135.6026914 | F155: =SUM(F138:F154) ->  | G155: =SUM(G138+G139+G140+G143+G144+G145+G146+G149+G152+G153+G154) -> 49320220.27 | H155: =SUM(H138+H139+H140+H143+H144+H145+H146+H149+H152+H153+H154) ->  | J155: =SUM(J138+J139+J140+J143+J144+J145+J146+J149+J152+J153+J154) -> 44196
A158: FAMILY - TAKAFUL FUND
A159: Asset Classes | B159: Asset Allocation | G159: Investment Income
B160: =SCOREBOARD!V164 -> 00:00:00 | C160: % | D160: Budget | E160: % | F160: Actual vs Budget | G160: =SCOREBOARD!AA164 -> 00:00:00 | H160: Budget | I160: Budget Achv (%) | J160: =Comparison!P168 -> 00:00:00
A161: Deposit | B161: =SCOREBOARD!V166 -> 0 | C161: =SCOREBOARD!W166 -> 0 | D161: =SCOREBOARD!X166 -> 0 | E161: =SCOREBOARD!Y166 -> 0 | F161: =B161-D161 -> 0 | G161: =SCOREBOARD!AA166 -> 0 | H161: =SCOREBOARD!AB166 -> 0 | I161: =G161/H161*100 ->  | J161: =Comparison!P170 -> 0
A162: Deposit (Banca Reciprocal) | B162: =SCOREBOARD!V167+SCOREBOARD!V168 -> 63679800 | C162: =SCOREBOARD!W167+SCOREBOARD!W168 -> 4.358055254 | D162: =SCOREBOARD!X167+SCOREBOARD!X168 -> 83480169.03 | E162: =SCOREBOARD!Y167+SCOREBOARD!Y168 -> 5.523950085 | F162: =B162-D162 -> -19800369.03 | G162: =SCOREBOARD!AA167+SCOREBOARD!AA168 -> 221418.55 | H162: =SCOREBOARD!AB167+SCOREBOARD!AB168 -> 270530.1448 | I162: =G162/H162*100 -> 81.84616549 | J162: =Comparison!P171+Comparison!P172 -> 0
A163: Structured Deposit | B163: =SCOREBOARD!V169 -> 229440500 | C163: =SCOREBOARD!W169 -> 15.70222231 | D163: =SCOREBOARD!X169 -> 169479919.2 | E163: =SCOREBOARD!Y169 -> 11.21462288 | F163: 59960580.83 | G163: =SCOREBOARD!AA169 -> 2644901.88 | H163: =SCOREBOARD!AB169 -> 610699.2016 | I163: 433.0940458 | J163: =Comparison!P173 -> 0
A164: Income | G164: =SCOREBOARD!AA170 -> 10499.79 | J164: =Comparison!P174 -> 0
A165: FV Gain/Loss | G165: =SCOREBOARD!AA171 -> 6977.61 | J165: =Comparison!P175 -> 0
A166: GII | B166: =SCOREBOARD!V172 -> 0 | C166: =SCOREBOARD!W172 -> 0 | D166: =SCOREBOARD!X172 -> 0 | E166: =SCOREBOARD!Y172 -> 0 | F166: =B166-D166 -> 0 | G166: =SCOREBOARD!AA172 -> 3522.18 | H166: =SCOREBOARD!AB172 -> 0 | I166: =G166/H166*100 ->  | J166: =Comparison!P176 -> 0
A167: GG | B167: =SCOREBOARD!V173 -> 0 | C167: =SCOREBOARD!W173 -> 0 | D167: =SCOREBOARD!X173 -> 0 | E167: =SCOREBOARD!Y173 -> 0 | F167: 0 | G167: =SCOREBOARD!AA173 -> 0 | H167: =SCOREBOARD!AB173 -> 0 | J167: =Comparison!P177 -> 0
A168: Corporate Sukuk | B168: =SCOREBOARD!V181 -> 378490929.8 | C168: =SCOREBOARD!W181 -> 0 | D168: =SCOREBOARD!X181 -> 395206145.3 | E168: =SCOREBOARD!Y181 -> 0 | F168: -16715215.47 | G168: =SCOREBOARD!AA181 -> 4151272 | H168: =SCOREBOARD!AB181 -> 929970.8088 | I168: 446.3873447 | J168: =Comparison!P185 -> 0
A169: Equity | B169: =SCOREBOARD!V174 -> 0 | C169: =SCOREBOARD!W174 -> 0 | D169: =SCOREBOARD!X174 -> 0 | E169: =SCOREBOARD!Y174 -> 0 | F169: 0 | G169: =SCOREBOARD!AA174 -> 0 | H169: =SCOREBOARD!AB174 -> 0 | J169: =Comparison!P178 -> 0
A170: Income | G170: =SCOREBOARD!AA175 -> 0 | J170: =Comparison!P179 -> 0
A171: FV Gain/Loss | G171: =SCOREBOARD!AA176 -> 256918.22 | J171: =Comparison!P180 -> 0
A172: Unit Trust | B172: =SCOREBOARD!V177 -> 559275554.2 | C172: =SCOREBOARD!W177 -> 38.27514796 | D172: =SCOREBOARD!X177 -> 758051554.3 | E172: =SCOREBOARD!Y177 -> 50.16088248 | F172: =B172-D172 -> -198776000.1 | G172: =SCOREBOARD!AA177 -> 2354163.48 | H172: =SCOREBOARD!AB177 -> 2594918.947 | I172: =G172/H172*100 -> 90.7220429 | J172: =Comparison!P181 -> 0
A173: Income | G173: =SCOREBOARD!AA178 -> 192309.7 | J173: =Comparison!P182 -> 0
A174: FV Gain/Loss | G174: =SCOREBOARD!AA179 -> 491556.41 | J174: =Comparison!P183 -> 0
A175: ITA | B175: =SCOREBOARD!V180 -> 1461197628 | C175: =SCOREBOARD!W180 -> 100 | D175: =SCOREBOARD!X180 -> 1511240466 | E175: =SCOREBOARD!Y180 -> 100 | F175: =B175-D175 -> -50042838.21 | G175: =SCOREBOARD!AA180 -> 6936493.71 | H175: =SCOREBOARD!AB180 -> 5022661.84 | I175: =G175/H175*100 -> 138.1039363 | J175: =Comparison!P184 -> 0
A176: Properties | B176: =SCOREBOARD!V182 -> 1082706698 | C176: =SCOREBOARD!W182 -> 100 | D176: =SCOREBOARD!X182 -> 1116034321 | E176: =SCOREBOARD!Y182 -> 100 | F176: -33327622.74 | G176: =SCOREBOARD!AA182 -> 2785221.71 | H176: =SCOREBOARD!AB182 -> 4092691.031 | I176: 68.05355422 | J176: =Comparison!P186 -> 0
A177: ILP Seed Capital | B177: =SCOREBOARD!V183 -> 0 | C177: =SCOREBOARD!W183 -> 0 | D177: =SCOREBOARD!X183 -> 0 | E177: =SCOREBOARD!Y183 -> 0 | F177: 0 | G177: =SCOREBOARD!AA183 -> 0 | H177: =SCOREBOARD!AB183 -> 0 | J177: =Comparison!P187 -> 0
A178: TOTAL | B178: =SUM(B161:B177) -> 3774791111 | C178: =SUM(C161:C177) -> 258.3354255 | D178: =SUM(D161:D177) -> 4033492575 | E178: =SUM(E161:E177) -> 266.8994554 | F178: =SUM(F161:F177) -> -258701464.7 | G178: =SUM(G161+G162+G163+G166+G167+G168+G169+G172+G175+G176+G177) -> 19096993.51 | H178: =SUM(H161+H162+H163+H166+H167+H168+H169+H172+H175+H176+H177) -> 13521471.97 | I178: 141.2345753 | J178: =SUM(J161+J162+J163+J166+J167+J168+J169+J172+J175+J176+J177) -> 0

Sheet SCOREBOARD ILP
C1: OVERALL PERFORMANCE FY2020 | AF1: APPENDIX II
C2: Reporting Month | E2: 2020-02-01 | G2: =MONTH($E$2) -> 2 | H2: month(s)
T3: ="AA "&$E$2 -> AA 43862 | V3: ="BUDGET "&$E$2 -> BUDGET 43862 | Y3: ="INC "&$E$2 -> INC 43862 | Z3: ="BUDGET INC "&$E$2 -> BUDGET INC 43862 | AA3: ="YTD "&$E$2 -> YTD 43862 | AB3: ="YTD BUDGET "&$E$2 -> YTD BUDGET 43862 | AD3: ="YTD YIELD "&$E$2 -> YTD YIELD 43862 | AE3: ="BUDGET YIELD "&$E$2 -> BUDGET YIELD 43862
C4: TOTAL ILP | E4: 2 | F4: 3 | G4: 4 | K4: 10 | L4: 11 | M4: 12 | Q4: 6 | R4: 7 | S4: 8
C5: OVERALL - CONSOLIDATED
D6: ASSET ALLOCATION | X6: RM INCOME | AD6: % YIELD
D7: Cost | E7: UR Gain/Loss | F7: Reserve | G7: ECL | H7: ="FYE"&YEAR($E$2)-1 -> FYE2019 | I7: % | J7: Cost | K7: UR Gain/Loss | L7: Reserve | M7: ECL | N7: =VLOOKUP($E$2,$C$257:$D$268,2,FALSE) -> 2020-01-01 | O7: Cost | P7: % | Q7: UR Gain/Loss | R7: Reserve | S7: ECL | T7: =E2 -> 2020-02-01 | U7: % | V7: BUDGET (RM) | W7: BUDGET (%) | X7: =$N$7 -> 2020-01-01 | Y7: =$T$7 -> 2020-02-01 | Z7: MONTHLY BUDGET | AA7: YTD | AB7: ="YTD BUDGET (" &$G$2&" mths)" -> YTD BUDGET (2 mths) | AC7: BUDGET (12 mths) | AD7: =+AA7 -> YTD | AE7: ="YTD BUDGET (" &$G$2& " mths)" -> YTD BUDGET (2 mths) | AF7: BUDGET (12 mths)
A9: 1 | C9: Deposits & Money Market | D9: =D34+D59 -> 53131839.63 | E9: 0 | F9: 0 | G9: 0 | H9: 53131839.63 | I9: =IFERROR(H9/H$26*100,0) -> 32.49058517 | J9: =J34+J59 -> 0 | K9: 0 | L9: 0 | M9: 0 | N9: 0 | O9: 0 | P9: =IFERROR(O9/$O$26*100,0) -> 0 | Q9: =Q34+Q59 -> 0 | R9: =R34+R59 -> 0 | S9: =S34+S59 -> 0 | T9: =O9+Q9+R9+S9 -> 0 | U9: =IFERROR(T9/T$26*100,0) -> 0 | V9: =V34+V59 -> 43098133.85 | W9: =V9/$V$26*100 -> 27.60796676 | X9: =X34+X59 -> 0 | Y9: 0 | Z9: 70602.64814 | AA9: =AA34+AA59 -> 0 | AB9: 148430.0361 | AC9: 937750.2961 | AD9: =IFERROR((2*AA9)/(H9-R9+T9-F9-AA9)*100,0) -> 0 | AE9: =AE34+AE59 -> 0.6951076839 | AF9: =AF34+AF59 -> 4.301178291
A10: 2 | C10: Banca Deposit | D10: 0 | E10: 0 | F10: 0 | G10: 0 | H10: 0 | I10: 0 | J10: =J35+J60 -> 0 | K10: 0 | L10: =L35+L60 -> 0 | M10: 0 | N10: 0 | O10: 0 | P10: 0 | Q10: =Q35+Q60 -> 0 | R10: 0 | S10: =S35+S60 -> 0 | T10: 0 | U10: 0 | V10: =V35+V60 -> 0 | W10: 0 | X10: =X35+X60 -> 0 | Y10: 0 | Z10: =Z35+Z60 -> 0 | AA10: =AA35+AA60 -> 0 | AB10: =AB35+AB60 -> 0 | AC10: =AC35+AC60 -> 0 | AD10: =IFERROR((2*(AA10+AA11))/(H10+T10+T11+H11-F10-F11-R10-R11-AA10)*100,0) -> 0 | AE10: =AE35+AE60 -> 0 | AF10: =AF35+AF60 -> 0
C11: Banca Commercial Paper | D11: =D36+D61 -> 0 | E11: 0 | F11: =F36+F61 -> 0 | G11: 0 | H11: 0 | I11: 0 | J11: 0 | K11: 0 | L11: 0 | M11: 0 | N11: 0 | O11: 0 | P11: 0 | Q11: 0 | R11: 0 | S11: 0 | T11: 0 | U11: 0 | V11: =V240+V264+V288+V312 -> 0 | W11: 0 | X11: 0 | Y11: 0 | AB11: =AB36+AB61 -> 0 | AE11: =IFERROR(SUM(OFFSET('[6]Revised Budget 2019'!$C$43,MATCH(#REF!,'[6]Revised Budget 2019'!$C$43:$C$270,0)+2+$A11,141,1,$G$2)),"") ->  | AF11: =IFERROR(VLOOKUP($C11,OFFSET('[6]Revised Budget 2019'!$C$43,MATCH(#REF!,'[6]Revised Budget 2019'!$C$43:$C$270,0)+3,0,12,154),58,0),"") -> 
A12: 3 | C12: Structured Deposit | D12: 0 | E12: 0 | F12: 0 | G12: 0 | H12: 0 | I12: 0 | J12: 0 | K12: 0 | L12: 0 | M12: 0 | N12: 0 | O12: 0 | P12: 0 | Q12: 0 | R12: 0 | S12: 0 | T12: 0 | U12: 0 | V12: =V241+V265+V289+V313 -> 0 | W12: 0 | X12: 0 | Y12: 0 | Z12: =Z37+#REF!+#REF! ->  | AA12: =AA37+#REF!+#REF! ->  | AB12: 0 | AC12: =AC37+#REF!+#REF! ->  | AD12: =IFERROR((2*AA12)/(H12-R12+T12-F12-AA12)*100,0) -> 0 | AE12: =IFERROR(SUM(OFFSET(Budget!$C$43,MATCH($C$4,Budget!$C$43:$C$349,0)+2+$A12,141,1,$G$2)),"") ->  | AF12: =IFERROR(VLOOKUP($C12,OFFSET(Budget!$C$43,MATCH($C$4,Budget!$C$43:$C$349,0)+3,0,12,154),58,0),"") -> 
B13: 1 | C13: Income | D13: 0 | E13: 0 | F13: 0 | G13: 0 | H13: 0 | I13: 0 | J13: 0 | K13: 0 | L13: 0 | M13: 0 | N13: 0 | O13: 0 | P13: 0 | Q13: 0 | R13: 0 | S13: 0 | T13: 0 | U13: 0 | V13: =V242+V266+V290+V314 -> 0 | W13: 0 | X13: 0 | Y13: 0 | AA13: =AA38+#REF!+#REF! ->  | AB13: 0 | AE13: =IFERROR(SUM(OFFSET(Budget!$C$43,MATCH($C$4,Budget!$C$43:$C$349,0)+2+$A13,141,1,$G$2)),"") ->  | AF13: =IFERROR(VLOOKUP($C13,OFFSET(Budget!$C$43,MATCH($C$4,Budget!$C$43:$C$349,0)+3,0,12,154),58,0),"") -> 
B14: 2 | C14: Fair Value Gain/Loss | D14: 0 | E14: 0 | F14: 0 | G14: 0 | H14: 0 | I14: 0 | J14: 0 | K14: 0 | L14: 0 | M14: 0 | N14: 0 | O14: 0 | P14: 0 | Q14: 0 | R14: 0 | S14: 0 | T14: 0 | U14: 0 | V14: =V243+V267+V291+V315 -> 0 | W14: 0 | X14: 0 | Y14: 0 | AA14: =AA39+#REF!+#REF! ->  | AB14: 0 | AE14: =IFERROR(SUM(OFFSET(Budget!$C$43,MATCH($C$4,Budget!$C$43:$C$349,0)+2+$A14,141,1,$G$2)),"") ->  | AF14: =IFERROR(VLOOKUP($C14,OFFSET(Budget!$C$43,MATCH($C$4,Budget!$C$43:$C$349,0)+3,0,12,154),58,0),"") -> 
A15: 4 | C15: GII | D15: 0 | E15: 0 | F15: 0 | G15: 0 | H15: 0 | I15: 0 | J15: 0 | K15: 0 | L15: 0 | M15: 0 | N15: 0 | O15: 0 | P15: 0 | Q15: 0 | R15: 0 | S15: 0 | T15: 0 | U15: 0 | V15: =V40+V65 -> 0 | W15: 0 | X15: 0 | Y15: 0 | Z15: =Z40+Z65 -> 0 | AA15: =AA40+AA65 -> 0 | AB15: 0 | AC15: =AC40+AC65 -> 0 | AD15: =IFERROR((2*AA15)/(H15-R15+T15-F15-AA15)*100,0) -> 0 | AE15: =AE40+AE65 -> 0 | AF15: =AF40+AF65 -> 0
A16: 5 | C16: GG | D16: 5000000 | E16: 0 | F16: 895750 | G16: 0 | H16: 5895750 | I16: 3.605302749 | J16: 0 | K16: 0 | L16: 525550 | M16: 0 | N16: 525550 | O16: 0 | P16: 0 | Q16: 0 | R16: 565600 | S16: 0 | T16: 565600 | U16: 2.632003387 | V16: =V41+V66 -> 6579833.775 | W16: 4.214934984 | X16: 0 | Y16: 0 | Z16: =Z41+Z66 -> 12543.42863 | AA16: =AA41+AA66 -> 0 | AB16: 26377.93015 | AC16: =AC41+AC66 -> 166879.7935 | AD16: 0 | AE16: =AE41+AE66 -> 0.404109589 | AF16: 2.5
A17: 6 | C17: Equity | D17: 71599134.19 | E17: 9277438.69 | F17: 0 | G17: 0 | H17: 80876572.88 | I17: 49.45673249 | J17: 0 | K17: 5149245.11 | L17: 0 | M17: 0 | N17: 5149245.11 | O17: 0 | P17: 0 | Q17: 5623677.2 | R17: 0 | S17: 0 | T17: 5623677.2 | U17: 26.16962064 | V17: =V42+V67 -> 78275848.11 | W17: 50.14224097 | X17: 0 | Y17: 0 | Z17: 495691.7319 | AA17: =AA42+AA67 -> 0 | AB17: 990025.7792 | AC17: 6057774.932 | AD17: 0 | AE17: 1.287016795 | AF17: 7.728341299
B18: 3 | C18: Income | D18: 0 | E18: 0 | F18: 0 | G18: 0 | H18: 0 | I18: 0 | J18: 0 | K18: 0 | L18: 0 | M18: 0 | N18: 0 | O18: 0 | P18: 0 | Q18: 0 | R18: 0 | S18: 0 | T18: 0 | U18: 0 | V18: 0 | W18: 0 | X18: 0 | Y18: 0 | Z18: 0 | AA18: =AA43+AA68 -> 0 | AB18: 0 | AC18: 0 | AD18: 0 | AE18: 0
B19: 4 | C19: Fair Value Gain/Loss | D19: 0 | E19: 0 | F19: 0 | G19: 0 | H19: 0 | I19: 0 | J19: 0 | K19: 0 | L19: 0 | M19: 0 | N19: 0 | O19: 0 | P19: 0 | Q19: 0 | R19: 0 | S19: 0 | T19: 0 | U19: 0 | V19: 0 | W19: 0 | X19: 0 | Y19: 0 | Z19: 0 | AA19: 0 | AB19: 0 | AC19: 0 | AD19: =IFERROR((2*AA19)/(H19-R19+T19-F19-AA19)*100,0) -> 0 | AE19: 0
A20: 7 | C20: Unit Trust | D20: 0 | E20: 0 | F20: 0 | G20: 0 | H20: 0 | I20: 0 | J20: 0 | K20: 0 | L20: 0 | M20: 0 | N20: 0 | O20: 0 | P20: 0 | Q20: 0 | R20: 0 | S20: 0 | T20: 0 | U20: 0 | V20: 0 | W20: 0 | X20: 0 | Y20: 0 | Z20: 0 | AA20: 0 | AB20: 0 | AC20: 0 | AD20: 0 | AE20: 0 | AF20: 0
B21: 5 | C21: Income | D21: 0 | E21: 0 | F21: 0 | G21: 0 | H21: 0 | I21: 0 | J21: 0 | K21: 0 | L21: 0 | M21: 0 | N21: 0 | O21: 0 | P21: 0 | Q21: 0 | R21: 0 | S21: 0 | T21: 0 | U21: 0 | V21: 0 | W21: 0 | X21: 0 | Y21: 0 | Z21: 0 | AA21: 0 | AB21: 0 | AC21: 0 | AD21: 0 | AE21: 0
B22: 6 | C22: Fair Value Gain/Loss | D22: 0 | E22: 0 | F22: 0 | G22: 0 | H22: 0 | I22: 0 | J22: 0 | K22: 0 | L22: 0 | M22: 0 | N22: 0 | O22: 0 | P22: 0 | Q22: 0 | R22: 0 | S22: 0 | T22: 0 | U22: 0 | V22: 0 | W22: 0 | X22: 0 | Y22: 0 | Z22: 0 | AA22: 0 | AB22: 0 | AC22: 0 | AD22: 0 | AE22: 0
A23: 8 | C23: ITA | D23: 0 | E23: 0 | F23: 0 | G23: 0 | H23: 0 | I23: 0 | J23: 0 | K23: 0 | L23: 0 | M23: 0 | N23: 0 | O23: 0 | P23: 0 | Q23: 0 | R23: 0 | S23: 0 | T23: 0 | U23: 0 | V23: 0 | W23: 0 | X23: 0 | Y23: 0 | Z23: 0 | AA23: 0 | AB23: 0 | AC23: 0 | AD23: 0 | AE23: =AE48+AE73 -> 0 | AF23: =AF48+AF73 -> 0
A24: 9 | C24: Corporate Sukuk | D24: 21412429.04 | E24: 2213364.46 | F24: 0 | G24: 0 | H24: 23625793.5 | I24: 14.4473796 | J24: 14238008.42 | K24: 1075886.49 | L24: 0 | M24: 0 | N24: 15313894.91 | O24: 14235097.2 | P24: 100 | Q24: 1064959.65 | R24: 0 | S24: 0 | T24: 15300056.85 | U24: 71.19837597 | V24: 28153782.57 | W24: 18.03485729 | X24: 69731.66 | Y24: -61351.87 | Z24: =Z49+Z74 -> 72149.91357 | AA24: =AA49+AA74 -> 8379.79 | AB24: 151676.0101 | AC24: 957590.8719 | AD24: 0.04306441235 | AE24: 1.160447647 | AF24: =AF49+AF74 -> 7.179040529
A25: 10 | C25: Properties | D25: 0 | E25: 0 | F25: 0 | G25: 0 | H25: 0 | I25: 0 | J25: 0 | K25: 0 | L25: 0 | M25: 0 | N25: 0 | O25: 0 | P25: 0 | Q25: 0 | R25: 0 | S25: 0 | T25: 0 | U25: 0 | V25: 0 | W25: 0 | X25: 0 | Y25: 0 | Z25: 0 | AA25: 0 | AB25: 0 | AC25: 0 | AD25: 0 | AE25: 0 | AF25: =AF50+AF75 -> 0
A26: 12 | C26: TOTAL | D26: =SUM(D9:D25) -> 151143402.9 | E26: =SUM(E9:E25) -> 11490803.15 | F26: 895750 | G26: 0 | H26: =SUM(H9:H25) -> 163529956 | I26: =SUM(I9:I25) -> 100 | J26: 14238008.42 | K26: 6225131.6 | L26: 525550 | M26: 0 | N26: 20988690.02 | O26: 14235097.2 | P26: 100 | Q26: 6688636.85 | R26: 565600 | S26: 0 | T26: 21489334.05 | U26: 100 | V26: 156107598.3 | W26: 100 | X26: =SUM(X9:X12,X15:X17,X20,X23:X25) -> 69731.66 | Y26: =SUM(Y9:Y12,Y15:Y17,Y20,Y23:Y25) -> -61351.87 | Z26: =SUM(Z9,Z16:Z17,Z24) -> 650987.7223 | AA26: =SUM(AA9,AA15:AA17,AA23:AA25) -> 8379.79 | AB26: =SUM(AB9:AB12,AB15:AB17,AB20,AB23:AB25) -> 1316509.756 | AC26: =SUM(AC9,AC16,AC17,AC24) -> 8119995.894 | AD26: =((2*AA26)/(H26-R26+T26-F26-AA26)*100) -> 0.009130820022 | AE26: =SUM(AE9,AE16:AE17,AE24) -> 3.546681715
D27: =DEPOSIT!$D$136+DEPOSIT!$D$148+EQUITY!$D$136+EQUITY!$D$148+SUKUK!$D$136+SUKUK!$D$148+GG!$D$136-D26 -> 0 | E27: =SUM('UR & ECL'!G506:G515,'UR & ECL'!G519:G528)-E26 -> 0 | F27: =SUM('UR & ECL'!H506:H515,'UR & ECL'!H519:H528)-F26 -> 0 | G27: =SUM('UR & ECL'!I506:I515,'UR & ECL'!I519:I528)-G26 -> 0 | J27: =HLOOKUP($N$7,DEPOSIT!$D$128:$P$136,9,FALSE)+HLOOKUP($N$7,DEPOSIT!$D$140:$P$148,9,FALSE)+HLOOKUP($N$7,GG!$D$128:$P$136,9,FALSE)+HLOOKUP($N$7,EQUITY!$D$128:$P$136,9,FALSE)+HLOOKUP($N$7,EQUITY!$D$140:$P$148,9,FALSE)+HLOOKUP($N$7,SUKUK!$D$128:$P$136,9,FALSE)+HLOOKUP($N$7,SUKUK!$D$140:$P$148,9,FALSE)-J26 ->  | K27: =SUM('UR & ECL'!O506:O515,'UR & ECL'!O519:O528)-K26 -> 0 | L27: =SUM('UR & ECL'!P506:P515,'UR & ECL'!P519:P528)-L26 -> 0 | M27: =SUM('UR & ECL'!Q506:Q515,'UR & ECL'!Q519:Q528)-M26 -> 0 | O27: =HLOOKUP($T$7,DEPOSIT!$D$128:$P$136,9,FALSE)+HLOOKUP($T$7,DEPOSIT!$D$140:$P$148,9,FALSE)+HLOOKUP($T$7,GG!$D$128:$P$136,9,FALSE)+HLOOKUP($T$7,EQUITY!$D$128:$P$136,9,FALSE)+HLOOKUP($T$7,EQUITY!$D$140:$P$148,9,FALSE)+HLOOKUP($T$7,SUKUK!$D$128:$P$136,9,FALSE)+HLOOKUP($T$7,SUKUK!$D$140:$P$148,9,FALSE)-O26 ->  | Q27: =SUM('UR & ECL'!K506:K515,'UR & ECL'!K519:K528)-Q26 -> 0 | R27: =SUM('UR & ECL'!L506:L515,'UR & ECL'!L519:L528)-R26 -> 0 | S27: =SUM('UR & ECL'!M506:M515,'UR & ECL'!M519:M528)-S26 -> 0 | X27: =HLOOKUP($X$7,DEPOSIT!$S$128:$AE$136,9,FALSE)+HLOOKUP($X$7,DEPOSIT!$S$140:$AE$148,9,FALSE)+HLOOKUP($X$7,EQUITY!$S$128:$AE$136,9,FALSE)+HLOOKUP($X$7,EQUITY!$S$140:$AE$148,9,FALSE)+HLOOKUP($X$7,SUKUK!$S$128:$AE$136,9,FALSE)+HLOOKUP($X$7,SUKUK!$S$140:$AE$148,9,FALSE)+HLOOKUP($X$7,GG!$S$128:$AE$136,9,FALSE)-X26 ->  | Y27: =HLOOKUP($Y$7,DEPOSIT!$S$128:$AE$136,9,FALSE)+HLOOKUP($Y$7,DEPOSIT!$S$140:$AE$148,9,FALSE)+HLOOKUP($Y$7,EQUITY!$S$128:$AE$136,9,FALSE)+HLOOKUP($Y$7,EQUITY!$S$140:$AE$148,9,FALSE)+HLOOKUP($Y$7,SUKUK!$S$128:$AE$136,9,FALSE)+HLOOKUP($Y$7,SUKUK!$S$140:$AE$148,9,FALSE)+HLOOKUP($Y$7,GG!$S$128:$AE$136,9,FALSE)-Y26 ->  | AA27: =HLOOKUP($Y$7,DEPOSIT!$S$128:$AE$136,9,FALSE)+HLOOKUP($Y$7,DEPOSIT!$S$140:$AE$148,9,FALSE)+HLOOKUP($Y$7,EQUITY!$S$128:$AE$136,9,FALSE)+HLOOKUP($Y$7,EQUITY!$S$140:$AE$148,9,FALSE)+HLOOKUP($Y$7,SUKUK!$S$128:$AE$136,9,FALSE)+HLOOKUP($Y$7,SUKUK!$S$140:$AE$148,9,FALSE)+HLOOKUP($Y$7,GG!$S$128:$AE$136,9,FALSE)-AA26 -> 
N28: =T26-H26 -> -142040622
C29: INVESTMENT LINKED UNIT FUND
C30: INVESTMENT LINKED UNIT FUND
D31: ASSET ALLOCATION | X31: RM INCOME | AD31: % YIELD
D32: =D7 -> Cost | E32: UR Gain/Loss | F32: Reserve | G32: ECL | H32: =H7 -> FYE2019 | I32: % | J32: Cost | K32: UR Gain/Loss | L32: Reserve | M32: ECL | N32: =$N$7 -> 2020-01-01 | O32: Cost | P32: % | Q32: UR Gain/Loss | R32: Reserve | S32: ECL | T32: =T7 -> 2020-02-01 | U32: % | V32: =$V$7 -> BUDGET (RM) | W32: =$W$7 -> BUDGET (%) | X32: =$N$7 -> 2020-01-01 | Y32: =$T$32 -> 2020-02-01 | Z32: MONTHLY BUDGET | AA32: =+$AA$7 -> YTD | AB32: ="YTD BUDGET (" &$G$2&" mths)" -> YTD BUDGET (2 mths) | AC32: BUDGET (12 mths) | AD32: =+$AD$7 -> YTD | AE32: ="YTD BUDGET (" &$G$2& " mths)" -> YTD BUDGET (2 mths) | AF32: BUDGET (12 mths)
A34: 1 | C34: Deposits & Money Market | D34: =DEPOSIT!$D$148 -> 33225156.86 | E34: =IFERROR(VLOOKUP($C34,OFFSET('UR & ECL'!$F$400,MATCH($C$29,'UR & ECL'!$F$400:$F$619,0),0,11,12),E$4,0),0) -> 0 | F34: =IFERROR(VLOOKUP($C34,OFFSET('UR & ECL'!$F$400,MATCH($C$29,'UR & ECL'!$F$400:$F$619,0),0,11,12),F$4,0),0) -> 0 | G34: =IFERROR(VLOOKUP($C34,OFFSET('UR & ECL'!$F$400,MATCH($C$29,'UR & ECL'!$F$400:$F$619,0),0,11,12),G$4,0),0) -> 0 | H34: =D34+E34+F34+G34 -> 33225156.86 | I34: =IFERROR(H34/H$51*100,0) -> 25.61895295 | J34: =IFERROR(HLOOKUP($N$7,DEPOSIT!$D$140:$P$148,9,FALSE),0) -> 0 | K34: =IFERROR(VLOOKUP($C34,OFFSET('UR & ECL'!$F$400,MATCH($C$29,'UR & ECL'!$F$400:$F$619,0),0,11,12),K$4,0),0) -> 0 | L34: =IFERROR(VLOOKUP($C34,OFFSET('UR & ECL'!$F$400,MATCH($C$29,'UR & ECL'!$F$400:$F$619,0),0,11,12),L$4,0),0) -> 0 | M34: =IFERROR(VLOOKUP($C34,OFFSET('UR & ECL'!$F$400,MATCH($C$29,'UR & ECL'!$F$400:$F$619,0),0,11,12),M$4,0),0) -> 0 | N34: =J34+K34+L34+M34 -> 0 | O34: =IFERROR(HLOOKUP($T$7,DEPOSIT!$D$140:$P$148,9,FALSE),0) -> 0 | P34: =IFERROR(O34/$O$51*100,0) -> 0 | Q34: =IFERROR(VLOOKUP($C34,OFFSET('UR & ECL'!$F$400,MATCH($C$29,'UR & ECL'!$F$400:$F$619,0),0,11,12),Q$4,0),0) -> 0 | R34: =IFERROR(VLOOKUP($C34,OFFSET('UR & ECL'!$F$400,MATCH($C$29,'UR & ECL'!$F$400:$F$619,0),0,11,12),R$4,0),0) -> 0 | S34: =IFERROR(VLOOKUP($C34,OFFSET('UR & ECL'!$F$400,MATCH($C$29,'UR & ECL'!$F$400:$F$619,0),0,11,12),S$4,0),0) -> 0 | T34: =O34+Q34+R34+S34 -> 0 | U34: =IFERROR(T34/T$51*100,0) -> 0 | V34: =IFERROR(VLOOKUP($C34,OFFSET(Budget!$C$43,MATCH($C$29,Budget!$C$43:$C$349,0)+3,0,11,154),44+$G$2,0),0) -> 21942538.53 | W34: =V34/$V$51*100 -> 18.34345266 | X34: =IFERROR(HLOOKUP($X$7,DEPOSIT!$S$140:$AE$148,9,FALSE),0) -> 0 | Y34: =IFERROR(HLOOKUP($Y$7,DEPOSIT!$S$140:$AE$148,9,FALSE),0) -> 0 | Z34: =IFERROR(VLOOKUP($C34,OFFSET(Budget!$C$43,MATCH($C$29,Budget!$C$43:$C$349,0)+3,0,11,154),101+$G$2,0),0) -> 33487.28406 | AA34: =IFERROR(HLOOKUP($Y$7,DEPOSIT!$AJ$140:$AU$148,9,FALSE),0) -> 0 | AB34: =IFERROR(SUM(OFFSET(Budget!$C$43,MATCH($C$29,Budget!$C$43:$C$349,0)+2+A34,101,1,$G$2)),0) -> 70379.08927 | AC34: =IFERROR(VLOOKUP($C34,OFFSET(Budget!$C$43,MATCH($C$29,Budget!$C$43:$C$349,0)+3,0,11,154),114,0),0) -> 443961.518 | AD34: =IFERROR((2*AA34)/(H34-R34+T34-F34-AA34)*100,0) -> 0 | AE34: =IFERROR(SUM(OFFSET(Budget!$C$43,MATCH($C$29,Budget!$C$43:$C$349,0)+2+$A34,141,1,$G$2)),"") -> 0.323326862 | AF34: =IFERROR(VLOOKUP($C34,OFFSET(Budget!$C$43,MATCH($C$29,Budget!$C$43:$C$349,0)+3,0,12,154),58,0),"") -> 2.001178291
A35: 2 | C35: Banca Deposit | D35: 0 | E35: =IFERROR(VLOOKUP($C35,OFFSET('UR & ECL'!$F$400,MATCH($C$29,'UR & ECL'!$F$400:$F$619,0),0,11,12),E$4,0),0) -> 0 | F35: =IFERROR(VLOOKUP($C35,OFFSET('UR & ECL'!$F$400,MATCH($C$29,'UR & ECL'!$F$400:$F$619,0),0,11,12),F$4,0),0) -> 0 | G35: =IFERROR(VLOOKUP($C35,OFFSET('UR & ECL'!$F$400,MATCH($C$29,'UR & ECL'!$F$400:$F$619,0),0,11,12),G$4,0),0) -> 0 | H35: =D35+E35+F35+G35 -> 0 | I35: 0 | J35: 0 | K35: =IFERROR(VLOOKUP($C35,OFFSET('UR & ECL'!$F$400,MATCH($C$29,'UR & ECL'!$F$400:$F$619,0),0,11,12),K$4,0),0) -> 0 | L35: =IFERROR(VLOOKUP($C35,OFFSET('UR & ECL'!$F$400,MATCH($C$29,'UR & ECL'!$F$400:$F$619,0),0,11,12),L$4,0),0) -> 0 | M35: =IFERROR(VLOOKUP($C35,OFFSET('UR & ECL'!$F$400,MATCH($C$29,'UR & ECL'!$F$400:$F$619,0),0,11,12),M$4,0),0) -> 0 | N35: =J35+K35+L35+M35 -> 0 | O35: 0 | P35: =IFERROR(O35/$O$51*100,0) -> 0 | Q35: =IFERROR(VLOOKUP($C35,OFFSET('UR & ECL'!$F$400,MATCH($C$29,'UR & ECL'!$F$400:$F$619,0),0,11,12),Q$4,0),0) -> 0 | R35: =IFERROR(VLOOKUP($C35,OFFSET('UR & ECL'!$F$400,MATCH($C$29,'UR & ECL'!$F$400:$F$619,0),0,11,12),R$4,0),0) -> 0 | S35: =IFERROR(VLOOKUP($C35,OFFSET('UR & ECL'!$F$400,MATCH($C$29,'UR & ECL'!$F$400:$F$619,0),0,11,12),S$4,0),0) -> 0 | T35: =O35+Q35+R35+S35 -> 0 | U35: =IFERROR(T35/T$51*100,0) -> 0 | V35: =IFERROR(VLOOKUP($C35,OFFSET(Budget!$C$43,MATCH($C$29,Budget!$C$43:$C$349,0)+3,0,11,154),44+$G$2,0),0) -> 0 | W35: =V35/$V$51*100 -> 0 | X35: 0 | Y35: 0 | Z35: =IFERROR(VLOOKUP($C35,OFFSET(Budget!$C$43,MATCH($C$29,Budget!$C$43:$C$349,0)+3,0,11,154),101+$G$2,0),0) -> 0 | AA35: 0 | AB35: =IFERROR(SUM(OFFSET(Budget!$C$43,MATCH($C$29,Budget!$C$43:$C$349,0)+2+A35,101,1,$G$2)),0) -> 0 | AC35: =IFERROR(VLOOKUP($C35,OFFSET(Budget!$C$43,MATCH($C$29,Budget!$C$43:$C$349,0)+3,0,11,154),114,0),0) -> 0 | AD35: =IFERROR((2*(AA35+AA36))/(H35+T35+T36+H36-F35-F36-R35-R36-AA35)*100,0) -> 0 | AE35: =IFERROR(SUM(OFFSET(Budget!$C$43,MATCH($C$29,Budget!$C$43:$C$349,0)+2+$A35,141,1,$G$2)),"") -> 0 | AF35: =IFERROR(VLOOKUP($C35,OFFSET(Budget!$C$43,MATCH($C$29,Budget!$C$43:$C$349,0)+3,0,12,154),58,0),"") -> 0
C36: Banca Commercial Paper | D36: 0 | E36: =IFERROR(VLOOKUP($C36,OFFSET('UR & ECL'!$F$400,MATCH($C$29,'UR & ECL'!$F$400:$F$619,0),0,11,12),E$4,0),0) -> 0 | F36: =IFERROR(VLOOKUP($C36,OFFSET('UR & ECL'!$F$400,MATCH($C$29,'UR & ECL'!$F$400:$F$619,0),0,11,12),F$4,0),0) -> 0 | G36: =IFERROR(VLOOKUP($C36,OFFSET('UR & ECL'!$F$400,MATCH($C$29,'UR & ECL'!$F$400:$F$619,0),0,11,12),G$4,0),0) -> 0 | H36: 0 | I36: 0 | J36: =J88+J112+J136+J160 -> 0 | K36: =IFERROR(VLOOKUP($C36,OFFSET('UR & ECL'!$F$400,MATCH($C$29,'UR & ECL'!$F$400:$F$619,0),0,11,12),K$4,0),0) -> 0 | L36: =IFERROR(VLOOKUP($C36,OFFSET('UR & ECL'!$F$400,MATCH($C$29,'UR & ECL'!$F$400:$F$619,0),0,11,12),L$4,0),0) -> 0 | M36: =IFERROR(VLOOKUP($C36,OFFSET('UR & ECL'!$F$400,MATCH($C$29,'UR & ECL'!$F$400:$F$619,0),0,11,12),M$4,0),0) -> 0 | N36: =J36+K36+L36+M36 -> 0 | O36: =O88+O112+O136+O160 -> 0 | P36: 0 | Q36: =IFERROR(VLOOKUP($C36,OFFSET('UR & ECL'!$F$400,MATCH($C$29,'UR & ECL'!$F$400:$F$619,0),0,11,12),Q$4,0),0) -> 0 | R36: =IFERROR(VLOOKUP($C36,OFFSET('UR & ECL'!$F$400,MATCH($C$29,'UR & ECL'!$F$400:$F$619,0),0,11,12),R$4,0),0) -> 0 | S36: =IFERROR(VLOOKUP($C36,OFFSET('UR & ECL'!$F$400,MATCH($C$29,'UR & ECL'!$F$400:$F$619,0),0,11,12),S$4,0),0) -> 0 | T36: 0 | U36: 0 | V36: =IFERROR(VLOOKUP($C36,OFFSET(Budget!$C$43,MATCH($C$29,Budget!$C$43:$C$349,0)+3,0,11,154),44+$G$2,0),0) -> 0 | W36: =V36/$V$175*100 ->  | X36: =X88+X112+X136+X160 -> 0 | Y36: 0 | AB36: =IFERROR(SUM(OFFSET('[6]Revised Budget 2019'!$C$43,MATCH($C$153,'[6]Revised Budget 2019'!$C$43:$C$270,0)+2+A36,101,1,$G$2)),0) -> 0 | AE36: =IFERROR(SUM(OFFSET('[6]Revised Budget 2019'!$C$43,MATCH(#REF!,'[6]Revised Budget 2019'!$C$43:$C$270,0)+2+$A36,141,1,$G$2)),"") ->  | AF36: =IFERROR(VLOOKUP($C36,OFFSET('[6]Revised Budget 2019'!$C$43,MATCH(#REF!,'[6]Revised Budget 2019'!$C$43:$C$270,0)+3,0,12,154),58,0),"") -> 
A37: 3 | C37: Structured Deposit | D37: 0 | E37: =IFERROR(VLOOKUP($C37,OFFSET('UR & ECL'!$F$400,MATCH($C$29,'UR & ECL'!$F$400:$F$619,0),0,11,12),E$4,0),0) -> 0 | F37: =IFERROR(VLOOKUP($C37,OFFSET('UR & ECL'!$F$400,MATCH($C$29,'UR & ECL'!$F$400:$F$619,0),0,11,12),F$4,0),0) -> 0 | G37: =IFERROR(VLOOKUP($C37,OFFSET('UR & ECL'!$F$400,MATCH($C$29,'UR & ECL'!$F$400:$F$619,0),0,11,12),G$4,0),0) -> 0 | H37: 0 | I37: 0 | J37: =J89+J113+J137+J161 -> 0 | K37: =IFERROR(VLOOKUP($C37,OFFSET('UR & ECL'!$F$400,MATCH($C$29,'UR & ECL'!$F$400:$F$619,0),0,11,12),K$4,0),0) -> 0 | L37: =IFERROR(VLOOKUP($C37,OFFSET('UR & ECL'!$F$400,MATCH($C$29,'UR & ECL'!$F$400:$F$619,0),0,11,12),L$4,0),0) -> 0 | M37: =IFERROR(VLOOKUP($C37,OFFSET('UR & ECL'!$F$400,MATCH($C$29,'UR & ECL'!$F$400:$F$619,0),0,11,12),M$4,0),0) -> 0 | N37: 0 | O37: =O89+O113+O137+O161 -> 0 | P37: 0 | Q37: =IFERROR(VLOOKUP($C37,OFFSET('UR & ECL'!$F$400,MATCH($C$29,'UR & ECL'!$F$400:$F$619,0),0,11,12),Q$4,0),0) -> 0 | R37: =IFERROR(VLOOKUP($C37,OFFSET('UR & ECL'!$F$400,MATCH($C$29,'UR & ECL'!$F$400:$F$619,0),0,11,12),R$4,0),0) -> 0 | S37: =IFERROR(VLOOKUP($C37,OFFSET('UR & ECL'!$F$400,MATCH($C$29,'UR & ECL'!$F$400:$F$619,0),0,11,12),S$4,0),0) -> 0 | T37: 0 | U37: 0 | V37: =IFERROR(VLOOKUP($C37,OFFSET(Budget!$C$43,MATCH($C$29,Budget!$C$43:$C$349,0)+3,0,11,154),44+$G$2,0),0) -> 0 | W37: =V37/$V$51*100 -> 0 | X37: 0 | Y37: 0 | Z37: 0 | AA37: 0 | AB37: 0 | AC37: 0 | AD37: =IFERROR((2*AA37)/(H37-R37+T37-F37-AA37)*100,0) -> 0 | AE37: =IFERROR(SUM(OFFSET(Budget!$C$43,MATCH($C$29,Budget!$C$43:$C$349,0)+2+$A37,141,1,$G$2)),"") -> 0 | AF37: =IFERROR(VLOOKUP($C37,OFFSET(Budget!$C$43,MATCH($C$29,Budget!$C$43:$C$349,0)+3,0,12,154),58,0),"") -> 0
B38: 1 | C38: Income | D38: 0 | E38: =IFERROR(VLOOKUP($C38,OFFSET('UR & ECL'!$F$400,MATCH($C$29,'UR & ECL'!$F$400:$F$619,0),0,11,12),E$4,0),0) -> 0 | F38: =IFERROR(VLOOKUP($C38,OFFSET('UR & ECL'!$F$400,MATCH($C$29,'UR & ECL'!$F$400:$F$619,0),0,11,12),F$4,0),0) -> 0 | G38: =IFERROR(VLOOKUP($C38,OFFSET('UR & ECL'!$F$400,MATCH($C$29,'UR & ECL'!$F$400:$F$619,0),0,11,12),G$4,0),0) -> 0 | H38: 0 | I38: 0 | J38: =J90+J114+J138+J162 -> 0 | K38: =IFERROR(VLOOKUP($C38,OFFSET('UR & ECL'!$F$400,MATCH($C$29,'UR & ECL'!$F$400:$F$619,0),0,11,12),K$4,0),0) -> 0 | L38: =IFERROR(VLOOKUP($C38,OFFSET('UR & ECL'!$F$400,MATCH($C$29,'UR & ECL'!$F$400:$F$619,0),0,11,12),L$4,0),0) -> 0 | M38: =IFERROR(VLOOKUP($C38,OFFSET('UR & ECL'!$F$400,MATCH($C$29,'UR & ECL'!$F$400:$F$619,0),0,11,12),M$4,0),0) -> 0 | N38: 0 | P38: 0 | Q38: =IFERROR(VLOOKUP($C38,OFFSET('UR & ECL'!$F$400,MATCH($C$29,'UR & ECL'!$F$400:$F$619,0),0,11,12),Q$4,0),0) -> 0 | R38: =IFERROR(VLOOKUP($C38,OFFSET('UR & ECL'!$F$400,MATCH($C$29,'UR & ECL'!$F$400:$F$619,0),0,11,12),R$4,0),0) -> 0 | S38: =IFERROR(VLOOKUP($C38,OFFSET('UR & ECL'!$F$400,MATCH($C$29,'UR & ECL'!$F$400:$F$619,0),0,11,12),S$4,0),0) -> 0 | T38: 0 | U38: 0 | V38: =IFERROR(VLOOKUP($C38,OFFSET(Budget!$C$43,MATCH($C$29,Budget!$C$43:$C$349,0)+3,0,11,154),44+$G$2,0),0) -> 0 | W38: 0 | X38: 0 | Y38: 0 | AA38: 0 | AE38: =IFERROR(SUM(OFFSET(Budget!$C$43,MATCH($C$29,Budget!$C$43:$C$349,0)+2+$A38,141,1,$G$2)),"") -> 0 | AF38: =IFERROR(VLOOKUP($C38,OFFSET(Budget!$C$43,MATCH($C$29,Budget!$C$43:$C$349,0)+3,0,12,154),58,0),"") -> 
B39: 2 | C39: Fair Value Gain/Loss | D39: 0 | E39: =IFERROR(VLOOKUP($C39,OFFSET('UR & ECL'!$F$400,MATCH($C$29,'UR & ECL'!$F$400:$F$619,0),0,11,12),E$4,0),0) -> 0 | F39: =IFERROR(VLOOKUP($C39,OFFSET('UR & ECL'!$F$400,MATCH($C$29,'UR & ECL'!$F$400:$F$619,0),0,11,12),F$4,0),0) -> 0 | G39: =IFERROR(VLOOKUP($C39,OFFSET('UR & ECL'!$F$400,MATCH($C$29,'UR & ECL'!$F$400:$F$619,0),0,11,12),G$4,0),0) -> 0 | H39: 0 | I39: 0 | J39: =J91+J115+J139+J163 -> 0 | K39: =IFERROR(VLOOKUP($C39,OFFSET('UR & ECL'!$F$400,MATCH($C$29,'UR & ECL'!$F$400:$F$619,0),0,11,12),K$4,0),0) -> 0 | L39: =IFERROR(VLOOKUP($C39,OFFSET('UR & ECL'!$F$400,MATCH($C$29,'UR & ECL'!$F$400:$F$619,0),0,11,12),L$4,0),0) -> 0 | M39: =IFERROR(VLOOKUP($C39,OFFSET('UR & ECL'!$F$400,MATCH($C$29,'UR & ECL'!$F$400:$F$619,0),0,11,12),M$4,0),0) -> 0 | N39: 0 | P39: 0 | Q39: =IFERROR(VLOOKUP($C39,OFFSET('UR & ECL'!$F$400,MATCH($C$29,'UR & ECL'!$F$400:$F$619,0),0,11,12),Q$4,0),0) -> 0 | R39: =IFERROR(VLOOKUP($C39,OFFSET('UR & ECL'!$F$400,MATCH($C$29,'UR & ECL'!$F$400:$F$619,0),0,11,12),R$4,0),0) -> 0 | S39: =IFERROR(VLOOKUP($C39,OFFSET('UR & ECL'!$F$400,MATCH($C$29,'UR & ECL'!$F$400:$F$619,0),0,11,12),S$4,0),0) -> 0 | T39: 0 | U39: 0 | V39: =IFERROR(VLOOKUP($C39,OFFSET(Budget!$C$43,MATCH($C$29,Budget!$C$43:$C$349,0)+3,0,11,154),44+$G$2,0),0) -> 0 | W39: 0 | X39: 0 | Y39: 0 | AA39: 0 | AE39: =IFERROR(SUM(OFFSET(Budget!$C$43,MATCH($C$29,Budget!$C$43:$C$349,0)+2+$A39,141,1,$G$2)),"") -> 0 | AF39: =IFERROR(VLOOKUP($C39,OFFSET(Budget!$C$43,MATCH($C$29,Budget!$C$43:$C$349,0)+3,0,12,154),58,0),"") -> 
A40: 4 | C40: GII | D40: 0 | E40: =IFERROR(VLOOKUP($C40,OFFSET('UR & ECL'!$F$400,MATCH($C$29,'UR & ECL'!$F$400:$F$619,0),0,11,12),E$4,0),0) -> 0 | F40: =IFERROR(VLOOKUP($C40,OFFSET('UR & ECL'!$F$400,MATCH($C$29,'UR & ECL'!$F$400:$F$619,0),0,11,12),F$4,0),0) -> 0 | G40: =IFERROR(VLOOKUP($C40,OFFSET('UR & ECL'!$F$400,MATCH($C$29,'UR & ECL'!$F$400:$F$619,0),0,11,12),G$4,0),0) -> 0 | H40: 0 | I40: =IFERROR(H40/H$51*100,0) -> 0 | J40: 0 | K40: =IFERROR(VLOOKUP($C40,OFFSET('UR & ECL'!$F$400,MATCH($C$29,'UR & ECL'!$F$400:$F$619,0),0,11,12),K$4,0),0) -> 0 | L40: =IFERROR(VLOOKUP($C40,OFFSET('UR & ECL'!$F$400,MATCH($C$29,'UR & ECL'!$F$400:$F$619,0),0,11,12),L$4,0),0) -> 0 | M40: =IFERROR(VLOOKUP($C40,OFFSET('UR & ECL'!$F$400,MATCH($C$29,'UR & ECL'!$F$400:$F$619,0),0,11,12),M$4,0),0) -> 0 | N40: =J40+K40+L40+M40 -> 0 | O40: 0 | P40: 0 | Q40: =IFERROR(VLOOKUP($C40,OFFSET('UR & ECL'!$F$400,MATCH($C$29,'UR & ECL'!$F$400:$F$619,0),0,11,12),Q$4,0),0) -> 0 | R40: =IFERROR(VLOOKUP($C40,OFFSET('UR & ECL'!$F$400,MATCH($C$29,'UR & ECL'!$F$400:$F$619,0),0,11,12),R$4,0),0) -> 0 | S40: =IFERROR(VLOOKUP($C40,OFFSET('UR & ECL'!$F$400,MATCH($C$29,'UR & ECL'!$F$400:$F$619,0),0,11,12),S$4,0),0) -> 0 | T40: 0 | U40: 0 | V40: =IFERROR(VLOOKUP($C40,OFFSET(Budget!$C$43,MATCH($C$29,Budget!$C$43:$C$349,0)+3,0,11,154),44+$G$2,0),0) -> 0 | W40: =V40/$V$51*100 -> 0 | X40: 0 | Y40: 0 | Z40: =IFERROR(VLOOKUP($C40,OFFSET(Budget!$C$43,MATCH($C$29,Budget!$C$43:$C$349,0)+3,0,11,154),101+$G$2,0),0) -> 0 | AA40: 0 | AB40: =IFERROR(SUM(OFFSET(Budget!$C$43,MATCH($C$29,Budget!$C$43:$C$349,0)+2+A40,101,1,$G$2)),0) -> 0 | AC40: =IFERROR(VLOOKUP($C40,OFFSET(Budget!$C$43,MATCH($C$29,Budget!$C$43:$C$349,0)+3,0,11,154),114,0),0) -> 0 | AD40: =IFERROR((2*AA40)/(H40-R40+T40-F40-AA40)*100,0) -> 0 | AE40: =IFERROR(SUM(OFFSET(Budget!$C$43,MATCH($C$29,Budget!$C$43:$C$349,0)+2+$A40,141,1,$G$2)),"") -> 0 | AF40: =IFERROR(VLOOKUP($C40,OFFSET(Budget!$C$43,MATCH($C$29,Budget!$C$43:$C$349,0)+3,0,12,154),58,0),"") -> 0
A41: 5 | C41: GG | D41: 0 | E41: =IFERROR(VLOOKUP($C41,OFFSET('UR & ECL'!$F$400,MATCH($C$29,'UR & ECL'!$F$400:$F$619,0),0,11,12),E$4,0),0) -> 0 | F41: =IFERROR(VLOOKUP($C41,OFFSET('UR & ECL'!$F$400,MATCH($C$29,'UR & ECL'!$F$400:$F$619,0),0,11,12),F$4,0),0) -> 0 | G41: =IFERROR(VLOOKUP($C41,OFFSET('UR & ECL'!$F$400,MATCH($C$29,'UR & ECL'!$F$400:$F$619,0),0,11,12),G$4,0),0) -> 0 | H41: 0 | I41: 0 | J41: 0 | K41: =IFERROR(VLOOKUP($C41,OFFSET('UR & ECL'!$F$400,MATCH($C$29,'UR & ECL'!$F$400:$F$619,0),0,11,12),K$4,0),0) -> 0 | L41: =IFERROR(VLOOKUP($C41,OFFSET('UR & ECL'!$F$400,MATCH($C$29,'UR & ECL'!$F$400:$F$619,0),0,11,12),L$4,0),0) -> 0 | M41: =IFERROR(VLOOKUP($C41,OFFSET('UR & ECL'!$F$400,MATCH($C$29,'UR & ECL'!$F$400:$F$619,0),0,11,12),M$4,0),0) -> 0 | N41: 0 | O41: 0 | P41: 0 | Q41: =IFERROR(VLOOKUP($C41,OFFSET('UR & ECL'!$F$400,MATCH($C$29,'UR & ECL'!$F$400:$F$619,0),0,11,12),Q$4,0),0) -> 0 | R41: =IFERROR(VLOOKUP($C41,OFFSET('UR & ECL'!$F$400,MATCH($C$29,'UR & ECL'!$F$400:$F$619,0),0,11,12),R$4,0),0) -> 0 | S41: =IFERROR(VLOOKUP($C41,OFFSET('UR & ECL'!$F$400,MATCH($C$29,'UR & ECL'!$F$400:$F$619,0),0,11,12),S$4,0),0) -> 0 | T41: 0 | U41: 0 | V41: =IFERROR(VLOOKUP($C41,OFFSET(Budget!$C$43,MATCH($C$29,Budget!$C$43:$C$349,0)+3,0,11,154),44+$G$2,0),0) -> 0 | W41: 0 | X41: 0 | Y41: 0 | Z41: =IFERROR(VLOOKUP($C41,OFFSET(Budget!$C$43,MATCH($C$29,Budget!$C$43:$C$349,0)+3,0,11,154),101+$G$2,0),0) -> 0 | AA41: 0 | AB41: =IFERROR(SUM(OFFSET(Budget!$C$43,MATCH($C$29,Budget!$C$43:$C$349,0)+2+A41,101,1,$G$2)),0) -> 0 | AC41: =IFERROR(VLOOKUP($C41,OFFSET(Budget!$C$43,MATCH($C$29,Budget!$C$43:$C$349,0)+3,0,11,154),114,0),0) -> 0 | AD41: 0 | AE41: =IFERROR(SUM(OFFSET(Budget!$C$43,MATCH($C$29,Budget!$C$43:$C$349,0)+2+$A41,141,1,$G$2)),"") -> 0 | AF41: =IFERROR(VLOOKUP($C41,OFFSET(Budget!$C$43,MATCH($C$29,Budget!$C$43:$C$349,0)+3,0,12,154),58,0),"") -> 0
A42: 6 | C42: Equity | D42: =EQUITY!$D$148 -> 71599134.19 | E42: =IFERROR(VLOOKUP($C42,OFFSET('UR & ECL'!$F$400,MATCH($C$29,'UR & ECL'!$F$400:$F$619,0),0,11,12),E$4,0),0) -> 9277438.69 | F42: =IFERROR(VLOOKUP($C42,OFFSET('UR & ECL'!$F$400,MATCH($C$29,'UR & ECL'!$F$400:$F$619,0),0,11,12),F$4,0),0) -> 0 | G42: =IFERROR(VLOOKUP($C42,OFFSET('UR & ECL'!$F$400,MATCH($C$29,'UR & ECL'!$F$400:$F$619,0),0,11,12),G$4,0),0) -> 0 | H42: 80876572.88 | I42: 62.36157511 | J42: =IFERROR(HLOOKUP($N$7,EQUITY!$D$140:$P$148,9,FALSE),0) -> 0 | K42: =IFERROR(VLOOKUP($C42,OFFSET('UR & ECL'!$F$400,MATCH($C$29,'UR & ECL'!$F$400:$F$619,0),0,11,12),K$4,0),0) -> 5149245.11 | L42: =IFERROR(VLOOKUP($C42,OFFSET('UR & ECL'!$F$400,MATCH($C$29,'UR & ECL'!$F$400:$F$619,0),0,11,12),L$4,0),0) -> 0 | M42: =IFERROR(VLOOKUP($C42,OFFSET('UR & ECL'!$F$400,MATCH($C$29,'UR & ECL'!$F$400:$F$619,0),0,11,12),M$4,0),0) -> 0 | N42: 5149245.11 | O42: =IFERROR(HLOOKUP($T$7,EQUITY!$D$140:$P$148,9,FALSE),0) -> 0 | P42: 0 | Q42: =IFERROR(VLOOKUP($C42,OFFSET('UR & ECL'!$F$400,MATCH($C$29,'UR & ECL'!$F$400:$F$619,0),0,11,12),Q$4,0),0) -> 5623677.2 | R42: =IFERROR(VLOOKUP($C42,OFFSET('UR & ECL'!$F$400,MATCH($C$29,'UR & ECL'!$F$400:$F$619,0),0,11,12),R$4,0),0) -> 0 | S42: =IFERROR(VLOOKUP($C42,OFFSET('UR & ECL'!$F$400,MATCH($C$29,'UR & ECL'!$F$400:$F$619,0),0,11,12),S$4,0),0) -> 0 | T42: 5623677.2 | U42: 27.40718518 | V42: =IFERROR(VLOOKUP($C42,OFFSET(Budget!$C$43,MATCH($C$29,Budget!$C$43:$C$349,0)+3,0,11,154),44+$G$2,0),0) -> 78275848.11 | W42: 65.4367913 | X42: =IFERROR(HLOOKUP($X$7,EQUITY!$S$140:$AE$148,9,FALSE),0) -> 0 | Y42: =IFERROR(HLOOKUP($Y$7,EQUITY!$S$140:$AE$148,9,FALSE),0) -> 0 | Z42: =IFERROR(VLOOKUP($C42,OFFSET(Budget!$C$43,MATCH($C$29,Budget!$C$43:$C$349,0)+3,0,11,154),101+$G$2,0),0) -> 495691.7319 | AA42: =IFERROR(HLOOKUP($Y$7,EQUITY!$AJ$140:$AU$148,9,FALSE),0) -> 0 | AB42: =IFERROR(SUM(OFFSET(Budget!$C$43,MATCH($C$29,Budget!$C$43:$C$349,0)+2+A42,101,1,$G$2)),0) -> 990025.7792 | AC42: =IFERROR(VLOOKUP($C42,OFFSET(Budget!$C$43,MATCH($C$29,Budget!$C$43:$C$349,0)+3,0,11,154),114,0),0) -> 6057774.932 | AD42: 0 | AE42: =IFERROR(SUM(OFFSET(Budget!$C$43,MATCH($C$29,Budget!$C$43:$C$349,0)+2+$A42,141,1,$G$2)),"") -> 1.287016795 | AF42: =IFERROR(VLOOKUP($C42,OFFSET(Budget!$C$43,MATCH($C$29,Budget!$C$43:$C$349,0)+3,0,12,154),58,0),"") -> 7.728341299
B43: 3 | C43: Income | D43: 0 | E43: =IFERROR(VLOOKUP($C43,OFFSET('UR & ECL'!$F$400,MATCH($C$29,'UR & ECL'!$F$400:$F$619,0),0,11,12),E$4,0),0) -> 0 | F43: =IFERROR(VLOOKUP($C43,OFFSET('UR & ECL'!$F$400,MATCH($C$29,'UR & ECL'!$F$400:$F$619,0),0,11,12),F$4,0),0) -> 0 | G43: =IFERROR(VLOOKUP($C43,OFFSET('UR & ECL'!$F$400,MATCH($C$29,'UR & ECL'!$F$400:$F$619,0),0,11,12),G$4,0),0) -> 0 | H43: 0 | I43: 0 | J43: =J95+J119+J143+J167 -> 0 | K43: =IFERROR(VLOOKUP($C43,OFFSET('UR & ECL'!$F$400,MATCH($C$29,'UR & ECL'!$F$400:$F$619,0),0,11,12),K$4,0),0) -> 0 | L43: =IFERROR(VLOOKUP($C43,OFFSET('UR & ECL'!$F$400,MATCH($C$29,'UR & ECL'!$F$400:$F$619,0),0,11,12),L$4,0),0) -> 0 | M43: =IFERROR(VLOOKUP($C43,OFFSET('UR & ECL'!$F$400,MATCH($C$29,'UR & ECL'!$F$400:$F$619,0),0,11,12),M$4,0),0) -> 0 | N43: 0 | O43: 0 | P43: 0 | Q43: =IFERROR(VLOOKUP($C43,OFFSET('UR & ECL'!$F$400,MATCH($C$29,'UR & ECL'!$F$400:$F$619,0),0,11,12),Q$4,0),0) -> 0 | R43: =IFERROR(VLOOKUP($C43,OFFSET('UR & ECL'!$F$400,MATCH($C$29,'UR & ECL'!$F$400:$F$619,0),0,11,12),R$4,0),0) -> 0 | S43: =IFERROR(VLOOKUP($C43,OFFSET('UR & ECL'!$F$400,MATCH($C$29,'UR & ECL'!$F$400:$F$619,0),0,11,12),S$4,0),0) -> 0 | T43: 0 | U43: 0 | V43: =IFERROR(VLOOKUP($C43,OFFSET(Budget!$C$43,MATCH($C$29,Budget!$C$43:$C$349,0)+3,0,11,154),44+$G$2,0),0) -> 0 | W43: 0 | X43: 0 | Y43: 0 | Z43: =IFERROR(VLOOKUP($C43,OFFSET(Budget!$C$43,MATCH($C$29,Budget!$C$43:$C$349,0)+3,0,11,154),101+$G$2,0),0) -> 0 | AA43: 0 | AB43: =IFERROR(SUM(OFFSET(Budget!$C$43,MATCH($C$29,Budget!$C$43:$C$349,0)+2+A43,101,1,$G$2)),0) -> 0 | AC43: =IFERROR(VLOOKUP($C43,OFFSET(Budget!$C$43,MATCH($C$29,Budget!$C$43:$C$349,0)+3,0,11,154),114,0),0) -> 0 | AD43: 0 | AE43: =IFERROR(SUM(OFFSET(Budget!$C$43,MATCH($C$29,Budget!$C$43:$C$349,0)+2+$A43,141,1,$G$2)),"") -> 0 | AF43: =IFERROR(VLOOKUP($C43,OFFSET(Budget!$C$43,MATCH($C$29,Budget!$C$43:$C$349,0)+3,0,12,154),58,0),"") -> 
B44: 4 | C44: Fair Value Gain/Loss | D44: 0 | E44: =IFERROR(VLOOKUP($C44,OFFSET('UR & ECL'!$F$400,MATCH($C$29,'UR & ECL'!$F$400:$F$619,0),0,11,12),E$4,0),0) -> 0 | F44: =IFERROR(VLOOKUP($C44,OFFSET('UR & ECL'!$F$400,MATCH($C$29,'UR & ECL'!$F$400:$F$619,0),0,11,12),F$4,0),0) -> 0 | G44: =IFERROR(VLOOKUP($C44,OFFSET('UR & ECL'!$F$400,MATCH($C$29,'UR & ECL'!$F$400:$F$619,0),0,11,12),G$4,0),0) -> 0 | H44: 0 | I44: 0 | J44: =J96+J120+J144+J168 -> 0 | K44: =IFERROR(VLOOKUP($C44,OFFSET('UR & ECL'!$F$400,MATCH($C$29,'UR & ECL'!$F$400:$F$619,0),0,11,12),K$4,0),0) -> 0 | L44: =IFERROR(VLOOKUP($C44,OFFSET('UR & ECL'!$F$400,MATCH($C$29,'UR & ECL'!$F$400:$F$619,0),0,11,12),L$4,0),0) -> 0 | M44: =IFERROR(VLOOKUP($C44,OFFSET('UR & ECL'!$F$400,MATCH($C$29,'UR & ECL'!$F$400:$F$619,0),0,11,12),M$4,0),0) -> 0 | N44: 0 | O44: 0 | P44: 0 | Q44: =IFERROR(VLOOKUP($C44,OFFSET('UR & ECL'!$F$400,MATCH($C$29,'UR & ECL'!$F$400:$F$619,0),0,11,12),Q$4,0),0) -> 0 | R44: =IFERROR(VLOOKUP($C44,OFFSET('UR & ECL'!$F$400,MATCH($C$29,'UR & ECL'!$F$400:$F$619,0),0,11,12),R$4,0),0) -> 0 | S44: =IFERROR(VLOOKUP($C44,OFFSET('UR & ECL'!$F$400,MATCH($C$29,'UR & ECL'!$F$400:$F$619,0),0,11,12),S$4,0),0) -> 0 | T44: 0 | U44: 0 | V44: =IFERROR(VLOOKUP($C44,OFFSET(Budget!$C$43,MATCH($C$29,Budget!$C$43:$C$349,0)+3,0,11,154),44+$G$2,0),0) -> 0 | W44: 0 | X44: 0 | Y44: 0 | Z44: =IFERROR(VLOOKUP($C44,OFFSET(Budget!$C$43,MATCH($C$29,Budget!$C$43:$C$349,0)+3,0,11,154),101+$G$2,0),0) -> 0 | AA44: 0 | AB44: =IFERROR(SUM(OFFSET(Budget!$C$43,MATCH($C$29,Budget!$C$43:$C$349,0)+2+A44,101,1,$G$2)),0) -> 0 | AC44: =IFERROR(VLOOKUP($C44,OFFSET(Budget!$C$43,MATCH($C$29,Budget!$C$43:$C$349,0)+3,0,11,154),114,0),0) -> 0 | AD44: 0 | AE44: =IFERROR(SUM(OFFSET(Budget!$C$43,MATCH($C$29,Budget!$C$43:$C$349,0)+2+$A44,141,1,$G$2)),"") -> 0 | AF44: =IFERROR(VLOOKUP($C44,OFFSET(Budget!$C$43,MATCH($C$29,Budget!$C$43:$C$349,0)+3,0,12,154),58,0),"") -> 
A45: 7 | C45: Unit Trust | D45: 0 | E45: =IFERROR(VLOOKUP($C45,OFFSET('UR & ECL'!$F$400,MATCH($C$29,'UR & ECL'!$F$400:$F$619,0),0,11,12),E$4,0),0) -> 0 | F45: =IFERROR(VLOOKUP($C45,OFFSET('UR & ECL'!$F$400,MATCH($C$29,'UR & ECL'!$F$400:$F$619,0),0,11,12),F$4,0),0) -> 0 | G45: =IFERROR(VLOOKUP($C45,OFFSET('UR & ECL'!$F$400,MATCH($C$29,'UR & ECL'!$F$400:$F$619,0),0,11,12),G$4,0),0) -> 0 | H45: 0 | I45: 0 | J45: 0 | K45: =IFERROR(VLOOKUP($C45,OFFSET('UR & ECL'!$F$400,MATCH($C$29,'UR & ECL'!$F$400:$F$619,0),0,11,12),K$4,0),0) -> 0 | L45: =IFERROR(VLOOKUP($C45,OFFSET('UR & ECL'!$F$400,MATCH($C$29,'UR & ECL'!$F$400:$F$619,0),0,11,12),L$4,0),0) -> 0 | M45: =IFERROR(VLOOKUP($C45,OFFSET('UR & ECL'!$F$400,MATCH($C$29,'UR & ECL'!$F$400:$F$619,0),0,11,12),M$4,0),0) -> 0 | N45: 0 | O45: 0 | P45: 0 | Q45: =IFERROR(VLOOKUP($C45,OFFSET('UR & ECL'!$F$400,MATCH($C$29,'UR & ECL'!$F$400:$F$619,0),0,11,12),Q$4,0),0) -> 0 | R45: =IFERROR(VLOOKUP($C45,OFFSET('UR & ECL'!$F$400,MATCH($C$29,'UR & ECL'!$F$400:$F$619,0),0,11,12),R$4,0),0) -> 0 | S45: =IFERROR(VLOOKUP($C45,OFFSET('UR & ECL'!$F$400,MATCH($C$29,'UR & ECL'!$F$400:$F$619,0),0,11,12),S$4,0),0) -> 0 | T45: 0 | U45: 0 | V45: =IFERROR(VLOOKUP($C45,OFFSET(Budget!$C$43,MATCH($C$29,Budget!$C$43:$C$349,0)+3,0,11,154),44+$G$2,0),0) -> 0 | W45: 0 | X45: 0 | Y45: 0 | Z45: =IFERROR(VLOOKUP($C45,OFFSET(Budget!$C$43,MATCH($C$29,Budget!$C$43:$C$349,0)+3,0,11,154),101+$G$2,0),0) -> 0 | AA45: 0 | AB45: =IFERROR(SUM(OFFSET(Budget!$C$43,MATCH($C$29,Budget!$C$43:$C$349,0)+2+A45,101,1,$G$2)),0) -> 0 | AC45: =IFERROR(VLOOKUP($C45,OFFSET(Budget!$C$43,MATCH($C$29,Budget!$C$43:$C$349,0)+3,0,11,154),114,0),0) -> 0 | AD45: 0 | AE45: =IFERROR(SUM(OFFSET(Budget!$C$43,MATCH($C$29,Budget!$C$43:$C$349,0)+2+$A45,141,1,$G$2)),"") -> 0 | AF45: =IFERROR(VLOOKUP($C45,OFFSET(Budget!$C$43,MATCH($C$29,Budget!$C$43:$C$349,0)+3,0,12,154),58,0),"") -> 0
B46: 5 | C46: Income | D46: 0 | E46: =IFERROR(VLOOKUP($C46,OFFSET('UR & ECL'!$F$400,MATCH($C$29,'UR & ECL'!$F$400:$F$619,0),0,11,12),E$4,0),0) -> 0 | F46: =IFERROR(VLOOKUP($C46,OFFSET('UR & ECL'!$F$400,MATCH($C$29,'UR & ECL'!$F$400:$F$619,0),0,11,12),F$4,0),0) -> 0 | G46: =IFERROR(VLOOKUP($C46,OFFSET('UR & ECL'!$F$400,MATCH($C$29,'UR & ECL'!$F$400:$F$619,0),0,11,12),G$4,0),0) -> 0 | H46: 0 | I46: 0 | J46: =J98+J122+J146+J170 -> 0 | K46: =IFERROR(VLOOKUP($C46,OFFSET('UR & ECL'!$F$400,MATCH($C$29,'UR & ECL'!$F$400:$F$619,0),0,11,12),K$4,0),0) -> 0 | L46: =IFERROR(VLOOKUP($C46,OFFSET('UR & ECL'!$F$400,MATCH($C$29,'UR & ECL'!$F$400:$F$619,0),0,11,12),L$4,0),0) -> 0 | M46: =IFERROR(VLOOKUP($C46,OFFSET('UR & ECL'!$F$400,MATCH($C$29,'UR & ECL'!$F$400:$F$619,0),0,11,12),M$4,0),0) -> 0 | N46: 0 | O46: 0 | P46: 0 | Q46: =IFERROR(VLOOKUP($C46,OFFSET('UR & ECL'!$F$400,MATCH($C$29,'UR & ECL'!$F$400:$F$619,0),0,11,12),Q$4,0),0) -> 0 | R46: =IFERROR(VLOOKUP($C46,OFFSET('UR & ECL'!$F$400,MATCH($C$29,'UR & ECL'!$F$400:$F$619,0),0,11,12),R$4,0),0) -> 0 | S46: =IFERROR(VLOOKUP($C46,OFFSET('UR & ECL'!$F$400,MATCH($C$29,'UR & ECL'!$F$400:$F$619,0),0,11,12),S$4,0),0) -> 0 | T46: 0 | U46: 0 | V46: =IFERROR(VLOOKUP($C46,OFFSET(Budget!$C$43,MATCH($C$29,Budget!$C$43:$C$349,0)+3,0,11,154),44+$G$2,0),0) -> 0 | W46: 0 | X46: 0 | Y46: 0 | Z46: =IFERROR(VLOOKUP($C46,OFFSET(Budget!$C$43,MATCH($C$29,Budget!$C$43:$C$349,0)+3,0,11,154),101+$G$2,0),0) -> 0 | AA46: 0 | AB46: =IFERROR(SUM(OFFSET(Budget!$C$43,MATCH($C$29,Budget!$C$43:$C$349,0)+2+A46,101,1,$G$2)),0) -> 0 | AC46: =IFERROR(VLOOKUP($C46,OFFSET(Budget!$C$43,MATCH($C$29,Budget!$C$43:$C$349,0)+3,0,11,154),114,0),0) -> 0 | AD46: 0 | AE46: =IFERROR(SUM(OFFSET(Budget!$C$43,MATCH($C$29,Budget!$C$43:$C$349,0)+2+$A46,141,1,$G$2)),"") -> 0 | AF46: =IFERROR(VLOOKUP($C46,OFFSET(Budget!$C$43,MATCH($C$29,Budget!$C$43:$C$349,0)+3,0,12,154),58,0),"") -> 
B47: 6 | C47: Fair Value Gain/Loss | D47: 0 | E47: =IFERROR(VLOOKUP($C47,OFFSET('UR & ECL'!$F$400,MATCH($C$29,'UR & ECL'!$F$400:$F$619,0),0,11,12),E$4,0),0) -> 0 | F47: =IFERROR(VLOOKUP($C47,OFFSET('UR & ECL'!$F$400,MATCH($C$29,'UR & ECL'!$F$400:$F$619,0),0,11,12),F$4,0),0) -> 0 | G47: =IFERROR(VLOOKUP($C47,OFFSET('UR & ECL'!$F$400,MATCH($C$29,'UR & ECL'!$F$400:$F$619,0),0,11,12),G$4,0),0) -> 0 | H47: 0 | I47: 0 | J47: =J99+J123+J147+J171 -> 0 | K47: =IFERROR(VLOOKUP($C47,OFFSET('UR & ECL'!$F$400,MATCH($C$29,'UR & ECL'!$F$400:$F$619,0),0,11,12),K$4,0),0) -> 0 | L47: =IFERROR(VLOOKUP($C47,OFFSET('UR & ECL'!$F$400,MATCH($C$29,'UR & ECL'!$F$400:$F$619,0),0,11,12),L$4,0),0) -> 0 | M47: =IFERROR(VLOOKUP($C47,OFFSET('UR & ECL'!$F$400,MATCH($C$29,'UR & ECL'!$F$400:$F$619,0),0,11,12),M$4,0),0) -> 0 | N47: 0 | O47: 0 | P47: 0 | Q47: =IFERROR(VLOOKUP($C47,OFFSET('UR & ECL'!$F$400,MATCH($C$29,'UR & ECL'!$F$400:$F$619,0),0,11,12),Q$4,0),0) -> 0 | R47: =IFERROR(VLOOKUP($C47,OFFSET('UR & ECL'!$F$400,MATCH($C$29,'UR & ECL'!$F$400:$F$619,0),0,11,12),R$4,0),0) -> 0 | S47: =IFERROR(VLOOKUP($C47,OFFSET('UR & ECL'!$F$400,MATCH($C$29,'UR & ECL'!$F$400:$F$619,0),0,11,12),S$4,0),0) -> 0 | T47: 0 | U47: 0 | V47: =IFERROR(VLOOKUP($C47,OFFSET(Budget!$C$43,MATCH($C$29,Budget!$C$43:$C$349,0)+3,0,11,154),44+$G$2,0),0) -> 0 | W47: 0 | X47: 0 | Y47: 0 | Z47: =IFERROR(VLOOKUP($C47,OFFSET(Budget!$C$43,MATCH($C$29,Budget!$C$43:$C$349,0)+3,0,11,154),101+$G$2,0),0) -> 0 | AA47: 0 | AB47: =IFERROR(SUM(OFFSET(Budget!$C$43,MATCH($C$29,Budget!$C$43:$C$349,0)+2+A47,101,1,$G$2)),0) -> 0 | AC47: =IFERROR(VLOOKUP($C47,OFFSET(Budget!$C$43,MATCH($C$29,Budget!$C$43:$C$349,0)+3,0,11,154),114,0),0) -> 0 | AD47: 0 | AE47: =IFERROR(SUM(OFFSET(Budget!$C$43,MATCH($C$29,Budget!$C$43:$C$349,0)+2+$A47,141,1,$G$2)),"") -> 0 | AF47: =IFERROR(VLOOKUP($C47,OFFSET(Budget!$C$43,MATCH($C$29,Budget!$C$43:$C$349,0)+3,0,12,154),58,0),"") -> 
A48: 8 | C48: ITA | D48: 0 | E48: =IFERROR(VLOOKUP($C48,OFFSET('UR & ECL'!$F$400,MATCH($C$29,'UR & ECL'!$F$400:$F$619,0),0,11,12),E$4,0),0) -> 0 | F48: =IFERROR(VLOOKUP($C48,OFFSET('UR & ECL'!$F$400,MATCH($C$29,'UR & ECL'!$F$400:$F$619,0),0,11,12),F$4,0),0) -> 0 | G48: =IFERROR(VLOOKUP($C48,OFFSET('UR & ECL'!$F$400,MATCH($C$29,'UR & ECL'!$F$400:$F$619,0),0,11,12),G$4,0),0) -> 0 | H48: =D48+E48+F48+G48 -> 0 | I48: 0 | J48: 0 | K48: =IFERROR(VLOOKUP($C48,OFFSET('UR & ECL'!$F$400,MATCH($C$29,'UR & ECL'!$F$400:$F$619,0),0,11,12),K$4,0),0) -> 0 | L48: =IFERROR(VLOOKUP($C48,OFFSET('UR & ECL'!$F$400,MATCH($C$29,'UR & ECL'!$F$400:$F$619,0),0,11,12),L$4,0),0) -> 0 | M48: =IFERROR(VLOOKUP($C48,OFFSET('UR & ECL'!$F$400,MATCH($C$29,'UR & ECL'!$F$400:$F$619,0),0,11,12),M$4,0),0) -> 0 | N48: 0 | O48: 0 | P48: 0 | Q48: =IFERROR(VLOOKUP($C48,OFFSET('UR & ECL'!$F$400,MATCH($C$29,'UR & ECL'!$F$400:$F$619,0),0,11,12),Q$4,0),0) -> 0 | R48: =IFERROR(VLOOKUP($C48,OFFSET('UR & ECL'!$F$400,MATCH($C$29,'UR & ECL'!$F$400:$F$619,0),0,11,12),R$4,0),0) -> 0 | S48: =IFERROR(VLOOKUP($C48,OFFSET('UR & ECL'!$F$400,MATCH($C$29,'UR & ECL'!$F$400:$F$619,0),0,11,12),S$4,0),0) -> 0 | T48: 0 | U48: 0 | V48: =IFERROR(VLOOKUP($C48,OFFSET(Budget!$C$43,MATCH($C$29,Budget!$C$43:$C$349,0)+3,0,11,154),44+$G$2,0),0) -> 0 | W48: 0 | X48: 0 | Y48: 0 | Z48: =IFERROR(VLOOKUP($C48,OFFSET(Budget!$C$43,MATCH($C$29,Budget!$C$43:$C$349,0)+3,0,11,154),101+$G$2,0),0) -> 0 | AA48: 0 | AB48: =IFERROR(SUM(OFFSET(Budget!$C$43,MATCH($C$29,Budget!$C$43:$C$349,0)+2+A48,101,1,$G$2)),0) -> 0 | AC48: =IFERROR(VLOOKUP($C48,OFFSET(Budget!$C$43,MATCH($C$29,Budget!$C$43:$C$349,0)+3,0,11,154),114,0),0) -> 0 | AD48: 0 | AE48: =IFERROR(SUM(OFFSET(Budget!$C$43,MATCH($C$29,Budget!$C$43:$C$349,0)+2+$A48,141,1,$G$2)),"") -> 0 | AF48: =IFERROR(VLOOKUP($C48,OFFSET(Budget!$C$43,MATCH($C$29,Budget!$C$43:$C$349,0)+3,0,12,154),58,0),"") -> 0
A49: 9 | C49: Corporate Sukuk | D49: =SUKUK!$D$148 -> 14241199.46 | E49: =IFERROR(VLOOKUP($C49,OFFSET('UR & ECL'!$F$400,MATCH($C$29,'UR & ECL'!$F$400:$F$619,0),0,11,12),E$4,0),0) -> 1346824.04 | F49: =IFERROR(VLOOKUP($C49,OFFSET('UR & ECL'!$F$400,MATCH($C$29,'UR & ECL'!$F$400:$F$619,0),0,11,12),F$4,0),0) -> 0 | G49: =IFERROR(VLOOKUP($C49,OFFSET('UR & ECL'!$F$400,MATCH($C$29,'UR & ECL'!$F$400:$F$619,0),0,11,12),G$4,0),0) -> 0 | H49: =D49+E49+F49+G49 -> 15588023.5 | I49: 12.01947194 | J49: =IFERROR(HLOOKUP($N$7,SUKUK!$D$140:$P$148,9,FALSE),0) -> 14238008.42 | K49: =IFERROR(VLOOKUP($C49,OFFSET('UR & ECL'!$F$400,MATCH($C$29,'UR & ECL'!$F$400:$F$619,0),0,11,12),K$4,0),0) -> 664296.8 | L49: =IFERROR(VLOOKUP($C49,OFFSET('UR & ECL'!$F$400,MATCH($C$29,'UR & ECL'!$F$400:$F$619,0),0,11,12),L$4,0),0) -> 0 | M49: =IFERROR(VLOOKUP($C49,OFFSET('UR & ECL'!$F$400,MATCH($C$29,'UR & ECL'!$F$400:$F$619,0),0,11,12),M$4,0),0) -> 0 | N49: 14902305.22 | O49: =IFERROR(HLOOKUP($T$7,SUKUK!$D$140:$P$148,9,FALSE),0) -> 14235097.2 | P49: 100 | Q49: =IFERROR(VLOOKUP($C49,OFFSET('UR & ECL'!$F$400,MATCH($C$29,'UR & ECL'!$F$400:$F$619,0),0,11,12),Q$4,0),0) -> 660214.19 | R49: =IFERROR(VLOOKUP($C49,OFFSET('UR & ECL'!$F$400,MATCH($C$29,'UR & ECL'!$F$400:$F$619,0),0,11,12),R$4,0),0) -> 0 | S49: =IFERROR(VLOOKUP($C49,OFFSET('UR & ECL'!$F$400,MATCH($C$29,'UR & ECL'!$F$400:$F$619,0),0,11,12),S$4,0),0) -> 0 | T49: 14895311.39 | U49: 72.59281482 | V49: =IFERROR(VLOOKUP($C49,OFFSET(Budget!$C$43,MATCH($C$29,Budget!$C$43:$C$349,0)+3,0,11,154),44+$G$2,0),0) -> 19402161 | W49: 16.21975604 | X49: =IFERROR(HLOOKUP($X$7,SUKUK!$S$140:$AE$148,9,FALSE),0) -> 69731.66 | Y49: =IFERROR(HLOOKUP($Y$7,SUKUK!$S$140:$AE$148,9,FALSE),0) -> -61351.87 | Z49: =IFERROR(VLOOKUP($C49,OFFSET(Budget!$C$43,MATCH($C$29,Budget!$C$43:$C$349,0)+3,0,11,154),101+$G$2,0),0) -> 44336.21764 | AA49: =IFERROR(HLOOKUP($Y$7,SUKUK!$AJ$140:$AU$148,9,FALSE),0) -> 8379.79 | AB49: =IFERROR(SUM(OFFSET(Budget!$C$43,MATCH($C$29,Budget!$C$43:$C$349,0)+2+A49,101,1,$G$2)),0) -> 93185.80379 | AC49: =IFERROR(VLOOKUP($C49,OFFSET(Budget!$C$43,MATCH($C$29,Budget!$C$43:$C$349,0)+3,0,11,154),114,0),0) -> 587552.9843 | AD49: 0.05499460112 | AE49: =IFERROR(SUM(OFFSET(Budget!$C$43,MATCH($C$29,Budget!$C$43:$C$349,0)+2+$A49,141,1,$G$2)),"") -> 0.4849315068 | AF49: =IFERROR(VLOOKUP($C49,OFFSET(Budget!$C$43,MATCH($C$29,Budget!$C$43:$C$349,0)+3,0,12,154),58,0),"") -> 3
A50: 10 | C50: Properties | D50: 0 | E50: =IFERROR(VLOOKUP($C50,OFFSET('UR & ECL'!$F$400,MATCH($C$29,'UR & ECL'!$F$400:$F$619,0),0,11,12),E$4,0),0) -> 0 | F50: =IFERROR(VLOOKUP($C50,OFFSET('UR & ECL'!$F$400,MATCH($C$29,'UR & ECL'!$F$400:$F$619,0),0,11,12),F$4,0),0) -> 0 | G50: =IFERROR(VLOOKUP($C50,OFFSET('UR & ECL'!$F$400,MATCH($C$29,'UR & ECL'!$F$400:$F$619,0),0,11,12),G$4,0),0) -> 0 | H50: =D50+E50+F50+G50 -> 0 | I50: 0 | J50: 0 | K50: =IFERROR(VLOOKUP($C50,OFFSET('UR & ECL'!$F$400,MATCH($C$29,'UR & ECL'!$F$400:$F$619,0),0,11,12),K$4,0),0) -> 0 | L50: =IFERROR(VLOOKUP($C50,OFFSET('UR & ECL'!$F$400,MATCH($C$29,'UR & ECL'!$F$400:$F$619,0),0,11,12),L$4,0),0) -> 0 | M50: =IFERROR(VLOOKUP($C50,OFFSET('UR & ECL'!$F$400,MATCH($C$29,'UR & ECL'!$F$400:$F$619,0),0,11,12),M$4,0),0) -> 0 | N50: 0 | O50: 0 | P50: 0 | Q50: =IFERROR(VLOOKUP($C50,OFFSET('UR & ECL'!$F$400,MATCH($C$29,'UR & ECL'!$F$400:$F$619,0),0,11,12),Q$4,0),0) -> 0 | R50: =IFERROR(VLOOKUP($C50,OFFSET('UR & ECL'!$F$400,MATCH($C$29,'UR & ECL'!$F$400:$F$619,0),0,11,12),R$4,0),0) -> 0 | S50: =IFERROR(VLOOKUP($C50,OFFSET('UR & ECL'!$F$400,MATCH($C$29,'UR & ECL'!$F$400:$F$619,0),0,11,12),S$4,0),0) -> 0 | T50: 0 | U50: 0 | V50: =IFERROR(VLOOKUP($C50,OFFSET(Budget!$C$43,MATCH($C$29,Budget!$C$43:$C$349,0)+3,0,11,154),44+$G$2,0),0) -> 0 | W50: 0 | X50: 0 | Y50: 0 | Z50: =IFERROR(VLOOKUP($C50,OFFSET(Budget!$C$43,MATCH($C$29,Budget!$C$43:$C$349,0)+3,0,11,154),101+$G$2,0),0) -> 0 | AA50: 0 | AB50: =IFERROR(SUM(OFFSET(Budget!$C$43,MATCH($C$29,Budget!$C$43:$C$349,0)+2+A50,101,1,$G$2)),0) -> 0 | AC50: =IFERROR(VLOOKUP($C50,OFFSET(Budget!$C$43,MATCH($C$29,Budget!$C$43:$C$349,0)+3,0,11,154),114,0),0) -> 0 | AD50: 0 | AE50: =IFERROR(SUM(OFFSET(Budget!$C$43,MATCH($C$29,Budget!$C$43:$C$349,0)+2+$A50,141,1,$G$2)),"") -> 0 | AF50: =IFERROR(VLOOKUP($C50,OFFSET(Budget!$C$43,MATCH($C$29,Budget!$C$43:$C$349,0)+3,0,12,154),58,0),"") -> 0
A51: 11 | C51: TOTAL | D51: =SUM(D34:D50) -> 119065490.5 | E51: =SUM(E34:E50) -> 10624262.73 | F51: =SUM(F34:F50) -> 0 | G51: 0 | H51: =SUM(H34:H50) -> 129689753.2 | I51: =SUM(I34:I50) -> 100 | J51: =SUM(J34:J50) -> 14238008.42 | K51: =SUM(K34:K50) -> 5813541.91 | L51: 0 | M51: 0 | N51: 20051550.33 | O51: 14235097.2 | P51: 100 | Q51: 6283891.39 | R51: 0 | S51: 0 | T51: =SUM(T34:T50) -> 20518988.59 | U51: =SUM(U34:U50) -> 100 | V51: =SUM(V34:V50) -> 119620547.6 | W51: =SUM(W34,W42,W49) -> 100 | X51: =SUM(X34:X37,X40:X42,X45,X48:X50) -> 69731.66 | Y51: =SUM(Y34:Y37,Y40:Y42,Y45,Y48:Y50) -> -61351.87 | Z51: =SUM(Z34:Z50) -> 573515.2336 | AA51: =SUM(AA34:AA37,AA40:AA42,AA45,AA48:AA50) -> 8379.79 | AB51: =SUM(AB34:AB50) -> 1153590.672 | AC51: =SUM(AC34:AC50) -> 7089289.435 | AD51: 0.01115814887 | AE51: =IFERROR(SUM(OFFSET(Budget!$C$43,MATCH($C$29,Budget!$C$43:$C$349,0)+2+$A51,141,1,$G$2)),"") -> 0.9783617424 | AF51: =IFERROR(VLOOKUP($C51,OFFSET(Budget!$C$43,MATCH($C$29,Budget!$C$43:$C$349,0)+3,0,12,154),58,0),"") -> 5.9002801
D52: =DEPOSIT!$D$148+EQUITY!$D$148+SUKUK!$D$148-D51 -> 0 | E52: =SUM('UR & ECL'!$G$531:$G$619)-E51 -> 0 | F52: =SUM('UR & ECL'!$H$531:$H$619)-F51 -> 0 | G52: =SUM('UR & ECL'!$I$531:$I$619)-G51 -> 0 | J52: =HLOOKUP($N$7,DEPOSIT!$D$140:$P$148,9,FALSE)+HLOOKUP($N$7,EQUITY!$D$140:$P$148,9,FALSE)+HLOOKUP($N$7,SUKUK!$D$140:$P$148,9,FALSE)-J51 ->  | K52: =SUM('UR & ECL'!$O$531:$O$619)-K51 -> 0 | L52: =SUM('UR & ECL'!$P$531:$P$619)-L51 -> 0 | M52: =SUM('UR & ECL'!$Q$531:$Q$619)-M51 -> 0 | O52: =HLOOKUP($T$7,DEPOSIT!$D$140:$P$148,9,FALSE)+HLOOKUP($T$7,EQUITY!$D$140:$P$148,9,FALSE)+HLOOKUP($T$7,SUKUK!$D$140:$P$148,9,FALSE)-O51 ->  | Q52: =SUM('UR & ECL'!$K$531:$K$619)-Q51 -> 0 | R52: =SUM('UR & ECL'!$L$531:$L$619)-R51 -> 0 | S52: =SUM('UR & ECL'!$M$531:$M$619)-S51 -> 0 | X52: =HLOOKUP($X$7,DEPOSIT!$S$140:$AE$148,9,FALSE)+HLOOKUP($X$7,EQUITY!$S$140:$AE$148,9,FALSE)+HLOOKUP($X$7,SUKUK!$S$140:$AE$148,9,FALSE)-X51 ->  | Y52: =HLOOKUP($Y$7,DEPOSIT!$S$140:$AE$148,9,FALSE)+HLOOKUP($Y$7,EQUITY!$S$140:$AE$148,9,FALSE)+HLOOKUP($Y$7,SUKUK!$S$140:$AE$148,9,FALSE)-Y51 ->  | AA52: =HLOOKUP($Y$7,DEPOSIT!$AJ$140:$AU$148,9,FALSE)+HLOOKUP($Y$7,EQUITY!$AJ$140:$AU$148,9,FALSE)+HLOOKUP($Y$7,SUKUK!$AJ$140:$AU$148,9,FALSE)-AA51 -> 
C54: INVESTMENT LINKED RISK FUND
C55: MY INVESTMENT RISK FUND
D56: ASSET ALLOCATION | X56: RM INCOME | AD56: % YIELD
D57: Cost | E57: UR Gain/Loss | F57: Reserve | G57: ECL | H57: =H32 -> FYE2019 | I57: % | J57: Cost | K57: UR Gain/Loss | L57: Reserve | M57: ECL | N57: =$N$7 -> 2020-01-01 | O57: Cost | P57: % | Q57: UR Gain/Loss | R57: Reserve | S57: ECL | T57: =T32 -> 2020-02-01 | U57: % | V57: =$V$7 -> BUDGET (RM) | W57: =$W$7 -> BUDGET (%) | X57: =$N$7 -> 2020-01-01 | Y57: =$T$32 -> 2020-02-01 | Z57: MONTHLY BUDGET | AA57: =+$AA$7 -> YTD | AB57: ="YTD BUDGET (" &$G$2&" mths)" -> YTD BUDGET (2 mths) | AC57: BUDGET (12 mths) | AD57: =+$AD$7 -> YTD | AE57: ="YTD BUDGET (" &$G$2& " mths)" -> YTD BUDGET (2 mths) | AF57: BUDGET (12 mths)
A59: 1 | C59: Deposits & Money Market | D59: =DEPOSIT!$D$136 -> 19906682.77 | E59: =IFERROR(VLOOKUP($C59,OFFSET('UR & ECL'!$F$400,MATCH($C$54,'UR & ECL'!$F$400:$F$515,0),0,11,12),E$4,0),0) -> 0 | F59: =IFERROR(VLOOKUP($C59,OFFSET('UR & ECL'!$F$400,MATCH($C$54,'UR & ECL'!$F$400:$F$515,0),0,11,12),F$4,0),0) -> 0 | G59: =IFERROR(VLOOKUP($C59,OFFSET('UR & ECL'!$F$400,MATCH($C$54,'UR & ECL'!$F$400:$F$515,0),0,11,12),G$4,0),0) -> 0 | H59: =D59+E59+F59+G59 -> 19906682.77 | I59: =IFERROR(H59/H$76*100,0) -> 58.82554223 | J59: =IFERROR(HLOOKUP($N$7,DEPOSIT!$D$128:$P$136,9,FALSE),0) -> 0 | K59: =IFERROR(VLOOKUP($C59,OFFSET('UR & ECL'!$F$400,MATCH($C$54,'UR & ECL'!$F$400:$F$515,0),0,11,12),K$4,0),0) -> 0 | L59: =IFERROR(VLOOKUP($C59,OFFSET('UR & ECL'!$F$400,MATCH($C$54,'UR & ECL'!$F$400:$F$515,0),0,11,12),L$4,0),0) -> 0 | M59: =IFERROR(VLOOKUP($C59,OFFSET('UR & ECL'!$F$400,MATCH($C$54,'UR & ECL'!$F$400:$F$515,0),0,11,12),M$4,0),0) -> 0 | N59: =J59+K59+L59+M59 -> 0 | O59: =IFERROR(HLOOKUP($T$7,DEPOSIT!$D$128:$P$136,9,FALSE),0) -> 0 | P59: =IFERROR(O59/$O$76*100,0) -> 0 | Q59: =IFERROR(VLOOKUP($C59,OFFSET('UR & ECL'!$F$400,MATCH($C$54,'UR & ECL'!$F$400:$F$515,0),0,11,12),Q$4,0),0) -> 0 | R59: =IFERROR(VLOOKUP($C59,OFFSET('UR & ECL'!$F$400,MATCH($C$54,'UR & ECL'!$F$400:$F$515,0),0,11,12),R$4,0),0) -> 0 | S59: =IFERROR(VLOOKUP($C59,OFFSET('UR & ECL'!$F$400,MATCH($C$54,'UR & ECL'!$F$400:$F$515,0),0,11,12),S$4,0),0) -> 0 | T59: =O59+Q59+R59+S59 -> 0 | U59: =IFERROR(T59/T$76*100,0) -> 0 | V59: =IFERROR(VLOOKUP($C59,OFFSET(Budget!$C$43,MATCH($C$54,Budget!$C$43:$C$349,0)+3,0,11,154),44+$G$2,0),0) -> 21155595.32 | W59: =V59/$V$76*100 -> 57.98110544 | X59: =IFERROR(HLOOKUP($X$7,DEPOSIT!$S$128:$AE$136,9,FALSE),0) -> 0 | Y59: =IFERROR(HLOOKUP($Y$7,DEPOSIT!$S$128:$AE$136,9,FALSE),0) -> 0 | Z59: =IFERROR(VLOOKUP($C59,OFFSET(Budget!$C$43,MATCH($C$54,Budget!$C$43:$C$349,0)+3,0,11,154),101+$G$2,0),0) -> 37115.36408 | AA59: =IFERROR(HLOOKUP($Y$7,DEPOSIT!$AJ$128:$AU$136,9,FALSE),0) -> 0 | AB59: =IFERROR(SUM(OFFSET(Budget!$C$43,MATCH($C$54,Budget!$C$43:$C$349,0)+2+A59,101,1,$G$2)),0) -> 78050.94685 | AC59: =IFERROR(VLOOKUP($C59,OFFSET(Budget!$C$43,MATCH($C$54,Budget!$C$43:$C$349,0)+3,0,11,154),114,0),0) -> 493788.778 | AD59: =IFERROR((2*AA59)/(H59-R59+T59-F59-AA59)*100,0) -> 0 | AE59: =IFERROR(SUM(OFFSET(Budget!$C$43,MATCH($C$54,Budget!$C$43:$C$349,0)+2+$A59,141,1,$G$2)),"") -> 0.3717808219 | AF59: =IFERROR(VLOOKUP($C59,OFFSET(Budget!$C$43,MATCH($C$54,Budget!$C$43:$C$349,0)+3,0,12,154),58,0),"") -> 2.3
A60: 2 | C60: Banca Deposit | D60: =BANCA!$D$136 -> 0 | E60: =IFERROR(VLOOKUP($C60,OFFSET('UR & ECL'!$F$400,MATCH($C$54,'UR & ECL'!$F$400:$F$515,0),0,11,12),E$4,0),0) -> 0 | F60: =IFERROR(VLOOKUP($C60,OFFSET('UR & ECL'!$F$400,MATCH($C$54,'UR & ECL'!$F$400:$F$515,0),0,11,12),F$4,0),0) -> 0 | G60: =IFERROR(VLOOKUP($C60,OFFSET('UR & ECL'!$F$400,MATCH($C$54,'UR & ECL'!$F$400:$F$515,0),0,11,12),G$4,0),0) -> 0 | H60: =D60+E60+F60+G60 -> 0 | I60: =IFERROR(H60/H$76*100,0) -> 0 | J60: =IFERROR(HLOOKUP($N$7,BANCA!$D$128:$P$136,9,FALSE),0) -> 0 | K60: =IFERROR(VLOOKUP($C60,OFFSET('UR & ECL'!$F$400,MATCH($C$54,'UR & ECL'!$F$400:$F$515,0),0,11,12),K$4,0),0) -> 0 | L60: =IFERROR(VLOOKUP($C60,OFFSET('UR & ECL'!$F$400,MATCH($C$54,'UR & ECL'!$F$400:$F$515,0),0,11,12),L$4,0),0) -> 0 | M60: =IFERROR(VLOOKUP($C60,OFFSET('UR & ECL'!$F$400,MATCH($C$54,'UR & ECL'!$F$400:$F$515,0),0,11,12),M$4,0),0) -> 0 | N60: =J60+K60+L60+M60 -> 0 | O60: =IFERROR(HLOOKUP($T$7,BANCA!$D$128:$P$136,9,FALSE),0) -> 0 | P60: 0 | Q60: =IFERROR(VLOOKUP($C60,OFFSET('UR & ECL'!$F$400,MATCH($C$54,'UR & ECL'!$F$400:$F$515,0),0,11,12),Q$4,0),0) -> 0 | R60: =IFERROR(VLOOKUP($C60,OFFSET('UR & ECL'!$F$400,MATCH($C$54,'UR & ECL'!$F$400:$F$515,0),0,11,12),R$4,0),0) -> 0 | S60: =IFERROR(VLOOKUP($C60,OFFSET('UR & ECL'!$F$400,MATCH($C$54,'UR & ECL'!$F$400:$F$515,0),0,11,12),S$4,0),0) -> 0 | T60: =O60+Q60+R60+S60 -> 0 | U60: 0 | V60: =IFERROR(VLOOKUP($C60,OFFSET(Budget!$C$43,MATCH($C$54,Budget!$C$43:$C$349,0)+3,0,11,154),44+$G$2,0),0) -> 0 | W60: =V60/$V$76*100 -> 0 | X60: =IFERROR(HLOOKUP($X$7,BANCA!$S$128:$AE$136,9,FALSE),0) -> 0 | Y60: =IFERROR(HLOOKUP($Y$7,BANCA!$S$128:$AE$136,9,FALSE),0) -> 0 | Z60: =IFERROR(VLOOKUP($C60,OFFSET(Budget!$C$43,MATCH($C$54,Budget!$C$43:$C$349,0)+3,0,11,154),101+$G$2,0),0) -> 0 | AA60: =IFERROR(HLOOKUP($Y$7,BANCA!$AJ$128:$AU$136,9,FALSE),0) -> 0 | AB60: =IFERROR(SUM(OFFSET(Budget!$C$43,MATCH($C$54,Budget!$C$43:$C$349,0)+2+A60,101,1,$G$2)),0) -> 0 | AC60: =IFERROR(VLOOKUP($C60,OFFSET(Budget!$C$43,MATCH($C$54,Budget!$C$43:$C$349,0)+3,0,11,154),114,0),0) -> 0 | AD60: =IFERROR((2*(AA60+AA61))/(H60+T60+T61+H61-F60-F61-R60-R61-AA60)*100,0) -> 0 | AE60: =IFERROR(SUM(OFFSET(Budget!$C$43,MATCH($C$54,Budget!$C$43:$C$349,0)+2+$A60,141,1,$G$2)),"") -> 0 | AF60: =IFERROR(VLOOKUP($C60,OFFSET(Budget!$C$43,MATCH($C$54,Budget!$C$43:$C$349,0)+3,0,12,154),58,0),"") -> 0
C61: Banca Commercial Paper | D61: ='BANCA CP'!$D$136 -> 0 | E61: =IFERROR(VLOOKUP($C61,OFFSET('UR & ECL'!$F$400,MATCH($C$54,'UR & ECL'!$F$400:$F$515,0),0,11,12),E$4,0),0) -> 0 | F61: =IFERROR(VLOOKUP($C61,OFFSET('UR & ECL'!$F$400,MATCH($C$54,'UR & ECL'!$F$400:$F$515,0),0,11,12),F$4,0),0) -> 0 | G61: =IFERROR(VLOOKUP($C61,OFFSET('UR & ECL'!$F$400,MATCH($C$54,'UR & ECL'!$F$400:$F$515,0),0,11,12),G$4,0),0) -> 0 | H61: =D61+E61+F61+G61 -> 0 | I61: 0 | J61: =IFERROR(HLOOKUP($N$7,'BANCA CP'!$D$128:$P$136,9,FALSE),0) -> 0 | K61: =IFERROR(VLOOKUP($C61,OFFSET('UR & ECL'!$F$400,MATCH($C$54,'UR & ECL'!$F$400:$F$515,0),0,11,12),K$4,0),0) -> 0 | L61: =IFERROR(VLOOKUP($C61,OFFSET('UR & ECL'!$F$400,MATCH($C$54,'UR & ECL'!$F$400:$F$515,0),0,11,12),L$4,0),0) -> 0 | M61: =IFERROR(VLOOKUP($C61,OFFSET('UR & ECL'!$F$400,MATCH($C$54,'UR & ECL'!$F$400:$F$515,0),0,11,12),M$4,0),0) -> 0 | N61: 0 | O61: =IFERROR(HLOOKUP($T$7,'BANCA CP'!$D$128:$P$136,9,FALSE),0) -> 0 | P61: 0 | Q61: =IFERROR(VLOOKUP($C61,OFFSET('UR & ECL'!$F$400,MATCH($C$54,'UR & ECL'!$F$400:$F$515,0),0,11,12),Q$4,0),0) -> 0 | R61: =IFERROR(VLOOKUP($C61,OFFSET('UR & ECL'!$F$400,MATCH($C$54,'UR & ECL'!$F$400:$F$515,0),0,11,12),R$4,0),0) -> 0 | S61: =IFERROR(VLOOKUP($C61,OFFSET('UR & ECL'!$F$400,MATCH($C$54,'UR & ECL'!$F$400:$F$515,0),0,11,12),S$4,0),0) -> 0 | T61: 0 | U61: 0 | V61: =IFERROR(VLOOKUP($C61,OFFSET(Budget!$C$43,MATCH($C$54,Budget!$C$43:$C$349,0)+3,0,11,154),44+$G$2,0),0) -> 0 | W61: =V61/$V$175*100 ->  | X61: =IFERROR(HLOOKUP($X$7,'BANCA CP'!$S$128:$AE$136,9,FALSE),0) -> 0 | Y61: =IFERROR(HLOOKUP($Y$7,'BANCA CP'!$S$128:$AE$136,9,FALSE),0) -> 0 | AA61: =IFERROR(HLOOKUP($Y$7,'BANCA CP'!$AJ$128:$AU$136,9,FALSE),0) -> 0 | AB61: =IFERROR(SUM(OFFSET('[6]Revised Budget 2019'!$C$43,MATCH($C$153,'[6]Revised Budget 2019'!$C$43:$C$270,0)+2+A61,101,1,$G$2)),0) -> 0 | AC61: =IFERROR(VLOOKUP($C61,OFFSET(Budget!$C$43,MATCH($C$54,Budget!$C$43:$C$349,0)+3,0,11,154),114,0),0) -> 0 | AE61: =IFERROR(SUM(OFFSET('[6]Revised Budget 2019'!$C$43,MATCH(#REF!,'[6]Revised Budget 2019'!$C$43:$C$270,0)+2+$A61,141,1,$G$2)),"") ->  | AF61: =IFERROR(VLOOKUP($C61,OFFSET('[6]Revised Budget 2019'!$C$43,MATCH(#REF!,'[6]Revised Budget 2019'!$C$43:$C$270,0)+3,0,12,154),58,0),"") -> 
A62: 3 | C62: Structured Deposit | D62: =STRUCTDEP!$D$136 -> 0 | E62: =IFERROR(VLOOKUP($C62,OFFSET('UR & ECL'!$F$400,MATCH($C$54,'UR & ECL'!$F$400:$F$515,0),0,11,12),E$4,0),0) -> 0 | F62: =IFERROR(VLOOKUP($C62,OFFSET('UR & ECL'!$F$400,MATCH($C$54,'UR & ECL'!$F$400:$F$515,0),0,11,12),F$4,0),0) -> 0 | G62: =IFERROR(VLOOKUP($C62,OFFSET('UR & ECL'!$F$400,MATCH($C$54,'UR & ECL'!$F$400:$F$515,0),0,11,12),G$4,0),0) -> 0 | H62: 0 | I62: 0 | J62: =IFERROR(HLOOKUP($N$7,STRUCTDEP!$D$128:$P$136,9,FALSE),0) -> 0 | K62: =IFERROR(VLOOKUP($C62,OFFSET('UR & ECL'!$F$400,MATCH($C$54,'UR & ECL'!$F$400:$F$515,0),0,11,12),K$4,0),0) -> 0 | L62: =IFERROR(VLOOKUP($C62,OFFSET('UR & ECL'!$F$400,MATCH($C$54,'UR & ECL'!$F$400:$F$515,0),0,11,12),L$4,0),0) -> 0 | M62: =IFERROR(VLOOKUP($C62,OFFSET('UR & ECL'!$F$400,MATCH($C$54,'UR & ECL'!$F$400:$F$515,0),0,11,12),M$4,0),0) -> 0 | N62: 0 | O62: =IFERROR(HLOOKUP($T$7,STRUCTDEP!$D$128:$P$136,9,FALSE),0) -> 0 | P62: 0 | Q62: =IFERROR(VLOOKUP($C62,OFFSET('UR & ECL'!$F$400,MATCH($C$54,'UR & ECL'!$F$400:$F$515,0),0,11,12),Q$4,0),0) -> 0 | R62: =IFERROR(VLOOKUP($C62,OFFSET('UR & ECL'!$F$400,MATCH($C$54,'UR & ECL'!$F$400:$F$515,0),0,11,12),R$4,0),0) -> 0 | S62: =IFERROR(VLOOKUP($C62,OFFSET('UR & ECL'!$F$400,MATCH($C$54,'UR & ECL'!$F$400:$F$515,0),0,11,12),S$4,0),0) -> 0 | T62: 0 | U62: 0 | V62: =IFERROR(VLOOKUP($C62,OFFSET(Budget!$C$43,MATCH($C$54,Budget!$C$43:$C$349,0)+3,0,11,154),44+$G$2,0),0) -> 0 | W62: =V62/$V$76*100 -> 0 | X62: =IFERROR(HLOOKUP($X$7,STRUCTDEP!$S$128:$AE$136,9,FALSE),0) -> 0 | Y62: =IFERROR(HLOOKUP($Y$7,STRUCTDEP!$S$128:$AE$136,9,FALSE),0) -> 0 | Z62: =IFERROR(VLOOKUP($C62,OFFSET(Budget!$C$43,MATCH($C$54,Budget!$C$43:$C$349,0)+3,0,11,154),101+$G$2,0),0) -> 0 | AA62: =IFERROR(HLOOKUP($Y$7,STRUCTDEP!$AJ$128:$AU$136,9,FALSE),0) -> 0 | AB62: =IFERROR(SUM(OFFSET(Budget!$C$43,MATCH($C$54,Budget!$C$43:$C$349,0)+2+A62,101,1,$G$2)),0) -> 0 | AC62: =IFERROR(VLOOKUP($C62,OFFSET(Budget!$C$43,MATCH($C$54,Budget!$C$43:$C$349,0)+3,0,11,154),114,0),0) -> 0 | AD62: =IFERROR((2*AA62)/(H62-R62+T62-F62-AA62)*100,0) -> 0 | AE62: =IFERROR(SUM(OFFSET(Budget!$C$43,MATCH($C$54,Budget!$C$43:$C$349,0)+2+$A62,141,1,$G$2)),"") -> 0 | AF62: =IFERROR(VLOOKUP($C62,OFFSET(Budget!$C$43,MATCH($C$54,Budget!$C$43:$C$349,0)+3,0,12,154),58,0),"") -> 0
B63: 1 | C63: Income | D63: 0 | E63: =IFERROR(VLOOKUP($C63,OFFSET('UR & ECL'!$F$400,MATCH($C$54,'UR & ECL'!$F$400:$F$515,0),0,11,12),E$4,0),0) -> 0 | F63: =IFERROR(VLOOKUP($C63,OFFSET('UR & ECL'!$F$400,MATCH($C$54,'UR & ECL'!$F$400:$F$515,0),0,11,12),F$4,0),0) -> 0 | G63: =IFERROR(VLOOKUP($C63,OFFSET('UR & ECL'!$F$400,MATCH($C$54,'UR & ECL'!$F$400:$F$515,0),0,11,12),G$4,0),0) -> 0 | H63: 0 | I63: 0 | K63: =IFERROR(VLOOKUP($C63,OFFSET('UR & ECL'!$F$400,MATCH($C$54,'UR & ECL'!$F$400:$F$515,0),0,11,12),K$4,0),0) -> 0 | L63: =IFERROR(VLOOKUP($C63,OFFSET('UR & ECL'!$F$400,MATCH($C$54,'UR & ECL'!$F$400:$F$515,0),0,11,12),L$4,0),0) -> 0 | M63: =IFERROR(VLOOKUP($C63,OFFSET('UR & ECL'!$F$400,MATCH($C$54,'UR & ECL'!$F$400:$F$515,0),0,11,12),M$4,0),0) -> 0 | N63: 0 | P63: 0 | Q63: =IFERROR(VLOOKUP($C63,OFFSET('UR & ECL'!$F$400,MATCH($C$54,'UR & ECL'!$F$400:$F$515,0),0,11,12),Q$4,0),0) -> 0 | R63: =IFERROR(VLOOKUP($C63,OFFSET('UR & ECL'!$F$400,MATCH($C$54,'UR & ECL'!$F$400:$F$515,0),0,11,12),R$4,0),0) -> 0 | S63: =IFERROR(VLOOKUP($C63,OFFSET('UR & ECL'!$F$400,MATCH($C$54,'UR & ECL'!$F$400:$F$515,0),0,11,12),S$4,0),0) -> 0 | T63: 0 | U63: 0 | V63: =IFERROR(VLOOKUP($C63,OFFSET(Budget!$C$43,MATCH($C$54,Budget!$C$43:$C$349,0)+3,0,11,154),44+$G$2,0),0) -> 0 | W63: 0 | X63: =IFERROR(HLOOKUP($X$7,STRUCTDEP!$S$128:$AE$136,4,FALSE),0) -> 0 | Y63: =IFERROR(HLOOKUP($Y$7,STRUCTDEP!$S$128:$AE$136,4,FALSE),0) -> 0 | Z63: =IFERROR(VLOOKUP($C63,OFFSET(Budget!$C$43,MATCH($C$54,Budget!$C$43:$C$349,0)+3,0,11,154),101+$G$2,0),0) -> 0 | AA63: =IFERROR(HLOOKUP($Y$7,STRUCTDEP!$AJ$128:$AU$136,4,FALSE),0) -> 0 | AB63: =IFERROR(SUM(OFFSET(Budget!$C$43,MATCH($C$54,Budget!$C$43:$C$349,0)+2+A63,101,1,$G$2)),0) -> 0 | AC63: =IFERROR(VLOOKUP($C63,OFFSET(Budget!$C$43,MATCH($C$54,Budget!$C$43:$C$349,0)+3,0,11,154),114,0),0) -> 0 | AD63: 0 | AE63: =IFERROR(SUM(OFFSET(Budget!$C$43,MATCH($C$54,Budget!$C$43:$C$349,0)+2+$A63,141,1,$G$2)),"") -> 0 | AF63: =IFERROR(VLOOKUP($C63,OFFSET(Budget!$C$43,MATCH($C$54,Budget!$C$43:$C$349,0)+3,0,12,154),58,0),"") -> 
B64: 2 | C64: Fair Value Gain/Loss | D64: 0 | E64: =IFERROR(VLOOKUP($C64,OFFSET('UR & ECL'!$F$400,MATCH($C$54,'UR & ECL'!$F$400:$F$515,0),0,11,12),E$4,0),0) -> 0 | F64: =IFERROR(VLOOKUP($C64,OFFSET('UR & ECL'!$F$400,MATCH($C$54,'UR & ECL'!$F$400:$F$515,0),0,11,12),F$4,0),0) -> 0 | G64: =IFERROR(VLOOKUP($C64,OFFSET('UR & ECL'!$F$400,MATCH($C$54,'UR & ECL'!$F$400:$F$515,0),0,11,12),G$4,0),0) -> 0 | H64: 0 | I64: 0 | K64: =IFERROR(VLOOKUP($C64,OFFSET('UR & ECL'!$F$400,MATCH($C$54,'UR & ECL'!$F$400:$F$515,0),0,11,12),K$4,0),0) -> 0 | L64: =IFERROR(VLOOKUP($C64,OFFSET('UR & ECL'!$F$400,MATCH($C$54,'UR & ECL'!$F$400:$F$515,0),0,11,12),L$4,0),0) -> 0 | M64: =IFERROR(VLOOKUP($C64,OFFSET('UR & ECL'!$F$400,MATCH($C$54,'UR & ECL'!$F$400:$F$515,0),0,11,12),M$4,0),0) -> 0 | N64: 0 | P64: 0 | Q64: =IFERROR(VLOOKUP($C64,OFFSET('UR & ECL'!$F$400,MATCH($C$54,'UR & ECL'!$F$400:$F$515,0),0,11,12),Q$4,0),0) -> 0 | R64: =IFERROR(VLOOKUP($C64,OFFSET('UR & ECL'!$F$400,MATCH($C$54,'UR & ECL'!$F$400:$F$515,0),0,11,12),R$4,0),0) -> 0 | S64: =IFERROR(VLOOKUP($C64,OFFSET('UR & ECL'!$F$400,MATCH($C$54,'UR & ECL'!$F$400:$F$515,0),0,11,12),S$4,0),0) -> 0 | T64: 0 | U64: 0 | V64: =IFERROR(VLOOKUP($C64,OFFSET(Budget!$C$43,MATCH($C$54,Budget!$C$43:$C$349,0)+3,0,11,154),44+$G$2,0),0) -> 0 | W64: 0 | X64: =IFERROR(HLOOKUP($X$7,STRUCTDEP!$S$128:$AE$136,8,FALSE),0) -> 0 | Y64: =IFERROR(HLOOKUP($Y$7,STRUCTDEP!$S$128:$AE$136,8,FALSE),0) -> 0 | Z64: =IFERROR(VLOOKUP($C64,OFFSET(Budget!$C$43,MATCH($C$54,Budget!$C$43:$C$349,0)+3,0,11,154),101+$G$2,0),0) -> 0 | AA64: =IFERROR(HLOOKUP($Y$7,STRUCTDEP!$AJ$128:$AU$136,8,FALSE),0) -> 0 | AB64: =IFERROR(SUM(OFFSET(Budget!$C$43,MATCH($C$54,Budget!$C$43:$C$349,0)+2+A64,101,1,$G$2)),0) -> 0 | AC64: =IFERROR(VLOOKUP($C64,OFFSET(Budget!$C$43,MATCH($C$54,Budget!$C$43:$C$349,0)+3,0,11,154),114,0),0) -> 0 | AD64: 0 | AE64: =IFERROR(SUM(OFFSET(Budget!$C$43,MATCH($C$54,Budget!$C$43:$C$349,0)+2+$A64,141,1,$G$2)),"") -> 0 | AF64: =IFERROR(VLOOKUP($C64,OFFSET(Budget!$C$43,MATCH($C$54,Budget!$C$43:$C$349,0)+3,0,12,154),58,0),"") -> 
A65: 4 | C65: GII | D65: =GII!$D$136 -> 0 | E65: =IFERROR(VLOOKUP($C65,OFFSET('UR & ECL'!$F$400,MATCH($C$54,'UR & ECL'!$F$400:$F$515,0),0,11,12),E$4,0),0) -> 0 | F65: =IFERROR(VLOOKUP($C65,OFFSET('UR & ECL'!$F$400,MATCH($C$54,'UR & ECL'!$F$400:$F$515,0),0,11,12),F$4,0),0) -> 0 | G65: =IFERROR(VLOOKUP($C65,OFFSET('UR & ECL'!$F$400,MATCH($C$54,'UR & ECL'!$F$400:$F$515,0),0,11,12),G$4,0),0) -> 0 | H65: 0 | I65: 0 | J65: =IFERROR(HLOOKUP($N$7,GII!$D$128:$P$136,9,FALSE),0) -> 0 | K65: =IFERROR(VLOOKUP($C65,OFFSET('UR & ECL'!$F$400,MATCH($C$54,'UR & ECL'!$F$400:$F$515,0),0,11,12),K$4,0),0) -> 0 | L65: =IFERROR(VLOOKUP($C65,OFFSET('UR & ECL'!$F$400,MATCH($C$54,'UR & ECL'!$F$400:$F$515,0),0,11,12),L$4,0),0) -> 0 | M65: =IFERROR(VLOOKUP($C65,OFFSET('UR & ECL'!$F$400,MATCH($C$54,'UR & ECL'!$F$400:$F$515,0),0,11,12),M$4,0),0) -> 0 | N65: =J65+K65+L65+M65 -> 0 | O65: =IFERROR(HLOOKUP($T$7,GII!$D$128:$P$136,9,FALSE),0) -> 0 | P65: 0 | Q65: =IFERROR(VLOOKUP($C65,OFFSET('UR & ECL'!$F$400,MATCH($C$54,'UR & ECL'!$F$400:$F$515,0),0,11,12),Q$4,0),0) -> 0 | R65: =IFERROR(VLOOKUP($C65,OFFSET('UR & ECL'!$F$400,MATCH($C$54,'UR & ECL'!$F$400:$F$515,0),0,11,12),R$4,0),0) -> 0 | S65: =IFERROR(VLOOKUP($C65,OFFSET('UR & ECL'!$F$400,MATCH($C$54,'UR & ECL'!$F$400:$F$515,0),0,11,12),S$4,0),0) -> 0 | T65: 0 | U65: 0 | V65: =IFERROR(VLOOKUP($C65,OFFSET(Budget!$C$43,MATCH($C$54,Budget!$C$43:$C$349,0)+3,0,11,154),44+$G$2,0),0) -> 0 | W65: 0 | X65: =IFERROR(HLOOKUP($X$7,GII!$S$128:$AE$136,9,FALSE),0) -> 0 | Y65: =IFERROR(HLOOKUP($Y$7,GII!$S$128:$AE$136,9,FALSE),0) -> 0 | Z65: =IFERROR(VLOOKUP($C65,OFFSET(Budget!$C$43,MATCH($C$54,Budget!$C$43:$C$349,0)+3,0,11,154),101+$G$2,0),0) -> 0 | AA65: =IFERROR(HLOOKUP($Y$7,GII!$AJ$128:$AU$136,9,FALSE),0) -> 0 | AB65: =IFERROR(SUM(OFFSET(Budget!$C$43,MATCH($C$54,Budget!$C$43:$C$349,0)+2+A65,101,1,$G$2)),0) -> 0 | AC65: =IFERROR(VLOOKUP($C65,OFFSET(Budget!$C$43,MATCH($C$54,Budget!$C$43:$C$349,0)+3,0,11,154),114,0),0) -> 0 | AD65: 0 | AE65: =IFERROR(SUM(OFFSET(Budget!$C$43,MATCH($C$54,Budget!$C$43:$C$349,0)+2+$A65,141,1,$G$2)),"") -> 0 | AF65: =IFERROR(VLOOKUP($C65,OFFSET(Budget!$C$43,MATCH($C$54,Budget!$C$43:$C$349,0)+3,0,12,154),58,0),"") -> 0
A66: 5 | C66: GG | D66: =GG!$D$136 -> 5000000 | E66: =IFERROR(VLOOKUP($C66,OFFSET('UR & ECL'!$F$400,MATCH($C$54,'UR & ECL'!$F$400:$F$515,0),0,11,12),E$4,0),0) -> 0 | F66: =IFERROR(VLOOKUP($C66,OFFSET('UR & ECL'!$F$400,MATCH($C$54,'UR & ECL'!$F$400:$F$515,0),0,11,12),F$4,0),0) -> 895750 | G66: =IFERROR(VLOOKUP($C66,OFFSET('UR & ECL'!$F$400,MATCH($C$54,'UR & ECL'!$F$400:$F$515,0),0,11,12),G$4,0),0) -> 0 | H66: 5895750 | I66: 17.42232468 | J66: =IFERROR(HLOOKUP($N$7,GG!$D$128:$P$136,9,FALSE),0) -> 0 | K66: =IFERROR(VLOOKUP($C66,OFFSET('UR & ECL'!$F$400,MATCH($C$54,'UR & ECL'!$F$400:$F$515,0),0,11,12),K$4,0),0) -> 0 | L66: =IFERROR(VLOOKUP($C66,OFFSET('UR & ECL'!$F$400,MATCH($C$54,'UR & ECL'!$F$400:$F$515,0),0,11,12),L$4,0),0) -> 525550 | M66: =IFERROR(VLOOKUP($C66,OFFSET('UR & ECL'!$F$400,MATCH($C$54,'UR & ECL'!$F$400:$F$515,0),0,11,12),M$4,0),0) -> 0 | N66: 525550 | O66: =IFERROR(HLOOKUP($T$7,GG!$D$128:$P$136,9,FALSE),0) -> 0 | P66: 0 | Q66: =IFERROR(VLOOKUP($C66,OFFSET('UR & ECL'!$F$400,MATCH($C$54,'UR & ECL'!$F$400:$F$515,0),0,11,12),Q$4,0),0) -> 0 | R66: =IFERROR(VLOOKUP($C66,OFFSET('UR & ECL'!$F$400,MATCH($C$54,'UR & ECL'!$F$400:$F$515,0),0,11,12),R$4,0),0) -> 565600 | S66: =IFERROR(VLOOKUP($C66,OFFSET('UR & ECL'!$F$400,MATCH($C$54,'UR & ECL'!$F$400:$F$515,0),0,11,12),S$4,0),0) -> 0 | T66: 565600 | U66: 58.28851922 | V66: =IFERROR(VLOOKUP($C66,OFFSET(Budget!$C$43,MATCH($C$54,Budget!$C$43:$C$349,0)+3,0,11,154),44+$G$2,0),0) -> 6579833.775 | W66: 18.03333965 | X66: =IFERROR(HLOOKUP($X$7,GG!$S$128:$AE$136,9,FALSE),0) -> 0 | Y66: =IFERROR(HLOOKUP($Y$7,GG!$S$128:$AE$136,9,FALSE),0) -> 0 | Z66: =IFERROR(VLOOKUP($C66,OFFSET(Budget!$C$43,MATCH($C$54,Budget!$C$43:$C$349,0)+3,0,11,154),101+$G$2,0),0) -> 12543.42863 | AA66: =IFERROR(HLOOKUP($Y$7,GG!$AJ$128:$AU$136,9,FALSE),0) -> 0 | AB66: =IFERROR(SUM(OFFSET(Budget!$C$43,MATCH($C$54,Budget!$C$43:$C$349,0)+2+A66,101,1,$G$2)),0) -> 26377.93015 | AC66: =IFERROR(VLOOKUP($C66,OFFSET(Budget!$C$43,MATCH($C$54,Budget!$C$43:$C$349,0)+3,0,11,154),114,0),0) -> 166879.7935 | AD66: =IFERROR((2*AA66)/(H66-R66+T66-F66-AA66)*100,0) -> 0 | AE66: =IFERROR(SUM(OFFSET(Budget!$C$43,MATCH($C$54,Budget!$C$43:$C$349,0)+2+$A66,141,1,$G$2)),"") -> 0.404109589 | AF66: =IFERROR(VLOOKUP($C66,OFFSET(Budget!$C$43,MATCH($C$54,Budget!$C$43:$C$349,0)+3,0,12,154),58,0),"") -> 2.5
A67: 6 | C67: Equity | D67: =EQUITY!$D$136 -> 0 | E67: =IFERROR(VLOOKUP($C67,OFFSET('UR & ECL'!$F$400,MATCH($C$54,'UR & ECL'!$F$400:$F$515,0),0,11,12),E$4,0),0) -> 0 | F67: =IFERROR(VLOOKUP($C67,OFFSET('UR & ECL'!$F$400,MATCH($C$54,'UR & ECL'!$F$400:$F$515,0),0,11,12),F$4,0),0) -> 0 | G67: =IFERROR(VLOOKUP($C67,OFFSET('UR & ECL'!$F$400,MATCH($C$54,'UR & ECL'!$F$400:$F$515,0),0,11,12),G$4,0),0) -> 0 | H67: 0 | I67: 0 | J67: =IFERROR(HLOOKUP($N$7,EQUITY!$D$128:$P$136,9,FALSE),0) -> 0 | K67: =IFERROR(VLOOKUP($C67,OFFSET('UR & ECL'!$F$400,MATCH($C$54,'UR & ECL'!$F$400:$F$515,0),0,11,12),K$4,0),0) -> 0 | L67: =IFERROR(VLOOKUP($C67,OFFSET('UR & ECL'!$F$400,MATCH($C$54,'UR & ECL'!$F$400:$F$515,0),0,11,12),L$4,0),0) -> 0 | M67: =IFERROR(VLOOKUP($C67,OFFSET('UR & ECL'!$F$400,MATCH($C$54,'UR & ECL'!$F$400:$F$515,0),0,11,12),M$4,0),0) -> 0 | N67: 0 | O67: =IFERROR(HLOOKUP($T$7,EQUITY!$D$128:$P$136,9,FALSE),0) -> 0 | P67: 0 | Q67: =IFERROR(VLOOKUP($C67,OFFSET('UR & ECL'!$F$400,MATCH($C$54,'UR & ECL'!$F$400:$F$515,0),0,11,12),Q$4,0),0) -> 0 | R67: =IFERROR(VLOOKUP($C67,OFFSET('UR & ECL'!$F$400,MATCH($C$54,'UR & ECL'!$F$400:$F$515,0),0,11,12),R$4,0),0) -> 0 | S67: =IFERROR(VLOOKUP($C67,OFFSET('UR & ECL'!$F$400,MATCH($C$54,'UR & ECL'!$F$400:$F$515,0),0,11,12),S$4,0),0) -> 0 | T67: 0 | U67: 0 | V67: =IFERROR(VLOOKUP($C67,OFFSET(Budget!$C$43,MATCH($C$54,Budget!$C$43:$C$349,0)+3,0,11,154),44+$G$2,0),0) -> 0 | W67: 0 | X67: =IFERROR(HLOOKUP($X$7,EQUITY!$S$128:$AE$136,9,FALSE),0) -> 0 | Y67: =IFERROR(HLOOKUP($Y$7,EQUITY!$S$128:$AE$136,9,FALSE),0) -> 0 | Z67: =IFERROR(VLOOKUP($C67,OFFSET(Budget!$C$43,MATCH($C$54,Budget!$C$43:$C$349,0)+3,0,11,154),101+$G$2,0),0) -> 0 | AA67: =IFERROR(HLOOKUP($Y$7,EQUITY!$AJ$128:$AU$136,9,FALSE),0) -> 0 | AB67: =IFERROR(SUM(OFFSET(Budget!$C$43,MATCH($C$54,Budget!$C$43:$C$349,0)+2+A67,101,1,$G$2)),0) -> 0 | AC67: =IFERROR(VLOOKUP($C67,OFFSET(Budget!$C$43,MATCH($C$54,Budget!$C$43:$C$349,0)+3,0,11,154),114,0),0) -> 0 | AD67: 0 | AE67: =IFERROR(SUM(OFFSET(Budget!$C$43,MATCH($C$54,Budget!$C$43:$C$349,0)+2+$A67,141,1,$G$2)),"") -> 0 | AF67: =IFERROR(VLOOKUP($C67,OFFSET(Budget!$C$43,MATCH($C$54,Budget!$C$43:$C$349,0)+3,0,12,154),58,0),"") -> 0
B68: 3 | C68: Income | D68: 0 | E68: =IFERROR(VLOOKUP($C68,OFFSET('UR & ECL'!$F$400,MATCH($C$54,'UR & ECL'!$F$400:$F$515,0),0,11,12),E$4,0),0) -> 0 | F68: =IFERROR(VLOOKUP($C68,OFFSET('UR & ECL'!$F$400,MATCH($C$54,'UR & ECL'!$F$400:$F$515,0),0,11,12),F$4,0),0) -> 0 | G68: =IFERROR(VLOOKUP($C68,OFFSET('UR & ECL'!$F$400,MATCH($C$54,'UR & ECL'!$F$400:$F$515,0),0,11,12),G$4,0),0) -> 0 | H68: 0 | I68: 0 | K68: =IFERROR(VLOOKUP($C68,OFFSET('UR & ECL'!$F$400,MATCH($C$54,'UR & ECL'!$F$400:$F$515,0),0,11,12),K$4,0),0) -> 0 | L68: =IFERROR(VLOOKUP($C68,OFFSET('UR & ECL'!$F$400,MATCH($C$54,'UR & ECL'!$F$400:$F$515,0),0,11,12),L$4,0),0) -> 0 | M68: =IFERROR(VLOOKUP($C68,OFFSET('UR & ECL'!$F$400,MATCH($C$54,'UR & ECL'!$F$400:$F$515,0),0,11,12),M$4,0),0) -> 0 | N68: 0 | P68: 0 | Q68: =IFERROR(VLOOKUP($C68,OFFSET('UR & ECL'!$F$400,MATCH($C$54,'UR & ECL'!$F$400:$F$515,0),0,11,12),Q$4,0),0) -> 0 | R68: =IFERROR(VLOOKUP($C68,OFFSET('UR & ECL'!$F$400,MATCH($C$54,'UR & ECL'!$F$400:$F$515,0),0,11,12),R$4,0),0) -> 0 | S68: =IFERROR(VLOOKUP($C68,OFFSET('UR & ECL'!$F$400,MATCH($C$54,'UR & ECL'!$F$400:$F$515,0),0,11,12),S$4,0),0) -> 0 | T68: 0 | U68: 0 | V68: =IFERROR(VLOOKUP($C68,OFFSET(Budget!$C$43,MATCH($C$54,Budget!$C$43:$C$349,0)+3,0,11,154),44+$G$2,0),0) -> 0 | W68: 0 | X68: =IFERROR(HLOOKUP($X$7,EQUITY!$S$128:$AE$136,3,FALSE)+HLOOKUP($X$7,EQUITY!$S$128:$AE$136,4,FALSE)+HLOOKUP($X$7,EQUITY!$S$128:$AE$136,5,FALSE)+HLOOKUP($X$7,EQUITY!$S$128:$AE$136,6,FALSE)+HLOOKUP($X$7,EQUITY!$S$128:$AE$136,7,FALSE),0) -> 0 | Y68: =IFERROR(HLOOKUP($Y$7,EQUITY!$S$128:$AE$136,3,FALSE)+HLOOKUP($Y$7,EQUITY!$S$128:$AE$136,4,FALSE)+HLOOKUP($Y$7,EQUITY!$S$128:$AE$136,5,FALSE)+HLOOKUP($Y$7,EQUITY!$S$128:$AE$136,6,FALSE)+HLOOKUP($Y$7,EQUITY!$S$128:$AE$136,7,FALSE),0) -> 0 | Z68: =IFERROR(VLOOKUP($C68,OFFSET(Budget!$C$43,MATCH($C$54,Budget!$C$43:$C$349,0)+3,0,11,154),101+$G$2,0),0) -> 0 | AA68: =IFERROR(HLOOKUP($Y$7,EQUITY!$AJ$128:$AU$136,3,FALSE)+HLOOKUP($Y$7,EQUITY!$AJ$128:$AU$136,4,FALSE)+HLOOKUP($Y$7,EQUITY!$AJ$128:$AU$136,5,FALSE)+HLOOKUP($Y$7,EQUITY!$AJ$128:$AU$136,6,FALSE)+HLOOKUP($Y$7,EQUITY!$AJ$128:$AU$136,7,FALSE),0) -> 0 | AB68: =IFERROR(SUM(OFFSET(Budget!$C$43,MATCH($C$54,Budget!$C$43:$C$349,0)+2+A68,101,1,$G$2)),0) -> 0 | AC68: =IFERROR(VLOOKUP($C68,OFFSET(Budget!$C$43,MATCH($C$54,Budget!$C$43:$C$349,0)+3,0,11,154),114,0),0) -> 0 | AD68: 0 | AE68: =IFERROR(SUM(OFFSET(Budget!$C$43,MATCH($C$54,Budget!$C$43:$C$349,0)+2+$A68,141,1,$G$2)),"") -> 0 | AF68: =IFERROR(VLOOKUP($C68,OFFSET(Budget!$C$43,MATCH($C$54,Budget!$C$43:$C$349,0)+3,0,12,154),58,0),"") -> 
B69: 4 | C69: Fair Value Gain/Loss | D69: 0 | E69: =IFERROR(VLOOKUP($C69,OFFSET('UR & ECL'!$F$400,MATCH($C$54,'UR & ECL'!$F$400:$F$515,0),0,11,12),E$4,0),0) -> 0 | F69: =IFERROR(VLOOKUP($C69,OFFSET('UR & ECL'!$F$400,MATCH($C$54,'UR & ECL'!$F$400:$F$515,0),0,11,12),F$4,0),0) -> 0 | G69: =IFERROR(VLOOKUP($C69,OFFSET('UR & ECL'!$F$400,MATCH($C$54,'UR & ECL'!$F$400:$F$515,0),0,11,12),G$4,0),0) -> 0 | H69: 0 | I69: 0 | K69: =IFERROR(VLOOKUP($C69,OFFSET('UR & ECL'!$F$400,MATCH($C$54,'UR & ECL'!$F$400:$F$515,0),0,11,12),K$4,0),0) -> 0 | L69: =IFERROR(VLOOKUP($C69,OFFSET('UR & ECL'!$F$400,MATCH($C$54,'UR & ECL'!$F$400:$F$515,0),0,11,12),L$4,0),0) -> 0 | M69: =IFERROR(VLOOKUP($C69,OFFSET('UR & ECL'!$F$400,MATCH($C$54,'UR & ECL'!$F$400:$F$515,0),0,11,12),M$4,0),0) -> 0 | N69: 0 | P69: 0 | Q69: =IFERROR(VLOOKUP($C69,OFFSET('UR & ECL'!$F$400,MATCH($C$54,'UR & ECL'!$F$400:$F$515,0),0,11,12),Q$4,0),0) -> 0 | R69: =IFERROR(VLOOKUP($C69,OFFSET('UR & ECL'!$F$400,MATCH($C$54,'UR & ECL'!$F$400:$F$515,0),0,11,12),R$4,0),0) -> 0 | S69: =IFERROR(VLOOKUP($C69,OFFSET('UR & ECL'!$F$400,MATCH($C$54,'UR & ECL'!$F$400:$F$515,0),0,11,12),S$4,0),0) -> 0 | T69: 0 | U69: 0 | V69: =IFERROR(VLOOKUP($C69,OFFSET(Budget!$C$43,MATCH($C$54,Budget!$C$43:$C$349,0)+3,0,11,154),44+$G$2,0),0) -> 0 | W69: 0 | X69: =IFERROR(HLOOKUP($X$7,EQUITY!$S$128:$AE$136,8,FALSE),0) -> 0 | Y69: =IFERROR(HLOOKUP($Y$7,EQUITY!$S$128:$AE$136,8,FALSE),0) -> 0 | Z69: =IFERROR(VLOOKUP($C69,OFFSET(Budget!$C$43,MATCH($C$54,Budget!$C$43:$C$349,0)+3,0,11,154),101+$G$2,0),0) -> 0 | AA69: =IFERROR(HLOOKUP($Y$7,EQUITY!$AJ$128:$AU$136,8,FALSE),0) -> 0 | AB69: =IFERROR(SUM(OFFSET(Budget!$C$43,MATCH($C$54,Budget!$C$43:$C$349,0)+2+A69,101,1,$G$2)),0) -> 0 | AC69: =IFERROR(VLOOKUP($C69,OFFSET(Budget!$C$43,MATCH($C$54,Budget!$C$43:$C$349,0)+3,0,11,154),114,0),0) -> 0 | AD69: 0 | AE69: =IFERROR(SUM(OFFSET(Budget!$C$43,MATCH($C$54,Budget!$C$43:$C$349,0)+2+$A69,141,1,$G$2)),"") -> 0 | AF69: =IFERROR(VLOOKUP($C69,OFFSET(Budget!$C$43,MATCH($C$54,Budget!$C$43:$C$349,0)+3,0,12,154),58,0),"") -> 
A70: 7 | C70: Unit Trust | D70: =TRUST!$D$136 -> 0 | E70: =IFERROR(VLOOKUP($C70,OFFSET('UR & ECL'!$F$400,MATCH($C$54,'UR & ECL'!$F$400:$F$515,0),0,11,12),E$4,0),0) -> 0 | F70: =IFERROR(VLOOKUP($C70,OFFSET('UR & ECL'!$F$400,MATCH($C$54,'UR & ECL'!$F$400:$F$515,0),0,11,12),F$4,0),0) -> 0 | G70: =IFERROR(VLOOKUP($C70,OFFSET('UR & ECL'!$F$400,MATCH($C$54,'UR & ECL'!$F$400:$F$515,0),0,11,12),G$4,0),0) -> 0 | H70: 0 | I70: 0 | J70: =IFERROR(HLOOKUP($N$7,TRUST!$D$128:$P$136,9,FALSE),0) -> 0 | K70: =IFERROR(VLOOKUP($C70,OFFSET('UR & ECL'!$F$400,MATCH($C$54,'UR & ECL'!$F$400:$F$515,0),0,11,12),K$4,0),0) -> 0 | L70: =IFERROR(VLOOKUP($C70,OFFSET('UR & ECL'!$F$400,MATCH($C$54,'UR & ECL'!$F$400:$F$515,0),0,11,12),L$4,0),0) -> 0 | M70: =IFERROR(VLOOKUP($C70,OFFSET('UR & ECL'!$F$400,MATCH($C$54,'UR & ECL'!$F$400:$F$515,0),0,11,12),M$4,0),0) -> 0 | N70: 0 | O70: =IFERROR(HLOOKUP($T$7,TRUST!$D$128:$P$136,9,FALSE),0) -> 0 | P70: 0 | Q70: =IFERROR(VLOOKUP($C70,OFFSET('UR & ECL'!$F$400,MATCH($C$54,'UR & ECL'!$F$400:$F$515,0),0,11,12),Q$4,0),0) -> 0 | R70: =IFERROR(VLOOKUP($C70,OFFSET('UR & ECL'!$F$400,MATCH($C$54,'UR & ECL'!$F$400:$F$515,0),0,11,12),R$4,0),0) -> 0 | S70: =IFERROR(VLOOKUP($C70,OFFSET('UR & ECL'!$F$400,MATCH($C$54,'UR & ECL'!$F$400:$F$515,0),0,11,12),S$4,0),0) -> 0 | T70: 0 | U70: 0 | V70: =IFERROR(VLOOKUP($C70,OFFSET(Budget!$C$43,MATCH($C$54,Budget!$C$43:$C$349,0)+3,0,11,154),44+$G$2,0),0) -> 0 | W70: 0 | X70: =IFERROR(HLOOKUP($X$7,TRUST!$S$128:$AE$136,9,FALSE),0) -> 0 | Y70: =IFERROR(HLOOKUP($Y$7,TRUST!$S$128:$AE$136,9,FALSE),0) -> 0 | Z70: =IFERROR(VLOOKUP($C70,OFFSET(Budget!$C$43,MATCH($C$54,Budget!$C$43:$C$349,0)+3,0,11,154),101+$G$2,0),0) -> 0 | AA70: =IFERROR(HLOOKUP($Y$7,TRUST!$AJ$128:$AU$136,9,FALSE),0) -> 0 | AB70: =IFERROR(SUM(OFFSET(Budget!$C$43,MATCH($C$54,Budget!$C$43:$C$349,0)+2+A70,101,1,$G$2)),0) -> 0 | AC70: =IFERROR(VLOOKUP($C70,OFFSET(Budget!$C$43,MATCH($C$54,Budget!$C$43:$C$349,0)+3,0,11,154),114,0),0) -> 0 | AD70: 0 | AE70: =IFERROR(SUM(OFFSET(Budget!$C$43,MATCH($C$54,Budget!$C$43:$C$349,0)+2+$A70,141,1,$G$2)),"") -> 0 | AF70: =IFERROR(VLOOKUP($C70,OFFSET(Budget!$C$43,MATCH($C$54,Budget!$C$43:$C$349,0)+3,0,12,154),58,0),"") -> 0
B71: 5 | C71: Income | D71: 0 | E71: =IFERROR(VLOOKUP($C71,OFFSET('UR & ECL'!$F$400,MATCH($C$54,'UR & ECL'!$F$400:$F$515,0),0,11,12),E$4,0),0) -> 0 | F71: =IFERROR(VLOOKUP($C71,OFFSET('UR & ECL'!$F$400,MATCH($C$54,'UR & ECL'!$F$400:$F$515,0),0,11,12),F$4,0),0) -> 0 | G71: =IFERROR(VLOOKUP($C71,OFFSET('UR & ECL'!$F$400,MATCH($C$54,'UR & ECL'!$F$400:$F$515,0),0,11,12),G$4,0),0) -> 0 | H71: 0 | I71: 0 | K71: =IFERROR(VLOOKUP($C71,OFFSET('UR & ECL'!$F$400,MATCH($C$54,'UR & ECL'!$F$400:$F$515,0),0,11,12),K$4,0),0) -> 0 | L71: =IFERROR(VLOOKUP($C71,OFFSET('UR & ECL'!$F$400,MATCH($C$54,'UR & ECL'!$F$400:$F$515,0),0,11,12),L$4,0),0) -> 0 | M71: =IFERROR(VLOOKUP($C71,OFFSET('UR & ECL'!$F$400,MATCH($C$54,'UR & ECL'!$F$400:$F$515,0),0,11,12),M$4,0),0) -> 0 | N71: 0 | P71: 0 | Q71: =IFERROR(VLOOKUP($C71,OFFSET('UR & ECL'!$F$400,MATCH($C$54,'UR & ECL'!$F$400:$F$515,0),0,11,12),Q$4,0),0) -> 0 | R71: =IFERROR(VLOOKUP($C71,OFFSET('UR & ECL'!$F$400,MATCH($C$54,'UR & ECL'!$F$400:$F$515,0),0,11,12),R$4,0),0) -> 0 | S71: =IFERROR(VLOOKUP($C71,OFFSET('UR & ECL'!$F$400,MATCH($C$54,'UR & ECL'!$F$400:$F$515,0),0,11,12),S$4,0),0) -> 0 | T71: 0 | U71: 0 | V71: =IFERROR(VLOOKUP($C71,OFFSET(Budget!$C$43,MATCH($C$54,Budget!$C$43:$C$349,0)+3,0,11,154),44+$G$2,0),0) -> 0 | W71: 0 | X71: =IFERROR(HLOOKUP($X$7,TRUST!$S$128:$AE$136,4,FALSE)+HLOOKUP($X$7,TRUST!$S$128:$AE$136,6,FALSE),0) -> 0 | Y71: =IFERROR(HLOOKUP($Y$7,TRUST!$S$128:$AE$136,4,FALSE)+HLOOKUP($Y$7,TRUST!$S$128:$AE$136,6,FALSE),0) -> 0 | Z71: =IFERROR(VLOOKUP($C71,OFFSET(Budget!$C$43,MATCH($C$54,Budget!$C$43:$C$349,0)+3,0,11,154),101+$G$2,0),0) -> 0 | AA71: =IFERROR(HLOOKUP($Y$7,TRUST!$AJ$128:$AU$136,4,FALSE)+HLOOKUP($Y$7,TRUST!$AJ$128:$AU$136,6,FALSE),0) -> 0 | AB71: =IFERROR(SUM(OFFSET(Budget!$C$43,MATCH($C$54,Budget!$C$43:$C$349,0)+2+A71,101,1,$G$2)),0) -> 0 | AC71: =IFERROR(VLOOKUP($C71,OFFSET(Budget!$C$43,MATCH($C$54,Budget!$C$43:$C$349,0)+3,0,11,154),114,0),0) -> 0 | AD71: 0 | AE71: =IFERROR(SUM(OFFSET(Budget!$C$43,MATCH($C$54,Budget!$C$43:$C$349,0)+2+$A71,141,1,$G$2)),"") -> 0 | AF71: =IFERROR(VLOOKUP($C71,OFFSET(Budget!$C$43,MATCH($C$54,Budget!$C$43:$C$349,0)+3,0,12,154),58,0),"") -> 
B72: 6 | C72: Fair Value Gain/Loss | D72: 0 | E72: =IFERROR(VLOOKUP($C72,OFFSET('UR & ECL'!$F$400,MATCH($C$54,'UR & ECL'!$F$400:$F$515,0),0,11,12),E$4,0),0) -> 0 | F72: =IFERROR(VLOOKUP($C72,OFFSET('UR & ECL'!$F$400,MATCH($C$54,'UR & ECL'!$F$400:$F$515,0),0,11,12),F$4,0),0) -> 0 | G72: =IFERROR(VLOOKUP($C72,OFFSET('UR & ECL'!$F$400,MATCH($C$54,'UR & ECL'!$F$400:$F$515,0),0,11,12),G$4,0),0) -> 0 | H72: 0 | I72: 0 | K72: =IFERROR(VLOOKUP($C72,OFFSET('UR & ECL'!$F$400,MATCH($C$54,'UR & ECL'!$F$400:$F$515,0),0,11,12),K$4,0),0) -> 0 | L72: =IFERROR(VLOOKUP($C72,OFFSET('UR & ECL'!$F$400,MATCH($C$54,'UR & ECL'!$F$400:$F$515,0),0,11,12),L$4,0),0) -> 0 | M72: =IFERROR(VLOOKUP($C72,OFFSET('UR & ECL'!$F$400,MATCH($C$54,'UR & ECL'!$F$400:$F$515,0),0,11,12),M$4,0),0) -> 0 | N72: 0 | P72: 0 | Q72: =IFERROR(VLOOKUP($C72,OFFSET('UR & ECL'!$F$400,MATCH($C$54,'UR & ECL'!$F$400:$F$515,0),0,11,12),Q$4,0),0) -> 0 | R72: =IFERROR(VLOOKUP($C72,OFFSET('UR & ECL'!$F$400,MATCH($C$54,'UR & ECL'!$F$400:$F$515,0),0,11,12),R$4,0),0) -> 0 | S72: =IFERROR(VLOOKUP($C72,OFFSET('UR & ECL'!$F$400,MATCH($C$54,'UR & ECL'!$F$400:$F$515,0),0,11,12),S$4,0),0) -> 0 | T72: 0 | U72: 0 | V72: =IFERROR(VLOOKUP($C72,OFFSET(Budget!$C$43,MATCH($C$54,Budget!$C$43:$C$349,0)+3,0,11,154),44+$G$2,0),0) -> 0 | W72: 0 | X72: =IFERROR(HLOOKUP($X$7,TRUST!$S$128:$AE$136,8,FALSE),0) -> 0 | Y72: =IFERROR(HLOOKUP($Y$7,TRUST!$S$128:$AE$136,8,FALSE),0) -> 0 | Z72: =IFERROR(VLOOKUP($C72,OFFSET(Budget!$C$43,MATCH($C$54,Budget!$C$43:$C$349,0)+3,0,11,154),101+$G$2,0),0) -> 0 | AA72: =IFERROR(HLOOKUP($Y$7,TRUST!$AJ$128:$AU$136,8,FALSE),0) -> 0 | AB72: =IFERROR(SUM(OFFSET(Budget!$C$43,MATCH($C$54,Budget!$C$43:$C$349,0)+2+A72,101,1,$G$2)),0) -> 0 | AC72: =IFERROR(VLOOKUP($C72,OFFSET(Budget!$C$43,MATCH($C$54,Budget!$C$43:$C$349,0)+3,0,11,154),114,0),0) -> 0 | AD72: 0 | AE72: =IFERROR(SUM(OFFSET(Budget!$C$43,MATCH($C$54,Budget!$C$43:$C$349,0)+2+$A72,141,1,$G$2)),"") -> 0 | AF72: =IFERROR(VLOOKUP($C72,OFFSET(Budget!$C$43,MATCH($C$54,Budget!$C$43:$C$349,0)+3,0,12,154),58,0),"") -> 
A73: 8 | C73: ITA | D73: =ITA!$D$136 -> 0 | E73: =IFERROR(VLOOKUP($C73,OFFSET('UR & ECL'!$F$400,MATCH($C$54,'UR & ECL'!$F$400:$F$515,0),0,11,12),E$4,0),0) -> 0 | F73: =IFERROR(VLOOKUP($C73,OFFSET('UR & ECL'!$F$400,MATCH($C$54,'UR & ECL'!$F$400:$F$515,0),0,11,12),F$4,0),0) -> 0 | G73: =IFERROR(VLOOKUP($C73,OFFSET('UR & ECL'!$F$400,MATCH($C$54,'UR & ECL'!$F$400:$F$515,0),0,11,12),G$4,0),0) -> 0 | H73: =D73+E73+F73+G73 -> 0 | I73: 0 | J73: =IFERROR(HLOOKUP($N$7,ITA!$D$128:$P$136,9,FALSE),0) -> 0 | K73: =IFERROR(VLOOKUP($C73,OFFSET('UR & ECL'!$F$400,MATCH($C$54,'UR & ECL'!$F$400:$F$515,0),0,11,12),K$4,0),0) -> 0 | L73: =IFERROR(VLOOKUP($C73,OFFSET('UR & ECL'!$F$400,MATCH($C$54,'UR & ECL'!$F$400:$F$515,0),0,11,12),L$4,0),0) -> 0 | M73: =IFERROR(VLOOKUP($C73,OFFSET('UR & ECL'!$F$400,MATCH($C$54,'UR & ECL'!$F$400:$F$515,0),0,11,12),M$4,0),0) -> 0 | N73: 0 | O73: =IFERROR(HLOOKUP($T$7,ITA!$D$128:$P$136,9,FALSE),0) -> 0 | P73: 0 | Q73: =IFERROR(VLOOKUP($C73,OFFSET('UR & ECL'!$F$400,MATCH($C$54,'UR & ECL'!$F$400:$F$515,0),0,11,12),Q$4,0),0) -> 0 | R73: =IFERROR(VLOOKUP($C73,OFFSET('UR & ECL'!$F$400,MATCH($C$54,'UR & ECL'!$F$400:$F$515,0),0,11,12),R$4,0),0) -> 0 | S73: =IFERROR(VLOOKUP($C73,OFFSET('UR & ECL'!$F$400,MATCH($C$54,'UR & ECL'!$F$400:$F$515,0),0,11,12),S$4,0),0) -> 0 | T73: 0 | U73: 0 | V73: =IFERROR(VLOOKUP($C73,OFFSET(Budget!$C$43,MATCH($C$54,Budget!$C$43:$C$349,0)+3,0,11,154),44+$G$2,0),0) -> 0 | W73: 0 | X73: =IFERROR(HLOOKUP($X$7,ITA!$S$128:$AE$136,9,FALSE),0) -> 0 | Y73: =IFERROR(HLOOKUP($Y$7,ITA!$S$128:$AE$136,9,FALSE),0) -> 0 | Z73: =IFERROR(VLOOKUP($C73,OFFSET(Budget!$C$43,MATCH($C$54,Budget!$C$43:$C$349,0)+3,0,11,154),101+$G$2,0),0) -> 0 | AA73: =IFERROR(HLOOKUP($Y$7,ITA!$AJ$128:$AU$136,9,FALSE),0) -> 0 | AB73: =IFERROR(SUM(OFFSET(Budget!$C$43,MATCH($C$54,Budget!$C$43:$C$349,0)+2+A73,101,1,$G$2)),0) -> 0 | AC73: =IFERROR(VLOOKUP($C73,OFFSET(Budget!$C$43,MATCH($C$54,Budget!$C$43:$C$349,0)+3,0,11,154),114,0),0) -> 0 | AD73: 0 | AE73: =IFERROR(SUM(OFFSET(Budget!$C$43,MATCH($C$54,Budget!$C$43:$C$349,0)+2+$A73,141,1,$G$2)),"") -> 0 | AF73: =IFERROR(VLOOKUP($C73,OFFSET(Budget!$C$43,MATCH($C$54,Budget!$C$43:$C$349,0)+3,0,12,154),58,0),"") -> 0
A74: 9 | C74: Corporate Sukuk | D74: =SUKUK!$D$136 -> 7171229.58 | E74: =IFERROR(VLOOKUP($C74,OFFSET('UR & ECL'!$F$400,MATCH($C$54,'UR & ECL'!$F$400:$F$515,0),0,11,12),E$4,0),0) -> 866540.42 | F74: =IFERROR(VLOOKUP($C74,OFFSET('UR & ECL'!$F$400,MATCH($C$54,'UR & ECL'!$F$400:$F$515,0),0,11,12),F$4,0),0) -> 0 | G74: =IFERROR(VLOOKUP($C74,OFFSET('UR & ECL'!$F$400,MATCH($C$54,'UR & ECL'!$F$400:$F$515,0),0,11,12),G$4,0),0) -> 0 | H74: =D74+E74+F74+G74 -> 8037770 | I74: 23.75213309 | J74: =IFERROR(HLOOKUP($N$7,SUKUK!$D$128:$P$136,9,FALSE),0) -> 0 | K74: =IFERROR(VLOOKUP($C74,OFFSET('UR & ECL'!$F$400,MATCH($C$54,'UR & ECL'!$F$400:$F$515,0),0,11,12),K$4,0),0) -> 411589.69 | L74: =IFERROR(VLOOKUP($C74,OFFSET('UR & ECL'!$F$400,MATCH($C$54,'UR & ECL'!$F$400:$F$515,0),0,11,12),L$4,0),0) -> 0 | M74: =IFERROR(VLOOKUP($C74,OFFSET('UR & ECL'!$F$400,MATCH($C$54,'UR & ECL'!$F$400:$F$515,0),0,11,12),M$4,0),0) -> 0 | N74: 411589.69 | O74: =IFERROR(HLOOKUP($T$7,SUKUK!$D$128:$P$136,9,FALSE),0) -> 0 | P74: 0 | Q74: =IFERROR(VLOOKUP($C74,OFFSET('UR & ECL'!$F$400,MATCH($C$54,'UR & ECL'!$F$400:$F$515,0),0,11,12),Q$4,0),0) -> 404745.46 | R74: =IFERROR(VLOOKUP($C74,OFFSET('UR & ECL'!$F$400,MATCH($C$54,'UR & ECL'!$F$400:$F$515,0),0,11,12),R$4,0),0) -> 0 | S74: =IFERROR(VLOOKUP($C74,OFFSET('UR & ECL'!$F$400,MATCH($C$54,'UR & ECL'!$F$400:$F$515,0),0,11,12),S$4,0),0) -> 0 | T74: 404745.46 | U74: 41.71148078 | V74: =IFERROR(VLOOKUP($C74,OFFSET(Budget!$C$43,MATCH($C$54,Budget!$C$43:$C$349,0)+3,0,11,154),44+$G$2,0),0) -> 8751621.574 | W74: 23.98555491 | X74: =IFERROR(HLOOKUP($X$7,SUKUK!$S$128:$AE$136,9,FALSE),0) -> 0 | Y74: =IFERROR(HLOOKUP($Y$7,SUKUK!$S$128:$AE$136,9,FALSE),0) -> 0 | Z74: =IFERROR(VLOOKUP($C74,OFFSET(Budget!$C$43,MATCH($C$54,Budget!$C$43:$C$349,0)+3,0,11,154),101+$G$2,0),0) -> 27813.69593 | AA74: =IFERROR(HLOOKUP($Y$7,SUKUK!$AJ$128:$AU$136,9,FALSE),0) -> 0 | AB74: =IFERROR(SUM(OFFSET(Budget!$C$43,MATCH($C$54,Budget!$C$43:$C$349,0)+2+A74,101,1,$G$2)),0) -> 58490.20631 | AC74: =IFERROR(VLOOKUP($C74,OFFSET(Budget!$C$43,MATCH($C$54,Budget!$C$43:$C$349,0)+3,0,11,154),114,0),0) -> 370037.8876 | AD74: 0 | AE74: =IFERROR(SUM(OFFSET(Budget!$C$43,MATCH($C$54,Budget!$C$43:$C$349,0)+2+$A74,141,1,$G$2)),"") -> 0.6755161403 | AF74: =IFERROR(VLOOKUP($C74,OFFSET(Budget!$C$43,MATCH($C$54,Budget!$C$43:$C$349,0)+3,0,12,154),58,0),"") -> 4.179040529
A75: 10 | C75: Properties | D75: =PROPERTY!$D$136 -> 0 | E75: =IFERROR(VLOOKUP($C75,OFFSET('UR & ECL'!$F$400,MATCH($C$54,'UR & ECL'!$F$400:$F$515,0),0,11,12),E$4,0),0) -> 0 | F75: =IFERROR(VLOOKUP($C75,OFFSET('UR & ECL'!$F$400,MATCH($C$54,'UR & ECL'!$F$400:$F$515,0),0,11,12),F$4,0),0) -> 0 | G75: =IFERROR(VLOOKUP($C75,OFFSET('UR & ECL'!$F$400,MATCH($C$54,'UR & ECL'!$F$400:$F$515,0),0,11,12),G$4,0),0) -> 0 | H75: 0 | I75: 0 | J75: =IFERROR(HLOOKUP($N$7,PROPERTY!$D$128:$P$136,9,FALSE),0) -> 0 | K75: =IFERROR(VLOOKUP($C75,OFFSET('UR & ECL'!$F$400,MATCH($C$54,'UR & ECL'!$F$400:$F$515,0),0,11,12),K$4,0),0) -> 0 | L75: =IFERROR(VLOOKUP($C75,OFFSET('UR & ECL'!$F$400,MATCH($C$54,'UR & ECL'!$F$400:$F$515,0),0,11,12),L$4,0),0) -> 0 | M75: =IFERROR(VLOOKUP($C75,OFFSET('UR & ECL'!$F$400,MATCH($C$54,'UR & ECL'!$F$400:$F$515,0),0,11,12),M$4,0),0) -> 0 | N75: 0 | O75: =IFERROR(HLOOKUP($T$7,PROPERTY!$D$128:$P$136,9,FALSE),0) -> 0 | P75: 0 | Q75: =IFERROR(VLOOKUP($C75,OFFSET('UR & ECL'!$F$400,MATCH($C$54,'UR & ECL'!$F$400:$F$515,0),0,11,12),Q$4,0),0) -> 0 | R75: =IFERROR(VLOOKUP($C75,OFFSET('UR & ECL'!$F$400,MATCH($C$54,'UR & ECL'!$F$400:$F$515,0),0,11,12),R$4,0),0) -> 0 | S75: =IFERROR(VLOOKUP($C75,OFFSET('UR & ECL'!$F$400,MATCH($C$54,'UR & ECL'!$F$400:$F$515,0),0,11,12),S$4,0),0) -> 0 | T75: 0 | U75: 0 | V75: =IFERROR(VLOOKUP($C75,OFFSET(Budget!$C$43,MATCH($C$54,Budget!$C$43:$C$349,0)+3,0,11,154),44+$G$2,0),0) -> 0 | W75: 0 | X75: =IFERROR(HLOOKUP($X$7,PROPERTY!$S$128:$AE$136,9,FALSE),0) -> 0 | Y75: =IFERROR(HLOOKUP($Y$7,PROPERTY!$S$128:$AE$136,9,FALSE),0) -> 0 | Z75: =IFERROR(VLOOKUP($C75,OFFSET(Budget!$C$43,MATCH($C$54,Budget!$C$43:$C$349,0)+3,0,11,154),101+$G$2,0),0) -> 0 | AA75: =IFERROR(HLOOKUP($Y$7,PROPERTY!$AJ$128:$AU$136,9,FALSE),0) -> 0 | AB75: =IFERROR(SUM(OFFSET(Budget!$C$43,MATCH($C$54,Budget!$C$43:$C$349,0)+2+A75,101,1,$G$2)),0) -> 0 | AC75: =IFERROR(VLOOKUP($C75,OFFSET(Budget!$C$43,MATCH($C$54,Budget!$C$43:$C$349,0)+3,0,11,154),114,0),0) -> 0 | AD75: 0 | AE75: =IFERROR(SUM(OFFSET(Budget!$C$43,MATCH($C$54,Budget!$C$43:$C$349,0)+2+$A75,141,1,$G$2)),"") -> 0 | AF75: =IFERROR(VLOOKUP($C75,OFFSET(Budget!$C$43,MATCH($C$54,Budget!$C$43:$C$349,0)+3,0,12,154),58,0),"") -> 0
A76: 11 | C76: TOTAL | D76: =SUM(D59:D75) -> 32077912.35 | E76: =SUM(E59:E75) -> 866540.42 | F76: 895750 | G76: 0 | H76: =SUM(H59:H75) -> 33840202.77 | I76: 100 | J76: 0 | K76: 411589.69 | L76: 525550 | M76: 0 | N76: 937139.69 | O76: 0 | P76: 0 | Q76: 404745.46 | R76: 565600 | S76: 0 | T76: 970345.46 | U76: =SUM(U59:U75) -> 100 | V76: =SUM(V59:V75) -> 36487050.67 | W76: =SUM(W59,W66,W74) -> 100 | X76: =SUM(X59:X62,X65:X67,X70,X73:X75) -> 0 | Y76: =SUM(Y59:Y62,Y65:Y67,Y70,Y73:Y75) -> 0 | Z76: =SUM(Z59:Z75) -> 77472.48864 | AA76: =SUM(AA59:AA62,AA65:AA67,AA70,AA73:AA75) -> 0 | AB76: =SUM(AB59:AB75) -> 162919.0833 | AC76: =SUM(AC59:AC75) -> 1030706.459 | AD76: =((2*AA76)/(D76+O76-AA76)*100) -> 0 | AE76: =IFERROR(SUM(OFFSET(Budget!$C$43,MATCH($C$54,Budget!$C$43:$C$349,0)+2+$A76,141,1,$G$2)),"") -> 0.4503037225 | AF76: =IFERROR(VLOOKUP($C76,OFFSET(Budget!$C$43,MATCH($C$54,Budget!$C$43:$C$349,0)+3,0,12,154),58,0),"") -> 2.785777266
X77: =HLOOKUP($X$7,DEPOSIT!$S$128:$AE$136,9,FALSE)+HLOOKUP($X$7,EQUITY!$S$128:$AE$136,9,FALSE)+HLOOKUP($X$7,SUKUK!$S$128:$AE$136,9,FALSE)+HLOOKUP($X$7,GG!$S$128:$AE$136,9,FALSE)-X76 ->  | Y77: =HLOOKUP($Y$7,DEPOSIT!$S$128:$AE$136,9,FALSE)+HLOOKUP($Y$7,EQUITY!$S$128:$AE$136,9,FALSE)+HLOOKUP($Y$7,SUKUK!$S$128:$AE$136,9,FALSE)+HLOOKUP($Y$7,GG!$S$128:$AE$136,9,FALSE)-Y76 ->  | AA77: =HLOOKUP($Y$7,DEPOSIT!$AJ$128:$AU$136,9,FALSE)+HLOOKUP($Y$7,EQUITY!$AJ$128:$AU$136,9,FALSE)+HLOOKUP($Y$7,SUKUK!$AJ$128:$AU$136,9,FALSE)+HLOOKUP($Y$7,GG!$S$128:$AE$136,9,FALSE)-AA76 -> 
AF79: APPENDIX II
C80: BREAKDOWN ON INVESTMENT LINKED UNIT FUND
C81: ISTIQRAR
C82: ISTIQRAR
D83: ASSET ALLOCATION | X83: RM INCOME | AD83: % YIELD
D84: Cost | E84: UR Gain/Loss | F84: Reserve | G84: ECL | H84: =H57 -> FYE2019 | I84: % | J84: Cost | K84: UR Gain/Loss | L84: Reserve | M84: ECL | N84: =$N$7 -> 2020-01-01 | O84: Cost | P84: % | Q84: UR Gain/Loss | R84: Reserve | S84: ECL | T84: =T57 -> 2020-02-01 | U84: % | V84: =$V$7 -> BUDGET (RM) | W84: =$W$7 -> BUDGET (%) | X84: =$N$7 -> 2020-01-01 | Y84: =$T$32 -> 2020-02-01 | Z84: MONTHLY BUDGET | AA84: =+$AA$7 -> YTD | AB84: ="YTD BUDGET (" &$G$2&" mths)" -> YTD BUDGET (2 mths) | AC84: BUDGET (12 mths) | AD84: =+$AD$7 -> YTD | AE84: ="YTD BUDGET (" &$G$2& " mths)" -> YTD BUDGET (2 mths) | AF84: BUDGET (12 mths)
A86: 1 | C86: Deposits & Money Market | D86: 0 | E86: =IFERROR(VLOOKUP($C86,OFFSET('UR & ECL'!$F$400,MATCH($C$81,'UR & ECL'!$F$400:$F$515,0),0,11,12),E$4,0),0) -> 0 | F86: =IFERROR(VLOOKUP($C86,OFFSET('UR & ECL'!$F$400,MATCH($C$81,'UR & ECL'!$F$400:$F$515,0),0,11,12),F$4,0),0) -> 0 | G86: =IFERROR(VLOOKUP($C86,OFFSET('UR & ECL'!$F$400,MATCH($C$81,'UR & ECL'!$F$400:$F$515,0),0,11,12),G$4,0),0) -> 0 | H86: 0 | I86: =IFERROR(H86/H$103*100,0) -> 0 | J86: 0 | K86: =IFERROR(VLOOKUP($C86,OFFSET('UR & ECL'!$F$400,MATCH($C$81,'UR & ECL'!$F$400:$F$515,0),0,11,12),K$4,0),0) -> 0 | L86: =IFERROR(VLOOKUP($C86,OFFSET('UR & ECL'!$F$400,MATCH($C$81,'UR & ECL'!$F$400:$F$515,0),0,11,12),L$4,0),0) -> 0 | M86: =IFERROR(VLOOKUP($C86,OFFSET('UR & ECL'!$F$400,MATCH($C$81,'UR & ECL'!$F$400:$F$515,0),0,11,12),M$4,0),0) -> 0 | N86: =J86+K86+L86+M86 -> 0 | O86: 0 | P86: =IFERROR(O86/$O$103*100,0) -> 0 | Q86: =IFERROR(VLOOKUP($C86,OFFSET('UR & ECL'!$F$400,MATCH($C$81,'UR & ECL'!$F$400:$F$515,0),0,11,12),Q$4,0),0) -> 0 | R86: =IFERROR(VLOOKUP($C86,OFFSET('UR & ECL'!$F$400,MATCH($C$81,'UR & ECL'!$F$400:$F$515,0),0,11,12),R$4,0),0) -> 0 | S86: =IFERROR(VLOOKUP($C86,OFFSET('UR & ECL'!$F$400,MATCH($C$81,'UR & ECL'!$F$400:$F$515,0),0,11,12),S$4,0),0) -> 0 | T86: 0 | U86: =IFERROR(T86/T$103*100,0) -> 0 | V86: =IFERROR(VLOOKUP($C86,OFFSET(Budget!$C$43,MATCH($C$81,Budget!$C$43:$C$349,0)+3,0,11,154),44+$G$2,0),0) -> 0 | W86: =V86/$V$103*100 ->  | X86: 0 | Y86: 0 | Z86: =IFERROR(VLOOKUP($C86,OFFSET(Budget!$C$43,MATCH($C$81,Budget!$C$43:$C$349,0)+3,0,11,154),101+$G$2,0),0) -> 0 | AA86: =IFERROR(HLOOKUP($Y$7,DEPOSIT!$AJ$68:$AU$76,9,FALSE),0) -> 0 | AB86: =IFERROR(SUM(OFFSET(Budget!$C$43,MATCH($C$81,Budget!$C$43:$C$349,0)+2+A86,101,1,$G$2)),0) -> 0 | AC86: =IFERROR(VLOOKUP($C86,OFFSET(Budget!$C$43,MATCH($C$81,Budget!$C$43:$C$349,0)+3,0,11,154),114,0),0) -> 0 | AD86: 0 | AE86: =IFERROR(SUM(OFFSET(Budget!$C$43,MATCH($C$81,Budget!$C$43:$C$349,0)+2+$A86,141,1,$G$2)),"") ->  | AF86: =IFERROR(VLOOKUP($C86,OFFSET(Budget!$C$43,MATCH($C$81,Budget!$C$43:$C$349,0)+3,0,12,154),58,0),"") ->  | AJ86: =C86 -> Deposits & Money Market | AK86: =O86 -> 0 | AL86: =Q86 -> 0 | AM86: 0 | AN86: 0 | AO86: =AK86+AL86+AM86+AN86 -> 0
A87: 2 | C87: Banca Deposit | D87: 0 | E87: =IFERROR(VLOOKUP($C87,OFFSET('UR & ECL'!$F$400,MATCH($C$81,'UR & ECL'!$F$400:$F$515,0),0,11,12),E$4,0),0) -> 0 | F87: =IFERROR(VLOOKUP($C87,OFFSET('UR & ECL'!$F$400,MATCH($C$81,'UR & ECL'!$F$400:$F$515,0),0,11,12),F$4,0),0) -> 0 | G87: =IFERROR(VLOOKUP($C87,OFFSET('UR & ECL'!$F$400,MATCH($C$81,'UR & ECL'!$F$400:$F$515,0),0,11,12),G$4,0),0) -> 0 | H87: 0 | I87: =IFERROR(H87/H$103*100,0) -> 0 | J87: 0 | K87: =IFERROR(VLOOKUP($C87,OFFSET('UR & ECL'!$F$400,MATCH($C$81,'UR & ECL'!$F$400:$F$515,0),0,11,12),K$4,0),0) -> 0 | L87: =IFERROR(VLOOKUP($C87,OFFSET('UR & ECL'!$F$400,MATCH($C$81,'UR & ECL'!$F$400:$F$515,0),0,11,12),L$4,0),0) -> 0 | M87: =IFERROR(VLOOKUP($C87,OFFSET('UR & ECL'!$F$400,MATCH($C$81,'UR & ECL'!$F$400:$F$515,0),0,11,12),M$4,0),0) -> 0 | N87: =J87+K87+L87+M87 -> 0 | O87: 0 | P87: =IFERROR(O87/$O$103*100,0) -> 0 | Q87: =IFERROR(VLOOKUP($C87,OFFSET('UR & ECL'!$F$400,MATCH($C$81,'UR & ECL'!$F$400:$F$515,0),0,11,12),Q$4,0),0) -> 0 | R87: =IFERROR(VLOOKUP($C87,OFFSET('UR & ECL'!$F$400,MATCH($C$81,'UR & ECL'!$F$400:$F$515,0),0,11,12),R$4,0),0) -> 0 | S87: =IFERROR(VLOOKUP($C87,OFFSET('UR & ECL'!$F$400,MATCH($C$81,'UR & ECL'!$F$400:$F$515,0),0,11,12),S$4,0),0) -> 0 | T87: 0 | U87: =IFERROR(T87/T$103*100,0) -> 0 | V87: =IFERROR(VLOOKUP($C87,OFFSET(Budget!$C$43,MATCH($C$81,Budget!$C$43:$C$349,0)+3,0,11,154),44+$G$2,0),0) -> 0 | W87: =V87/$V$103*100 ->  | X87: 0 | Y87: 0 | Z87: =IFERROR(VLOOKUP($C87,OFFSET(Budget!$C$43,MATCH($C$81,Budget!$C$43:$C$349,0)+3,0,11,154),101+$G$2,0),0) -> 0 | AA87: =IFERROR(HLOOKUP($Y$7,BANCA!$AJ$68:$AU$76,9,FALSE),0)+IFERROR(HLOOKUP($Y$7,'BANCA CP'!$AJ$68:$AU$76,9,FALSE),0) -> 0 | AB87: =IFERROR(SUM(OFFSET(Budget!$C$43,MATCH($C$81,Budget!$C$43:$C$349,0)+2+A87,101,1,$G$2)),0) -> 0 | AC87: =IFERROR(VLOOKUP($C87,OFFSET(Budget!$C$43,MATCH($C$81,Budget!$C$43:$C$349,0)+3,0,11,154),114,0),0) -> 0 | AD87: 0 | AE87: =IFERROR(SUM(OFFSET(Budget!$C$43,MATCH($C$81,Budget!$C$43:$C$349,0)+2+$A87,141,1,$G$2)),"") ->  | AF87: =IFERROR(VLOOKUP($C87,OFFSET(Budget!$C$43,MATCH($C$81,Budget!$C$43:$C$349,0)+3,0,12,154),58,0),"") ->  | AJ87: =C87 -> Banca Deposit | AK87: =O87 -> 0 | AL87: 0 | AM87: 0 | AN87: 0 | AO87: =AK87+AL87+AM87+AN87 -> 0
C88: Banca Commercial Paper | D88: 0 | E88: =IFERROR(VLOOKUP($C88,OFFSET('UR & ECL'!$F$400,MATCH($C$81,'UR & ECL'!$F$400:$F$515,0),0,11,12),E$4,0),0) -> 0 | F88: =IFERROR(VLOOKUP($C88,OFFSET('UR & ECL'!$F$400,MATCH($C$81,'UR & ECL'!$F$400:$F$515,0),0,11,12),F$4,0),0) -> 0 | G88: =IFERROR(VLOOKUP($C88,OFFSET('UR & ECL'!$F$400,MATCH($C$81,'UR & ECL'!$F$400:$F$515,0),0,11,12),G$4,0),0) -> 0 | H88: =D88+E88+F88+G88 -> 0 | I88: 0 | J88: 0 | K88: =IFERROR(VLOOKUP($C88,OFFSET('UR & ECL'!$F$400,MATCH($C$81,'UR & ECL'!$F$400:$F$515,0),0,11,12),K$4,0),0) -> 0 | L88: =IFERROR(VLOOKUP($C88,OFFSET('UR & ECL'!$F$400,MATCH($C$81,'UR & ECL'!$F$400:$F$515,0),0,11,12),L$4,0),0) -> 0 | M88: =IFERROR(VLOOKUP($C88,OFFSET('UR & ECL'!$F$400,MATCH($C$81,'UR & ECL'!$F$400:$F$515,0),0,11,12),M$4,0),0) -> 0 | N88: 0 | O88: 0 | P88: 0 | Q88: =IFERROR(VLOOKUP($C88,OFFSET('UR & ECL'!$F$400,MATCH($C$81,'UR & ECL'!$F$400:$F$515,0),0,11,12),Q$4,0),0) -> 0 | R88: =IFERROR(VLOOKUP($C88,OFFSET('UR & ECL'!$F$400,MATCH($C$81,'UR & ECL'!$F$400:$F$515,0),0,11,12),R$4,0),0) -> 0 | S88: =IFERROR(VLOOKUP($C88,OFFSET('UR & ECL'!$F$400,MATCH($C$81,'UR & ECL'!$F$400:$F$515,0),0,11,12),S$4,0),0) -> 0 | T88: =O88+Q88+R88+S88 -> 0 | U88: 0 | V88: =IFERROR(VLOOKUP($C88,OFFSET(Budget!$C$43,MATCH($C$81,Budget!$C$43:$C$349,0)+3,0,11,154),44+$G$2,0),0) -> 0 | X88: =IFERROR(HLOOKUP($X$7,'BANCA CP'!$S$68:$AE$76,9,FALSE),0) -> 0 | Y88: =IFERROR(HLOOKUP($Y$7,'BANCA CP'!$S$68:$AE$76,9,FALSE),0) -> 0 | Z88: =IFERROR(VLOOKUP($C88,OFFSET('[6]Revised Budget 2019'!$C$43,MATCH($C$81,'[6]Revised Budget 2019'!$C$43:$C$270,0)+3,0,11,154),101+$G$2,0),0) -> 0 | AB88: =IFERROR(SUM(OFFSET('[6]Revised Budget 2019'!$C$43,MATCH($C$81,'[6]Revised Budget 2019'!$C$43:$C$270,0)+2+A88,101,1,$G$2)),0) -> 0 | AC88: =IFERROR(VLOOKUP($C88,OFFSET('[6]Revised Budget 2019'!$C$43,MATCH($C$81,'[6]Revised Budget 2019'!$C$43:$C$270,0)+3,0,11,154),114,0),0) -> 0 | AE88: =IFERROR(SUM(OFFSET('[6]Revised Budget 2019'!$C$43,MATCH(#REF!,'[6]Revised Budget 2019'!$C$43:$C$270,0)+2+$A88,141,1,$G$2)),"") ->  | AF88: =IFERROR(VLOOKUP($C88,OFFSET('[6]Revised Budget 2019'!$C$43,MATCH(#REF!,'[6]Revised Budget 2019'!$C$43:$C$270,0)+3,0,12,154),58,0),"") ->  | AJ88: =C89 -> Structured Deposit | AK88: =O89 -> 0 | AL88: =Q89 -> 0 | AM88: =R89 -> 0 | AN88: =S89 -> 0 | AO88: 0
A89: 3 | C89: Structured Deposit | D89: 0 | E89: =IFERROR(VLOOKUP($C89,OFFSET('UR & ECL'!$F$400,MATCH($C$81,'UR & ECL'!$F$400:$F$515,0),0,11,12),E$4,0),0) -> 0 | F89: =IFERROR(VLOOKUP($C89,OFFSET('UR & ECL'!$F$400,MATCH($C$81,'UR & ECL'!$F$400:$F$515,0),0,11,12),F$4,0),0) -> 0 | G89: =IFERROR(VLOOKUP($C89,OFFSET('UR & ECL'!$F$400,MATCH($C$81,'UR & ECL'!$F$400:$F$515,0),0,11,12),G$4,0),0) -> 0 | H89: =D89+E89+F89+G89 -> 0 | I89: 0 | J89: 0 | K89: =IFERROR(VLOOKUP($C89,OFFSET('UR & ECL'!$F$400,MATCH($C$81,'UR & ECL'!$F$400:$F$515,0),0,11,12),K$4,0),0) -> 0 | L89: =IFERROR(VLOOKUP($C89,OFFSET('UR & ECL'!$F$400,MATCH($C$81,'UR & ECL'!$F$400:$F$515,0),0,11,12),L$4,0),0) -> 0 | M89: =IFERROR(VLOOKUP($C89,OFFSET('UR & ECL'!$F$400,MATCH($C$81,'UR & ECL'!$F$400:$F$515,0),0,11,12),M$4,0),0) -> 0 | N89: 0 | O89: 0 | P89: 0 | Q89: =IFERROR(VLOOKUP($C89,OFFSET('UR & ECL'!$F$400,MATCH($C$81,'UR & ECL'!$F$400:$F$515,0),0,11,12),Q$4,0),0) -> 0 | R89: =IFERROR(VLOOKUP($C89,OFFSET('UR & ECL'!$F$400,MATCH($C$81,'UR & ECL'!$F$400:$F$515,0),0,11,12),R$4,0),0) -> 0 | S89: =IFERROR(VLOOKUP($C89,OFFSET('UR & ECL'!$F$400,MATCH($C$81,'UR & ECL'!$F$400:$F$515,0),0,11,12),S$4,0),0) -> 0 | T89: =O89+Q89+R89+S89 -> 0 | U89: 0 | V89: =IFERROR(VLOOKUP($C89,OFFSET(Budget!$C$43,MATCH($C$81,Budget!$C$43:$C$349,0)+3,0,11,154),44+$G$2,0),0) -> 0 | X89: =SUM(X90:X91) -> 0 | Y89: =SUM(Y90:Y91) -> 0 | Z89: =IFERROR(VLOOKUP($C89,OFFSET(Budget!$C$43,MATCH($C$81,Budget!$C$43:$C$349,0)+3,0,11,154),101+$G$2,0),0) -> 0 | AA89: =SUM(AA90:AA91) -> 0 | AB89: =IFERROR(SUM(OFFSET(Budget!$C$43,MATCH($C$81,Budget!$C$43:$C$349,0)+2+A89,101,1,$G$2)),0) -> 0 | AC89: =IFERROR(VLOOKUP($C89,OFFSET(Budget!$C$43,MATCH($C$81,Budget!$C$43:$C$349,0)+3,0,11,154),114,0),0) -> 0 | AD89: =IFERROR((2*AA89)/(H89-R89+T89-F89-AA89)*100,0) -> 0 | AE89: =IFERROR(SUM(OFFSET(Budget!$C$43,MATCH($C$81,Budget!$C$43:$C$349,0)+2+$A89,141,1,$G$2)),"") ->  | AF89: =IFERROR(VLOOKUP($C89,OFFSET(Budget!$C$43,MATCH($C$81,Budget!$C$43:$C$349,0)+3,0,12,154),58,0),"") ->  | AJ89: =C92 -> GII | AK89: =O92 -> 0 | AL89: =Q92 -> 0 | AM89: 0 | AN89: 0 | AO89: 0
B90: 1 | C90: Income | D90: 0 | E90: =IFERROR(VLOOKUP($C90,OFFSET('UR & ECL'!$F$400,MATCH($C$81,'UR & ECL'!$F$400:$F$515,0),0,11,12),E$4,0),0) -> 0 | F90: =IFERROR(VLOOKUP($C90,OFFSET('UR & ECL'!$F$400,MATCH($C$81,'UR & ECL'!$F$400:$F$515,0),0,11,12),F$4,0),0) -> 0 | G90: =IFERROR(VLOOKUP($C90,OFFSET('UR & ECL'!$F$400,MATCH($C$81,'UR & ECL'!$F$400:$F$515,0),0,11,12),G$4,0),0) -> 0 | H90: =D90+E90+F90+G90 -> 0 | I90: 0 | J90: 0 | K90: =IFERROR(VLOOKUP($C90,OFFSET('UR & ECL'!$F$400,MATCH($C$81,'UR & ECL'!$F$400:$F$515,0),0,11,12),K$4,0),0) -> 0 | L90: =IFERROR(VLOOKUP($C90,OFFSET('UR & ECL'!$F$400,MATCH($C$81,'UR & ECL'!$F$400:$F$515,0),0,11,12),L$4,0),0) -> 0 | M90: =IFERROR(VLOOKUP($C90,OFFSET('UR & ECL'!$F$400,MATCH($C$81,'UR & ECL'!$F$400:$F$515,0),0,11,12),M$4,0),0) -> 0 | N90: 0 | O90: 0 | P90: 0 | Q90: =IFERROR(VLOOKUP($C90,OFFSET('UR & ECL'!$F$400,MATCH($C$81,'UR & ECL'!$F$400:$F$515,0),0,11,12),Q$4,0),0) -> 0 | R90: =IFERROR(VLOOKUP($C90,OFFSET('UR & ECL'!$F$400,MATCH($C$81,'UR & ECL'!$F$400:$F$515,0),0,11,12),R$4,0),0) -> 0 | S90: =IFERROR(VLOOKUP($C90,OFFSET('UR & ECL'!$F$400,MATCH($C$81,'UR & ECL'!$F$400:$F$515,0),0,11,12),S$4,0),0) -> 0 | T90: =O90+Q90+R90+S90 -> 0 | U90: 0 | V90: =IFERROR(VLOOKUP($C90,OFFSET(Budget!$C$43,MATCH($C$81,Budget!$C$43:$C$349,0)+3,0,11,154),44+$G$2,0),0) -> 0 | X90: =IFERROR(HLOOKUP($X$7,STRUCTDEP!$S$68:$AE$76,4,FALSE),0) -> 0 | Y90: =IFERROR(HLOOKUP($Y$7,STRUCTDEP!$S$68:$AE$76,4,FALSE),0) -> 0 | Z90: =IFERROR(VLOOKUP($C90,OFFSET(Budget!$C$43,MATCH($C$81,Budget!$C$43:$C$349,0)+3,0,11,154),101+$G$2,0),0) -> 0 | AA90: =IFERROR(HLOOKUP($Y$7,STRUCTDEP!$AJ$68:$AU$76,4,FALSE),0) -> 0 | AB90: =IFERROR(SUM(OFFSET(Budget!$C$43,MATCH($C$81,Budget!$C$43:$C$349,0)+2+A90,101,1,$G$2)),0) -> 0 | AC90: =IFERROR(VLOOKUP($C90,OFFSET(Budget!$C$43,MATCH($C$81,Budget!$C$43:$C$349,0)+3,0,11,154),114,0),0) -> 0 | AD90: =IFERROR((2*AA90)/(H90-R90+T90-F90-AA90)*100,0) -> 0 | AE90: =IFERROR(SUM(OFFSET(Budget!$C$43,MATCH($C$81,Budget!$C$43:$C$349,0)+2+$A90,141,1,$G$2)),"") ->  | AF90: =IFERROR(VLOOKUP($C90,OFFSET(Budget!$C$43,MATCH($C$81,Budget!$C$43:$C$349,0)+3,0,12,154),58,0),"") ->  | AJ90: =C93 -> GG | AK90: =O93 -> 0 | AL90: 0 | AM90: 0 | AN90: 0 | AO90: 0
B91: 2 | C91: Fair Value Gain/Loss | D91: 0 | E91: =IFERROR(VLOOKUP($C91,OFFSET('UR & ECL'!$F$400,MATCH($C$81,'UR & ECL'!$F$400:$F$515,0),0,11,12),E$4,0),0) -> 0 | F91: =IFERROR(VLOOKUP($C91,OFFSET('UR & ECL'!$F$400,MATCH($C$81,'UR & ECL'!$F$400:$F$515,0),0,11,12),F$4,0),0) -> 0 | G91: =IFERROR(VLOOKUP($C91,OFFSET('UR & ECL'!$F$400,MATCH($C$81,'UR & ECL'!$F$400:$F$515,0),0,11,12),G$4,0),0) -> 0 | H91: =D91+E91+F91+G91 -> 0 | I91: 0 | J91: 0 | K91: =IFERROR(VLOOKUP($C91,OFFSET('UR & ECL'!$F$400,MATCH($C$81,'UR & ECL'!$F$400:$F$515,0),0,11,12),K$4,0),0) -> 0 | L91: =IFERROR(VLOOKUP($C91,OFFSET('UR & ECL'!$F$400,MATCH($C$81,'UR & ECL'!$F$400:$F$515,0),0,11,12),L$4,0),0) -> 0 | M91: =IFERROR(VLOOKUP($C91,OFFSET('UR & ECL'!$F$400,MATCH($C$81,'UR & ECL'!$F$400:$F$515,0),0,11,12),M$4,0),0) -> 0 | N91: 0 | O91: 0 | P91: 0 | Q91: =IFERROR(VLOOKUP($C91,OFFSET('UR & ECL'!$F$400,MATCH($C$81,'UR & ECL'!$F$400:$F$515,0),0,11,12),Q$4,0),0) -> 0 | R91: =IFERROR(VLOOKUP($C91,OFFSET('UR & ECL'!$F$400,MATCH($C$81,'UR & ECL'!$F$400:$F$515,0),0,11,12),R$4,0),0) -> 0 | S91: =IFERROR(VLOOKUP($C91,OFFSET('UR & ECL'!$F$400,MATCH($C$81,'UR & ECL'!$F$400:$F$515,0),0,11,12),S$4,0),0) -> 0 | T91: =O91+Q91+R91+S91 -> 0 | U91: 0 | V91: =IFERROR(VLOOKUP($C91,OFFSET(Budget!$C$43,MATCH($C$81,Budget!$C$43:$C$349,0)+3,0,11,154),44+$G$2,0),0) -> 0 | X91: =IFERROR(HLOOKUP($X$7,STRUCTDEP!$S$68:$AE$76,8,FALSE),0) -> 0 | Y91: =IFERROR(HLOOKUP($Y$7,STRUCTDEP!$S$68:$AE$76,8,FALSE),0) -> 0 | Z91: =IFERROR(VLOOKUP($C91,OFFSET(Budget!$C$43,MATCH($C$81,Budget!$C$43:$C$349,0)+3,0,11,154),101+$G$2,0),0) -> 0 | AA91: =IFERROR(HLOOKUP($Y$7,STRUCTDEP!$AJ$68:$AU$76,8,FALSE),0) -> 0 | AB91: =IFERROR(SUM(OFFSET(Budget!$C$43,MATCH($C$81,Budget!$C$43:$C$349,0)+2+A91,101,1,$G$2)),0) -> 0 | AC91: =IFERROR(VLOOKUP($C91,OFFSET(Budget!$C$43,MATCH($C$81,Budget!$C$43:$C$349,0)+3,0,11,154),114,0),0) -> 0 | AD91: =IFERROR((2*AA91)/(H91-R91+T91-F91-AA91)*100,0) -> 0 | AE91: =IFERROR(SUM(OFFSET(Budget!$C$43,MATCH($C$81,Budget!$C$43:$C$349,0)+2+$A91,141,1,$G$2)),"") ->  | AF91: =IFERROR(VLOOKUP($C91,OFFSET(Budget!$C$43,MATCH($C$81,Budget!$C$43:$C$349,0)+3,0,12,154),58,0),"") ->  | AJ91: =C94 -> Equity | AK91: =O94 -> 0 | AL91: 0 | AM91: 0 | AN91: 0 | AO91: 0
A92: 4 | C92: GII | D92: 0 | E92: =IFERROR(VLOOKUP($C92,OFFSET('UR & ECL'!$F$400,MATCH($C$81,'UR & ECL'!$F$400:$F$515,0),0,11,12),E$4,0),0) -> 0 | F92: =IFERROR(VLOOKUP($C92,OFFSET('UR & ECL'!$F$400,MATCH($C$81,'UR & ECL'!$F$400:$F$515,0),0,11,12),F$4,0),0) -> 0 | G92: =IFERROR(VLOOKUP($C92,OFFSET('UR & ECL'!$F$400,MATCH($C$81,'UR & ECL'!$F$400:$F$515,0),0,11,12),G$4,0),0) -> 0 | H92: 0 | I92: 0 | J92: 0 | K92: =IFERROR(VLOOKUP($C92,OFFSET('UR & ECL'!$F$400,MATCH($C$81,'UR & ECL'!$F$400:$F$515,0),0,11,12),K$4,0),0) -> 0 | L92: =IFERROR(VLOOKUP($C92,OFFSET('UR & ECL'!$F$400,MATCH($C$81,'UR & ECL'!$F$400:$F$515,0),0,11,12),L$4,0),0) -> 0 | M92: =IFERROR(VLOOKUP($C92,OFFSET('UR & ECL'!$F$400,MATCH($C$81,'UR & ECL'!$F$400:$F$515,0),0,11,12),M$4,0),0) -> 0 | N92: 0 | O92: 0 | P92: 0 | Q92: =IFERROR(VLOOKUP($C92,OFFSET('UR & ECL'!$F$400,MATCH($C$81,'UR & ECL'!$F$400:$F$515,0),0,11,12),Q$4,0),0) -> 0 | R92: =IFERROR(VLOOKUP($C92,OFFSET('UR & ECL'!$F$400,MATCH($C$81,'UR & ECL'!$F$400:$F$515,0),0,11,12),R$4,0),0) -> 0 | S92: =IFERROR(VLOOKUP($C92,OFFSET('UR & ECL'!$F$400,MATCH($C$81,'UR & ECL'!$F$400:$F$515,0),0,11,12),S$4,0),0) -> 0 | T92: 0 | U92: 0 | V92: =IFERROR(VLOOKUP($C92,OFFSET(Budget!$C$43,MATCH($C$81,Budget!$C$43:$C$349,0)+3,0,11,154),44+$G$2,0),0) -> 0 | X92: 0 | Y92: 0 | Z92: =IFERROR(VLOOKUP($C92,OFFSET(Budget!$C$43,MATCH($C$81,Budget!$C$43:$C$349,0)+3,0,11,154),101+$G$2,0),0) -> 0 | AA92: =IFERROR(HLOOKUP($Y$7,GII!$AJ$68:$AU$76,9,FALSE),0) -> 0 | AB92: =IFERROR(SUM(OFFSET(Budget!$C$43,MATCH($C$81,Budget!$C$43:$C$349,0)+2+A92,101,1,$G$2)),0) -> 0 | AC92: =IFERROR(VLOOKUP($C92,OFFSET(Budget!$C$43,MATCH($C$81,Budget!$C$43:$C$349,0)+3,0,11,154),114,0),0) -> 0 | AD92: 0 | AE92: =IFERROR(SUM(OFFSET(Budget!$C$43,MATCH($C$81,Budget!$C$43:$C$349,0)+2+$A92,141,1,$G$2)),"") ->  | AF92: =IFERROR(VLOOKUP($C92,OFFSET(Budget!$C$43,MATCH($C$81,Budget!$C$43:$C$349,0)+3,0,12,154),58,0),"") ->  | AJ92: =C97 -> Unit Trust | AK92: =O97 -> 0 | AL92: =Q97 -> 0 | AM92: =R97 -> 0 | AN92: =S97 -> 0 | AO92: 0
A93: 5 | C93: GG | D93: 0 | E93: =IFERROR(VLOOKUP($C93,OFFSET('UR & ECL'!$F$400,MATCH($C$81,'UR & ECL'!$F$400:$F$515,0),0,11,12),E$4,0),0) -> 0 | F93: =IFERROR(VLOOKUP($C93,OFFSET('UR & ECL'!$F$400,MATCH($C$81,'UR & ECL'!$F$400:$F$515,0),0,11,12),F$4,0),0) -> 0 | G93: =IFERROR(VLOOKUP($C93,OFFSET('UR & ECL'!$F$400,MATCH($C$81,'UR & ECL'!$F$400:$F$515,0),0,11,12),G$4,0),0) -> 0 | H93: 0 | I93: 0 | J93: 0 | K93: =IFERROR(VLOOKUP($C93,OFFSET('UR & ECL'!$F$400,MATCH($C$81,'UR & ECL'!$F$400:$F$515,0),0,11,12),K$4,0),0) -> 0 | L93: =IFERROR(VLOOKUP($C93,OFFSET('UR & ECL'!$F$400,MATCH($C$81,'UR & ECL'!$F$400:$F$515,0),0,11,12),L$4,0),0) -> 0 | M93: =IFERROR(VLOOKUP($C93,OFFSET('UR & ECL'!$F$400,MATCH($C$81,'UR & ECL'!$F$400:$F$515,0),0,11,12),M$4,0),0) -> 0 | N93: 0 | O93: 0 | P93: 0 | Q93: =IFERROR(VLOOKUP($C93,OFFSET('UR & ECL'!$F$400,MATCH($C$81,'UR & ECL'!$F$400:$F$515,0),0,11,12),Q$4,0),0) -> 0 | R93: =IFERROR(VLOOKUP($C93,OFFSET('UR & ECL'!$F$400,MATCH($C$81,'UR & ECL'!$F$400:$F$515,0),0,11,12),R$4,0),0) -> 0 | S93: =IFERROR(VLOOKUP($C93,OFFSET('UR & ECL'!$F$400,MATCH($C$81,'UR & ECL'!$F$400:$F$515,0),0,11,12),S$4,0),0) -> 0 | T93: 0 | U93: 0 | V93: =IFERROR(VLOOKUP($C93,OFFSET(Budget!$C$43,MATCH($C$81,Budget!$C$43:$C$349,0)+3,0,11,154),44+$G$2,0),0) -> 0 | X93: 0 | Y93: 0 | Z93: =IFERROR(VLOOKUP($C93,OFFSET(Budget!$C$43,MATCH($C$81,Budget!$C$43:$C$349,0)+3,0,11,154),101+$G$2,0),0) -> 0 | AA93: =IFERROR(HLOOKUP($Y$7,GG!$AJ$68:$AU$76,9,FALSE),0) -> 0 | AB93: =IFERROR(SUM(OFFSET(Budget!$C$43,MATCH($C$81,Budget!$C$43:$C$349,0)+2+A93,101,1,$G$2)),0) -> 0 | AC93: =IFERROR(VLOOKUP($C93,OFFSET(Budget!$C$43,MATCH($C$81,Budget!$C$43:$C$349,0)+3,0,11,154),114,0),0) -> 0 | AD93: 0 | AE93: =IFERROR(SUM(OFFSET(Budget!$C$43,MATCH($C$81,Budget!$C$43:$C$349,0)+2+$A93,141,1,$G$2)),"") ->  | AF93: =IFERROR(VLOOKUP($C93,OFFSET(Budget!$C$43,MATCH($C$81,Budget!$C$43:$C$349,0)+3,0,12,154),58,0),"") ->  | AJ93: =C100 -> ITA | AK93: =O100 -> 0 | AL93: =Q100 -> 0 | AM93: 0 | AN93: 0 | AO93: 0
A94: 6 | C94: Equity | D94: 0 | E94: =IFERROR(VLOOKUP($C94,OFFSET('UR & ECL'!$F$400,MATCH($C$81,'UR & ECL'!$F$400:$F$515,0),0,11,12),E$4,0),0) -> 0 | F94: =IFERROR(VLOOKUP($C94,OFFSET('UR & ECL'!$F$400,MATCH($C$81,'UR & ECL'!$F$400:$F$515,0),0,11,12),F$4,0),0) -> 0 | G94: =IFERROR(VLOOKUP($C94,OFFSET('UR & ECL'!$F$400,MATCH($C$81,'UR & ECL'!$F$400:$F$515,0),0,11,12),G$4,0),0) -> 0 | H94: 0 | I94: 0 | J94: 0 | K94: =IFERROR(VLOOKUP($C94,OFFSET('UR & ECL'!$F$400,MATCH($C$81,'UR & ECL'!$F$400:$F$515,0),0,11,12),K$4,0),0) -> 0 | L94: =IFERROR(VLOOKUP($C94,OFFSET('UR & ECL'!$F$400,MATCH($C$81,'UR & ECL'!$F$400:$F$515,0),0,11,12),L$4,0),0) -> 0 | M94: =IFERROR(VLOOKUP($C94,OFFSET('UR & ECL'!$F$400,MATCH($C$81,'UR & ECL'!$F$400:$F$515,0),0,11,12),M$4,0),0) -> 0 | N94: 0 | O94: 0 | P94: 0 | Q94: =IFERROR(VLOOKUP($C94,OFFSET('UR & ECL'!$F$400,MATCH($C$81,'UR & ECL'!$F$400:$F$515,0),0,11,12),Q$4,0),0) -> 0 | R94: =IFERROR(VLOOKUP($C94,OFFSET('UR & ECL'!$F$400,MATCH($C$81,'UR & ECL'!$F$400:$F$515,0),0,11,12),R$4,0),0) -> 0 | S94: =IFERROR(VLOOKUP($C94,OFFSET('UR & ECL'!$F$400,MATCH($C$81,'UR & ECL'!$F$400:$F$515,0),0,11,12),S$4,0),0) -> 0 | T94: 0 | U94: 0 | V94: =IFERROR(VLOOKUP($C94,OFFSET(Budget!$C$43,MATCH($C$81,Budget!$C$43:$C$349,0)+3,0,11,154),44+$G$2,0),0) -> 0 | X94: 0 | Y94: 0 | Z94: =IFERROR(VLOOKUP($C94,OFFSET(Budget!$C$43,MATCH($C$81,Budget!$C$43:$C$349,0)+3,0,11,154),101+$G$2,0),0) -> 0 | AA94: =SUM(AA95:AA96) -> 0 | AB94: =IFERROR(SUM(OFFSET(Budget!$C$43,MATCH($C$81,Budget!$C$43:$C$349,0)+2+A94,101,1,$G$2)),0) -> 0 | AC94: =IFERROR(VLOOKUP($C94,OFFSET(Budget!$C$43,MATCH($C$81,Budget!$C$43:$C$349,0)+3,0,11,154),114,0),0) -> 0 | AD94: 0 | AE94: =IFERROR(SUM(OFFSET(Budget!$C$43,MATCH($C$81,Budget!$C$43:$C$349,0)+2+$A94,141,1,$G$2)),"") ->  | AF94: =IFERROR(VLOOKUP($C94,OFFSET(Budget!$C$43,MATCH($C$81,Budget!$C$43:$C$349,0)+3,0,12,154),58,0),"") ->  | AJ94: =C101 -> Corporate Sukuk | AK94: =O101 -> 0 | AL94: 0 | AM94: 0 | AN94: 0 | AO94: 0
B95: 3 | C95: Income | D95: 0 | E95: =IFERROR(VLOOKUP($C95,OFFSET('UR & ECL'!$F$400,MATCH($C$81,'UR & ECL'!$F$400:$F$515,0),0,11,12),E$4,0),0) -> 0 | F95: =IFERROR(VLOOKUP($C95,OFFSET('UR & ECL'!$F$400,MATCH($C$81,'UR & ECL'!$F$400:$F$515,0),0,11,12),F$4,0),0) -> 0 | G95: =IFERROR(VLOOKUP($C95,OFFSET('UR & ECL'!$F$400,MATCH($C$81,'UR & ECL'!$F$400:$F$515,0),0,11,12),G$4,0),0) -> 0 | H95: 0 | I95: 0 | J95: 0 | K95: =IFERROR(VLOOKUP($C95,OFFSET('UR & ECL'!$F$400,MATCH($C$81,'UR & ECL'!$F$400:$F$515,0),0,11,12),K$4,0),0) -> 0 | L95: =IFERROR(VLOOKUP($C95,OFFSET('UR & ECL'!$F$400,MATCH($C$81,'UR & ECL'!$F$400:$F$515,0),0,11,12),L$4,0),0) -> 0 | M95: =IFERROR(VLOOKUP($C95,OFFSET('UR & ECL'!$F$400,MATCH($C$81,'UR & ECL'!$F$400:$F$515,0),0,11,12),M$4,0),0) -> 0 | N95: 0 | O95: 0 | P95: 0 | Q95: =IFERROR(VLOOKUP($C95,OFFSET('UR & ECL'!$F$400,MATCH($C$81,'UR & ECL'!$F$400:$F$515,0),0,11,12),Q$4,0),0) -> 0 | R95: =IFERROR(VLOOKUP($C95,OFFSET('UR & ECL'!$F$400,MATCH($C$81,'UR & ECL'!$F$400:$F$515,0),0,11,12),R$4,0),0) -> 0 | S95: =IFERROR(VLOOKUP($C95,OFFSET('UR & ECL'!$F$400,MATCH($C$81,'UR & ECL'!$F$400:$F$515,0),0,11,12),S$4,0),0) -> 0 | T95: 0 | U95: 0 | V95: =IFERROR(VLOOKUP($C95,OFFSET(Budget!$C$43,MATCH($C$81,Budget!$C$43:$C$349,0)+3,0,11,154),44+$G$2,0),0) -> 0 | X95: 0 | Y95: 0 | Z95: =IFERROR(VLOOKUP($C95,OFFSET(Budget!$C$43,MATCH($C$81,Budget!$C$43:$C$349,0)+3,0,11,154),101+$G$2,0),0) -> 0 | AA95: =IFERROR(HLOOKUP($Y$7,EQUITY!$AJ$68:$AU$76,3,FALSE)+HLOOKUP($Y$7,EQUITY!$AJ$68:$AU$76,4,FALSE)+HLOOKUP($Y$7,EQUITY!$AJ$68:$AU$76,5,FALSE)+HLOOKUP($Y$7,EQUITY!$AJ$68:$AU$76,6,FALSE)+HLOOKUP($Y$7,EQUITY!$AJ$68:$AU$76,7,FALSE),0) -> 0 | AB95: =IFERROR(SUM(OFFSET(Budget!$C$43,MATCH($C$81,Budget!$C$43:$C$349,0)+2+A95,101,1,$G$2)),0) -> 0 | AC95: =IFERROR(VLOOKUP($C95,OFFSET(Budget!$C$43,MATCH($C$81,Budget!$C$43:$C$349,0)+3,0,11,154),114,0),0) -> 0 | AD95: 0 | AE95: =IFERROR(SUM(OFFSET(Budget!$C$43,MATCH($C$81,Budget!$C$43:$C$349,0)+2+$A95,141,1,$G$2)),"") ->  | AF95: =IFERROR(VLOOKUP($C95,OFFSET(Budget!$C$43,MATCH($C$81,Budget!$C$43:$C$349,0)+3,0,12,154),58,0),"") ->  | AJ95: =C102 -> Properties | AK95: =O102 -> 0 | AL95: 0 | AM95: 0 | AN95: 0 | AO95: 0
B96: 4 | C96: Fair Value Gain/Loss | D96: 0 | E96: =IFERROR(VLOOKUP($C96,OFFSET('UR & ECL'!$F$400,MATCH($C$81,'UR & ECL'!$F$400:$F$515,0),0,11,12),E$4,0),0) -> 0 | F96: =IFERROR(VLOOKUP($C96,OFFSET('UR & ECL'!$F$400,MATCH($C$81,'UR & ECL'!$F$400:$F$515,0),0,11,12),F$4,0),0) -> 0 | G96: =IFERROR(VLOOKUP($C96,OFFSET('UR & ECL'!$F$400,MATCH($C$81,'UR & ECL'!$F$400:$F$515,0),0,11,12),G$4,0),0) -> 0 | H96: 0 | I96: 0 | J96: 0 | K96: =IFERROR(VLOOKUP($C96,OFFSET('UR & ECL'!$F$400,MATCH($C$81,'UR & ECL'!$F$400:$F$515,0),0,11,12),K$4,0),0) -> 0 | L96: =IFERROR(VLOOKUP($C96,OFFSET('UR & ECL'!$F$400,MATCH($C$81,'UR & ECL'!$F$400:$F$515,0),0,11,12),L$4,0),0) -> 0 | M96: =IFERROR(VLOOKUP($C96,OFFSET('UR & ECL'!$F$400,MATCH($C$81,'UR & ECL'!$F$400:$F$515,0),0,11,12),M$4,0),0) -> 0 | N96: 0 | O96: 0 | P96: 0 | Q96: =IFERROR(VLOOKUP($C96,OFFSET('UR & ECL'!$F$400,MATCH($C$81,'UR & ECL'!$F$400:$F$515,0),0,11,12),Q$4,0),0) -> 0 | R96: =IFERROR(VLOOKUP($C96,OFFSET('UR & ECL'!$F$400,MATCH($C$81,'UR & ECL'!$F$400:$F$515,0),0,11,12),R$4,0),0) -> 0 | S96: =IFERROR(VLOOKUP($C96,OFFSET('UR & ECL'!$F$400,MATCH($C$81,'UR & ECL'!$F$400:$F$515,0),0,11,12),S$4,0),0) -> 0 | T96: 0 | U96: 0 | V96: =IFERROR(VLOOKUP($C96,OFFSET(Budget!$C$43,MATCH($C$81,Budget!$C$43:$C$349,0)+3,0,11,154),44+$G$2,0),0) -> 0 | X96: 0 | Y96: 0 | Z96: =IFERROR(VLOOKUP($C96,OFFSET(Budget!$C$43,MATCH($C$81,Budget!$C$43:$C$349,0)+3,0,11,154),101+$G$2,0),0) -> 0 | AA96: =IFERROR(HLOOKUP($Y$7,EQUITY!$AJ$68:$AU$76,8,FALSE),0) -> 0 | AB96: =IFERROR(SUM(OFFSET(Budget!$C$43,MATCH($C$81,Budget!$C$43:$C$349,0)+2+A96,101,1,$G$2)),0) -> 0 | AC96: =IFERROR(VLOOKUP($C96,OFFSET(Budget!$C$43,MATCH($C$81,Budget!$C$43:$C$349,0)+3,0,11,154),114,0),0) -> 0 | AD96: 0 | AE96: =IFERROR(SUM(OFFSET(Budget!$C$43,MATCH($C$81,Budget!$C$43:$C$349,0)+2+$A96,141,1,$G$2)),"") ->  | AF96: =IFERROR(VLOOKUP($C96,OFFSET(Budget!$C$43,MATCH($C$81,Budget!$C$43:$C$349,0)+3,0,12,154),58,0),"") ->  | AJ96: =C103 -> TOTAL | AK96: =O103 -> 0 | AL96: 0 | AM96: 0 | AN96: 0 | AO96: 0
A97: 7 | C97: Unit Trust | D97: 0 | E97: =IFERROR(VLOOKUP($C97,OFFSET('UR & ECL'!$F$400,MATCH($C$81,'UR & ECL'!$F$400:$F$515,0),0,11,12),E$4,0),0) -> 0 | F97: =IFERROR(VLOOKUP($C97,OFFSET('UR & ECL'!$F$400,MATCH($C$81,'UR & ECL'!$F$400:$F$515,0),0,11,12),F$4,0),0) -> 0 | G97: =IFERROR(VLOOKUP($C97,OFFSET('UR & ECL'!$F$400,MATCH($C$81,'UR & ECL'!$F$400:$F$515,0),0,11,12),G$4,0),0) -> 0 | H97: 0 | I97: 0 | J97: 0 | K97: =IFERROR(VLOOKUP($C97,OFFSET('UR & ECL'!$F$400,MATCH($C$81,'UR & ECL'!$F$400:$F$515,0),0,11,12),K$4,0),0) -> 0 | L97: =IFERROR(VLOOKUP($C97,OFFSET('UR & ECL'!$F$400,MATCH($C$81,'UR & ECL'!$F$400:$F$515,0),0,11,12),L$4,0),0) -> 0 | M97: =IFERROR(VLOOKUP($C97,OFFSET('UR & ECL'!$F$400,MATCH($C$81,'UR & ECL'!$F$400:$F$515,0),0,11,12),M$4,0),0) -> 0 | N97: 0 | O97: 0 | P97: 0 | Q97: =IFERROR(VLOOKUP($C97,OFFSET('UR & ECL'!$F$400,MATCH($C$81,'UR & ECL'!$F$400:$F$515,0),0,11,12),Q$4,0),0) -> 0 | R97: =IFERROR(VLOOKUP($C97,OFFSET('UR & ECL'!$F$400,MATCH($C$81,'UR & ECL'!$F$400:$F$515,0),0,11,12),R$4,0),0) -> 0 | S97: =IFERROR(VLOOKUP($C97,OFFSET('UR & ECL'!$F$400,MATCH($C$81,'UR & ECL'!$F$400:$F$515,0),0,11,12),S$4,0),0) -> 0 | T97: 0 | U97: 0 | V97: =IFERROR(VLOOKUP($C97,OFFSET(Budget!$C$43,MATCH($C$81,Budget!$C$43:$C$349,0)+3,0,11,154),44+$G$2,0),0) -> 0 | X97: 0 | Y97: 0 | Z97: =IFERROR(VLOOKUP($C97,OFFSET(Budget!$C$43,MATCH($C$81,Budget!$C$43:$C$349,0)+3,0,11,154),101+$G$2,0),0) -> 0 | AA97: =SUM(AA98:AA99) -> 0 | AB97: =IFERROR(SUM(OFFSET(Budget!$C$43,MATCH($C$81,Budget!$C$43:$C$349,0)+2+A97,101,1,$G$2)),0) -> 0 | AC97: =IFERROR(VLOOKUP($C97,OFFSET(Budget!$C$43,MATCH($C$81,Budget!$C$43:$C$349,0)+3,0,11,154),114,0),0) -> 0 | AD97: 0 | AE97: =IFERROR(SUM(OFFSET(Budget!$C$43,MATCH($C$81,Budget!$C$43:$C$349,0)+2+$A97,141,1,$G$2)),"") ->  | AF97: =IFERROR(VLOOKUP($C97,OFFSET(Budget!$C$43,MATCH($C$81,Budget!$C$43:$C$349,0)+3,0,12,154),58,0),"") -> 
B98: 5 | C98: Income | D98: 0 | E98: =IFERROR(VLOOKUP($C98,OFFSET('UR & ECL'!$F$400,MATCH($C$81,'UR & ECL'!$F$400:$F$515,0),0,11,12),E$4,0),0) -> 0 | F98: =IFERROR(VLOOKUP($C98,OFFSET('UR & ECL'!$F$400,MATCH($C$81,'UR & ECL'!$F$400:$F$515,0),0,11,12),F$4,0),0) -> 0 | G98: =IFERROR(VLOOKUP($C98,OFFSET('UR & ECL'!$F$400,MATCH($C$81,'UR & ECL'!$F$400:$F$515,0),0,11,12),G$4,0),0) -> 0 | H98: 0 | I98: 0 | J98: 0 | K98: =IFERROR(VLOOKUP($C98,OFFSET('UR & ECL'!$F$400,MATCH($C$81,'UR & ECL'!$F$400:$F$515,0),0,11,12),K$4,0),0) -> 0 | L98: =IFERROR(VLOOKUP($C98,OFFSET('UR & ECL'!$F$400,MATCH($C$81,'UR & ECL'!$F$400:$F$515,0),0,11,12),L$4,0),0) -> 0 | M98: =IFERROR(VLOOKUP($C98,OFFSET('UR & ECL'!$F$400,MATCH($C$81,'UR & ECL'!$F$400:$F$515,0),0,11,12),M$4,0),0) -> 0 | N98: 0 | O98: 0 | P98: 0 | Q98: =IFERROR(VLOOKUP($C98,OFFSET('UR & ECL'!$F$400,MATCH($C$81,'UR & ECL'!$F$400:$F$515,0),0,11,12),Q$4,0),0) -> 0 | R98: =IFERROR(VLOOKUP($C98,OFFSET('UR & ECL'!$F$400,MATCH($C$81,'UR & ECL'!$F$400:$F$515,0),0,11,12),R$4,0),0) -> 0 | S98: =IFERROR(VLOOKUP($C98,OFFSET('UR & ECL'!$F$400,MATCH($C$81,'UR & ECL'!$F$400:$F$515,0),0,11,12),S$4,0),0) -> 0 | T98: 0 | U98: 0 | V98: =IFERROR(VLOOKUP($C98,OFFSET(Budget!$C$43,MATCH($C$81,Budget!$C$43:$C$349,0)+3,0,11,154),44+$G$2,0),0) -> 0 | X98: 0 | Y98: 0 | Z98: =IFERROR(VLOOKUP($C98,OFFSET(Budget!$C$43,MATCH($C$81,Budget!$C$43:$C$349,0)+3,0,11,154),101+$G$2,0),0) -> 0 | AA98: =IFERROR(HLOOKUP($Y$7,TRUST!$AJ$68:$AU$76,4,FALSE)+HLOOKUP($Y$7,TRUST!$AJ$68:$AU$76,6,FALSE),0) -> 0 | AB98: =IFERROR(SUM(OFFSET(Budget!$C$43,MATCH($C$81,Budget!$C$43:$C$349,0)+2+A98,101,1,$G$2)),0) -> 0 | AC98: =IFERROR(VLOOKUP($C98,OFFSET(Budget!$C$43,MATCH($C$81,Budget!$C$43:$C$349,0)+3,0,11,154),114,0),0) -> 0 | AD98: 0 | AE98: =IFERROR(SUM(OFFSET(Budget!$C$43,MATCH($C$81,Budget!$C$43:$C$349,0)+2+$A98,141,1,$G$2)),"") ->  | AF98: =IFERROR(VLOOKUP($C98,OFFSET(Budget!$C$43,MATCH($C$81,Budget!$C$43:$C$349,0)+3,0,12,154),58,0),"") -> 
B99: 6 | C99: Fair Value Gain/Loss | D99: 0 | E99: =IFERROR(VLOOKUP($C99,OFFSET('UR & ECL'!$F$400,MATCH($C$81,'UR & ECL'!$F$400:$F$515,0),0,11,12),E$4,0),0) -> 0 | F99: =IFERROR(VLOOKUP($C99,OFFSET('UR & ECL'!$F$400,MATCH($C$81,'UR & ECL'!$F$400:$F$515,0),0,11,12),F$4,0),0) -> 0 | G99: =IFERROR(VLOOKUP($C99,OFFSET('UR & ECL'!$F$400,MATCH($C$81,'UR & ECL'!$F$400:$F$515,0),0,11,12),G$4,0),0) -> 0 | H99: 0 | I99: 0 | J99: 0 | K99: =IFERROR(VLOOKUP($C99,OFFSET('UR & ECL'!$F$400,MATCH($C$81,'UR & ECL'!$F$400:$F$515,0),0,11,12),K$4,0),0) -> 0 | L99: =IFERROR(VLOOKUP($C99,OFFSET('UR & ECL'!$F$400,MATCH($C$81,'UR & ECL'!$F$400:$F$515,0),0,11,12),L$4,0),0) -> 0 | M99: =IFERROR(VLOOKUP($C99,OFFSET('UR & ECL'!$F$400,MATCH($C$81,'UR & ECL'!$F$400:$F$515,0),0,11,12),M$4,0),0) -> 0 | N99: 0 | O99: 0 | P99: 0 | Q99: =IFERROR(VLOOKUP($C99,OFFSET('UR & ECL'!$F$400,MATCH($C$81,'UR & ECL'!$F$400:$F$515,0),0,11,12),Q$4,0),0) -> 0 | R99: =IFERROR(VLOOKUP($C99,OFFSET('UR & ECL'!$F$400,MATCH($C$81,'UR & ECL'!$F$400:$F$515,0),0,11,12),R$4,0),0) -> 0 | S99: =IFERROR(VLOOKUP($C99,OFFSET('UR & ECL'!$F$400,MATCH($C$81,'UR & ECL'!$F$400:$F$515,0),0,11,12),S$4,0),0) -> 0 | T99: 0 | U99: 0 | V99: =IFERROR(VLOOKUP($C99,OFFSET(Budget!$C$43,MATCH($C$81,Budget!$C$43:$C$349,0)+3,0,11,154),44+$G$2,0),0) -> 0 | X99: 0 | Y99: 0 | Z99: =IFERROR(VLOOKUP($C99,OFFSET(Budget!$C$43,MATCH($C$81,Budget!$C$43:$C$349,0)+3,0,11,154),101+$G$2,0),0) -> 0 | AA99: =IFERROR(HLOOKUP($Y$7,TRUST!$AJ$68:$AU$76,8,FALSE),0) -> 0 | AB99: =IFERROR(SUM(OFFSET(Budget!$C$43,MATCH($C$81,Budget!$C$43:$C$349,0)+2+A99,101,1,$G$2)),0) -> 0 | AC99: =IFERROR(VLOOKUP($C99,OFFSET(Budget!$C$43,MATCH($C$81,Budget!$C$43:$C$349,0)+3,0,11,154),114,0),0) -> 0 | AD99: 0 | AE99: =IFERROR(SUM(OFFSET(Budget!$C$43,MATCH($C$81,Budget!$C$43:$C$349,0)+2+$A99,141,1,$G$2)),"") ->  | AF99: =IFERROR(VLOOKUP($C99,OFFSET(Budget!$C$43,MATCH($C$81,Budget!$C$43:$C$349,0)+3,0,12,154),58,0),"") -> 
A100: 8 | C100: ITA | D100: 0 | E100: =IFERROR(VLOOKUP($C100,OFFSET('UR & ECL'!$F$400,MATCH($C$81,'UR & ECL'!$F$400:$F$515,0),0,11,12),E$4,0),0) -> 0 | F100: =IFERROR(VLOOKUP($C100,OFFSET('UR & ECL'!$F$400,MATCH($C$81,'UR & ECL'!$F$400:$F$515,0),0,11,12),F$4,0),0) -> 0 | G100: =IFERROR(VLOOKUP($C100,OFFSET('UR & ECL'!$F$400,MATCH($C$81,'UR & ECL'!$F$400:$F$515,0),0,11,12),G$4,0),0) -> 0 | H100: 0 | I100: 0 | J100: 0 | K100: =IFERROR(VLOOKUP($C100,OFFSET('UR & ECL'!$F$400,MATCH($C$81,'UR & ECL'!$F$400:$F$515,0),0,11,12),K$4,0),0) -> 0 | L100: =IFERROR(VLOOKUP($C100,OFFSET('UR & ECL'!$F$400,MATCH($C$81,'UR & ECL'!$F$400:$F$515,0),0,11,12),L$4,0),0) -> 0 | M100: =IFERROR(VLOOKUP($C100,OFFSET('UR & ECL'!$F$400,MATCH($C$81,'UR & ECL'!$F$400:$F$515,0),0,11,12),M$4,0),0) -> 0 | N100: 0 | O100: 0 | P100: 0 | Q100: =IFERROR(VLOOKUP($C100,OFFSET('UR & ECL'!$F$400,MATCH($C$81,'UR & ECL'!$F$400:$F$515,0),0,11,12),Q$4,0),0) -> 0 | R100: =IFERROR(VLOOKUP($C100,OFFSET('UR & ECL'!$F$400,MATCH($C$81,'UR & ECL'!$F$400:$F$515,0),0,11,12),R$4,0),0) -> 0 | S100: =IFERROR(VLOOKUP($C100,OFFSET('UR & ECL'!$F$400,MATCH($C$81,'UR & ECL'!$F$400:$F$515,0),0,11,12),S$4,0),0) -> 0 | T100: 0 | U100: 0 | V100: =IFERROR(VLOOKUP($C100,OFFSET(Budget!$C$43,MATCH($C$81,Budget!$C$43:$C$349,0)+3,0,11,154),44+$G$2,0),0) -> 0 | X100: 0 | Y100: 0 | Z100: =IFERROR(VLOOKUP($C100,OFFSET(Budget!$C$43,MATCH($C$81,Budget!$C$43:$C$349,0)+3,0,11,154),101+$G$2,0),0) -> 0 | AA100: =IFERROR(HLOOKUP($Y$7,ITA!$AJ$68:$AU$76,9,FALSE),0) -> 0 | AB100: =IFERROR(SUM(OFFSET(Budget!$C$43,MATCH($C$81,Budget!$C$43:$C$349,0)+2+A100,101,1,$G$2)),0) -> 0 | AC100: =IFERROR(VLOOKUP($C100,OFFSET(Budget!$C$43,MATCH($C$81,Budget!$C$43:$C$349,0)+3,0,11,154),114,0),0) -> 0 | AD100: 0 | AE100: =IFERROR(SUM(OFFSET(Budget!$C$43,MATCH($C$81,Budget!$C$43:$C$349,0)+2+$A100,141,1,$G$2)),"") ->  | AF100: =IFERROR(VLOOKUP($C100,OFFSET(Budget!$C$43,MATCH($C$81,Budget!$C$43:$C$349,0)+3,0,12,154),58,0),"") -> 
A101: 9 | C101: Corporate Sukuk | D101: 0 | E101: =IFERROR(VLOOKUP($C101,OFFSET('UR & ECL'!$F$400,MATCH($C$81,'UR & ECL'!$F$400:$F$515,0),0,11,12),E$4,0),0) -> 0 | F101: =IFERROR(VLOOKUP($C101,OFFSET('UR & ECL'!$F$400,MATCH($C$81,'UR & ECL'!$F$400:$F$515,0),0,11,12),F$4,0),0) -> 0 | G101: =IFERROR(VLOOKUP($C101,OFFSET('UR & ECL'!$F$400,MATCH($C$81,'UR & ECL'!$F$400:$F$515,0),0,11,12),G$4,0),0) -> 0 | H101: 0 | I101: 0 | J101: 0 | K101: =IFERROR(VLOOKUP($C101,OFFSET('UR & ECL'!$F$400,MATCH($C$81,'UR & ECL'!$F$400:$F$515,0),0,11,12),K$4,0),0) -> 0 | L101: =IFERROR(VLOOKUP($C101,OFFSET('UR & ECL'!$F$400,MATCH($C$81,'UR & ECL'!$F$400:$F$515,0),0,11,12),L$4,0),0) -> 0 | M101: =IFERROR(VLOOKUP($C101,OFFSET('UR & ECL'!$F$400,MATCH($C$81,'UR & ECL'!$F$400:$F$515,0),0,11,12),M$4,0),0) -> 0 | N101: 0 | O101: 0 | P101: 0 | Q101: =IFERROR(VLOOKUP($C101,OFFSET('UR & ECL'!$F$400,MATCH($C$81,'UR & ECL'!$F$400:$F$515,0),0,11,12),Q$4,0),0) -> 0 | R101: =IFERROR(VLOOKUP($C101,OFFSET('UR & ECL'!$F$400,MATCH($C$81,'UR & ECL'!$F$400:$F$515,0),0,11,12),R$4,0),0) -> 0 | S101: =IFERROR(VLOOKUP($C101,OFFSET('UR & ECL'!$F$400,MATCH($C$81,'UR & ECL'!$F$400:$F$515,0),0,11,12),S$4,0),0) -> 0 | T101: 0 | U101: 0 | V101: =IFERROR(VLOOKUP($C101,OFFSET(Budget!$C$43,MATCH($C$81,Budget!$C$43:$C$349,0)+3,0,11,154),44+$G$2,0),0) -> 0 | X101: 0 | Y101: 0 | Z101: =IFERROR(VLOOKUP($C101,OFFSET(Budget!$C$43,MATCH($C$81,Budget!$C$43:$C$349,0)+3,0,11,154),101+$G$2,0),0) -> 0 | AA101: =IFERROR(HLOOKUP($Y$7,SUKUK!$AJ$68:$AU$76,9,FALSE),0) -> 0 | AB101: =IFERROR(SUM(OFFSET(Budget!$C$43,MATCH($C$81,Budget!$C$43:$C$349,0)+2+A101,101,1,$G$2)),0) -> 0 | AC101: =IFERROR(VLOOKUP($C101,OFFSET(Budget!$C$43,MATCH($C$81,Budget!$C$43:$C$349,0)+3,0,11,154),114,0),0) -> 0 | AD101: 0 | AE101: =IFERROR(SUM(OFFSET(Budget!$C$43,MATCH($C$81,Budget!$C$43:$C$349,0)+2+$A101,141,1,$G$2)),"") ->  | AF101: =IFERROR(VLOOKUP($C101,OFFSET(Budget!$C$43,MATCH($C$81,Budget!$C$43:$C$349,0)+3,0,12,154),58,0),"") -> 
A102: 10 | C102: Properties | D102: 0 | E102: =IFERROR(VLOOKUP($C102,OFFSET('UR & ECL'!$F$400,MATCH($C$81,'UR & ECL'!$F$400:$F$515,0),0,11,12),E$4,0),0) -> 0 | F102: =IFERROR(VLOOKUP($C102,OFFSET('UR & ECL'!$F$400,MATCH($C$81,'UR & ECL'!$F$400:$F$515,0),0,11,12),F$4,0),0) -> 0 | G102: =IFERROR(VLOOKUP($C102,OFFSET('UR & ECL'!$F$400,MATCH($C$81,'UR & ECL'!$F$400:$F$515,0),0,11,12),G$4,0),0) -> 0 | H102: 0 | I102: 0 | J102: 0 | K102: =IFERROR(VLOOKUP($C102,OFFSET('UR & ECL'!$F$400,MATCH($C$81,'UR & ECL'!$F$400:$F$515,0),0,11,12),K$4,0),0) -> 0 | L102: =IFERROR(VLOOKUP($C102,OFFSET('UR & ECL'!$F$400,MATCH($C$81,'UR & ECL'!$F$400:$F$515,0),0,11,12),L$4,0),0) -> 0 | M102: =IFERROR(VLOOKUP($C102,OFFSET('UR & ECL'!$F$400,MATCH($C$81,'UR & ECL'!$F$400:$F$515,0),0,11,12),M$4,0),0) -> 0 | N102: 0 | O102: 0 | P102: 0 | Q102: =IFERROR(VLOOKUP($C102,OFFSET('UR & ECL'!$F$400,MATCH($C$81,'UR & ECL'!$F$400:$F$515,0),0,11,12),Q$4,0),0) -> 0 | R102: =IFERROR(VLOOKUP($C102,OFFSET('UR & ECL'!$F$400,MATCH($C$81,'UR & ECL'!$F$400:$F$515,0),0,11,12),R$4,0),0) -> 0 | S102: =IFERROR(VLOOKUP($C102,OFFSET('UR & ECL'!$F$400,MATCH($C$81,'UR & ECL'!$F$400:$F$515,0),0,11,12),S$4,0),0) -> 0 | T102: 0 | U102: 0 | V102: =IFERROR(VLOOKUP($C102,OFFSET(Budget!$C$43,MATCH($C$81,Budget!$C$43:$C$349,0)+3,0,11,154),44+$G$2,0),0) -> 0 | X102: 0 | Y102: 0 | Z102: =IFERROR(VLOOKUP($C102,OFFSET(Budget!$C$43,MATCH($C$81,Budget!$C$43:$C$349,0)+3,0,11,154),101+$G$2,0),0) -> 0 | AA102: =IFERROR(HLOOKUP($Y$7,PROPERTY!$AJ$68:$AU$76,9,FALSE),0) -> 0 | AB102: =IFERROR(SUM(OFFSET(Budget!$C$43,MATCH($C$81,Budget!$C$43:$C$349,0)+2+A102,101,1,$G$2)),0) -> 0 | AC102: =IFERROR(VLOOKUP($C102,OFFSET(Budget!$C$43,MATCH($C$81,Budget!$C$43:$C$349,0)+3,0,11,154),114,0),0) -> 0 | AD102: 0 | AE102: =IFERROR(SUM(OFFSET(Budget!$C$43,MATCH($C$81,Budget!$C$43:$C$349,0)+2+$A102,141,1,$G$2)),"") ->  | AF102: =IFERROR(VLOOKUP($C102,OFFSET(Budget!$C$43,MATCH($C$81,Budget!$C$43:$C$349,0)+3,0,12,154),58,0),"") -> 
A103: 11 | C103: TOTAL | D103: =SUM(D86:D102) -> 0 | E103: =SUM(E86:E102) -> 0 | F103: 0 | G103: 0 | H103: 0 | I103: 0 | J103: 0 | K103: 0 | L103: 0 | M103: 0 | N103: 0 | O103: 0 | P103: 0 | Q103: 0 | R103: 0 | S103: 0 | T103: =SUM(T86:T102) -> 0 | U103: =SUM(U86:U102) -> 0 | V103: =SUM(V86:V102) -> 0 | W103: =SUM(W86:W102) ->  | X103: =SUM(X86:X89,X92:X94,X97,X100:X102) -> 0 | Y103: 0 | Z103: =SUM(Z86:Z89,Z92:Z94,Z97,Z100:Z102) -> 0 | AA103: =SUM(AA86:AA89,AA92:AA94,AA97,AA100:AA102) -> 0 | AB103: =SUM(AB86:AB89,AB92:AB94,AB97,AB100:AB102) -> 0 | AC103: =SUM(AC86:AC89,AC92:AC94,AC97,AC100:AC102) -> 0 | AD103: 0 | AE103: =IFERROR(SUM(OFFSET(Budget!$C$43,MATCH($C$81,Budget!$C$43:$C$349,0)+2+$A103,141,1,$G$2)),"") ->  | AF103: =IFERROR(VLOOKUP($C103,OFFSET(Budget!$C$43,MATCH($C$81,Budget!$C$43:$C$349,0)+3,0,12,154),58,0),"") -> 
C105: ITTIZAN
C106: ITTIZAN
D107: ASSET ALLOCATION | X107: RM INCOME | AD107: % YIELD
D108: =D84 -> Cost | E108: UR Gain/Loss | F108: Reserve | G108: ECL | H108: =H84 -> FYE2019 | I108: % | J108: Cost | K108: UR Gain/Loss | L108: Reserve | M108: ECL | N108: =$N$7 -> 2020-01-01 | O108: Cost | P108: % | Q108: UR Gain/Loss | R108: Reserve | S108: ECL | T108: =T84 -> 2020-02-01 | U108: % | V108: =$V$7 -> BUDGET (RM) | W108: =$W$7 -> BUDGET (%) | X108: =$N$7 -> 2020-01-01 | Y108: =$T$32 -> 2020-02-01 | Z108: MONTHLY BUDGET | AA108: =+$AA$7 -> YTD | AB108: ="YTD BUDGET (" &$G$2&" mths)" -> YTD BUDGET (2 mths) | AC108: BUDGET (12 mths) | AD108: =+$AD$7 -> YTD | AE108: ="YTD BUDGET (" &$G$2& " mths)" -> YTD BUDGET (2 mths) | AF108: BUDGET (12 mths)
A110: 1 | C110: Deposits & Money Market | D110: 0 | E110: =IFERROR(VLOOKUP($C110,OFFSET('UR & ECL'!$F$400,MATCH($C$105,'UR & ECL'!$F$400:$F$515,0),0,11,12),E$4,0),0) -> 0 | F110: =IFERROR(VLOOKUP($C110,OFFSET('UR & ECL'!$F$400,MATCH($C$105,'UR & ECL'!$F$400:$F$515,0),0,11,12),F$4,0),0) -> 0 | G110: =IFERROR(VLOOKUP($C110,OFFSET('UR & ECL'!$F$400,MATCH($C$81,'UR & ECL'!$F$400:$F$515,0),0,11,12),G$4,0),0) -> 0 | H110: 0 | I110: =IFERROR(H110/H$103*100,0) -> 0 | J110: 0 | K110: =IFERROR(VLOOKUP($C110,OFFSET('UR & ECL'!$F$400,MATCH($C$81,'UR & ECL'!$F$400:$F$515,0),0,11,12),K$4,0),0) -> 0 | L110: =IFERROR(VLOOKUP($C110,OFFSET('UR & ECL'!$F$400,MATCH($C$81,'UR & ECL'!$F$400:$F$515,0),0,11,12),L$4,0),0) -> 0 | M110: =IFERROR(VLOOKUP($C110,OFFSET('UR & ECL'!$F$400,MATCH($C$81,'UR & ECL'!$F$400:$F$515,0),0,11,12),M$4,0),0) -> 0 | N110: =J110+K110+L110+M110 -> 0 | O110: 0 | P110: =IFERROR(O110/$O$103*100,0) -> 0 | Q110: =IFERROR(VLOOKUP($C110,OFFSET('UR & ECL'!$F$400,MATCH($C$81,'UR & ECL'!$F$400:$F$515,0),0,11,12),Q$4,0),0) -> 0 | R110: =IFERROR(VLOOKUP($C110,OFFSET('UR & ECL'!$F$400,MATCH($C$81,'UR & ECL'!$F$400:$F$515,0),0,11,12),R$4,0),0) -> 0 | S110: =IFERROR(VLOOKUP($C110,OFFSET('UR & ECL'!$F$400,MATCH($C$81,'UR & ECL'!$F$400:$F$515,0),0,11,12),S$4,0),0) -> 0 | T110: 0 | U110: =IFERROR(T110/T$103*100,0) -> 0 | V110: =IFERROR(VLOOKUP($C110,OFFSET(Budget!$C$43,MATCH($C$81,Budget!$C$43:$C$349,0)+3,0,11,154),44+$G$2,0),0) -> 0 | W110: =V110/$V$103*100 ->  | X110: 0 | Y110: 0 | Z110: =IFERROR(VLOOKUP($C110,OFFSET(Budget!$C$43,MATCH($C$81,Budget!$C$43:$C$349,0)+3,0,11,154),101+$G$2,0),0) -> 0 | AA110: =IFERROR(HLOOKUP($Y$7,DEPOSIT!$AJ$68:$AU$76,9,FALSE),0) -> 0 | AB110: =IFERROR(SUM(OFFSET(Budget!$C$43,MATCH($C$81,Budget!$C$43:$C$349,0)+2+A110,101,1,$G$2)),0) -> 0 | AC110: =IFERROR(VLOOKUP($C110,OFFSET(Budget!$C$43,MATCH($C$81,Budget!$C$43:$C$349,0)+3,0,11,154),114,0),0) -> 0 | AD110: 0 | AE110: =IFERROR(SUM(OFFSET(Budget!$C$43,MATCH($C$81,Budget!$C$43:$C$349,0)+2+$A110,141,1,$G$2)),"") ->  | AF110: =IFERROR(VLOOKUP($C110,OFFSET(Budget!$C$43,MATCH($C$81,Budget!$C$43:$C$349,0)+3,0,12,154),58,0),"") ->  | AJ110: =C110 -> Deposits & Money Market | AK110: =O110 -> 0 | AL110: =Q110 -> 0 | AM110: 0 | AN110: 0 | AO110: =AK110+AL110+AM110+AN110 -> 0
A111: 2 | C111: Banca Deposit | D111: 0 | E111: =IFERROR(VLOOKUP($C111,OFFSET('UR & ECL'!$F$400,MATCH($C$105,'UR & ECL'!$F$400:$F$515,0),0,11,12),E$4,0),0) -> 0 | F111: =IFERROR(VLOOKUP($C111,OFFSET('UR & ECL'!$F$400,MATCH($C$105,'UR & ECL'!$F$400:$F$515,0),0,11,12),F$4,0),0) -> 0 | G111: =IFERROR(VLOOKUP($C111,OFFSET('UR & ECL'!$F$400,MATCH($C$81,'UR & ECL'!$F$400:$F$515,0),0,11,12),G$4,0),0) -> 0 | H111: 0 | I111: =IFERROR(H111/H$103*100,0) -> 0 | J111: 0 | K111: =IFERROR(VLOOKUP($C111,OFFSET('UR & ECL'!$F$400,MATCH($C$81,'UR & ECL'!$F$400:$F$515,0),0,11,12),K$4,0),0) -> 0 | L111: =IFERROR(VLOOKUP($C111,OFFSET('UR & ECL'!$F$400,MATCH($C$81,'UR & ECL'!$F$400:$F$515,0),0,11,12),L$4,0),0) -> 0 | M111: =IFERROR(VLOOKUP($C111,OFFSET('UR & ECL'!$F$400,MATCH($C$81,'UR & ECL'!$F$400:$F$515,0),0,11,12),M$4,0),0) -> 0 | N111: =J111+K111+L111+M111 -> 0 | O111: 0 | P111: =IFERROR(O111/$O$103*100,0) -> 0 | Q111: =IFERROR(VLOOKUP($C111,OFFSET('UR & ECL'!$F$400,MATCH($C$81,'UR & ECL'!$F$400:$F$515,0),0,11,12),Q$4,0),0) -> 0 | R111: =IFERROR(VLOOKUP($C111,OFFSET('UR & ECL'!$F$400,MATCH($C$81,'UR & ECL'!$F$400:$F$515,0),0,11,12),R$4,0),0) -> 0 | S111: =IFERROR(VLOOKUP($C111,OFFSET('UR & ECL'!$F$400,MATCH($C$81,'UR & ECL'!$F$400:$F$515,0),0,11,12),S$4,0),0) -> 0 | T111: 0 | U111: =IFERROR(T111/T$103*100,0) -> 0 | V111: =IFERROR(VLOOKUP($C111,OFFSET(Budget!$C$43,MATCH($C$81,Budget!$C$43:$C$349,0)+3,0,11,154),44+$G$2,0),0) -> 0 | W111: =V111/$V$103*100 ->  | X111: 0 | Y111: 0 | Z111: =IFERROR(VLOOKUP($C111,OFFSET(Budget!$C$43,MATCH($C$81,Budget!$C$43:$C$349,0)+3,0,11,154),101+$G$2,0),0) -> 0 | AA111: =IFERROR(HLOOKUP($Y$7,BANCA!$AJ$68:$AU$76,9,FALSE),0)+IFERROR(HLOOKUP($Y$7,'BANCA CP'!$AJ$68:$AU$76,9,FALSE),0) -> 0 | AB111: =IFERROR(SUM(OFFSET(Budget!$C$43,MATCH($C$81,Budget!$C$43:$C$349,0)+2+A111,101,1,$G$2)),0) -> 0 | AC111: =IFERROR(VLOOKUP($C111,OFFSET(Budget!$C$43,MATCH($C$81,Budget!$C$43:$C$349,0)+3,0,11,154),114,0),0) -> 0 | AD111: 0 | AE111: =IFERROR(SUM(OFFSET(Budget!$C$43,MATCH($C$81,Budget!$C$43:$C$349,0)+2+$A111,141,1,$G$2)),"") ->  | AF111: =IFERROR(VLOOKUP($C111,OFFSET(Budget!$C$43,MATCH($C$81,Budget!$C$43:$C$349,0)+3,0,12,154),58,0),"") ->  | AJ111: =C111 -> Banca Deposit | AK111: =O111 -> 0 | AL111: 0 | AM111: 0 | AN111: 0 | AO111: =AK111+AL111+AM111+AN111 -> 0
C112: Banca Commercial Paper | D112: 0 | E112: =IFERROR(VLOOKUP($C112,OFFSET('UR & ECL'!$F$400,MATCH($C$105,'UR & ECL'!$F$400:$F$515,0),0,11,12),E$4,0),0) -> 0 | F112: =IFERROR(VLOOKUP($C112,OFFSET('UR & ECL'!$F$400,MATCH($C$105,'UR & ECL'!$F$400:$F$515,0),0,11,12),F$4,0),0) -> 0 | G112: =IFERROR(VLOOKUP($C112,OFFSET('UR & ECL'!$F$400,MATCH($C$81,'UR & ECL'!$F$400:$F$515,0),0,11,12),G$4,0),0) -> 0 | H112: =D112+E112+F112+G112 -> 0 | I112: 0 | J112: 0 | K112: =IFERROR(VLOOKUP($C112,OFFSET('UR & ECL'!$F$400,MATCH($C$81,'UR & ECL'!$F$400:$F$515,0),0,11,12),K$4,0),0) -> 0 | L112: =IFERROR(VLOOKUP($C112,OFFSET('UR & ECL'!$F$400,MATCH($C$81,'UR & ECL'!$F$400:$F$515,0),0,11,12),L$4,0),0) -> 0 | M112: =IFERROR(VLOOKUP($C112,OFFSET('UR & ECL'!$F$400,MATCH($C$81,'UR & ECL'!$F$400:$F$515,0),0,11,12),M$4,0),0) -> 0 | N112: 0 | O112: 0 | P112: 0 | Q112: =IFERROR(VLOOKUP($C112,OFFSET('UR & ECL'!$F$400,MATCH($C$81,'UR & ECL'!$F$400:$F$515,0),0,11,12),Q$4,0),0) -> 0 | R112: =IFERROR(VLOOKUP($C112,OFFSET('UR & ECL'!$F$400,MATCH($C$81,'UR & ECL'!$F$400:$F$515,0),0,11,12),R$4,0),0) -> 0 | S112: =IFERROR(VLOOKUP($C112,OFFSET('UR & ECL'!$F$400,MATCH($C$81,'UR & ECL'!$F$400:$F$515,0),0,11,12),S$4,0),0) -> 0 | T112: =O112+Q112+R112+S112 -> 0 | U112: 0 | V112: =IFERROR(VLOOKUP($C112,OFFSET(Budget!$C$43,MATCH($C$81,Budget!$C$43:$C$349,0)+3,0,11,154),44+$G$2,0),0) -> 0 | X112: =IFERROR(HLOOKUP($X$7,'BANCA CP'!$S$68:$AE$76,9,FALSE),0) -> 0 | Y112: =IFERROR(HLOOKUP($Y$7,'BANCA CP'!$S$68:$AE$76,9,FALSE),0) -> 0 | Z112: =IFERROR(VLOOKUP($C112,OFFSET('[6]Revised Budget 2019'!$C$43,MATCH($C$81,'[6]Revised Budget 2019'!$C$43:$C$270,0)+3,0,11,154),101+$G$2,0),0) -> 0 | AB112: =IFERROR(SUM(OFFSET('[6]Revised Budget 2019'!$C$43,MATCH($C$81,'[6]Revised Budget 2019'!$C$43:$C$270,0)+2+A112,101,1,$G$2)),0) -> 0 | AC112: =IFERROR(VLOOKUP($C112,OFFSET('[6]Revised Budget 2019'!$C$43,MATCH($C$81,'[6]Revised Budget 2019'!$C$43:$C$270,0)+3,0,11,154),114,0),0) -> 0 | AE112: =IFERROR(SUM(OFFSET('[6]Revised Budget 2019'!$C$43,MATCH(#REF!,'[6]Revised Budget 2019'!$C$43:$C$270,0)+2+$A112,141,1,$G$2)),"") ->  | AF112: =IFERROR(VLOOKUP($C112,OFFSET('[6]Revised Budget 2019'!$C$43,MATCH(#REF!,'[6]Revised Budget 2019'!$C$43:$C$270,0)+3,0,12,154),58,0),"") ->  | AJ112: =C113 -> Structured Deposit | AK112: =O113 -> 0 | AL112: =Q113 -> 0 | AM112: =R113 -> 0 | AN112: =S113 -> 0 | AO112: 0
A113: 3 | C113: Structured Deposit | D113: 0 | E113: =IFERROR(VLOOKUP($C113,OFFSET('UR & ECL'!$F$400,MATCH($C$105,'UR & ECL'!$F$400:$F$515,0),0,11,12),E$4,0),0) -> 0 | F113: =IFERROR(VLOOKUP($C113,OFFSET('UR & ECL'!$F$400,MATCH($C$105,'UR & ECL'!$F$400:$F$515,0),0,11,12),F$4,0),0) -> 0 | G113: =IFERROR(VLOOKUP($C113,OFFSET('UR & ECL'!$F$400,MATCH($C$81,'UR & ECL'!$F$400:$F$515,0),0,11,12),G$4,0),0) -> 0 | H113: =D113+E113+F113+G113 -> 0 | I113: 0 | J113: 0 | K113: =IFERROR(VLOOKUP($C113,OFFSET('UR & ECL'!$F$400,MATCH($C$81,'UR & ECL'!$F$400:$F$515,0),0,11,12),K$4,0),0) -> 0 | L113: =IFERROR(VLOOKUP($C113,OFFSET('UR & ECL'!$F$400,MATCH($C$81,'UR & ECL'!$F$400:$F$515,0),0,11,12),L$4,0),0) -> 0 | M113: =IFERROR(VLOOKUP($C113,OFFSET('UR & ECL'!$F$400,MATCH($C$81,'UR & ECL'!$F$400:$F$515,0),0,11,12),M$4,0),0) -> 0 | N113: 0 | O113: 0 | P113: 0 | Q113: =IFERROR(VLOOKUP($C113,OFFSET('UR & ECL'!$F$400,MATCH($C$81,'UR & ECL'!$F$400:$F$515,0),0,11,12),Q$4,0),0) -> 0 | R113: =IFERROR(VLOOKUP($C113,OFFSET('UR & ECL'!$F$400,MATCH($C$81,'UR & ECL'!$F$400:$F$515,0),0,11,12),R$4,0),0) -> 0 | S113: =IFERROR(VLOOKUP($C113,OFFSET('UR & ECL'!$F$400,MATCH($C$81,'UR & ECL'!$F$400:$F$515,0),0,11,12),S$4,0),0) -> 0 | T113: =O113+Q113+R113+S113 -> 0 | U113: 0 | V113: =IFERROR(VLOOKUP($C113,OFFSET(Budget!$C$43,MATCH($C$81,Budget!$C$43:$C$349,0)+3,0,11,154),44+$G$2,0),0) -> 0 | X113: =SUM(X114:X115) -> 0 | Y113: =SUM(Y114:Y115) -> 0 | Z113: =IFERROR(VLOOKUP($C113,OFFSET(Budget!$C$43,MATCH($C$81,Budget!$C$43:$C$349,0)+3,0,11,154),101+$G$2,0),0) -> 0 | AA113: =SUM(AA114:AA115) -> 0 | AB113: =IFERROR(SUM(OFFSET(Budget!$C$43,MATCH($C$81,Budget!$C$43:$C$349,0)+2+A113,101,1,$G$2)),0) -> 0 | AC113: =IFERROR(VLOOKUP($C113,OFFSET(Budget!$C$43,MATCH($C$81,Budget!$C$43:$C$349,0)+3,0,11,154),114,0),0) -> 0 | AD113: =IFERROR((2*AA113)/(H113-R113+T113-F113-AA113)*100,0) -> 0 | AE113: =IFERROR(SUM(OFFSET(Budget!$C$43,MATCH($C$81,Budget!$C$43:$C$349,0)+2+$A113,141,1,$G$2)),"") ->  | AF113: =IFERROR(VLOOKUP($C113,OFFSET(Budget!$C$43,MATCH($C$81,Budget!$C$43:$C$349,0)+3,0,12,154),58,0),"") ->  | AJ113: =C116 -> GII | AK113: =O116 -> 0 | AL113: =Q116 -> 0 | AM113: 0 | AN113: 0 | AO113: 0
B114: 1 | C114: Income | D114: 0 | E114: =IFERROR(VLOOKUP($C114,OFFSET('UR & ECL'!$F$400,MATCH($C$105,'UR & ECL'!$F$400:$F$515,0),0,11,12),E$4,0),0) -> 0 | F114: =IFERROR(VLOOKUP($C114,OFFSET('UR & ECL'!$F$400,MATCH($C$105,'UR & ECL'!$F$400:$F$515,0),0,11,12),F$4,0),0) -> 0 | G114: =IFERROR(VLOOKUP($C114,OFFSET('UR & ECL'!$F$400,MATCH($C$81,'UR & ECL'!$F$400:$F$515,0),0,11,12),G$4,0),0) -> 0 | H114: =D114+E114+F114+G114 -> 0 | I114: 0 | J114: 0 | K114: =IFERROR(VLOOKUP($C114,OFFSET('UR & ECL'!$F$400,MATCH($C$81,'UR & ECL'!$F$400:$F$515,0),0,11,12),K$4,0),0) -> 0 | L114: =IFERROR(VLOOKUP($C114,OFFSET('UR & ECL'!$F$400,MATCH($C$81,'UR & ECL'!$F$400:$F$515,0),0,11,12),L$4,0),0) -> 0 | M114: =IFERROR(VLOOKUP($C114,OFFSET('UR & ECL'!$F$400,MATCH($C$81,'UR & ECL'!$F$400:$F$515,0),0,11,12),M$4,0),0) -> 0 | N114: 0 | O114: 0 | P114: 0 | Q114: =IFERROR(VLOOKUP($C114,OFFSET('UR & ECL'!$F$400,MATCH($C$81,'UR & ECL'!$F$400:$F$515,0),0,11,12),Q$4,0),0) -> 0 | R114: =IFERROR(VLOOKUP($C114,OFFSET('UR & ECL'!$F$400,MATCH($C$81,'UR & ECL'!$F$400:$F$515,0),0,11,12),R$4,0),0) -> 0 | S114: =IFERROR(VLOOKUP($C114,OFFSET('UR & ECL'!$F$400,MATCH($C$81,'UR & ECL'!$F$400:$F$515,0),0,11,12),S$4,0),0) -> 0 | T114: =O114+Q114+R114+S114 -> 0 | U114: 0 | V114: =IFERROR(VLOOKUP($C114,OFFSET(Budget!$C$43,MATCH($C$81,Budget!$C$43:$C$349,0)+3,0,11,154),44+$G$2,0),0) -> 0 | X114: =IFERROR(HLOOKUP($X$7,STRUCTDEP!$S$68:$AE$76,4,FALSE),0) -> 0 | Y114: =IFERROR(HLOOKUP($Y$7,STRUCTDEP!$S$68:$AE$76,4,FALSE),0) -> 0 | Z114: =IFERROR(VLOOKUP($C114,OFFSET(Budget!$C$43,MATCH($C$81,Budget!$C$43:$C$349,0)+3,0,11,154),101+$G$2,0),0) -> 0 | AA114: =IFERROR(HLOOKUP($Y$7,STRUCTDEP!$AJ$68:$AU$76,4,FALSE),0) -> 0 | AB114: =IFERROR(SUM(OFFSET(Budget!$C$43,MATCH($C$81,Budget!$C$43:$C$349,0)+2+A114,101,1,$G$2)),0) -> 0 | AC114: =IFERROR(VLOOKUP($C114,OFFSET(Budget!$C$43,MATCH($C$81,Budget!$C$43:$C$349,0)+3,0,11,154),114,0),0) -> 0 | AD114: =IFERROR((2*AA114)/(H114-R114+T114-F114-AA114)*100,0) -> 0 | AE114: =IFERROR(SUM(OFFSET(Budget!$C$43,MATCH($C$81,Budget!$C$43:$C$349,0)+2+$A114,141,1,$G$2)),"") ->  | AF114: =IFERROR(VLOOKUP($C114,OFFSET(Budget!$C$43,MATCH($C$81,Budget!$C$43:$C$349,0)+3,0,12,154),58,0),"") ->  | AJ114: =C117 -> GG | AK114: =O117 -> 0 | AL114: 0 | AM114: 0 | AN114: 0 | AO114: 0
B115: 2 | C115: Fair Value Gain/Loss | D115: 0 | E115: =IFERROR(VLOOKUP($C115,OFFSET('UR & ECL'!$F$400,MATCH($C$105,'UR & ECL'!$F$400:$F$515,0),0,11,12),E$4,0),0) -> 0 | F115: =IFERROR(VLOOKUP($C115,OFFSET('UR & ECL'!$F$400,MATCH($C$105,'UR & ECL'!$F$400:$F$515,0),0,11,12),F$4,0),0) -> 0 | G115: =IFERROR(VLOOKUP($C115,OFFSET('UR & ECL'!$F$400,MATCH($C$81,'UR & ECL'!$F$400:$F$515,0),0,11,12),G$4,0),0) -> 0 | H115: =D115+E115+F115+G115 -> 0 | I115: 0 | J115: 0 | K115: =IFERROR(VLOOKUP($C115,OFFSET('UR & ECL'!$F$400,MATCH($C$81,'UR & ECL'!$F$400:$F$515,0),0,11,12),K$4,0),0) -> 0 | L115: =IFERROR(VLOOKUP($C115,OFFSET('UR & ECL'!$F$400,MATCH($C$81,'UR & ECL'!$F$400:$F$515,0),0,11,12),L$4,0),0) -> 0 | M115: =IFERROR(VLOOKUP($C115,OFFSET('UR & ECL'!$F$400,MATCH($C$81,'UR & ECL'!$F$400:$F$515,0),0,11,12),M$4,0),0) -> 0 | N115: 0 | O115: 0 | P115: 0 | Q115: =IFERROR(VLOOKUP($C115,OFFSET('UR & ECL'!$F$400,MATCH($C$81,'UR & ECL'!$F$400:$F$515,0),0,11,12),Q$4,0),0) -> 0 | R115: =IFERROR(VLOOKUP($C115,OFFSET('UR & ECL'!$F$400,MATCH($C$81,'UR & ECL'!$F$400:$F$515,0),0,11,12),R$4,0),0) -> 0 | S115: =IFERROR(VLOOKUP($C115,OFFSET('UR & ECL'!$F$400,MATCH($C$81,'UR & ECL'!$F$400:$F$515,0),0,11,12),S$4,0),0) -> 0 | T115: =O115+Q115+R115+S115 -> 0 | U115: 0 | V115: =IFERROR(VLOOKUP($C115,OFFSET(Budget!$C$43,MATCH($C$81,Budget!$C$43:$C$349,0)+3,0,11,154),44+$G$2,0),0) -> 0 | X115: =IFERROR(HLOOKUP($X$7,STRUCTDEP!$S$68:$AE$76,8,FALSE),0) -> 0 | Y115: =IFERROR(HLOOKUP($Y$7,STRUCTDEP!$S$68:$AE$76,8,FALSE),0) -> 0 | Z115: =IFERROR(VLOOKUP($C115,OFFSET(Budget!$C$43,MATCH($C$81,Budget!$C$43:$C$349,0)+3,0,11,154),101+$G$2,0),0) -> 0 | AA115: =IFERROR(HLOOKUP($Y$7,STRUCTDEP!$AJ$68:$AU$76,8,FALSE),0) -> 0 | AB115: =IFERROR(SUM(OFFSET(Budget!$C$43,MATCH($C$81,Budget!$C$43:$C$349,0)+2+A115,101,1,$G$2)),0) -> 0 | AC115: =IFERROR(VLOOKUP($C115,OFFSET(Budget!$C$43,MATCH($C$81,Budget!$C$43:$C$349,0)+3,0,11,154),114,0),0) -> 0 | AD115: =IFERROR((2*AA115)/(H115-R115+T115-F115-AA115)*100,0) -> 0 | AE115: =IFERROR(SUM(OFFSET(Budget!$C$43,MATCH($C$81,Budget!$C$43:$C$349,0)+2+$A115,141,1,$G$2)),"") ->  | AF115: =IFERROR(VLOOKUP($C115,OFFSET(Budget!$C$43,MATCH($C$81,Budget!$C$43:$C$349,0)+3,0,12,154),58,0),"") ->  | AJ115: =C118 -> Equity | AK115: =O118 -> 0 | AL115: 0 | AM115: 0 | AN115: 0 | AO115: 0
A116: 4 | C116: GII | D116: 0 | E116: =IFERROR(VLOOKUP($C116,OFFSET('UR & ECL'!$F$400,MATCH($C$105,'UR & ECL'!$F$400:$F$515,0),0,11,12),E$4,0),0) -> 0 | F116: =IFERROR(VLOOKUP($C116,OFFSET('UR & ECL'!$F$400,MATCH($C$105,'UR & ECL'!$F$400:$F$515,0),0,11,12),F$4,0),0) -> 0 | G116: =IFERROR(VLOOKUP($C116,OFFSET('UR & ECL'!$F$400,MATCH($C$81,'UR & ECL'!$F$400:$F$515,0),0,11,12),G$4,0),0) -> 0 | H116: 0 | I116: 0 | J116: 0 | K116: =IFERROR(VLOOKUP($C116,OFFSET('UR & ECL'!$F$400,MATCH($C$81,'UR & ECL'!$F$400:$F$515,0),0,11,12),K$4,0),0) -> 0 | L116: =IFERROR(VLOOKUP($C116,OFFSET('UR & ECL'!$F$400,MATCH($C$81,'UR & ECL'!$F$400:$F$515,0),0,11,12),L$4,0),0) -> 0 | M116: =IFERROR(VLOOKUP($C116,OFFSET('UR & ECL'!$F$400,MATCH($C$81,'UR & ECL'!$F$400:$F$515,0),0,11,12),M$4,0),0) -> 0 | N116: 0 | O116: 0 | P116: 0 | Q116: =IFERROR(VLOOKUP($C116,OFFSET('UR & ECL'!$F$400,MATCH($C$81,'UR & ECL'!$F$400:$F$515,0),0,11,12),Q$4,0),0) -> 0 | R116: =IFERROR(VLOOKUP($C116,OFFSET('UR & ECL'!$F$400,MATCH($C$81,'UR & ECL'!$F$400:$F$515,0),0,11,12),R$4,0),0) -> 0 | S116: =IFERROR(VLOOKUP($C116,OFFSET('UR & ECL'!$F$400,MATCH($C$81,'UR & ECL'!$F$400:$F$515,0),0,11,12),S$4,0),0) -> 0 | T116: 0 | U116: 0 | V116: =IFERROR(VLOOKUP($C116,OFFSET(Budget!$C$43,MATCH($C$81,Budget!$C$43:$C$349,0)+3,0,11,154),44+$G$2,0),0) -> 0 | X116: 0 | Y116: 0 | Z116: =IFERROR(VLOOKUP($C116,OFFSET(Budget!$C$43,MATCH($C$81,Budget!$C$43:$C$349,0)+3,0,11,154),101+$G$2,0),0) -> 0 | AA116: =IFERROR(HLOOKUP($Y$7,GII!$AJ$68:$AU$76,9,FALSE),0) -> 0 | AB116: =IFERROR(SUM(OFFSET(Budget!$C$43,MATCH($C$81,Budget!$C$43:$C$349,0)+2+A116,101,1,$G$2)),0) -> 0 | AC116: =IFERROR(VLOOKUP($C116,OFFSET(Budget!$C$43,MATCH($C$81,Budget!$C$43:$C$349,0)+3,0,11,154),114,0),0) -> 0 | AD116: 0 | AE116: =IFERROR(SUM(OFFSET(Budget!$C$43,MATCH($C$81,Budget!$C$43:$C$349,0)+2+$A116,141,1,$G$2)),"") ->  | AF116: =IFERROR(VLOOKUP($C116,OFFSET(Budget!$C$43,MATCH($C$81,Budget!$C$43:$C$349,0)+3,0,12,154),58,0),"") ->  | AJ116: =C121 -> Unit Trust | AK116: =O121 -> 0 | AL116: =Q121 -> 0 | AM116: =R121 -> 0 | AN116: =S121 -> 0 | AO116: 0
A117: 5 | C117: GG | D117: 0 | E117: =IFERROR(VLOOKUP($C117,OFFSET('UR & ECL'!$F$400,MATCH($C$105,'UR & ECL'!$F$400:$F$515,0),0,11,12),E$4,0),0) -> 0 | F117: =IFERROR(VLOOKUP($C117,OFFSET('UR & ECL'!$F$400,MATCH($C$105,'UR & ECL'!$F$400:$F$515,0),0,11,12),F$4,0),0) -> 0 | G117: =IFERROR(VLOOKUP($C117,OFFSET('UR & ECL'!$F$400,MATCH($C$81,'UR & ECL'!$F$400:$F$515,0),0,11,12),G$4,0),0) -> 0 | H117: 0 | I117: 0 | J117: 0 | K117: =IFERROR(VLOOKUP($C117,OFFSET('UR & ECL'!$F$400,MATCH($C$81,'UR & ECL'!$F$400:$F$515,0),0,11,12),K$4,0),0) -> 0 | L117: =IFERROR(VLOOKUP($C117,OFFSET('UR & ECL'!$F$400,MATCH($C$81,'UR & ECL'!$F$400:$F$515,0),0,11,12),L$4,0),0) -> 0 | M117: =IFERROR(VLOOKUP($C117,OFFSET('UR & ECL'!$F$400,MATCH($C$81,'UR & ECL'!$F$400:$F$515,0),0,11,12),M$4,0),0) -> 0 | N117: 0 | O117: 0 | P117: 0 | Q117: =IFERROR(VLOOKUP($C117,OFFSET('UR & ECL'!$F$400,MATCH($C$81,'UR & ECL'!$F$400:$F$515,0),0,11,12),Q$4,0),0) -> 0 | R117: =IFERROR(VLOOKUP($C117,OFFSET('UR & ECL'!$F$400,MATCH($C$81,'UR & ECL'!$F$400:$F$515,0),0,11,12),R$4,0),0) -> 0 | S117: =IFERROR(VLOOKUP($C117,OFFSET('UR & ECL'!$F$400,MATCH($C$81,'UR & ECL'!$F$400:$F$515,0),0,11,12),S$4,0),0) -> 0 | T117: 0 | U117: 0 | V117: =IFERROR(VLOOKUP($C117,OFFSET(Budget!$C$43,MATCH($C$81,Budget!$C$43:$C$349,0)+3,0,11,154),44+$G$2,0),0) -> 0 | X117: 0 | Y117: 0 | Z117: =IFERROR(VLOOKUP($C117,OFFSET(Budget!$C$43,MATCH($C$81,Budget!$C$43:$C$349,0)+3,0,11,154),101+$G$2,0),0) -> 0 | AA117: =IFERROR(HLOOKUP($Y$7,GG!$AJ$68:$AU$76,9,FALSE),0) -> 0 | AB117: =IFERROR(SUM(OFFSET(Budget!$C$43,MATCH($C$81,Budget!$C$43:$C$349,0)+2+A117,101,1,$G$2)),0) -> 0 | AC117: =IFERROR(VLOOKUP($C117,OFFSET(Budget!$C$43,MATCH($C$81,Budget!$C$43:$C$349,0)+3,0,11,154),114,0),0) -> 0 | AD117: 0 | AE117: =IFERROR(SUM(OFFSET(Budget!$C$43,MATCH($C$81,Budget!$C$43:$C$349,0)+2+$A117,141,1,$G$2)),"") ->  | AF117: =IFERROR(VLOOKUP($C117,OFFSET(Budget!$C$43,MATCH($C$81,Budget!$C$43:$C$349,0)+3,0,12,154),58,0),"") ->  | AJ117: =C124 -> ITA | AK117: =O124 -> 0 | AL117: =Q124 -> 0 | AM117: 0 | AN117: 0 | AO117: 0
A118: 6 | C118: Equity | D118: 0 | E118: =IFERROR(VLOOKUP($C118,OFFSET('UR & ECL'!$F$400,MATCH($C$105,'UR & ECL'!$F$400:$F$515,0),0,11,12),E$4,0),0) -> 0 | F118: =IFERROR(VLOOKUP($C118,OFFSET('UR & ECL'!$F$400,MATCH($C$105,'UR & ECL'!$F$400:$F$515,0),0,11,12),F$4,0),0) -> 0 | G118: =IFERROR(VLOOKUP($C118,OFFSET('UR & ECL'!$F$400,MATCH($C$81,'UR & ECL'!$F$400:$F$515,0),0,11,12),G$4,0),0) -> 0 | H118: 0 | I118: 0 | J118: 0 | K118: =IFERROR(VLOOKUP($C118,OFFSET('UR & ECL'!$F$400,MATCH($C$81,'UR & ECL'!$F$400:$F$515,0),0,11,12),K$4,0),0) -> 0 | L118: =IFERROR(VLOOKUP($C118,OFFSET('UR & ECL'!$F$400,MATCH($C$81,'UR & ECL'!$F$400:$F$515,0),0,11,12),L$4,0),0) -> 0 | M118: =IFERROR(VLOOKUP($C118,OFFSET('UR & ECL'!$F$400,MATCH($C$81,'UR & ECL'!$F$400:$F$515,0),0,11,12),M$4,0),0) -> 0 | N118: 0 | O118: 0 | P118: 0 | Q118: =IFERROR(VLOOKUP($C118,OFFSET('UR & ECL'!$F$400,MATCH($C$81,'UR & ECL'!$F$400:$F$515,0),0,11,12),Q$4,0),0) -> 0 | R118: =IFERROR(VLOOKUP($C118,OFFSET('UR & ECL'!$F$400,MATCH($C$81,'UR & ECL'!$F$400:$F$515,0),0,11,12),R$4,0),0) -> 0 | S118: =IFERROR(VLOOKUP($C118,OFFSET('UR & ECL'!$F$400,MATCH($C$81,'UR & ECL'!$F$400:$F$515,0),0,11,12),S$4,0),0) -> 0 | T118: 0 | U118: 0 | V118: =IFERROR(VLOOKUP($C118,OFFSET(Budget!$C$43,MATCH($C$81,Budget!$C$43:$C$349,0)+3,0,11,154),44+$G$2,0),0) -> 0 | X118: 0 | Y118: 0 | Z118: =IFERROR(VLOOKUP($C118,OFFSET(Budget!$C$43,MATCH($C$81,Budget!$C$43:$C$349,0)+3,0,11,154),101+$G$2,0),0) -> 0 | AA118: =SUM(AA119:AA120) -> 0 | AB118: =IFERROR(SUM(OFFSET(Budget!$C$43,MATCH($C$81,Budget!$C$43:$C$349,0)+2+A118,101,1,$G$2)),0) -> 0 | AC118: =IFERROR(VLOOKUP($C118,OFFSET(Budget!$C$43,MATCH($C$81,Budget!$C$43:$C$349,0)+3,0,11,154),114,0),0) -> 0 | AD118: 0 | AE118: =IFERROR(SUM(OFFSET(Budget!$C$43,MATCH($C$81,Budget!$C$43:$C$349,0)+2+$A118,141,1,$G$2)),"") ->  | AF118: =IFERROR(VLOOKUP($C118,OFFSET(Budget!$C$43,MATCH($C$81,Budget!$C$43:$C$349,0)+3,0,12,154),58,0),"") ->  | AJ118: =C125 -> Corporate Sukuk | AK118: =O125 -> 0 | AL118: 0 | AM118: 0 | AN118: 0 | AO118: 0
B119: 3 | C119: Income | D119: 0 | E119: =IFERROR(VLOOKUP($C119,OFFSET('UR & ECL'!$F$400,MATCH($C$105,'UR & ECL'!$F$400:$F$515,0),0,11,12),E$4,0),0) -> 0 | F119: =IFERROR(VLOOKUP($C119,OFFSET('UR & ECL'!$F$400,MATCH($C$105,'UR & ECL'!$F$400:$F$515,0),0,11,12),F$4,0),0) -> 0 | G119: =IFERROR(VLOOKUP($C119,OFFSET('UR & ECL'!$F$400,MATCH($C$81,'UR & ECL'!$F$400:$F$515,0),0,11,12),G$4,0),0) -> 0 | H119: 0 | I119: 0 | J119: 0 | K119: =IFERROR(VLOOKUP($C119,OFFSET('UR & ECL'!$F$400,MATCH($C$81,'UR & ECL'!$F$400:$F$515,0),0,11,12),K$4,0),0) -> 0 | L119: =IFERROR(VLOOKUP($C119,OFFSET('UR & ECL'!$F$400,MATCH($C$81,'UR & ECL'!$F$400:$F$515,0),0,11,12),L$4,0),0) -> 0 | M119: =IFERROR(VLOOKUP($C119,OFFSET('UR & ECL'!$F$400,MATCH($C$81,'UR & ECL'!$F$400:$F$515,0),0,11,12),M$4,0),0) -> 0 | N119: 0 | O119: 0 | P119: 0 | Q119: =IFERROR(VLOOKUP($C119,OFFSET('UR & ECL'!$F$400,MATCH($C$81,'UR & ECL'!$F$400:$F$515,0),0,11,12),Q$4,0),0) -> 0 | R119: =IFERROR(VLOOKUP($C119,OFFSET('UR & ECL'!$F$400,MATCH($C$81,'UR & ECL'!$F$400:$F$515,0),0,11,12),R$4,0),0) -> 0 | S119: =IFERROR(VLOOKUP($C119,OFFSET('UR & ECL'!$F$400,MATCH($C$81,'UR & ECL'!$F$400:$F$515,0),0,11,12),S$4,0),0) -> 0 | T119: 0 | U119: 0 | V119: =IFERROR(VLOOKUP($C119,OFFSET(Budget!$C$43,MATCH($C$81,Budget!$C$43:$C$349,0)+3,0,11,154),44+$G$2,0),0) -> 0 | X119: 0 | Y119: 0 | Z119: =IFERROR(VLOOKUP($C119,OFFSET(Budget!$C$43,MATCH($C$81,Budget!$C$43:$C$349,0)+3,0,11,154),101+$G$2,0),0) -> 0 | AA119: =IFERROR(HLOOKUP($Y$7,EQUITY!$AJ$68:$AU$76,3,FALSE)+HLOOKUP($Y$7,EQUITY!$AJ$68:$AU$76,4,FALSE)+HLOOKUP($Y$7,EQUITY!$AJ$68:$AU$76,5,FALSE)+HLOOKUP($Y$7,EQUITY!$AJ$68:$AU$76,6,FALSE)+HLOOKUP($Y$7,EQUITY!$AJ$68:$AU$76,7,FALSE),0) -> 0 | AB119: =IFERROR(SUM(OFFSET(Budget!$C$43,MATCH($C$81,Budget!$C$43:$C$349,0)+2+A119,101,1,$G$2)),0) -> 0 | AC119: =IFERROR(VLOOKUP($C119,OFFSET(Budget!$C$43,MATCH($C$81,Budget!$C$43:$C$349,0)+3,0,11,154),114,0),0) -> 0 | AD119: 0 | AE119: =IFERROR(SUM(OFFSET(Budget!$C$43,MATCH($C$81,Budget!$C$43:$C$349,0)+2+$A119,141,1,$G$2)),"") ->  | AF119: =IFERROR(VLOOKUP($C119,OFFSET(Budget!$C$43,MATCH($C$81,Budget!$C$43:$C$349,0)+3,0,12,154),58,0),"") ->  | AJ119: =C126 -> Properties | AK119: =O126 -> 0 | AL119: 0 | AM119: 0 | AN119: 0 | AO119: 0
B120: 4 | C120: Fair Value Gain/Loss | D120: 0 | E120: =IFERROR(VLOOKUP($C120,OFFSET('UR & ECL'!$F$400,MATCH($C$105,'UR & ECL'!$F$400:$F$515,0),0,11,12),E$4,0),0) -> 0 | F120: =IFERROR(VLOOKUP($C120,OFFSET('UR & ECL'!$F$400,MATCH($C$105,'UR & ECL'!$F$400:$F$515,0),0,11,12),F$4,0),0) -> 0 | G120: =IFERROR(VLOOKUP($C120,OFFSET('UR & ECL'!$F$400,MATCH($C$81,'UR & ECL'!$F$400:$F$515,0),0,11,12),G$4,0),0) -> 0 | H120: 0 | I120: 0 | J120: 0 | K120: =IFERROR(VLOOKUP($C120,OFFSET('UR & ECL'!$F$400,MATCH($C$81,'UR & ECL'!$F$400:$F$515,0),0,11,12),K$4,0),0) -> 0 | L120: =IFERROR(VLOOKUP($C120,OFFSET('UR & ECL'!$F$400,MATCH($C$81,'UR & ECL'!$F$400:$F$515,0),0,11,12),L$4,0),0) -> 0 | M120: =IFERROR(VLOOKUP($C120,OFFSET('UR & ECL'!$F$400,MATCH($C$81,'UR & ECL'!$F$400:$F$515,0),0,11,12),M$4,0),0) -> 0 | N120: 0 | O120: 0 | P120: 0 | Q120: =IFERROR(VLOOKUP($C120,OFFSET('UR & ECL'!$F$400,MATCH($C$81,'UR & ECL'!$F$400:$F$515,0),0,11,12),Q$4,0),0) -> 0 | R120: =IFERROR(VLOOKUP($C120,OFFSET('UR & ECL'!$F$400,MATCH($C$81,'UR & ECL'!$F$400:$F$515,0),0,11,12),R$4,0),0) -> 0 | S120: =IFERROR(VLOOKUP($C120,OFFSET('UR & ECL'!$F$400,MATCH($C$81,'UR & ECL'!$F$400:$F$515,0),0,11,12),S$4,0),0) -> 0 | T120: 0 | U120: 0 | V120: =IFERROR(VLOOKUP($C120,OFFSET(Budget!$C$43,MATCH($C$81,Budget!$C$43:$C$349,0)+3,0,11,154),44+$G$2,0),0) -> 0 | X120: 0 | Y120: 0 | Z120: =IFERROR(VLOOKUP($C120,OFFSET(Budget!$C$43,MATCH($C$81,Budget!$C$43:$C$349,0)+3,0,11,154),101+$G$2,0),0) -> 0 | AA120: =IFERROR(HLOOKUP($Y$7,EQUITY!$AJ$68:$AU$76,8,FALSE),0) -> 0 | AB120: =IFERROR(SUM(OFFSET(Budget!$C$43,MATCH($C$81,Budget!$C$43:$C$349,0)+2+A120,101,1,$G$2)),0) -> 0 | AC120: =IFERROR(VLOOKUP($C120,OFFSET(Budget!$C$43,MATCH($C$81,Budget!$C$43:$C$349,0)+3,0,11,154),114,0),0) -> 0 | AD120: 0 | AE120: =IFERROR(SUM(OFFSET(Budget!$C$43,MATCH($C$81,Budget!$C$43:$C$349,0)+2+$A120,141,1,$G$2)),"") ->  | AF120: =IFERROR(VLOOKUP($C120,OFFSET(Budget!$C$43,MATCH($C$81,Budget!$C$43:$C$349,0)+3,0,12,154),58,0),"") ->  | AJ120: =C127 -> TOTAL | AK120: =O127 -> 0 | AL120: 0 | AM120: 0 | AN120: 0 | AO120: 0
A121: 7 | C121: Unit Trust | D121: 0 | E121: =IFERROR(VLOOKUP($C121,OFFSET('UR & ECL'!$F$400,MATCH($C$105,'UR & ECL'!$F$400:$F$515,0),0,11,12),E$4,0),0) -> 0 | F121: =IFERROR(VLOOKUP($C121,OFFSET('UR & ECL'!$F$400,MATCH($C$105,'UR & ECL'!$F$400:$F$515,0),0,11,12),F$4,0),0) -> 0 | G121: =IFERROR(VLOOKUP($C121,OFFSET('UR & ECL'!$F$400,MATCH($C$81,'UR & ECL'!$F$400:$F$515,0),0,11,12),G$4,0),0) -> 0 | H121: 0 | I121: 0 | J121: 0 | K121: =IFERROR(VLOOKUP($C121,OFFSET('UR & ECL'!$F$400,MATCH($C$81,'UR & ECL'!$F$400:$F$515,0),0,11,12),K$4,0),0) -> 0 | L121: =IFERROR(VLOOKUP($C121,OFFSET('UR & ECL'!$F$400,MATCH($C$81,'UR & ECL'!$F$400:$F$515,0),0,11,12),L$4,0),0) -> 0 | M121: =IFERROR(VLOOKUP($C121,OFFSET('UR & ECL'!$F$400,MATCH($C$81,'UR & ECL'!$F$400:$F$515,0),0,11,12),M$4,0),0) -> 0 | N121: 0 | O121: 0 | P121: 0 | Q121: =IFERROR(VLOOKUP($C121,OFFSET('UR & ECL'!$F$400,MATCH($C$81,'UR & ECL'!$F$400:$F$515,0),0,11,12),Q$4,0),0) -> 0 | R121: =IFERROR(VLOOKUP($C121,OFFSET('UR & ECL'!$F$400,MATCH($C$81,'UR & ECL'!$F$400:$F$515,0),0,11,12),R$4,0),0) -> 0 | S121: =IFERROR(VLOOKUP($C121,OFFSET('UR & ECL'!$F$400,MATCH($C$81,'UR & ECL'!$F$400:$F$515,0),0,11,12),S$4,0),0) -> 0 | T121: 0 | U121: 0 | V121: =IFERROR(VLOOKUP($C121,OFFSET(Budget!$C$43,MATCH($C$81,Budget!$C$43:$C$349,0)+3,0,11,154),44+$G$2,0),0) -> 0 | X121: 0 | Y121: 0 | Z121: =IFERROR(VLOOKUP($C121,OFFSET(Budget!$C$43,MATCH($C$81,Budget!$C$43:$C$349,0)+3,0,11,154),101+$G$2,0),0) -> 0 | AA121: =SUM(AA122:AA123) -> 0 | AB121: =IFERROR(SUM(OFFSET(Budget!$C$43,MATCH($C$81,Budget!$C$43:$C$349,0)+2+A121,101,1,$G$2)),0) -> 0 | AC121: =IFERROR(VLOOKUP($C121,OFFSET(Budget!$C$43,MATCH($C$81,Budget!$C$43:$C$349,0)+3,0,11,154),114,0),0) -> 0 | AD121: 0 | AE121: =IFERROR(SUM(OFFSET(Budget!$C$43,MATCH($C$81,Budget!$C$43:$C$349,0)+2+$A121,141,1,$G$2)),"") ->  | AF121: =IFERROR(VLOOKUP($C121,OFFSET(Budget!$C$43,MATCH($C$81,Budget!$C$43:$C$349,0)+3,0,12,154),58,0),"") -> 
B122: 5 | C122: Income | D122: 0 | E122: =IFERROR(VLOOKUP($C122,OFFSET('UR & ECL'!$F$400,MATCH($C$105,'UR & ECL'!$F$400:$F$515,0),0,11,12),E$4,0),0) -> 0 | F122: =IFERROR(VLOOKUP($C122,OFFSET('UR & ECL'!$F$400,MATCH($C$105,'UR & ECL'!$F$400:$F$515,0),0,11,12),F$4,0),0) -> 0 | G122: =IFERROR(VLOOKUP($C122,OFFSET('UR & ECL'!$F$400,MATCH($C$81,'UR & ECL'!$F$400:$F$515,0),0,11,12),G$4,0),0) -> 0 | H122: 0 | I122: 0 | J122: 0 | K122: =IFERROR(VLOOKUP($C122,OFFSET('UR & ECL'!$F$400,MATCH($C$81,'UR & ECL'!$F$400:$F$515,0),0,11,12),K$4,0),0) -> 0 | L122: =IFERROR(VLOOKUP($C122,OFFSET('UR & ECL'!$F$400,MATCH($C$81,'UR & ECL'!$F$400:$F$515,0),0,11,12),L$4,0),0) -> 0 | M122: =IFERROR(VLOOKUP($C122,OFFSET('UR & ECL'!$F$400,MATCH($C$81,'UR & ECL'!$F$400:$F$515,0),0,11,12),M$4,0),0) -> 0 | N122: 0 | O122: 0 | P122: 0 | Q122: =IFERROR(VLOOKUP($C122,OFFSET('UR & ECL'!$F$400,MATCH($C$81,'UR & ECL'!$F$400:$F$515,0),0,11,12),Q$4,0),0) -> 0 | R122: =IFERROR(VLOOKUP($C122,OFFSET('UR & ECL'!$F$400,MATCH($C$81,'UR & ECL'!$F$400:$F$515,0),0,11,12),R$4,0),0) -> 0 | S122: =IFERROR(VLOOKUP($C122,OFFSET('UR & ECL'!$F$400,MATCH($C$81,'UR & ECL'!$F$400:$F$515,0),0,11,12),S$4,0),0) -> 0 | T122: 0 | U122: 0 | V122: =IFERROR(VLOOKUP($C122,OFFSET(Budget!$C$43,MATCH($C$81,Budget!$C$43:$C$349,0)+3,0,11,154),44+$G$2,0),0) -> 0 | X122: 0 | Y122: 0 | Z122: =IFERROR(VLOOKUP($C122,OFFSET(Budget!$C$43,MATCH($C$81,Budget!$C$43:$C$349,0)+3,0,11,154),101+$G$2,0),0) -> 0 | AA122: =IFERROR(HLOOKUP($Y$7,TRUST!$AJ$68:$AU$76,4,FALSE)+HLOOKUP($Y$7,TRUST!$AJ$68:$AU$76,6,FALSE),0) -> 0 | AB122: =IFERROR(SUM(OFFSET(Budget!$C$43,MATCH($C$81,Budget!$C$43:$C$349,0)+2+A122,101,1,$G$2)),0) -> 0 | AC122: =IFERROR(VLOOKUP($C122,OFFSET(Budget!$C$43,MATCH($C$81,Budget!$C$43:$C$349,0)+3,0,11,154),114,0),0) -> 0 | AD122: 0 | AE122: =IFERROR(SUM(OFFSET(Budget!$C$43,MATCH($C$81,Budget!$C$43:$C$349,0)+2+$A122,141,1,$G$2)),"") ->  | AF122: =IFERROR(VLOOKUP($C122,OFFSET(Budget!$C$43,MATCH($C$81,Budget!$C$43:$C$349,0)+3,0,12,154),58,0),"") -> 
B123: 6 | C123: Fair Value Gain/Loss | D123: 0 | E123: =IFERROR(VLOOKUP($C123,OFFSET('UR & ECL'!$F$400,MATCH($C$105,'UR & ECL'!$F$400:$F$515,0),0,11,12),E$4,0),0) -> 0 | F123: =IFERROR(VLOOKUP($C123,OFFSET('UR & ECL'!$F$400,MATCH($C$105,'UR & ECL'!$F$400:$F$515,0),0,11,12),F$4,0),0) -> 0 | G123: =IFERROR(VLOOKUP($C123,OFFSET('UR & ECL'!$F$400,MATCH($C$81,'UR & ECL'!$F$400:$F$515,0),0,11,12),G$4,0),0) -> 0 | H123: 0 | I123: 0 | J123: 0 | K123: =IFERROR(VLOOKUP($C123,OFFSET('UR & ECL'!$F$400,MATCH($C$81,'UR & ECL'!$F$400:$F$515,0),0,11,12),K$4,0),0) -> 0 | L123: =IFERROR(VLOOKUP($C123,OFFSET('UR & ECL'!$F$400,MATCH($C$81,'UR & ECL'!$F$400:$F$515,0),0,11,12),L$4,0),0) -> 0 | M123: =IFERROR(VLOOKUP($C123,OFFSET('UR & ECL'!$F$400,MATCH($C$81,'UR & ECL'!$F$400:$F$515,0),0,11,12),M$4,0),0) -> 0 | N123: 0 | O123: 0 | P123: 0 | Q123: =IFERROR(VLOOKUP($C123,OFFSET('UR & ECL'!$F$400,MATCH($C$81,'UR & ECL'!$F$400:$F$515,0),0,11,12),Q$4,0),0) -> 0 | R123: =IFERROR(VLOOKUP($C123,OFFSET('UR & ECL'!$F$400,MATCH($C$81,'UR & ECL'!$F$400:$F$515,0),0,11,12),R$4,0),0) -> 0 | S123: =IFERROR(VLOOKUP($C123,OFFSET('UR & ECL'!$F$400,MATCH($C$81,'UR & ECL'!$F$400:$F$515,0),0,11,12),S$4,0),0) -> 0 | T123: 0 | U123: 0 | V123: =IFERROR(VLOOKUP($C123,OFFSET(Budget!$C$43,MATCH($C$81,Budget!$C$43:$C$349,0)+3,0,11,154),44+$G$2,0),0) -> 0 | X123: 0 | Y123: 0 | Z123: =IFERROR(VLOOKUP($C123,OFFSET(Budget!$C$43,MATCH($C$81,Budget!$C$43:$C$349,0)+3,0,11,154),101+$G$2,0),0) -> 0 | AA123: =IFERROR(HLOOKUP($Y$7,TRUST!$AJ$68:$AU$76,8,FALSE),0) -> 0 | AB123: =IFERROR(SUM(OFFSET(Budget!$C$43,MATCH($C$81,Budget!$C$43:$C$349,0)+2+A123,101,1,$G$2)),0) -> 0 | AC123: =IFERROR(VLOOKUP($C123,OFFSET(Budget!$C$43,MATCH($C$81,Budget!$C$43:$C$349,0)+3,0,11,154),114,0),0) -> 0 | AD123: 0 | AE123: =IFERROR(SUM(OFFSET(Budget!$C$43,MATCH($C$81,Budget!$C$43:$C$349,0)+2+$A123,141,1,$G$2)),"") ->  | AF123: =IFERROR(VLOOKUP($C123,OFFSET(Budget!$C$43,MATCH($C$81,Budget!$C$43:$C$349,0)+3,0,12,154),58,0),"") -> 
A124: 8 | C124: ITA | D124: 0 | E124: =IFERROR(VLOOKUP($C124,OFFSET('UR & ECL'!$F$400,MATCH($C$105,'UR & ECL'!$F$400:$F$515,0),0,11,12),E$4,0),0) -> 0 | F124: =IFERROR(VLOOKUP($C124,OFFSET('UR & ECL'!$F$400,MATCH($C$105,'UR & ECL'!$F$400:$F$515,0),0,11,12),F$4,0),0) -> 0 | G124: =IFERROR(VLOOKUP($C124,OFFSET('UR & ECL'!$F$400,MATCH($C$81,'UR & ECL'!$F$400:$F$515,0),0,11,12),G$4,0),0) -> 0 | H124: 0 | I124: 0 | J124: 0 | K124: =IFERROR(VLOOKUP($C124,OFFSET('UR & ECL'!$F$400,MATCH($C$81,'UR & ECL'!$F$400:$F$515,0),0,11,12),K$4,0),0) -> 0 | L124: =IFERROR(VLOOKUP($C124,OFFSET('UR & ECL'!$F$400,MATCH($C$81,'UR & ECL'!$F$400:$F$515,0),0,11,12),L$4,0),0) -> 0 | M124: =IFERROR(VLOOKUP($C124,OFFSET('UR & ECL'!$F$400,MATCH($C$81,'UR & ECL'!$F$400:$F$515,0),0,11,12),M$4,0),0) -> 0 | N124: 0 | O124: 0 | P124: 0 | Q124: =IFERROR(VLOOKUP($C124,OFFSET('UR & ECL'!$F$400,MATCH($C$81,'UR & ECL'!$F$400:$F$515,0),0,11,12),Q$4,0),0) -> 0 | R124: =IFERROR(VLOOKUP($C124,OFFSET('UR & ECL'!$F$400,MATCH($C$81,'UR & ECL'!$F$400:$F$515,0),0,11,12),R$4,0),0) -> 0 | S124: =IFERROR(VLOOKUP($C124,OFFSET('UR & ECL'!$F$400,MATCH($C$81,'UR & ECL'!$F$400:$F$515,0),0,11,12),S$4,0),0) -> 0 | T124: 0 | U124: 0 | V124: =IFERROR(VLOOKUP($C124,OFFSET(Budget!$C$43,MATCH($C$81,Budget!$C$43:$C$349,0)+3,0,11,154),44+$G$2,0),0) -> 0 | X124: 0 | Y124: 0 | Z124: =IFERROR(VLOOKUP($C124,OFFSET(Budget!$C$43,MATCH($C$81,Budget!$C$43:$C$349,0)+3,0,11,154),101+$G$2,0),0) -> 0 | AA124: =IFERROR(HLOOKUP($Y$7,ITA!$AJ$68:$AU$76,9,FALSE),0) -> 0 | AB124: =IFERROR(SUM(OFFSET(Budget!$C$43,MATCH($C$81,Budget!$C$43:$C$349,0)+2+A124,101,1,$G$2)),0) -> 0 | AC124: =IFERROR(VLOOKUP($C124,OFFSET(Budget!$C$43,MATCH($C$81,Budget!$C$43:$C$349,0)+3,0,11,154),114,0),0) -> 0 | AD124: 0 | AE124: =IFERROR(SUM(OFFSET(Budget!$C$43,MATCH($C$81,Budget!$C$43:$C$349,0)+2+$A124,141,1,$G$2)),"") ->  | AF124: =IFERROR(VLOOKUP($C124,OFFSET(Budget!$C$43,MATCH($C$81,Budget!$C$43:$C$349,0)+3,0,12,154),58,0),"") -> 
A125: 9 | C125: Corporate Sukuk | D125: 0 | E125: =IFERROR(VLOOKUP($C125,OFFSET('UR & ECL'!$F$400,MATCH($C$105,'UR & ECL'!$F$400:$F$515,0),0,11,12),E$4,0),0) -> 0 | F125: =IFERROR(VLOOKUP($C125,OFFSET('UR & ECL'!$F$400,MATCH($C$105,'UR & ECL'!$F$400:$F$515,0),0,11,12),F$4,0),0) -> 0 | G125: =IFERROR(VLOOKUP($C125,OFFSET('UR & ECL'!$F$400,MATCH($C$81,'UR & ECL'!$F$400:$F$515,0),0,11,12),G$4,0),0) -> 0 | H125: 0 | I125: 0 | J125: 0 | K125: =IFERROR(VLOOKUP($C125,OFFSET('UR & ECL'!$F$400,MATCH($C$81,'UR & ECL'!$F$400:$F$515,0),0,11,12),K$4,0),0) -> 0 | L125: =IFERROR(VLOOKUP($C125,OFFSET('UR & ECL'!$F$400,MATCH($C$81,'UR & ECL'!$F$400:$F$515,0),0,11,12),L$4,0),0) -> 0 | M125: =IFERROR(VLOOKUP($C125,OFFSET('UR & ECL'!$F$400,MATCH($C$81,'UR & ECL'!$F$400:$F$515,0),0,11,12),M$4,0),0) -> 0 | N125: 0 | O125: 0 | P125: 0 | Q125: =IFERROR(VLOOKUP($C125,OFFSET('UR & ECL'!$F$400,MATCH($C$81,'UR & ECL'!$F$400:$F$515,0),0,11,12),Q$4,0),0) -> 0 | R125: =IFERROR(VLOOKUP($C125,OFFSET('UR & ECL'!$F$400,MATCH($C$81,'UR & ECL'!$F$400:$F$515,0),0,11,12),R$4,0),0) -> 0 | S125: =IFERROR(VLOOKUP($C125,OFFSET('UR & ECL'!$F$400,MATCH($C$81,'UR & ECL'!$F$400:$F$515,0),0,11,12),S$4,0),0) -> 0 | T125: 0 | U125: 0 | V125: =IFERROR(VLOOKUP($C125,OFFSET(Budget!$C$43,MATCH($C$81,Budget!$C$43:$C$349,0)+3,0,11,154),44+$G$2,0),0) -> 0 | X125: 0 | Y125: 0 | Z125: =IFERROR(VLOOKUP($C125,OFFSET(Budget!$C$43,MATCH($C$81,Budget!$C$43:$C$349,0)+3,0,11,154),101+$G$2,0),0) -> 0 | AA125: =IFERROR(HLOOKUP($Y$7,SUKUK!$AJ$68:$AU$76,9,FALSE),0) -> 0 | AB125: =IFERROR(SUM(OFFSET(Budget!$C$43,MATCH($C$81,Budget!$C$43:$C$349,0)+2+A125,101,1,$G$2)),0) -> 0 | AC125: =IFERROR(VLOOKUP($C125,OFFSET(Budget!$C$43,MATCH($C$81,Budget!$C$43:$C$349,0)+3,0,11,154),114,0),0) -> 0 | AD125: 0 | AE125: =IFERROR(SUM(OFFSET(Budget!$C$43,MATCH($C$81,Budget!$C$43:$C$349,0)+2+$A125,141,1,$G$2)),"") ->  | AF125: =IFERROR(VLOOKUP($C125,OFFSET(Budget!$C$43,MATCH($C$81,Budget!$C$43:$C$349,0)+3,0,12,154),58,0),"") -> 
A126: 10 | C126: Properties | D126: 0 | E126: =IFERROR(VLOOKUP($C126,OFFSET('UR & ECL'!$F$400,MATCH($C$105,'UR & ECL'!$F$400:$F$515,0),0,11,12),E$4,0),0) -> 0 | F126: =IFERROR(VLOOKUP($C126,OFFSET('UR & ECL'!$F$400,MATCH($C$105,'UR & ECL'!$F$400:$F$515,0),0,11,12),F$4,0),0) -> 0 | G126: =IFERROR(VLOOKUP($C126,OFFSET('UR & ECL'!$F$400,MATCH($C$81,'UR & ECL'!$F$400:$F$515,0),0,11,12),G$4,0),0) -> 0 | H126: 0 | I126: 0 | J126: 0 | K126: =IFERROR(VLOOKUP($C126,OFFSET('UR & ECL'!$F$400,MATCH($C$81,'UR & ECL'!$F$400:$F$515,0),0,11,12),K$4,0),0) -> 0 | L126: =IFERROR(VLOOKUP($C126,OFFSET('UR & ECL'!$F$400,MATCH($C$81,'UR & ECL'!$F$400:$F$515,0),0,11,12),L$4,0),0) -> 0 | M126: =IFERROR(VLOOKUP($C126,OFFSET('UR & ECL'!$F$400,MATCH($C$81,'UR & ECL'!$F$400:$F$515,0),0,11,12),M$4,0),0) -> 0 | N126: 0 | O126: 0 | P126: 0 | Q126: =IFERROR(VLOOKUP($C126,OFFSET('UR & ECL'!$F$400,MATCH($C$81,'UR & ECL'!$F$400:$F$515,0),0,11,12),Q$4,0),0) -> 0 | R126: =IFERROR(VLOOKUP($C126,OFFSET('UR & ECL'!$F$400,MATCH($C$81,'UR & ECL'!$F$400:$F$515,0),0,11,12),R$4,0),0) -> 0 | S126: =IFERROR(VLOOKUP($C126,OFFSET('UR & ECL'!$F$400,MATCH($C$81,'UR & ECL'!$F$400:$F$515,0),0,11,12),S$4,0),0) -> 0 | T126: 0 | U126: 0 | V126: =IFERROR(VLOOKUP($C126,OFFSET(Budget!$C$43,MATCH($C$81,Budget!$C$43:$C$349,0)+3,0,11,154),44+$G$2,0),0) -> 0 | X126: 0 | Y126: 0 | Z126: =IFERROR(VLOOKUP($C126,OFFSET(Budget!$C$43,MATCH($C$81,Budget!$C$43:$C$349,0)+3,0,11,154),101+$G$2,0),0) -> 0 | AA126: =IFERROR(HLOOKUP($Y$7,PROPERTY!$AJ$68:$AU$76,9,FALSE),0) -> 0 | AB126: =IFERROR(SUM(OFFSET(Budget!$C$43,MATCH($C$81,Budget!$C$43:$C$349,0)+2+A126,101,1,$G$2)),0) -> 0 | AC126: =IFERROR(VLOOKUP($C126,OFFSET(Budget!$C$43,MATCH($C$81,Budget!$C$43:$C$349,0)+3,0,11,154),114,0),0) -> 0 | AD126: 0 | AE126: =IFERROR(SUM(OFFSET(Budget!$C$43,MATCH($C$81,Budget!$C$43:$C$349,0)+2+$A126,141,1,$G$2)),"") ->  | AF126: =IFERROR(VLOOKUP($C126,OFFSET(Budget!$C$43,MATCH($C$81,Budget!$C$43:$C$349,0)+3,0,12,154),58,0),"") -> 
A127: 11 | C127: TOTAL | D127: =SUM(D110:D126) -> 0 | E127: =SUM(E110:E126) -> 0 | F127: 0 | G127: 0 | H127: 0 | I127: 0 | J127: 0 | K127: 0 | L127: 0 | M127: 0 | N127: 0 | O127: 0 | P127: 0 | Q127: 0 | R127: 0 | S127: 0 | T127: 0 | U127: =SUM(U110:U126) -> 0 | V127: =SUM(V110:V126) -> 0 | W127: =SUM(W110:W126) ->  | X127: =SUM(X110:X113,X116:X118,X121,X124:X126) -> 0 | Y127: =SUM(Y110:Y113,Y116:Y118,Y121,Y124:Y126) -> 0 | Z127: =SUM(Z110:Z113,Z116:Z118,Z121,Z124:Z126) -> 0 | AA127: =SUM(AA110:AA113,AA116:AA118,AA121,AA124:AA126) -> 0 | AB127: =SUM(AB110:AB113,AB116:AB118,AB121,AB124:AB126) -> 0 | AC127: =SUM(AC110:AC126) -> 0 | AD127: =IFERROR((2*AA127)/(H127-R127+T127-F127-AA127)*100,0) -> 0 | AE127: =IFERROR(SUM(OFFSET(Budget!$C$43,MATCH($C$105,Budget!$C$43:$C$349,0)+2+$A127,141,1,$G$2)),"") ->  | AF127: =IFERROR(VLOOKUP($C127,OFFSET(Budget!$C$43,MATCH($C$105,Budget!$C$43:$C$349,0)+3,0,12,154),58,0),"") -> 
C129: MYBALANCED
C130: MYBALANCED
D131: ASSET ALLOCATION | X131: RM INCOME | AD131: % YIELD
D132: =D108 -> Cost | E132: UR Gain/Loss | F132: Reserve | G132: ECL | H132: =H108 -> FYE2019 | I132: % | J132: Cost | K132: UR Gain/Loss | L132: Reserve | M132: ECL | N132: =$N$7 -> 2020-01-01 | O132: Cost | P132: % | Q132: UR Gain/Loss | R132: Reserve | S132: ECL | T132: =T108 -> 2020-02-01 | U132: % | V132: =$V$7 -> BUDGET (RM) | W132: =$W$7 -> BUDGET (%) | X132: =$N$7 -> 2020-01-01 | Y132: =$T$32 -> 2020-02-01 | Z132: MONTHLY BUDGET | AA132: =+$AA$7 -> YTD | AB132: ="YTD BUDGET (" &$G$2&" mths)" -> YTD BUDGET (2 mths) | AC132: BUDGET (12 mths) | AD132: =+$AD$7 -> YTD | AE132: ="YTD BUDGET (" &$G$2& " mths)" -> YTD BUDGET (2 mths) | AF132: BUDGET (12 mths)
A134: 1 | C134: Deposits & Money Market | D134: 0 | E134: =IFERROR(VLOOKUP($C134,OFFSET('UR & ECL'!$F$400,MATCH($C$129,'UR & ECL'!$F$400:$F$515,0),0,11,12),E$4,0),0) -> 0 | F134: =IFERROR(VLOOKUP($C134,OFFSET('UR & ECL'!$F$400,MATCH($C$129,'UR & ECL'!$F$400:$F$515,0),0,11,12),F$4,0),0) -> 0 | G134: =IFERROR(VLOOKUP($C134,OFFSET('UR & ECL'!$F$400,MATCH($C$81,'UR & ECL'!$F$400:$F$515,0),0,11,12),G$4,0),0) -> 0 | H134: 0 | I134: =IFERROR(H134/H$103*100,0) -> 0 | J134: 0 | K134: =IFERROR(VLOOKUP($C134,OFFSET('UR & ECL'!$F$400,MATCH($C$81,'UR & ECL'!$F$400:$F$515,0),0,11,12),K$4,0),0) -> 0 | L134: =IFERROR(VLOOKUP($C134,OFFSET('UR & ECL'!$F$400,MATCH($C$81,'UR & ECL'!$F$400:$F$515,0),0,11,12),L$4,0),0) -> 0 | M134: =IFERROR(VLOOKUP($C134,OFFSET('UR & ECL'!$F$400,MATCH($C$81,'UR & ECL'!$F$400:$F$515,0),0,11,12),M$4,0),0) -> 0 | N134: =J134+K134+L134+M134 -> 0 | O134: 0 | P134: =IFERROR(O134/$O$103*100,0) -> 0 | Q134: =IFERROR(VLOOKUP($C134,OFFSET('UR & ECL'!$F$400,MATCH($C$81,'UR & ECL'!$F$400:$F$515,0),0,11,12),Q$4,0),0) -> 0 | R134: =IFERROR(VLOOKUP($C134,OFFSET('UR & ECL'!$F$400,MATCH($C$81,'UR & ECL'!$F$400:$F$515,0),0,11,12),R$4,0),0) -> 0 | S134: =IFERROR(VLOOKUP($C134,OFFSET('UR & ECL'!$F$400,MATCH($C$81,'UR & ECL'!$F$400:$F$515,0),0,11,12),S$4,0),0) -> 0 | T134: 0 | U134: =IFERROR(T134/T$103*100,0) -> 0 | V134: =IFERROR(VLOOKUP($C134,OFFSET(Budget!$C$43,MATCH($C$81,Budget!$C$43:$C$349,0)+3,0,11,154),44+$G$2,0),0) -> 0 | W134: =V134/$V$103*100 ->  | X134: 0 | Y134: 0 | Z134: =IFERROR(VLOOKUP($C134,OFFSET(Budget!$C$43,MATCH($C$81,Budget!$C$43:$C$349,0)+3,0,11,154),101+$G$2,0),0) -> 0 | AA134: =IFERROR(HLOOKUP($Y$7,DEPOSIT!$AJ$68:$AU$76,9,FALSE),0) -> 0 | AB134: =IFERROR(SUM(OFFSET(Budget!$C$43,MATCH($C$81,Budget!$C$43:$C$349,0)+2+A134,101,1,$G$2)),0) -> 0 | AC134: =IFERROR(VLOOKUP($C134,OFFSET(Budget!$C$43,MATCH($C$81,Budget!$C$43:$C$349,0)+3,0,11,154),114,0),0) -> 0 | AD134: 0 | AE134: =IFERROR(SUM(OFFSET(Budget!$C$43,MATCH($C$81,Budget!$C$43:$C$349,0)+2+$A134,141,1,$G$2)),"") ->  | AF134: =IFERROR(VLOOKUP($C134,OFFSET(Budget!$C$43,MATCH($C$81,Budget!$C$43:$C$349,0)+3,0,12,154),58,0),"") ->  | AJ134: =C134 -> Deposits & Money Market | AK134: =O134 -> 0 | AL134: =Q134 -> 0 | AM134: 0 | AN134: 0 | AO134: =AK134+AL134+AM134+AN134 -> 0
A135: 2 | C135: Banca Deposit | D135: 0 | E135: =IFERROR(VLOOKUP($C135,OFFSET('UR & ECL'!$F$400,MATCH($C$129,'UR & ECL'!$F$400:$F$515,0),0,11,12),E$4,0),0) -> 0 | F135: =IFERROR(VLOOKUP($C135,OFFSET('UR & ECL'!$F$400,MATCH($C$129,'UR & ECL'!$F$400:$F$515,0),0,11,12),F$4,0),0) -> 0 | G135: =IFERROR(VLOOKUP($C135,OFFSET('UR & ECL'!$F$400,MATCH($C$81,'UR & ECL'!$F$400:$F$515,0),0,11,12),G$4,0),0) -> 0 | H135: 0 | I135: =IFERROR(H135/H$103*100,0) -> 0 | J135: 0 | K135: =IFERROR(VLOOKUP($C135,OFFSET('UR & ECL'!$F$400,MATCH($C$81,'UR & ECL'!$F$400:$F$515,0),0,11,12),K$4,0),0) -> 0 | L135: =IFERROR(VLOOKUP($C135,OFFSET('UR & ECL'!$F$400,MATCH($C$81,'UR & ECL'!$F$400:$F$515,0),0,11,12),L$4,0),0) -> 0 | M135: =IFERROR(VLOOKUP($C135,OFFSET('UR & ECL'!$F$400,MATCH($C$81,'UR & ECL'!$F$400:$F$515,0),0,11,12),M$4,0),0) -> 0 | N135: =J135+K135+L135+M135 -> 0 | O135: 0 | P135: =IFERROR(O135/$O$103*100,0) -> 0 | Q135: =IFERROR(VLOOKUP($C135,OFFSET('UR & ECL'!$F$400,MATCH($C$81,'UR & ECL'!$F$400:$F$515,0),0,11,12),Q$4,0),0) -> 0 | R135: =IFERROR(VLOOKUP($C135,OFFSET('UR & ECL'!$F$400,MATCH($C$81,'UR & ECL'!$F$400:$F$515,0),0,11,12),R$4,0),0) -> 0 | S135: =IFERROR(VLOOKUP($C135,OFFSET('UR & ECL'!$F$400,MATCH($C$81,'UR & ECL'!$F$400:$F$515,0),0,11,12),S$4,0),0) -> 0 | T135: 0 | U135: =IFERROR(T135/T$103*100,0) -> 0 | V135: =IFERROR(VLOOKUP($C135,OFFSET(Budget!$C$43,MATCH($C$81,Budget!$C$43:$C$349,0)+3,0,11,154),44+$G$2,0),0) -> 0 | W135: =V135/$V$103*100 ->  | X135: 0 | Y135: 0 | Z135: =IFERROR(VLOOKUP($C135,OFFSET(Budget!$C$43,MATCH($C$81,Budget!$C$43:$C$349,0)+3,0,11,154),101+$G$2,0),0) -> 0 | AA135: =IFERROR(HLOOKUP($Y$7,BANCA!$AJ$68:$AU$76,9,FALSE),0)+IFERROR(HLOOKUP($Y$7,'BANCA CP'!$AJ$68:$AU$76,9,FALSE),0) -> 0 | AB135: =IFERROR(SUM(OFFSET(Budget!$C$43,MATCH($C$81,Budget!$C$43:$C$349,0)+2+A135,101,1,$G$2)),0) -> 0 | AC135: =IFERROR(VLOOKUP($C135,OFFSET(Budget!$C$43,MATCH($C$81,Budget!$C$43:$C$349,0)+3,0,11,154),114,0),0) -> 0 | AD135: 0 | AE135: =IFERROR(SUM(OFFSET(Budget!$C$43,MATCH($C$81,Budget!$C$43:$C$349,0)+2+$A135,141,1,$G$2)),"") ->  | AF135: =IFERROR(VLOOKUP($C135,OFFSET(Budget!$C$43,MATCH($C$81,Budget!$C$43:$C$349,0)+3,0,12,154),58,0),"") ->  | AJ135: =C135 -> Banca Deposit | AK135: =O135 -> 0 | AL135: 0 | AM135: 0 | AN135: 0 | AO135: =AK135+AL135+AM135+AN135 -> 0
C136: Banca Commercial Paper | D136: 0 | E136: =IFERROR(VLOOKUP($C136,OFFSET('UR & ECL'!$F$400,MATCH($C$129,'UR & ECL'!$F$400:$F$515,0),0,11,12),E$4,0),0) -> 0 | F136: =IFERROR(VLOOKUP($C136,OFFSET('UR & ECL'!$F$400,MATCH($C$129,'UR & ECL'!$F$400:$F$515,0),0,11,12),F$4,0),0) -> 0 | G136: =IFERROR(VLOOKUP($C136,OFFSET('UR & ECL'!$F$400,MATCH($C$81,'UR & ECL'!$F$400:$F$515,0),0,11,12),G$4,0),0) -> 0 | H136: =D136+E136+F136+G136 -> 0 | I136: 0 | J136: 0 | K136: =IFERROR(VLOOKUP($C136,OFFSET('UR & ECL'!$F$400,MATCH($C$81,'UR & ECL'!$F$400:$F$515,0),0,11,12),K$4,0),0) -> 0 | L136: =IFERROR(VLOOKUP($C136,OFFSET('UR & ECL'!$F$400,MATCH($C$81,'UR & ECL'!$F$400:$F$515,0),0,11,12),L$4,0),0) -> 0 | M136: =IFERROR(VLOOKUP($C136,OFFSET('UR & ECL'!$F$400,MATCH($C$81,'UR & ECL'!$F$400:$F$515,0),0,11,12),M$4,0),0) -> 0 | N136: 0 | O136: 0 | P136: 0 | Q136: =IFERROR(VLOOKUP($C136,OFFSET('UR & ECL'!$F$400,MATCH($C$81,'UR & ECL'!$F$400:$F$515,0),0,11,12),Q$4,0),0) -> 0 | R136: =IFERROR(VLOOKUP($C136,OFFSET('UR & ECL'!$F$400,MATCH($C$81,'UR & ECL'!$F$400:$F$515,0),0,11,12),R$4,0),0) -> 0 | S136: =IFERROR(VLOOKUP($C136,OFFSET('UR & ECL'!$F$400,MATCH($C$81,'UR & ECL'!$F$400:$F$515,0),0,11,12),S$4,0),0) -> 0 | T136: =O136+Q136+R136+S136 -> 0 | U136: 0 | V136: =IFERROR(VLOOKUP($C136,OFFSET(Budget!$C$43,MATCH($C$81,Budget!$C$43:$C$349,0)+3,0,11,154),44+$G$2,0),0) -> 0 | X136: =IFERROR(HLOOKUP($X$7,'BANCA CP'!$S$68:$AE$76,9,FALSE),0) -> 0 | Y136: =IFERROR(HLOOKUP($Y$7,'BANCA CP'!$S$68:$AE$76,9,FALSE),0) -> 0 | Z136: =IFERROR(VLOOKUP($C136,OFFSET('[6]Revised Budget 2019'!$C$43,MATCH($C$81,'[6]Revised Budget 2019'!$C$43:$C$270,0)+3,0,11,154),101+$G$2,0),0) -> 0 | AB136: =IFERROR(SUM(OFFSET('[6]Revised Budget 2019'!$C$43,MATCH($C$81,'[6]Revised Budget 2019'!$C$43:$C$270,0)+2+A136,101,1,$G$2)),0) -> 0 | AC136: =IFERROR(VLOOKUP($C136,OFFSET('[6]Revised Budget 2019'!$C$43,MATCH($C$81,'[6]Revised Budget 2019'!$C$43:$C$270,0)+3,0,11,154),114,0),0) -> 0 | AE136: =IFERROR(SUM(OFFSET('[6]Revised Budget 2019'!$C$43,MATCH(#REF!,'[6]Revised Budget 2019'!$C$43:$C$270,0)+2+$A136,141,1,$G$2)),"") ->  | AF136: =IFERROR(VLOOKUP($C136,OFFSET('[6]Revised Budget 2019'!$C$43,MATCH(#REF!,'[6]Revised Budget 2019'!$C$43:$C$270,0)+3,0,12,154),58,0),"") ->  | AJ136: =C137 -> Structured Deposit | AK136: =O137 -> 0 | AL136: =Q137 -> 0 | AM136: =R137 -> 0 | AN136: =S137 -> 0 | AO136: 0
A137: 3 | C137: Structured Deposit | D137: 0 | E137: =IFERROR(VLOOKUP($C137,OFFSET('UR & ECL'!$F$400,MATCH($C$129,'UR & ECL'!$F$400:$F$515,0),0,11,12),E$4,0),0) -> 0 | F137: =IFERROR(VLOOKUP($C137,OFFSET('UR & ECL'!$F$400,MATCH($C$129,'UR & ECL'!$F$400:$F$515,0),0,11,12),F$4,0),0) -> 0 | G137: =IFERROR(VLOOKUP($C137,OFFSET('UR & ECL'!$F$400,MATCH($C$81,'UR & ECL'!$F$400:$F$515,0),0,11,12),G$4,0),0) -> 0 | H137: =D137+E137+F137+G137 -> 0 | I137: 0 | J137: 0 | K137: =IFERROR(VLOOKUP($C137,OFFSET('UR & ECL'!$F$400,MATCH($C$81,'UR & ECL'!$F$400:$F$515,0),0,11,12),K$4,0),0) -> 0 | L137: =IFERROR(VLOOKUP($C137,OFFSET('UR & ECL'!$F$400,MATCH($C$81,'UR & ECL'!$F$400:$F$515,0),0,11,12),L$4,0),0) -> 0 | M137: =IFERROR(VLOOKUP($C137,OFFSET('UR & ECL'!$F$400,MATCH($C$81,'UR & ECL'!$F$400:$F$515,0),0,11,12),M$4,0),0) -> 0 | N137: 0 | O137: 0 | P137: 0 | Q137: =IFERROR(VLOOKUP($C137,OFFSET('UR & ECL'!$F$400,MATCH($C$81,'UR & ECL'!$F$400:$F$515,0),0,11,12),Q$4,0),0) -> 0 | R137: =IFERROR(VLOOKUP($C137,OFFSET('UR & ECL'!$F$400,MATCH($C$81,'UR & ECL'!$F$400:$F$515,0),0,11,12),R$4,0),0) -> 0 | S137: =IFERROR(VLOOKUP($C137,OFFSET('UR & ECL'!$F$400,MATCH($C$81,'UR & ECL'!$F$400:$F$515,0),0,11,12),S$4,0),0) -> 0 | T137: =O137+Q137+R137+S137 -> 0 | U137: 0 | V137: =IFERROR(VLOOKUP($C137,OFFSET(Budget!$C$43,MATCH($C$81,Budget!$C$43:$C$349,0)+3,0,11,154),44+$G$2,0),0) -> 0 | X137: =SUM(X138:X139) -> 0 | Y137: =SUM(Y138:Y139) -> 0 | Z137: =IFERROR(VLOOKUP($C137,OFFSET(Budget!$C$43,MATCH($C$81,Budget!$C$43:$C$349,0)+3,0,11,154),101+$G$2,0),0) -> 0 | AA137: =SUM(AA138:AA139) -> 0 | AB137: =IFERROR(SUM(OFFSET(Budget!$C$43,MATCH($C$81,Budget!$C$43:$C$349,0)+2+A137,101,1,$G$2)),0) -> 0 | AC137: =IFERROR(VLOOKUP($C137,OFFSET(Budget!$C$43,MATCH($C$81,Budget!$C$43:$C$349,0)+3,0,11,154),114,0),0) -> 0 | AD137: =IFERROR((2*AA137)/(H137-R137+T137-F137-AA137)*100,0) -> 0 | AE137: =IFERROR(SUM(OFFSET(Budget!$C$43,MATCH($C$81,Budget!$C$43:$C$349,0)+2+$A137,141,1,$G$2)),"") ->  | AF137: =IFERROR(VLOOKUP($C137,OFFSET(Budget!$C$43,MATCH($C$81,Budget!$C$43:$C$349,0)+3,0,12,154),58,0),"") ->  | AJ137: =C140 -> GII | AK137: =O140 -> 0 | AL137: =Q140 -> 0 | AM137: 0 | AN137: 0 | AO137: 0
B138: 1 | C138: Income | D138: 0 | E138: =IFERROR(VLOOKUP($C138,OFFSET('UR & ECL'!$F$400,MATCH($C$129,'UR & ECL'!$F$400:$F$515,0),0,11,12),E$4,0),0) -> 0 | F138: =IFERROR(VLOOKUP($C138,OFFSET('UR & ECL'!$F$400,MATCH($C$129,'UR & ECL'!$F$400:$F$515,0),0,11,12),F$4,0),0) -> 0 | G138: =IFERROR(VLOOKUP($C138,OFFSET('UR & ECL'!$F$400,MATCH($C$81,'UR & ECL'!$F$400:$F$515,0),0,11,12),G$4,0),0) -> 0 | H138: =D138+E138+F138+G138 -> 0 | I138: 0 | J138: 0 | K138: =IFERROR(VLOOKUP($C138,OFFSET('UR & ECL'!$F$400,MATCH($C$81,'UR & ECL'!$F$400:$F$515,0),0,11,12),K$4,0),0) -> 0 | L138: =IFERROR(VLOOKUP($C138,OFFSET('UR & ECL'!$F$400,MATCH($C$81,'UR & ECL'!$F$400:$F$515,0),0,11,12),L$4,0),0) -> 0 | M138: =IFERROR(VLOOKUP($C138,OFFSET('UR & ECL'!$F$400,MATCH($C$81,'UR & ECL'!$F$400:$F$515,0),0,11,12),M$4,0),0) -> 0 | N138: 0 | O138: 0 | P138: 0 | Q138: =IFERROR(VLOOKUP($C138,OFFSET('UR & ECL'!$F$400,MATCH($C$81,'UR & ECL'!$F$400:$F$515,0),0,11,12),Q$4,0),0) -> 0 | R138: =IFERROR(VLOOKUP($C138,OFFSET('UR & ECL'!$F$400,MATCH($C$81,'UR & ECL'!$F$400:$F$515,0),0,11,12),R$4,0),0) -> 0 | S138: =IFERROR(VLOOKUP($C138,OFFSET('UR & ECL'!$F$400,MATCH($C$81,'UR & ECL'!$F$400:$F$515,0),0,11,12),S$4,0),0) -> 0 | T138: =O138+Q138+R138+S138 -> 0 | U138: 0 | V138: =IFERROR(VLOOKUP($C138,OFFSET(Budget!$C$43,MATCH($C$81,Budget!$C$43:$C$349,0)+3,0,11,154),44+$G$2,0),0) -> 0 | X138: =IFERROR(HLOOKUP($X$7,STRUCTDEP!$S$68:$AE$76,4,FALSE),0) -> 0 | Y138: =IFERROR(HLOOKUP($Y$7,STRUCTDEP!$S$68:$AE$76,4,FALSE),0) -> 0 | Z138: =IFERROR(VLOOKUP($C138,OFFSET(Budget!$C$43,MATCH($C$81,Budget!$C$43:$C$349,0)+3,0,11,154),101+$G$2,0),0) -> 0 | AA138: =IFERROR(HLOOKUP($Y$7,STRUCTDEP!$AJ$68:$AU$76,4,FALSE),0) -> 0 | AB138: =IFERROR(SUM(OFFSET(Budget!$C$43,MATCH($C$81,Budget!$C$43:$C$349,0)+2+A138,101,1,$G$2)),0) -> 0 | AC138: =IFERROR(VLOOKUP($C138,OFFSET(Budget!$C$43,MATCH($C$81,Budget!$C$43:$C$349,0)+3,0,11,154),114,0),0) -> 0 | AD138: =IFERROR((2*AA138)/(H138-R138+T138-F138-AA138)*100,0) -> 0 | AE138: =IFERROR(SUM(OFFSET(Budget!$C$43,MATCH($C$81,Budget!$C$43:$C$349,0)+2+$A138,141,1,$G$2)),"") ->  | AF138: =IFERROR(VLOOKUP($C138,OFFSET(Budget!$C$43,MATCH($C$81,Budget!$C$43:$C$349,0)+3,0,12,154),58,0),"") ->  | AJ138: =C141 -> GG | AK138: =O141 -> 0 | AL138: 0 | AM138: 0 | AN138: 0 | AO138: 0
B139: 2 | C139: Fair Value Gain/Loss | D139: 0 | E139: =IFERROR(VLOOKUP($C139,OFFSET('UR & ECL'!$F$400,MATCH($C$129,'UR & ECL'!$F$400:$F$515,0),0,11,12),E$4,0),0) -> 0 | F139: =IFERROR(VLOOKUP($C139,OFFSET('UR & ECL'!$F$400,MATCH($C$129,'UR & ECL'!$F$400:$F$515,0),0,11,12),F$4,0),0) -> 0 | G139: =IFERROR(VLOOKUP($C139,OFFSET('UR & ECL'!$F$400,MATCH($C$81,'UR & ECL'!$F$400:$F$515,0),0,11,12),G$4,0),0) -> 0 | H139: =D139+E139+F139+G139 -> 0 | I139: 0 | J139: 0 | K139: =IFERROR(VLOOKUP($C139,OFFSET('UR & ECL'!$F$400,MATCH($C$81,'UR & ECL'!$F$400:$F$515,0),0,11,12),K$4,0),0) -> 0 | L139: =IFERROR(VLOOKUP($C139,OFFSET('UR & ECL'!$F$400,MATCH($C$81,'UR & ECL'!$F$400:$F$515,0),0,11,12),L$4,0),0) -> 0 | M139: =IFERROR(VLOOKUP($C139,OFFSET('UR & ECL'!$F$400,MATCH($C$81,'UR & ECL'!$F$400:$F$515,0),0,11,12),M$4,0),0) -> 0 | N139: 0 | O139: 0 | P139: 0 | Q139: =IFERROR(VLOOKUP($C139,OFFSET('UR & ECL'!$F$400,MATCH($C$81,'UR & ECL'!$F$400:$F$515,0),0,11,12),Q$4,0),0) -> 0 | R139: =IFERROR(VLOOKUP($C139,OFFSET('UR & ECL'!$F$400,MATCH($C$81,'UR & ECL'!$F$400:$F$515,0),0,11,12),R$4,0),0) -> 0 | S139: =IFERROR(VLOOKUP($C139,OFFSET('UR & ECL'!$F$400,MATCH($C$81,'UR & ECL'!$F$400:$F$515,0),0,11,12),S$4,0),0) -> 0 | T139: =O139+Q139+R139+S139 -> 0 | U139: 0 | V139: =IFERROR(VLOOKUP($C139,OFFSET(Budget!$C$43,MATCH($C$81,Budget!$C$43:$C$349,0)+3,0,11,154),44+$G$2,0),0) -> 0 | X139: =IFERROR(HLOOKUP($X$7,STRUCTDEP!$S$68:$AE$76,8,FALSE),0) -> 0 | Y139: =IFERROR(HLOOKUP($Y$7,STRUCTDEP!$S$68:$AE$76,8,FALSE),0) -> 0 | Z139: =IFERROR(VLOOKUP($C139,OFFSET(Budget!$C$43,MATCH($C$81,Budget!$C$43:$C$349,0)+3,0,11,154),101+$G$2,0),0) -> 0 | AA139: =IFERROR(HLOOKUP($Y$7,STRUCTDEP!$AJ$68:$AU$76,8,FALSE),0) -> 0 | AB139: =IFERROR(SUM(OFFSET(Budget!$C$43,MATCH($C$81,Budget!$C$43:$C$349,0)+2+A139,101,1,$G$2)),0) -> 0 | AC139: =IFERROR(VLOOKUP($C139,OFFSET(Budget!$C$43,MATCH($C$81,Budget!$C$43:$C$349,0)+3,0,11,154),114,0),0) -> 0 | AD139: =IFERROR((2*AA139)/(H139-R139+T139-F139-AA139)*100,0) -> 0 | AE139: =IFERROR(SUM(OFFSET(Budget!$C$43,MATCH($C$81,Budget!$C$43:$C$349,0)+2+$A139,141,1,$G$2)),"") ->  | AF139: =IFERROR(VLOOKUP($C139,OFFSET(Budget!$C$43,MATCH($C$81,Budget!$C$43:$C$349,0)+3,0,12,154),58,0),"") ->  | AJ139: =C142 -> Equity | AK139: =O142 -> 0 | AL139: 0 | AM139: 0 | AN139: 0 | AO139: 0
A140: 4 | C140: GII | D140: 0 | E140: =IFERROR(VLOOKUP($C140,OFFSET('UR & ECL'!$F$400,MATCH($C$129,'UR & ECL'!$F$400:$F$515,0),0,11,12),E$4,0),0) -> 0 | F140: =IFERROR(VLOOKUP($C140,OFFSET('UR & ECL'!$F$400,MATCH($C$129,'UR & ECL'!$F$400:$F$515,0),0,11,12),F$4,0),0) -> 0 | G140: =IFERROR(VLOOKUP($C140,OFFSET('UR & ECL'!$F$400,MATCH($C$81,'UR & ECL'!$F$400:$F$515,0),0,11,12),G$4,0),0) -> 0 | H140: 0 | I140: 0 | J140: 0 | K140: =IFERROR(VLOOKUP($C140,OFFSET('UR & ECL'!$F$400,MATCH($C$81,'UR & ECL'!$F$400:$F$515,0),0,11,12),K$4,0),0) -> 0 | L140: =IFERROR(VLOOKUP($C140,OFFSET('UR & ECL'!$F$400,MATCH($C$81,'UR & ECL'!$F$400:$F$515,0),0,11,12),L$4,0),0) -> 0 | M140: =IFERROR(VLOOKUP($C140,OFFSET('UR & ECL'!$F$400,MATCH($C$81,'UR & ECL'!$F$400:$F$515,0),0,11,12),M$4,0),0) -> 0 | N140: 0 | O140: 0 | P140: 0 | Q140: =IFERROR(VLOOKUP($C140,OFFSET('UR & ECL'!$F$400,MATCH($C$81,'UR & ECL'!$F$400:$F$515,0),0,11,12),Q$4,0),0) -> 0 | R140: =IFERROR(VLOOKUP($C140,OFFSET('UR & ECL'!$F$400,MATCH($C$81,'UR & ECL'!$F$400:$F$515,0),0,11,12),R$4,0),0) -> 0 | S140: =IFERROR(VLOOKUP($C140,OFFSET('UR & ECL'!$F$400,MATCH($C$81,'UR & ECL'!$F$400:$F$515,0),0,11,12),S$4,0),0) -> 0 | T140: 0 | U140: 0 | V140: =IFERROR(VLOOKUP($C140,OFFSET(Budget!$C$43,MATCH($C$81,Budget!$C$43:$C$349,0)+3,0,11,154),44+$G$2,0),0) -> 0 | X140: 0 | Y140: 0 | Z140: =IFERROR(VLOOKUP($C140,OFFSET(Budget!$C$43,MATCH($C$81,Budget!$C$43:$C$349,0)+3,0,11,154),101+$G$2,0),0) -> 0 | AA140: =IFERROR(HLOOKUP($Y$7,GII!$AJ$68:$AU$76,9,FALSE),0) -> 0 | AB140: =IFERROR(SUM(OFFSET(Budget!$C$43,MATCH($C$81,Budget!$C$43:$C$349,0)+2+A140,101,1,$G$2)),0) -> 0 | AC140: =IFERROR(VLOOKUP($C140,OFFSET(Budget!$C$43,MATCH($C$81,Budget!$C$43:$C$349,0)+3,0,11,154),114,0),0) -> 0 | AD140: 0 | AE140: =IFERROR(SUM(OFFSET(Budget!$C$43,MATCH($C$81,Budget!$C$43:$C$349,0)+2+$A140,141,1,$G$2)),"") ->  | AF140: =IFERROR(VLOOKUP($C140,OFFSET(Budget!$C$43,MATCH($C$81,Budget!$C$43:$C$349,0)+3,0,12,154),58,0),"") ->  | AJ140: =C145 -> Unit Trust | AK140: =O145 -> 0 | AL140: =Q145 -> 0 | AM140: =R145 -> 0 | AN140: =S145 -> 0 | AO140: 0
A141: 5 | C141: GG | D141: 0 | E141: =IFERROR(VLOOKUP($C141,OFFSET('UR & ECL'!$F$400,MATCH($C$129,'UR & ECL'!$F$400:$F$515,0),0,11,12),E$4,0),0) -> 0 | F141: =IFERROR(VLOOKUP($C141,OFFSET('UR & ECL'!$F$400,MATCH($C$129,'UR & ECL'!$F$400:$F$515,0),0,11,12),F$4,0),0) -> 0 | G141: =IFERROR(VLOOKUP($C141,OFFSET('UR & ECL'!$F$400,MATCH($C$81,'UR & ECL'!$F$400:$F$515,0),0,11,12),G$4,0),0) -> 0 | H141: 0 | I141: 0 | J141: 0 | K141: =IFERROR(VLOOKUP($C141,OFFSET('UR & ECL'!$F$400,MATCH($C$81,'UR & ECL'!$F$400:$F$515,0),0,11,12),K$4,0),0) -> 0 | L141: =IFERROR(VLOOKUP($C141,OFFSET('UR & ECL'!$F$400,MATCH($C$81,'UR & ECL'!$F$400:$F$515,0),0,11,12),L$4,0),0) -> 0 | M141: =IFERROR(VLOOKUP($C141,OFFSET('UR & ECL'!$F$400,MATCH($C$81,'UR & ECL'!$F$400:$F$515,0),0,11,12),M$4,0),0) -> 0 | N141: 0 | O141: 0 | P141: 0 | Q141: =IFERROR(VLOOKUP($C141,OFFSET('UR & ECL'!$F$400,MATCH($C$81,'UR & ECL'!$F$400:$F$515,0),0,11,12),Q$4,0),0) -> 0 | R141: =IFERROR(VLOOKUP($C141,OFFSET('UR & ECL'!$F$400,MATCH($C$81,'UR & ECL'!$F$400:$F$515,0),0,11,12),R$4,0),0) -> 0 | S141: =IFERROR(VLOOKUP($C141,OFFSET('UR & ECL'!$F$400,MATCH($C$81,'UR & ECL'!$F$400:$F$515,0),0,11,12),S$4,0),0) -> 0 | T141: 0 | U141: 0 | V141: =IFERROR(VLOOKUP($C141,OFFSET(Budget!$C$43,MATCH($C$81,Budget!$C$43:$C$349,0)+3,0,11,154),44+$G$2,0),0) -> 0 | X141: 0 | Y141: 0 | Z141: =IFERROR(VLOOKUP($C141,OFFSET(Budget!$C$43,MATCH($C$81,Budget!$C$43:$C$349,0)+3,0,11,154),101+$G$2,0),0) -> 0 | AA141: =IFERROR(HLOOKUP($Y$7,GG!$AJ$68:$AU$76,9,FALSE),0) -> 0 | AB141: =IFERROR(SUM(OFFSET(Budget!$C$43,MATCH($C$81,Budget!$C$43:$C$349,0)+2+A141,101,1,$G$2)),0) -> 0 | AC141: =IFERROR(VLOOKUP($C141,OFFSET(Budget!$C$43,MATCH($C$81,Budget!$C$43:$C$349,0)+3,0,11,154),114,0),0) -> 0 | AD141: 0 | AE141: =IFERROR(SUM(OFFSET(Budget!$C$43,MATCH($C$81,Budget!$C$43:$C$349,0)+2+$A141,141,1,$G$2)),"") ->  | AF141: =IFERROR(VLOOKUP($C141,OFFSET(Budget!$C$43,MATCH($C$81,Budget!$C$43:$C$349,0)+3,0,12,154),58,0),"") ->  | AJ141: =C148 -> ITA | AK141: =O148 -> 0 | AL141: =Q148 -> 0 | AM141: 0 | AN141: 0 | AO141: 0
A142: 6 | C142: Equity | D142: 0 | E142: =IFERROR(VLOOKUP($C142,OFFSET('UR & ECL'!$F$400,MATCH($C$129,'UR & ECL'!$F$400:$F$515,0),0,11,12),E$4,0),0) -> 0 | F142: =IFERROR(VLOOKUP($C142,OFFSET('UR & ECL'!$F$400,MATCH($C$129,'UR & ECL'!$F$400:$F$515,0),0,11,12),F$4,0),0) -> 0 | G142: =IFERROR(VLOOKUP($C142,OFFSET('UR & ECL'!$F$400,MATCH($C$81,'UR & ECL'!$F$400:$F$515,0),0,11,12),G$4,0),0) -> 0 | H142: 0 | I142: 0 | J142: 0 | K142: =IFERROR(VLOOKUP($C142,OFFSET('UR & ECL'!$F$400,MATCH($C$81,'UR & ECL'!$F$400:$F$515,0),0,11,12),K$4,0),0) -> 0 | L142: =IFERROR(VLOOKUP($C142,OFFSET('UR & ECL'!$F$400,MATCH($C$81,'UR & ECL'!$F$400:$F$515,0),0,11,12),L$4,0),0) -> 0 | M142: =IFERROR(VLOOKUP($C142,OFFSET('UR & ECL'!$F$400,MATCH($C$81,'UR & ECL'!$F$400:$F$515,0),0,11,12),M$4,0),0) -> 0 | N142: 0 | O142: 0 | P142: 0 | Q142: =IFERROR(VLOOKUP($C142,OFFSET('UR & ECL'!$F$400,MATCH($C$81,'UR & ECL'!$F$400:$F$515,0),0,11,12),Q$4,0),0) -> 0 | R142: =IFERROR(VLOOKUP($C142,OFFSET('UR & ECL'!$F$400,MATCH($C$81,'UR & ECL'!$F$400:$F$515,0),0,11,12),R$4,0),0) -> 0 | S142: =IFERROR(VLOOKUP($C142,OFFSET('UR & ECL'!$F$400,MATCH($C$81,'UR & ECL'!$F$400:$F$515,0),0,11,12),S$4,0),0) -> 0 | T142: 0 | U142: 0 | V142: =IFERROR(VLOOKUP($C142,OFFSET(Budget!$C$43,MATCH($C$81,Budget!$C$43:$C$349,0)+3,0,11,154),44+$G$2,0),0) -> 0 | X142: 0 | Y142: 0 | Z142: =IFERROR(VLOOKUP($C142,OFFSET(Budget!$C$43,MATCH($C$81,Budget!$C$43:$C$349,0)+3,0,11,154),101+$G$2,0),0) -> 0 | AA142: =SUM(AA143:AA144) -> 0 | AB142: =IFERROR(SUM(OFFSET(Budget!$C$43,MATCH($C$81,Budget!$C$43:$C$349,0)+2+A142,101,1,$G$2)),0) -> 0 | AC142: =IFERROR(VLOOKUP($C142,OFFSET(Budget!$C$43,MATCH($C$81,Budget!$C$43:$C$349,0)+3,0,11,154),114,0),0) -> 0 | AD142: 0 | AE142: =IFERROR(SUM(OFFSET(Budget!$C$43,MATCH($C$81,Budget!$C$43:$C$349,0)+2+$A142,141,1,$G$2)),"") ->  | AF142: =IFERROR(VLOOKUP($C142,OFFSET(Budget!$C$43,MATCH($C$81,Budget!$C$43:$C$349,0)+3,0,12,154),58,0),"") ->  | AJ142: =C149 -> Corporate Sukuk | AK142: =O149 -> 0 | AL142: 0 | AM142: 0 | AN142: 0 | AO142: 0
B143: 3 | C143: Income | D143: 0 | E143: =IFERROR(VLOOKUP($C143,OFFSET('UR & ECL'!$F$400,MATCH($C$129,'UR & ECL'!$F$400:$F$515,0),0,11,12),E$4,0),0) -> 0 | F143: =IFERROR(VLOOKUP($C143,OFFSET('UR & ECL'!$F$400,MATCH($C$129,'UR & ECL'!$F$400:$F$515,0),0,11,12),F$4,0),0) -> 0 | G143: =IFERROR(VLOOKUP($C143,OFFSET('UR & ECL'!$F$400,MATCH($C$81,'UR & ECL'!$F$400:$F$515,0),0,11,12),G$4,0),0) -> 0 | H143: 0 | I143: 0 | J143: 0 | K143: =IFERROR(VLOOKUP($C143,OFFSET('UR & ECL'!$F$400,MATCH($C$81,'UR & ECL'!$F$400:$F$515,0),0,11,12),K$4,0),0) -> 0 | L143: =IFERROR(VLOOKUP($C143,OFFSET('UR & ECL'!$F$400,MATCH($C$81,'UR & ECL'!$F$400:$F$515,0),0,11,12),L$4,0),0) -> 0 | M143: =IFERROR(VLOOKUP($C143,OFFSET('UR & ECL'!$F$400,MATCH($C$81,'UR & ECL'!$F$400:$F$515,0),0,11,12),M$4,0),0) -> 0 | N143: 0 | O143: 0 | P143: 0 | Q143: =IFERROR(VLOOKUP($C143,OFFSET('UR & ECL'!$F$400,MATCH($C$81,'UR & ECL'!$F$400:$F$515,0),0,11,12),Q$4,0),0) -> 0 | R143: =IFERROR(VLOOKUP($C143,OFFSET('UR & ECL'!$F$400,MATCH($C$81,'UR & ECL'!$F$400:$F$515,0),0,11,12),R$4,0),0) -> 0 | S143: =IFERROR(VLOOKUP($C143,OFFSET('UR & ECL'!$F$400,MATCH($C$81,'UR & ECL'!$F$400:$F$515,0),0,11,12),S$4,0),0) -> 0 | T143: 0 | U143: 0 | V143: =IFERROR(VLOOKUP($C143,OFFSET(Budget!$C$43,MATCH($C$81,Budget!$C$43:$C$349,0)+3,0,11,154),44+$G$2,0),0) -> 0 | X143: 0 | Y143: 0 | Z143: =IFERROR(VLOOKUP($C143,OFFSET(Budget!$C$43,MATCH($C$81,Budget!$C$43:$C$349,0)+3,0,11,154),101+$G$2,0),0) -> 0 | AA143: =IFERROR(HLOOKUP($Y$7,EQUITY!$AJ$68:$AU$76,3,FALSE)+HLOOKUP($Y$7,EQUITY!$AJ$68:$AU$76,4,FALSE)+HLOOKUP($Y$7,EQUITY!$AJ$68:$AU$76,5,FALSE)+HLOOKUP($Y$7,EQUITY!$AJ$68:$AU$76,6,FALSE)+HLOOKUP($Y$7,EQUITY!$AJ$68:$AU$76,7,FALSE),0) -> 0 | AB143: =IFERROR(SUM(OFFSET(Budget!$C$43,MATCH($C$81,Budget!$C$43:$C$349,0)+2+A143,101,1,$G$2)),0) -> 0 | AC143: =IFERROR(VLOOKUP($C143,OFFSET(Budget!$C$43,MATCH($C$81,Budget!$C$43:$C$349,0)+3,0,11,154),114,0),0) -> 0 | AD143: 0 | AE143: =IFERROR(SUM(OFFSET(Budget!$C$43,MATCH($C$81,Budget!$C$43:$C$349,0)+2+$A143,141,1,$G$2)),"") ->  | AF143: =IFERROR(VLOOKUP($C143,OFFSET(Budget!$C$43,MATCH($C$81,Budget!$C$43:$C$349,0)+3,0,12,154),58,0),"") ->  | AJ143: =C150 -> Properties | AK143: =O150 -> 0 | AL143: 0 | AM143: 0 | AN143: 0 | AO143: 0
B144: 4 | C144: Fair Value Gain/Loss | D144: 0 | E144: =IFERROR(VLOOKUP($C144,OFFSET('UR & ECL'!$F$400,MATCH($C$129,'UR & ECL'!$F$400:$F$515,0),0,11,12),E$4,0),0) -> 0 | F144: =IFERROR(VLOOKUP($C144,OFFSET('UR & ECL'!$F$400,MATCH($C$129,'UR & ECL'!$F$400:$F$515,0),0,11,12),F$4,0),0) -> 0 | G144: =IFERROR(VLOOKUP($C144,OFFSET('UR & ECL'!$F$400,MATCH($C$81,'UR & ECL'!$F$400:$F$515,0),0,11,12),G$4,0),0) -> 0 | H144: 0 | I144: 0 | J144: 0 | K144: =IFERROR(VLOOKUP($C144,OFFSET('UR & ECL'!$F$400,MATCH($C$81,'UR & ECL'!$F$400:$F$515,0),0,11,12),K$4,0),0) -> 0 | L144: =IFERROR(VLOOKUP($C144,OFFSET('UR & ECL'!$F$400,MATCH($C$81,'UR & ECL'!$F$400:$F$515,0),0,11,12),L$4,0),0) -> 0 | M144: =IFERROR(VLOOKUP($C144,OFFSET('UR & ECL'!$F$400,MATCH($C$81,'UR & ECL'!$F$400:$F$515,0),0,11,12),M$4,0),0) -> 0 | N144: 0 | O144: 0 | P144: 0 | Q144: =IFERROR(VLOOKUP($C144,OFFSET('UR & ECL'!$F$400,MATCH($C$81,'UR & ECL'!$F$400:$F$515,0),0,11,12),Q$4,0),0) -> 0 | R144: =IFERROR(VLOOKUP($C144,OFFSET('UR & ECL'!$F$400,MATCH($C$81,'UR & ECL'!$F$400:$F$515,0),0,11,12),R$4,0),0) -> 0 | S144: =IFERROR(VLOOKUP($C144,OFFSET('UR & ECL'!$F$400,MATCH($C$81,'UR & ECL'!$F$400:$F$515,0),0,11,12),S$4,0),0) -> 0 | T144: 0 | U144: 0 | V144: =IFERROR(VLOOKUP($C144,OFFSET(Budget!$C$43,MATCH($C$81,Budget!$C$43:$C$349,0)+3,0,11,154),44+$G$2,0),0) -> 0 | X144: 0 | Y144: 0 | Z144: =IFERROR(VLOOKUP($C144,OFFSET(Budget!$C$43,MATCH($C$81,Budget!$C$43:$C$349,0)+3,0,11,154),101+$G$2,0),0) -> 0 | AA144: =IFERROR(HLOOKUP($Y$7,EQUITY!$AJ$68:$AU$76,8,FALSE),0) -> 0 | AB144: =IFERROR(SUM(OFFSET(Budget!$C$43,MATCH($C$81,Budget!$C$43:$C$349,0)+2+A144,101,1,$G$2)),0) -> 0 | AC144: =IFERROR(VLOOKUP($C144,OFFSET(Budget!$C$43,MATCH($C$81,Budget!$C$43:$C$349,0)+3,0,11,154),114,0),0) -> 0 | AD144: 0 | AE144: =IFERROR(SUM(OFFSET(Budget!$C$43,MATCH($C$81,Budget!$C$43:$C$349,0)+2+$A144,141,1,$G$2)),"") ->  | AF144: =IFERROR(VLOOKUP($C144,OFFSET(Budget!$C$43,MATCH($C$81,Budget!$C$43:$C$349,0)+3,0,12,154),58,0),"") ->  | AJ144: =C151 -> TOTAL | AK144: =O151 -> 0 | AL144: 0 | AM144: 0 | AN144: 0 | AO144: 0
A145: 7 | C145: Unit Trust | D145: 0 | E145: =IFERROR(VLOOKUP($C145,OFFSET('UR & ECL'!$F$400,MATCH($C$129,'UR & ECL'!$F$400:$F$515,0),0,11,12),E$4,0),0) -> 0 | F145: =IFERROR(VLOOKUP($C145,OFFSET('UR & ECL'!$F$400,MATCH($C$129,'UR & ECL'!$F$400:$F$515,0),0,11,12),F$4,0),0) -> 0 | G145: =IFERROR(VLOOKUP($C145,OFFSET('UR & ECL'!$F$400,MATCH($C$81,'UR & ECL'!$F$400:$F$515,0),0,11,12),G$4,0),0) -> 0 | H145: 0 | I145: 0 | J145: 0 | K145: =IFERROR(VLOOKUP($C145,OFFSET('UR & ECL'!$F$400,MATCH($C$81,'UR & ECL'!$F$400:$F$515,0),0,11,12),K$4,0),0) -> 0 | L145: =IFERROR(VLOOKUP($C145,OFFSET('UR & ECL'!$F$400,MATCH($C$81,'UR & ECL'!$F$400:$F$515,0),0,11,12),L$4,0),0) -> 0 | M145: =IFERROR(VLOOKUP($C145,OFFSET('UR & ECL'!$F$400,MATCH($C$81,'UR & ECL'!$F$400:$F$515,0),0,11,12),M$4,0),0) -> 0 | N145: 0 | O145: 0 | P145: 0 | Q145: =IFERROR(VLOOKUP($C145,OFFSET('UR & ECL'!$F$400,MATCH($C$81,'UR & ECL'!$F$400:$F$515,0),0,11,12),Q$4,0),0) -> 0 | R145: =IFERROR(VLOOKUP($C145,OFFSET('UR & ECL'!$F$400,MATCH($C$81,'UR & ECL'!$F$400:$F$515,0),0,11,12),R$4,0),0) -> 0 | S145: =IFERROR(VLOOKUP($C145,OFFSET('UR & ECL'!$F$400,MATCH($C$81,'UR & ECL'!$F$400:$F$515,0),0,11,12),S$4,0),0) -> 0 | T145: 0 | U145: 0 | V145: =IFERROR(VLOOKUP($C145,OFFSET(Budget!$C$43,MATCH($C$81,Budget!$C$43:$C$349,0)+3,0,11,154),44+$G$2,0),0) -> 0 | X145: 0 | Y145: 0 | Z145: =IFERROR(VLOOKUP($C145,OFFSET(Budget!$C$43,MATCH($C$81,Budget!$C$43:$C$349,0)+3,0,11,154),101+$G$2,0),0) -> 0 | AA145: =SUM(AA146:AA147) -> 0 | AB145: =IFERROR(SUM(OFFSET(Budget!$C$43,MATCH($C$81,Budget!$C$43:$C$349,0)+2+A145,101,1,$G$2)),0) -> 0 | AC145: =IFERROR(VLOOKUP($C145,OFFSET(Budget!$C$43,MATCH($C$81,Budget!$C$43:$C$349,0)+3,0,11,154),114,0),0) -> 0 | AD145: 0 | AE145: =IFERROR(SUM(OFFSET(Budget!$C$43,MATCH($C$81,Budget!$C$43:$C$349,0)+2+$A145,141,1,$G$2)),"") ->  | AF145: =IFERROR(VLOOKUP($C145,OFFSET(Budget!$C$43,MATCH($C$81,Budget!$C$43:$C$349,0)+3,0,12,154),58,0),"") -> 
B146: 5 | C146: Income | D146: 0 | E146: =IFERROR(VLOOKUP($C146,OFFSET('UR & ECL'!$F$400,MATCH($C$129,'UR & ECL'!$F$400:$F$515,0),0,11,12),E$4,0),0) -> 0 | F146: =IFERROR(VLOOKUP($C146,OFFSET('UR & ECL'!$F$400,MATCH($C$129,'UR & ECL'!$F$400:$F$515,0),0,11,12),F$4,0),0) -> 0 | G146: =IFERROR(VLOOKUP($C146,OFFSET('UR & ECL'!$F$400,MATCH($C$81,'UR & ECL'!$F$400:$F$515,0),0,11,12),G$4,0),0) -> 0 | H146: 0 | I146: 0 | J146: 0 | K146: =IFERROR(VLOOKUP($C146,OFFSET('UR & ECL'!$F$400,MATCH($C$81,'UR & ECL'!$F$400:$F$515,0),0,11,12),K$4,0),0) -> 0 | L146: =IFERROR(VLOOKUP($C146,OFFSET('UR & ECL'!$F$400,MATCH($C$81,'UR & ECL'!$F$400:$F$515,0),0,11,12),L$4,0),0) -> 0 | M146: =IFERROR(VLOOKUP($C146,OFFSET('UR & ECL'!$F$400,MATCH($C$81,'UR & ECL'!$F$400:$F$515,0),0,11,12),M$4,0),0) -> 0 | N146: 0 | O146: 0 | P146: 0 | Q146: =IFERROR(VLOOKUP($C146,OFFSET('UR & ECL'!$F$400,MATCH($C$81,'UR & ECL'!$F$400:$F$515,0),0,11,12),Q$4,0),0) -> 0 | R146: =IFERROR(VLOOKUP($C146,OFFSET('UR & ECL'!$F$400,MATCH($C$81,'UR & ECL'!$F$400:$F$515,0),0,11,12),R$4,0),0) -> 0 | S146: =IFERROR(VLOOKUP($C146,OFFSET('UR & ECL'!$F$400,MATCH($C$81,'UR & ECL'!$F$400:$F$515,0),0,11,12),S$4,0),0) -> 0 | T146: 0 | U146: 0 | V146: =IFERROR(VLOOKUP($C146,OFFSET(Budget!$C$43,MATCH($C$81,Budget!$C$43:$C$349,0)+3,0,11,154),44+$G$2,0),0) -> 0 | X146: 0 | Y146: 0 | Z146: =IFERROR(VLOOKUP($C146,OFFSET(Budget!$C$43,MATCH($C$81,Budget!$C$43:$C$349,0)+3,0,11,154),101+$G$2,0),0) -> 0 | AA146: =IFERROR(HLOOKUP($Y$7,TRUST!$AJ$68:$AU$76,4,FALSE)+HLOOKUP($Y$7,TRUST!$AJ$68:$AU$76,6,FALSE),0) -> 0 | AB146: =IFERROR(SUM(OFFSET(Budget!$C$43,MATCH($C$81,Budget!$C$43:$C$349,0)+2+A146,101,1,$G$2)),0) -> 0 | AC146: =IFERROR(VLOOKUP($C146,OFFSET(Budget!$C$43,MATCH($C$81,Budget!$C$43:$C$349,0)+3,0,11,154),114,0),0) -> 0 | AD146: 0 | AE146: =IFERROR(SUM(OFFSET(Budget!$C$43,MATCH($C$81,Budget!$C$43:$C$349,0)+2+$A146,141,1,$G$2)),"") ->  | AF146: =IFERROR(VLOOKUP($C146,OFFSET(Budget!$C$43,MATCH($C$81,Budget!$C$43:$C$349,0)+3,0,12,154),58,0),"") -> 
B147: 6 | C147: Fair Value Gain/Loss | D147: 0 | E147: =IFERROR(VLOOKUP($C147,OFFSET('UR & ECL'!$F$400,MATCH($C$129,'UR & ECL'!$F$400:$F$515,0),0,11,12),E$4,0),0) -> 0 | F147: =IFERROR(VLOOKUP($C147,OFFSET('UR & ECL'!$F$400,MATCH($C$129,'UR & ECL'!$F$400:$F$515,0),0,11,12),F$4,0),0) -> 0 | G147: =IFERROR(VLOOKUP($C147,OFFSET('UR & ECL'!$F$400,MATCH($C$81,'UR & ECL'!$F$400:$F$515,0),0,11,12),G$4,0),0) -> 0 | H147: 0 | I147: 0 | J147: 0 | K147: =IFERROR(VLOOKUP($C147,OFFSET('UR & ECL'!$F$400,MATCH($C$81,'UR & ECL'!$F$400:$F$515,0),0,11,12),K$4,0),0) -> 0 | L147: =IFERROR(VLOOKUP($C147,OFFSET('UR & ECL'!$F$400,MATCH($C$81,'UR & ECL'!$F$400:$F$515,0),0,11,12),L$4,0),0) -> 0 | M147: =IFERROR(VLOOKUP($C147,OFFSET('UR & ECL'!$F$400,MATCH($C$81,'UR & ECL'!$F$400:$F$515,0),0,11,12),M$4,0),0) -> 0 | N147: 0 | O147: 0 | P147: 0 | Q147: =IFERROR(VLOOKUP($C147,OFFSET('UR & ECL'!$F$400,MATCH($C$81,'UR & ECL'!$F$400:$F$515,0),0,11,12),Q$4,0),0) -> 0 | R147: =IFERROR(VLOOKUP($C147,OFFSET('UR & ECL'!$F$400,MATCH($C$81,'UR & ECL'!$F$400:$F$515,0),0,11,12),R$4,0),0) -> 0 | S147: =IFERROR(VLOOKUP($C147,OFFSET('UR & ECL'!$F$400,MATCH($C$81,'UR & ECL'!$F$400:$F$515,0),0,11,12),S$4,0),0) -> 0 | T147: 0 | U147: 0 | V147: =IFERROR(VLOOKUP($C147,OFFSET(Budget!$C$43,MATCH($C$81,Budget!$C$43:$C$349,0)+3,0,11,154),44+$G$2,0),0) -> 0 | X147: 0 | Y147: 0 | Z147: =IFERROR(VLOOKUP($C147,OFFSET(Budget!$C$43,MATCH($C$81,Budget!$C$43:$C$349,0)+3,0,11,154),101+$G$2,0),0) -> 0 | AA147: =IFERROR(HLOOKUP($Y$7,TRUST!$AJ$68:$AU$76,8,FALSE),0) -> 0 | AB147: =IFERROR(SUM(OFFSET(Budget!$C$43,MATCH($C$81,Budget!$C$43:$C$349,0)+2+A147,101,1,$G$2)),0) -> 0 | AC147: =IFERROR(VLOOKUP($C147,OFFSET(Budget!$C$43,MATCH($C$81,Budget!$C$43:$C$349,0)+3,0,11,154),114,0),0) -> 0 | AD147: 0 | AE147: =IFERROR(SUM(OFFSET(Budget!$C$43,MATCH($C$81,Budget!$C$43:$C$349,0)+2+$A147,141,1,$G$2)),"") ->  | AF147: =IFERROR(VLOOKUP($C147,OFFSET(Budget!$C$43,MATCH($C$81,Budget!$C$43:$C$349,0)+3,0,12,154),58,0),"") -> 
A148: 8 | C148: ITA | D148: 0 | E148: =IFERROR(VLOOKUP($C148,OFFSET('UR & ECL'!$F$400,MATCH($C$129,'UR & ECL'!$F$400:$F$515,0),0,11,12),E$4,0),0) -> 0 | F148: =IFERROR(VLOOKUP($C148,OFFSET('UR & ECL'!$F$400,MATCH($C$129,'UR & ECL'!$F$400:$F$515,0),0,11,12),F$4,0),0) -> 0 | G148: =IFERROR(VLOOKUP($C148,OFFSET('UR & ECL'!$F$400,MATCH($C$81,'UR & ECL'!$F$400:$F$515,0),0,11,12),G$4,0),0) -> 0 | H148: 0 | I148: 0 | J148: 0 | K148: =IFERROR(VLOOKUP($C148,OFFSET('UR & ECL'!$F$400,MATCH($C$81,'UR & ECL'!$F$400:$F$515,0),0,11,12),K$4,0),0) -> 0 | L148: =IFERROR(VLOOKUP($C148,OFFSET('UR & ECL'!$F$400,MATCH($C$81,'UR & ECL'!$F$400:$F$515,0),0,11,12),L$4,0),0) -> 0 | M148: =IFERROR(VLOOKUP($C148,OFFSET('UR & ECL'!$F$400,MATCH($C$81,'UR & ECL'!$F$400:$F$515,0),0,11,12),M$4,0),0) -> 0 | N148: 0 | O148: 0 | P148: 0 | Q148: =IFERROR(VLOOKUP($C148,OFFSET('UR & ECL'!$F$400,MATCH($C$81,'UR & ECL'!$F$400:$F$515,0),0,11,12),Q$4,0),0) -> 0 | R148: =IFERROR(VLOOKUP($C148,OFFSET('UR & ECL'!$F$400,MATCH($C$81,'UR & ECL'!$F$400:$F$515,0),0,11,12),R$4,0),0) -> 0 | S148: =IFERROR(VLOOKUP($C148,OFFSET('UR & ECL'!$F$400,MATCH($C$81,'UR & ECL'!$F$400:$F$515,0),0,11,12),S$4,0),0) -> 0 | T148: 0 | U148: 0 | V148: =IFERROR(VLOOKUP($C148,OFFSET(Budget!$C$43,MATCH($C$81,Budget!$C$43:$C$349,0)+3,0,11,154),44+$G$2,0),0) -> 0 | X148: 0 | Y148: 0 | Z148: =IFERROR(VLOOKUP($C148,OFFSET(Budget!$C$43,MATCH($C$81,Budget!$C$43:$C$349,0)+3,0,11,154),101+$G$2,0),0) -> 0 | AA148: =IFERROR(HLOOKUP($Y$7,ITA!$AJ$68:$AU$76,9,FALSE),0) -> 0 | AB148: =IFERROR(SUM(OFFSET(Budget!$C$43,MATCH($C$81,Budget!$C$43:$C$349,0)+2+A148,101,1,$G$2)),0) -> 0 | AC148: =IFERROR(VLOOKUP($C148,OFFSET(Budget!$C$43,MATCH($C$81,Budget!$C$43:$C$349,0)+3,0,11,154),114,0),0) -> 0 | AD148: 0 | AE148: =IFERROR(SUM(OFFSET(Budget!$C$43,MATCH($C$81,Budget!$C$43:$C$349,0)+2+$A148,141,1,$G$2)),"") ->  | AF148: =IFERROR(VLOOKUP($C148,OFFSET(Budget!$C$43,MATCH($C$81,Budget!$C$43:$C$349,0)+3,0,12,154),58,0),"") -> 
A149: 9 | C149: Corporate Sukuk | D149: 0 | E149: =IFERROR(VLOOKUP($C149,OFFSET('UR & ECL'!$F$400,MATCH($C$129,'UR & ECL'!$F$400:$F$515,0),0,11,12),E$4,0),0) -> 0 | F149: =IFERROR(VLOOKUP($C149,OFFSET('UR & ECL'!$F$400,MATCH($C$129,'UR & ECL'!$F$400:$F$515,0),0,11,12),F$4,0),0) -> 0 | G149: =IFERROR(VLOOKUP($C149,OFFSET('UR & ECL'!$F$400,MATCH($C$81,'UR & ECL'!$F$400:$F$515,0),0,11,12),G$4,0),0) -> 0 | H149: 0 | I149: 0 | J149: 0 | K149: =IFERROR(VLOOKUP($C149,OFFSET('UR & ECL'!$F$400,MATCH($C$81,'UR & ECL'!$F$400:$F$515,0),0,11,12),K$4,0),0) -> 0 | L149: =IFERROR(VLOOKUP($C149,OFFSET('UR & ECL'!$F$400,MATCH($C$81,'UR & ECL'!$F$400:$F$515,0),0,11,12),L$4,0),0) -> 0 | M149: =IFERROR(VLOOKUP($C149,OFFSET('UR & ECL'!$F$400,MATCH($C$81,'UR & ECL'!$F$400:$F$515,0),0,11,12),M$4,0),0) -> 0 | N149: 0 | O149: 0 | P149: 0 | Q149: =IFERROR(VLOOKUP($C149,OFFSET('UR & ECL'!$F$400,MATCH($C$81,'UR & ECL'!$F$400:$F$515,0),0,11,12),Q$4,0),0) -> 0 | R149: =IFERROR(VLOOKUP($C149,OFFSET('UR & ECL'!$F$400,MATCH($C$81,'UR & ECL'!$F$400:$F$515,0),0,11,12),R$4,0),0) -> 0 | S149: =IFERROR(VLOOKUP($C149,OFFSET('UR & ECL'!$F$400,MATCH($C$81,'UR & ECL'!$F$400:$F$515,0),0,11,12),S$4,0),0) -> 0 | T149: 0 | U149: 0 | V149: =IFERROR(VLOOKUP($C149,OFFSET(Budget!$C$43,MATCH($C$81,Budget!$C$43:$C$349,0)+3,0,11,154),44+$G$2,0),0) -> 0 | X149: 0 | Y149: 0 | Z149: =IFERROR(VLOOKUP($C149,OFFSET(Budget!$C$43,MATCH($C$81,Budget!$C$43:$C$349,0)+3,0,11,154),101+$G$2,0),0) -> 0 | AA149: =IFERROR(HLOOKUP($Y$7,SUKUK!$AJ$68:$AU$76,9,FALSE),0) -> 0 | AB149: =IFERROR(SUM(OFFSET(Budget!$C$43,MATCH($C$81,Budget!$C$43:$C$349,0)+2+A149,101,1,$G$2)),0) -> 0 | AC149: =IFERROR(VLOOKUP($C149,OFFSET(Budget!$C$43,MATCH($C$81,Budget!$C$43:$C$349,0)+3,0,11,154),114,0),0) -> 0 | AD149: 0 | AE149: =IFERROR(SUM(OFFSET(Budget!$C$43,MATCH($C$81,Budget!$C$43:$C$349,0)+2+$A149,141,1,$G$2)),"") ->  | AF149: =IFERROR(VLOOKUP($C149,OFFSET(Budget!$C$43,MATCH($C$81,Budget!$C$43:$C$349,0)+3,0,12,154),58,0),"") -> 
A150: 10 | C150: Properties | D150: 0 | E150: =IFERROR(VLOOKUP($C150,OFFSET('UR & ECL'!$F$400,MATCH($C$129,'UR & ECL'!$F$400:$F$515,0),0,11,12),E$4,0),0) -> 0 | F150: =IFERROR(VLOOKUP($C150,OFFSET('UR & ECL'!$F$400,MATCH($C$129,'UR & ECL'!$F$400:$F$515,0),0,11,12),F$4,0),0) -> 0 | G150: =IFERROR(VLOOKUP($C150,OFFSET('UR & ECL'!$F$400,MATCH($C$81,'UR & ECL'!$F$400:$F$515,0),0,11,12),G$4,0),0) -> 0 | H150: 0 | I150: 0 | J150: 0 | K150: =IFERROR(VLOOKUP($C150,OFFSET('UR & ECL'!$F$400,MATCH($C$81,'UR & ECL'!$F$400:$F$515,0),0,11,12),K$4,0),0) -> 0 | L150: =IFERROR(VLOOKUP($C150,OFFSET('UR & ECL'!$F$400,MATCH($C$81,'UR & ECL'!$F$400:$F$515,0),0,11,12),L$4,0),0) -> 0 | M150: =IFERROR(VLOOKUP($C150,OFFSET('UR & ECL'!$F$400,MATCH($C$81,'UR & ECL'!$F$400:$F$515,0),0,11,12),M$4,0),0) -> 0 | N150: 0 | O150: 0 | P150: 0 | Q150: =IFERROR(VLOOKUP($C150,OFFSET('UR & ECL'!$F$400,MATCH($C$81,'UR & ECL'!$F$400:$F$515,0),0,11,12),Q$4,0),0) -> 0 | R150: =IFERROR(VLOOKUP($C150,OFFSET('UR & ECL'!$F$400,MATCH($C$81,'UR & ECL'!$F$400:$F$515,0),0,11,12),R$4,0),0) -> 0 | S150: =IFERROR(VLOOKUP($C150,OFFSET('UR & ECL'!$F$400,MATCH($C$81,'UR & ECL'!$F$400:$F$515,0),0,11,12),S$4,0),0) -> 0 | T150: 0 | U150: 0 | V150: =IFERROR(VLOOKUP($C150,OFFSET(Budget!$C$43,MATCH($C$81,Budget!$C$43:$C$349,0)+3,0,11,154),44+$G$2,0),0) -> 0 | X150: 0 | Y150: 0 | Z150: =IFERROR(VLOOKUP($C150,OFFSET(Budget!$C$43,MATCH($C$81,Budget!$C$43:$C$349,0)+3,0,11,154),101+$G$2,0),0) -> 0 | AA150: =IFERROR(HLOOKUP($Y$7,PROPERTY!$AJ$68:$AU$76,9,FALSE),0) -> 0 | AB150: =IFERROR(SUM(OFFSET(Budget!$C$43,MATCH($C$81,Budget!$C$43:$C$349,0)+2+A150,101,1,$G$2)),0) -> 0 | AC150: =IFERROR(VLOOKUP($C150,OFFSET(Budget!$C$43,MATCH($C$81,Budget!$C$43:$C$349,0)+3,0,11,154),114,0),0) -> 0 | AD150: 0 | AE150: =IFERROR(SUM(OFFSET(Budget!$C$43,MATCH($C$81,Budget!$C$43:$C$349,0)+2+$A150,141,1,$G$2)),"") ->  | AF150: =IFERROR(VLOOKUP($C150,OFFSET(Budget!$C$43,MATCH($C$81,Budget!$C$43:$C$349,0)+3,0,12,154),58,0),"") -> 
A151: 11 | C151: TOTAL | D151: =SUM(D134:D150) -> 0 | E151: =SUM(E134:E150) -> 0 | F151: 0 | G151: 0 | H151: 0 | I151: 0 | J151: 0 | K151: 0 | L151: 0 | M151: 0 | N151: 0 | O151: 0 | P151: 0 | Q151: 0 | R151: 0 | S151: 0 | T151: 0 | U151: =SUM(U134:U150) -> 0 | V151: =SUM(V134:V150) -> 0 | W151: =SUM(W134:W150) ->  | X151: =SUM(X134:X137,X140:X142,X145,X148:X150) -> 0 | Y151: =SUM(Y134:Y137,Y140:Y142,Y145,Y148:Y150) -> 0 | Z151: =SUM(Z134:Z137,Z140:Z142,Z145,Z148:Z150) -> 0 | AA151: =SUM(AA134:AA137,AA140:AA142,AA145,AA148:AA150) -> 0 | AB151: =SUM(AB134:AB137,AB140:AB142,AB145,AB148:AB150) -> 0 | AC151: =SUM(AC134:AC150) -> 0 | AD151: =IFERROR((2*AA151)/(H151-R151+T151-F151-AA151)*100,0) -> 0 | AE151: =IFERROR(SUM(OFFSET(Budget!$C$43,MATCH($C$129,Budget!$C$43:$C$349,0)+2+$A151,141,1,$G$2)),"") ->  | AF151: =IFERROR(VLOOKUP($C151,OFFSET(Budget!$C$43,MATCH($C$129,Budget!$C$43:$C$349,0)+3,0,12,154),58,0),"") -> 
C153: MYGROWTH
C154: MYGROWTH
D155: ASSET ALLOCATION | X155: RM INCOME | AD155: % YIELD
D156: =D108 -> Cost | E156: UR Gain/Loss | F156: Reserve | G156: ECL | H156: =H132 -> FYE2019 | I156: % | J156: Cost | K156: UR Gain/Loss | L156: Reserve | M156: ECL | N156: =$N$7 -> 2020-01-01 | O156: Cost | P156: % | Q156: UR Gain/Loss | R156: Reserve | S156: ECL | T156: =T108 -> 2020-02-01 | U156: % | V156: =$V$7 -> BUDGET (RM) | W156: =$W$7 -> BUDGET (%) | X156: =$N$7 -> 2020-01-01 | Y156: =$T$32 -> 2020-02-01 | Z156: MONTHLY BUDGET | AA156: =+$AA$7 -> YTD | AB156: ="YTD BUDGET (" &$G$2&" mths)" -> YTD BUDGET (2 mths) | AC156: BUDGET (12 mths) | AD156: =+$AD$7 -> YTD | AE156: ="YTD BUDGET (" &$G$2& " mths)" -> YTD BUDGET (2 mths) | AF156: BUDGET (12 mths)
A158: 1 | C158: Deposits & Money Market | D158: 0 | E158: =E182+E207 -> 0 | F158: =F182+F207 -> 0 | G158: =IFERROR(VLOOKUP($C158,OFFSET('UR & ECL'!$F$400,MATCH($C$81,'UR & ECL'!$F$400:$F$515,0),0,11,12),G$4,0),0) -> 0 | H158: 0 | I158: =IFERROR(H158/H$103*100,0) -> 0 | J158: 0 | K158: =IFERROR(VLOOKUP($C158,OFFSET('UR & ECL'!$F$400,MATCH($C$81,'UR & ECL'!$F$400:$F$515,0),0,11,12),K$4,0),0) -> 0 | L158: =IFERROR(VLOOKUP($C158,OFFSET('UR & ECL'!$F$400,MATCH($C$81,'UR & ECL'!$F$400:$F$515,0),0,11,12),L$4,0),0) -> 0 | M158: =IFERROR(VLOOKUP($C158,OFFSET('UR & ECL'!$F$400,MATCH($C$81,'UR & ECL'!$F$400:$F$515,0),0,11,12),M$4,0),0) -> 0 | N158: =J158+K158+L158+M158 -> 0 | O158: 0 | P158: =IFERROR(O158/$O$103*100,0) -> 0 | Q158: =IFERROR(VLOOKUP($C158,OFFSET('UR & ECL'!$F$400,MATCH($C$81,'UR & ECL'!$F$400:$F$515,0),0,11,12),Q$4,0),0) -> 0 | R158: =IFERROR(VLOOKUP($C158,OFFSET('UR & ECL'!$F$400,MATCH($C$81,'UR & ECL'!$F$400:$F$515,0),0,11,12),R$4,0),0) -> 0 | S158: =IFERROR(VLOOKUP($C158,OFFSET('UR & ECL'!$F$400,MATCH($C$81,'UR & ECL'!$F$400:$F$515,0),0,11,12),S$4,0),0) -> 0 | T158: 0 | U158: =IFERROR(T158/T$103*100,0) -> 0 | V158: =IFERROR(VLOOKUP($C158,OFFSET(Budget!$C$43,MATCH($C$81,Budget!$C$43:$C$349,0)+3,0,11,154),44+$G$2,0),0) -> 0 | W158: =V158/$V$103*100 ->  | X158: 0 | Y158: 0 | Z158: =IFERROR(VLOOKUP($C158,OFFSET(Budget!$C$43,MATCH($C$81,Budget!$C$43:$C$349,0)+3,0,11,154),101+$G$2,0),0) -> 0 | AA158: =IFERROR(HLOOKUP($Y$7,DEPOSIT!$AJ$68:$AU$76,9,FALSE),0) -> 0 | AB158: =IFERROR(SUM(OFFSET(Budget!$C$43,MATCH($C$81,Budget!$C$43:$C$349,0)+2+A158,101,1,$G$2)),0) -> 0 | AC158: =IFERROR(VLOOKUP($C158,OFFSET(Budget!$C$43,MATCH($C$81,Budget!$C$43:$C$349,0)+3,0,11,154),114,0),0) -> 0 | AD158: 0 | AE158: =IFERROR(SUM(OFFSET(Budget!$C$43,MATCH($C$81,Budget!$C$43:$C$349,0)+2+$A158,141,1,$G$2)),"") ->  | AF158: =IFERROR(VLOOKUP($C158,OFFSET(Budget!$C$43,MATCH($C$81,Budget!$C$43:$C$349,0)+3,0,12,154),58,0),"") ->  | AJ158: =C158 -> Deposits & Money Market | AK158: =O158 -> 0 | AL158: =Q158 -> 0 | AM158: 0 | AN158: 0 | AO158: =AK158+AL158+AM158+AN158 -> 0
A159: 2 | C159: Banca Deposit | D159: 0 | E159: =E183+E208 -> 0 | F159: 0 | G159: =IFERROR(VLOOKUP($C159,OFFSET('UR & ECL'!$F$400,MATCH($C$81,'UR & ECL'!$F$400:$F$515,0),0,11,12),G$4,0),0) -> 0 | H159: 0 | I159: =IFERROR(H159/H$103*100,0) -> 0 | J159: 0 | K159: =IFERROR(VLOOKUP($C159,OFFSET('UR & ECL'!$F$400,MATCH($C$81,'UR & ECL'!$F$400:$F$515,0),0,11,12),K$4,0),0) -> 0 | L159: =IFERROR(VLOOKUP($C159,OFFSET('UR & ECL'!$F$400,MATCH($C$81,'UR & ECL'!$F$400:$F$515,0),0,11,12),L$4,0),0) -> 0 | M159: =IFERROR(VLOOKUP($C159,OFFSET('UR & ECL'!$F$400,MATCH($C$81,'UR & ECL'!$F$400:$F$515,0),0,11,12),M$4,0),0) -> 0 | N159: =J159+K159+L159+M159 -> 0 | O159: 0 | P159: =IFERROR(O159/$O$103*100,0) -> 0 | Q159: =IFERROR(VLOOKUP($C159,OFFSET('UR & ECL'!$F$400,MATCH($C$81,'UR & ECL'!$F$400:$F$515,0),0,11,12),Q$4,0),0) -> 0 | R159: =IFERROR(VLOOKUP($C159,OFFSET('UR & ECL'!$F$400,MATCH($C$81,'UR & ECL'!$F$400:$F$515,0),0,11,12),R$4,0),0) -> 0 | S159: =IFERROR(VLOOKUP($C159,OFFSET('UR & ECL'!$F$400,MATCH($C$81,'UR & ECL'!$F$400:$F$515,0),0,11,12),S$4,0),0) -> 0 | T159: 0 | U159: =IFERROR(T159/T$103*100,0) -> 0 | V159: =IFERROR(VLOOKUP($C159,OFFSET(Budget!$C$43,MATCH($C$81,Budget!$C$43:$C$349,0)+3,0,11,154),44+$G$2,0),0) -> 0 | W159: =V159/$V$103*100 ->  | X159: 0 | Y159: 0 | Z159: =IFERROR(VLOOKUP($C159,OFFSET(Budget!$C$43,MATCH($C$81,Budget!$C$43:$C$349,0)+3,0,11,154),101+$G$2,0),0) -> 0 | AA159: =IFERROR(HLOOKUP($Y$7,BANCA!$AJ$68:$AU$76,9,FALSE),0)+IFERROR(HLOOKUP($Y$7,'BANCA CP'!$AJ$68:$AU$76,9,FALSE),0) -> 0 | AB159: =IFERROR(SUM(OFFSET(Budget!$C$43,MATCH($C$81,Budget!$C$43:$C$349,0)+2+A159,101,1,$G$2)),0) -> 0 | AC159: =IFERROR(VLOOKUP($C159,OFFSET(Budget!$C$43,MATCH($C$81,Budget!$C$43:$C$349,0)+3,0,11,154),114,0),0) -> 0 | AD159: 0 | AE159: =IFERROR(SUM(OFFSET(Budget!$C$43,MATCH($C$81,Budget!$C$43:$C$349,0)+2+$A159,141,1,$G$2)),"") ->  | AF159: =IFERROR(VLOOKUP($C159,OFFSET(Budget!$C$43,MATCH($C$81,Budget!$C$43:$C$349,0)+3,0,12,154),58,0),"") ->  | AJ159: =C159 -> Banca Deposit | AK159: =O159 -> 0 | AL159: 0 | AM159: 0 | AN159: 0 | AO159: =AK159+AL159+AM159+AN159 -> 0
C160: Banca Commercial Paper | D160: 0 | E160: 0 | F160: 0 | G160: =IFERROR(VLOOKUP($C160,OFFSET('UR & ECL'!$F$400,MATCH($C$81,'UR & ECL'!$F$400:$F$515,0),0,11,12),G$4,0),0) -> 0 | H160: =D160+E160+F160+G160 -> 0 | I160: 0 | J160: 0 | K160: =IFERROR(VLOOKUP($C160,OFFSET('UR & ECL'!$F$400,MATCH($C$81,'UR & ECL'!$F$400:$F$515,0),0,11,12),K$4,0),0) -> 0 | L160: =IFERROR(VLOOKUP($C160,OFFSET('UR & ECL'!$F$400,MATCH($C$81,'UR & ECL'!$F$400:$F$515,0),0,11,12),L$4,0),0) -> 0 | M160: =IFERROR(VLOOKUP($C160,OFFSET('UR & ECL'!$F$400,MATCH($C$81,'UR & ECL'!$F$400:$F$515,0),0,11,12),M$4,0),0) -> 0 | N160: 0 | O160: 0 | P160: 0 | Q160: =IFERROR(VLOOKUP($C160,OFFSET('UR & ECL'!$F$400,MATCH($C$81,'UR & ECL'!$F$400:$F$515,0),0,11,12),Q$4,0),0) -> 0 | R160: =IFERROR(VLOOKUP($C160,OFFSET('UR & ECL'!$F$400,MATCH($C$81,'UR & ECL'!$F$400:$F$515,0),0,11,12),R$4,0),0) -> 0 | S160: =IFERROR(VLOOKUP($C160,OFFSET('UR & ECL'!$F$400,MATCH($C$81,'UR & ECL'!$F$400:$F$515,0),0,11,12),S$4,0),0) -> 0 | T160: =O160+Q160+R160+S160 -> 0 | U160: 0 | V160: =IFERROR(VLOOKUP($C160,OFFSET(Budget!$C$43,MATCH($C$81,Budget!$C$43:$C$349,0)+3,0,11,154),44+$G$2,0),0) -> 0 | X160: =IFERROR(HLOOKUP($X$7,'BANCA CP'!$S$68:$AE$76,9,FALSE),0) -> 0 | Y160: =IFERROR(HLOOKUP($Y$7,'BANCA CP'!$S$68:$AE$76,9,FALSE),0) -> 0 | Z160: =IFERROR(VLOOKUP($C160,OFFSET('[6]Revised Budget 2019'!$C$43,MATCH($C$81,'[6]Revised Budget 2019'!$C$43:$C$270,0)+3,0,11,154),101+$G$2,0),0) -> 0 | AB160: =IFERROR(SUM(OFFSET('[6]Revised Budget 2019'!$C$43,MATCH($C$81,'[6]Revised Budget 2019'!$C$43:$C$270,0)+2+A160,101,1,$G$2)),0) -> 0 | AC160: =IFERROR(VLOOKUP($C160,OFFSET('[6]Revised Budget 2019'!$C$43,MATCH($C$81,'[6]Revised Budget 2019'!$C$43:$C$270,0)+3,0,11,154),114,0),0) -> 0 | AE160: =IFERROR(SUM(OFFSET('[6]Revised Budget 2019'!$C$43,MATCH(#REF!,'[6]Revised Budget 2019'!$C$43:$C$270,0)+2+$A160,141,1,$G$2)),"") ->  | AF160: =IFERROR(VLOOKUP($C160,OFFSET('[6]Revised Budget 2019'!$C$43,MATCH(#REF!,'[6]Revised Budget 2019'!$C$43:$C$270,0)+3,0,12,154),58,0),"") ->  | AJ160: =C161 -> Structured Deposit | AK160: =O161 -> 0 | AL160: =Q161 -> 0 | AM160: =R161 -> 0 | AN160: =S161 -> 0 | AO160: 0
A161: 3 | C161: Structured Deposit | D161: 0 | E161: 0 | F161: 0 | G161: =IFERROR(VLOOKUP($C161,OFFSET('UR & ECL'!$F$400,MATCH($C$81,'UR & ECL'!$F$400:$F$515,0),0,11,12),G$4,0),0) -> 0 | H161: =D161+E161+F161+G161 -> 0 | I161: 0 | J161: 0 | K161: =IFERROR(VLOOKUP($C161,OFFSET('UR & ECL'!$F$400,MATCH($C$81,'UR & ECL'!$F$400:$F$515,0),0,11,12),K$4,0),0) -> 0 | L161: =IFERROR(VLOOKUP($C161,OFFSET('UR & ECL'!$F$400,MATCH($C$81,'UR & ECL'!$F$400:$F$515,0),0,11,12),L$4,0),0) -> 0 | M161: =IFERROR(VLOOKUP($C161,OFFSET('UR & ECL'!$F$400,MATCH($C$81,'UR & ECL'!$F$400:$F$515,0),0,11,12),M$4,0),0) -> 0 | N161: 0 | O161: 0 | P161: 0 | Q161: =IFERROR(VLOOKUP($C161,OFFSET('UR & ECL'!$F$400,MATCH($C$81,'UR & ECL'!$F$400:$F$515,0),0,11,12),Q$4,0),0) -> 0 | R161: =IFERROR(VLOOKUP($C161,OFFSET('UR & ECL'!$F$400,MATCH($C$81,'UR & ECL'!$F$400:$F$515,0),0,11,12),R$4,0),0) -> 0 | S161: =IFERROR(VLOOKUP($C161,OFFSET('UR & ECL'!$F$400,MATCH($C$81,'UR & ECL'!$F$400:$F$515,0),0,11,12),S$4,0),0) -> 0 | T161: =O161+Q161+R161+S161 -> 0 | U161: 0 | V161: =IFERROR(VLOOKUP($C161,OFFSET(Budget!$C$43,MATCH($C$81,Budget!$C$43:$C$349,0)+3,0,11,154),44+$G$2,0),0) -> 0 | X161: =SUM(X162:X163) -> 0 | Y161: =SUM(Y162:Y163) -> 0 | Z161: =IFERROR(VLOOKUP($C161,OFFSET(Budget!$C$43,MATCH($C$81,Budget!$C$43:$C$349,0)+3,0,11,154),101+$G$2,0),0) -> 0 | AA161: =SUM(AA162:AA163) -> 0 | AB161: =IFERROR(SUM(OFFSET(Budget!$C$43,MATCH($C$81,Budget!$C$43:$C$349,0)+2+A161,101,1,$G$2)),0) -> 0 | AC161: =IFERROR(VLOOKUP($C161,OFFSET(Budget!$C$43,MATCH($C$81,Budget!$C$43:$C$349,0)+3,0,11,154),114,0),0) -> 0 | AD161: =IFERROR((2*AA161)/(H161-R161+T161-F161-AA161)*100,0) -> 0 | AE161: =IFERROR(SUM(OFFSET(Budget!$C$43,MATCH($C$81,Budget!$C$43:$C$349,0)+2+$A161,141,1,$G$2)),"") ->  | AF161: =IFERROR(VLOOKUP($C161,OFFSET(Budget!$C$43,MATCH($C$81,Budget!$C$43:$C$349,0)+3,0,12,154),58,0),"") ->  | AJ161: =C164 -> GII | AK161: =O164 -> 0 | AL161: =Q164 -> 0 | AM161: 0 | AN161: 0 | AO161: 0
B162: 1 | C162: Income | D162: 0 | E162: 0 | F162: 0 | G162: =IFERROR(VLOOKUP($C162,OFFSET('UR & ECL'!$F$400,MATCH($C$81,'UR & ECL'!$F$400:$F$515,0),0,11,12),G$4,0),0) -> 0 | H162: =D162+E162+F162+G162 -> 0 | I162: 0 | J162: 0 | K162: =IFERROR(VLOOKUP($C162,OFFSET('UR & ECL'!$F$400,MATCH($C$81,'UR & ECL'!$F$400:$F$515,0),0,11,12),K$4,0),0) -> 0 | L162: =IFERROR(VLOOKUP($C162,OFFSET('UR & ECL'!$F$400,MATCH($C$81,'UR & ECL'!$F$400:$F$515,0),0,11,12),L$4,0),0) -> 0 | M162: =IFERROR(VLOOKUP($C162,OFFSET('UR & ECL'!$F$400,MATCH($C$81,'UR & ECL'!$F$400:$F$515,0),0,11,12),M$4,0),0) -> 0 | N162: 0 | O162: 0 | P162: 0 | Q162: =IFERROR(VLOOKUP($C162,OFFSET('UR & ECL'!$F$400,MATCH($C$81,'UR & ECL'!$F$400:$F$515,0),0,11,12),Q$4,0),0) -> 0 | R162: =IFERROR(VLOOKUP($C162,OFFSET('UR & ECL'!$F$400,MATCH($C$81,'UR & ECL'!$F$400:$F$515,0),0,11,12),R$4,0),0) -> 0 | S162: =IFERROR(VLOOKUP($C162,OFFSET('UR & ECL'!$F$400,MATCH($C$81,'UR & ECL'!$F$400:$F$515,0),0,11,12),S$4,0),0) -> 0 | T162: =O162+Q162+R162+S162 -> 0 | U162: 0 | V162: =IFERROR(VLOOKUP($C162,OFFSET(Budget!$C$43,MATCH($C$81,Budget!$C$43:$C$349,0)+3,0,11,154),44+$G$2,0),0) -> 0 | X162: =IFERROR(HLOOKUP($X$7,STRUCTDEP!$S$68:$AE$76,4,FALSE),0) -> 0 | Y162: =IFERROR(HLOOKUP($Y$7,STRUCTDEP!$S$68:$AE$76,4,FALSE),0) -> 0 | Z162: =IFERROR(VLOOKUP($C162,OFFSET(Budget!$C$43,MATCH($C$81,Budget!$C$43:$C$349,0)+3,0,11,154),101+$G$2,0),0) -> 0 | AA162: =IFERROR(HLOOKUP($Y$7,STRUCTDEP!$AJ$68:$AU$76,4,FALSE),0) -> 0 | AB162: =IFERROR(SUM(OFFSET(Budget!$C$43,MATCH($C$81,Budget!$C$43:$C$349,0)+2+A162,101,1,$G$2)),0) -> 0 | AC162: =IFERROR(VLOOKUP($C162,OFFSET(Budget!$C$43,MATCH($C$81,Budget!$C$43:$C$349,0)+3,0,11,154),114,0),0) -> 0 | AD162: =IFERROR((2*AA162)/(H162-R162+T162-F162-AA162)*100,0) -> 0 | AE162: =IFERROR(SUM(OFFSET(Budget!$C$43,MATCH($C$81,Budget!$C$43:$C$349,0)+2+$A162,141,1,$G$2)),"") ->  | AF162: =IFERROR(VLOOKUP($C162,OFFSET(Budget!$C$43,MATCH($C$81,Budget!$C$43:$C$349,0)+3,0,12,154),58,0),"") ->  | AJ162: =C165 -> GG | AK162: =O165 -> 0 | AL162: 0 | AM162: 0 | AN162: 0 | AO162: 0
B163: 2 | C163: Fair Value Gain/Loss | D163: 0 | E163: 0 | F163: 0 | G163: =IFERROR(VLOOKUP($C163,OFFSET('UR & ECL'!$F$400,MATCH($C$81,'UR & ECL'!$F$400:$F$515,0),0,11,12),G$4,0),0) -> 0 | H163: =D163+E163+F163+G163 -> 0 | I163: 0 | J163: 0 | K163: =IFERROR(VLOOKUP($C163,OFFSET('UR & ECL'!$F$400,MATCH($C$81,'UR & ECL'!$F$400:$F$515,0),0,11,12),K$4,0),0) -> 0 | L163: =IFERROR(VLOOKUP($C163,OFFSET('UR & ECL'!$F$400,MATCH($C$81,'UR & ECL'!$F$400:$F$515,0),0,11,12),L$4,0),0) -> 0 | M163: =IFERROR(VLOOKUP($C163,OFFSET('UR & ECL'!$F$400,MATCH($C$81,'UR & ECL'!$F$400:$F$515,0),0,11,12),M$4,0),0) -> 0 | N163: 0 | O163: 0 | P163: 0 | Q163: =IFERROR(VLOOKUP($C163,OFFSET('UR & ECL'!$F$400,MATCH($C$81,'UR & ECL'!$F$400:$F$515,0),0,11,12),Q$4,0),0) -> 0 | R163: =IFERROR(VLOOKUP($C163,OFFSET('UR & ECL'!$F$400,MATCH($C$81,'UR & ECL'!$F$400:$F$515,0),0,11,12),R$4,0),0) -> 0 | S163: =IFERROR(VLOOKUP($C163,OFFSET('UR & ECL'!$F$400,MATCH($C$81,'UR & ECL'!$F$400:$F$515,0),0,11,12),S$4,0),0) -> 0 | T163: =O163+Q163+R163+S163 -> 0 | U163: 0 | V163: =IFERROR(VLOOKUP($C163,OFFSET(Budget!$C$43,MATCH($C$81,Budget!$C$43:$C$349,0)+3,0,11,154),44+$G$2,0),0) -> 0 | X163: =IFERROR(HLOOKUP($X$7,STRUCTDEP!$S$68:$AE$76,8,FALSE),0) -> 0 | Y163: =IFERROR(HLOOKUP($Y$7,STRUCTDEP!$S$68:$AE$76,8,FALSE),0) -> 0 | Z163: =IFERROR(VLOOKUP($C163,OFFSET(Budget!$C$43,MATCH($C$81,Budget!$C$43:$C$349,0)+3,0,11,154),101+$G$2,0),0) -> 0 | AA163: =IFERROR(HLOOKUP($Y$7,STRUCTDEP!$AJ$68:$AU$76,8,FALSE),0) -> 0 | AB163: =IFERROR(SUM(OFFSET(Budget!$C$43,MATCH($C$81,Budget!$C$43:$C$349,0)+2+A163,101,1,$G$2)),0) -> 0 | AC163: =IFERROR(VLOOKUP($C163,OFFSET(Budget!$C$43,MATCH($C$81,Budget!$C$43:$C$349,0)+3,0,11,154),114,0),0) -> 0 | AD163: =IFERROR((2*AA163)/(H163-R163+T163-F163-AA163)*100,0) -> 0 | AE163: =IFERROR(SUM(OFFSET(Budget!$C$43,MATCH($C$81,Budget!$C$43:$C$349,0)+2+$A163,141,1,$G$2)),"") ->  | AF163: =IFERROR(VLOOKUP($C163,OFFSET(Budget!$C$43,MATCH($C$81,Budget!$C$43:$C$349,0)+3,0,12,154),58,0),"") ->  | AJ163: =C166 -> Equity | AK163: =O166 -> 0 | AL163: 0 | AM163: 0 | AN163: 0 | AO163: 0
A164: 4 | C164: GII | D164: 0 | E164: 0 | F164: 0 | G164: =IFERROR(VLOOKUP($C164,OFFSET('UR & ECL'!$F$400,MATCH($C$81,'UR & ECL'!$F$400:$F$515,0),0,11,12),G$4,0),0) -> 0 | H164: 0 | I164: 0 | J164: 0 | K164: =IFERROR(VLOOKUP($C164,OFFSET('UR & ECL'!$F$400,MATCH($C$81,'UR & ECL'!$F$400:$F$515,0),0,11,12),K$4,0),0) -> 0 | L164: =IFERROR(VLOOKUP($C164,OFFSET('UR & ECL'!$F$400,MATCH($C$81,'UR & ECL'!$F$400:$F$515,0),0,11,12),L$4,0),0) -> 0 | M164: =IFERROR(VLOOKUP($C164,OFFSET('UR & ECL'!$F$400,MATCH($C$81,'UR & ECL'!$F$400:$F$515,0),0,11,12),M$4,0),0) -> 0 | N164: 0 | O164: 0 | P164: 0 | Q164: =IFERROR(VLOOKUP($C164,OFFSET('UR & ECL'!$F$400,MATCH($C$81,'UR & ECL'!$F$400:$F$515,0),0,11,12),Q$4,0),0) -> 0 | R164: =IFERROR(VLOOKUP($C164,OFFSET('UR & ECL'!$F$400,MATCH($C$81,'UR & ECL'!$F$400:$F$515,0),0,11,12),R$4,0),0) -> 0 | S164: =IFERROR(VLOOKUP($C164,OFFSET('UR & ECL'!$F$400,MATCH($C$81,'UR & ECL'!$F$400:$F$515,0),0,11,12),S$4,0),0) -> 0 | T164: 0 | U164: 0 | V164: =IFERROR(VLOOKUP($C164,OFFSET(Budget!$C$43,MATCH($C$81,Budget!$C$43:$C$349,0)+3,0,11,154),44+$G$2,0),0) -> 0 | X164: 0 | Y164: 0 | Z164: =IFERROR(VLOOKUP($C164,OFFSET(Budget!$C$43,MATCH($C$81,Budget!$C$43:$C$349,0)+3,0,11,154),101+$G$2,0),0) -> 0 | AA164: =IFERROR(HLOOKUP($Y$7,GII!$AJ$68:$AU$76,9,FALSE),0) -> 0 | AB164: =IFERROR(SUM(OFFSET(Budget!$C$43,MATCH($C$81,Budget!$C$43:$C$349,0)+2+A164,101,1,$G$2)),0) -> 0 | AC164: =IFERROR(VLOOKUP($C164,OFFSET(Budget!$C$43,MATCH($C$81,Budget!$C$43:$C$349,0)+3,0,11,154),114,0),0) -> 0 | AD164: 0 | AE164: =IFERROR(SUM(OFFSET(Budget!$C$43,MATCH($C$81,Budget!$C$43:$C$349,0)+2+$A164,141,1,$G$2)),"") ->  | AF164: =IFERROR(VLOOKUP($C164,OFFSET(Budget!$C$43,MATCH($C$81,Budget!$C$43:$C$349,0)+3,0,12,154),58,0),"") ->  | AJ164: =C169 -> Unit Trust | AK164: =O169 -> 0 | AL164: =Q169 -> 0 | AM164: =R169 -> 0 | AN164: =S169 -> 0 | AO164: 0
A165: 5 | C165: GG | D165: 0 | E165: 0 | F165: 0 | G165: =IFERROR(VLOOKUP($C165,OFFSET('UR & ECL'!$F$400,MATCH($C$81,'UR & ECL'!$F$400:$F$515,0),0,11,12),G$4,0),0) -> 0 | H165: 0 | I165: 0 | J165: 0 | K165: =IFERROR(VLOOKUP($C165,OFFSET('UR & ECL'!$F$400,MATCH($C$81,'UR & ECL'!$F$400:$F$515,0),0,11,12),K$4,0),0) -> 0 | L165: =IFERROR(VLOOKUP($C165,OFFSET('UR & ECL'!$F$400,MATCH($C$81,'UR & ECL'!$F$400:$F$515,0),0,11,12),L$4,0),0) -> 0 | M165: =IFERROR(VLOOKUP($C165,OFFSET('UR & ECL'!$F$400,MATCH($C$81,'UR & ECL'!$F$400:$F$515,0),0,11,12),M$4,0),0) -> 0 | N165: 0 | O165: 0 | P165: 0 | Q165: =IFERROR(VLOOKUP($C165,OFFSET('UR & ECL'!$F$400,MATCH($C$81,'UR & ECL'!$F$400:$F$515,0),0,11,12),Q$4,0),0) -> 0 | R165: =IFERROR(VLOOKUP($C165,OFFSET('UR & ECL'!$F$400,MATCH($C$81,'UR & ECL'!$F$400:$F$515,0),0,11,12),R$4,0),0) -> 0 | S165: =IFERROR(VLOOKUP($C165,OFFSET('UR & ECL'!$F$400,MATCH($C$81,'UR & ECL'!$F$400:$F$515,0),0,11,12),S$4,0),0) -> 0 | T165: 0 | U165: 0 | V165: =IFERROR(VLOOKUP($C165,OFFSET(Budget!$C$43,MATCH($C$81,Budget!$C$43:$C$349,0)+3,0,11,154),44+$G$2,0),0) -> 0 | X165: 0 | Y165: 0 | Z165: =IFERROR(VLOOKUP($C165,OFFSET(Budget!$C$43,MATCH($C$81,Budget!$C$43:$C$349,0)+3,0,11,154),101+$G$2,0),0) -> 0 | AA165: =IFERROR(HLOOKUP($Y$7,GG!$AJ$68:$AU$76,9,FALSE),0) -> 0 | AB165: =IFERROR(SUM(OFFSET(Budget!$C$43,MATCH($C$81,Budget!$C$43:$C$349,0)+2+A165,101,1,$G$2)),0) -> 0 | AC165: =IFERROR(VLOOKUP($C165,OFFSET(Budget!$C$43,MATCH($C$81,Budget!$C$43:$C$349,0)+3,0,11,154),114,0),0) -> 0 | AD165: 0 | AE165: =IFERROR(SUM(OFFSET(Budget!$C$43,MATCH($C$81,Budget!$C$43:$C$349,0)+2+$A165,141,1,$G$2)),"") ->  | AF165: =IFERROR(VLOOKUP($C165,OFFSET(Budget!$C$43,MATCH($C$81,Budget!$C$43:$C$349,0)+3,0,12,154),58,0),"") ->  | AJ165: =C172 -> ITA | AK165: =O172 -> 0 | AL165: =Q172 -> 0 | AM165: 0 | AN165: 0 | AO165: 0
A166: 6 | C166: Equity | D166: 0 | E166: 0 | F166: 0 | G166: =IFERROR(VLOOKUP($C166,OFFSET('UR & ECL'!$F$400,MATCH($C$81,'UR & ECL'!$F$400:$F$515,0),0,11,12),G$4,0),0) -> 0 | H166: 0 | I166: 0 | J166: 0 | K166: =IFERROR(VLOOKUP($C166,OFFSET('UR & ECL'!$F$400,MATCH($C$81,'UR & ECL'!$F$400:$F$515,0),0,11,12),K$4,0),0) -> 0 | L166: =IFERROR(VLOOKUP($C166,OFFSET('UR & ECL'!$F$400,MATCH($C$81,'UR & ECL'!$F$400:$F$515,0),0,11,12),L$4,0),0) -> 0 | M166: =IFERROR(VLOOKUP($C166,OFFSET('UR & ECL'!$F$400,MATCH($C$81,'UR & ECL'!$F$400:$F$515,0),0,11,12),M$4,0),0) -> 0 | N166: 0 | O166: 0 | P166: 0 | Q166: =IFERROR(VLOOKUP($C166,OFFSET('UR & ECL'!$F$400,MATCH($C$81,'UR & ECL'!$F$400:$F$515,0),0,11,12),Q$4,0),0) -> 0 | R166: =IFERROR(VLOOKUP($C166,OFFSET('UR & ECL'!$F$400,MATCH($C$81,'UR & ECL'!$F$400:$F$515,0),0,11,12),R$4,0),0) -> 0 | S166: =IFERROR(VLOOKUP($C166,OFFSET('UR & ECL'!$F$400,MATCH($C$81,'UR & ECL'!$F$400:$F$515,0),0,11,12),S$4,0),0) -> 0 | T166: 0 | U166: 0 | V166: =IFERROR(VLOOKUP($C166,OFFSET(Budget!$C$43,MATCH($C$81,Budget!$C$43:$C$349,0)+3,0,11,154),44+$G$2,0),0) -> 0 | X166: 0 | Y166: 0 | Z166: =IFERROR(VLOOKUP($C166,OFFSET(Budget!$C$43,MATCH($C$81,Budget!$C$43:$C$349,0)+3,0,11,154),101+$G$2,0),0) -> 0 | AA166: =SUM(AA167:AA168) -> 0 | AB166: =IFERROR(SUM(OFFSET(Budget!$C$43,MATCH($C$81,Budget!$C$43:$C$349,0)+2+A166,101,1,$G$2)),0) -> 0 | AC166: =IFERROR(VLOOKUP($C166,OFFSET(Budget!$C$43,MATCH($C$81,Budget!$C$43:$C$349,0)+3,0,11,154),114,0),0) -> 0 | AD166: 0 | AE166: =IFERROR(SUM(OFFSET(Budget!$C$43,MATCH($C$81,Budget!$C$43:$C$349,0)+2+$A166,141,1,$G$2)),"") ->  | AF166: =IFERROR(VLOOKUP($C166,OFFSET(Budget!$C$43,MATCH($C$81,Budget!$C$43:$C$349,0)+3,0,12,154),58,0),"") ->  | AJ166: =C173 -> Corporate Sukuk | AK166: =O173 -> 0 | AL166: 0 | AM166: 0 | AN166: 0 | AO166: 0
B167: 3 | C167: Income | D167: 0 | E167: 0 | F167: 0 | G167: =IFERROR(VLOOKUP($C167,OFFSET('UR & ECL'!$F$400,MATCH($C$81,'UR & ECL'!$F$400:$F$515,0),0,11,12),G$4,0),0) -> 0 | H167: 0 | I167: 0 | J167: 0 | K167: =IFERROR(VLOOKUP($C167,OFFSET('UR & ECL'!$F$400,MATCH($C$81,'UR & ECL'!$F$400:$F$515,0),0,11,12),K$4,0),0) -> 0 | L167: =IFERROR(VLOOKUP($C167,OFFSET('UR & ECL'!$F$400,MATCH($C$81,'UR & ECL'!$F$400:$F$515,0),0,11,12),L$4,0),0) -> 0 | M167: =IFERROR(VLOOKUP($C167,OFFSET('UR & ECL'!$F$400,MATCH($C$81,'UR & ECL'!$F$400:$F$515,0),0,11,12),M$4,0),0) -> 0 | N167: 0 | O167: 0 | P167: 0 | Q167: =IFERROR(VLOOKUP($C167,OFFSET('UR & ECL'!$F$400,MATCH($C$81,'UR & ECL'!$F$400:$F$515,0),0,11,12),Q$4,0),0) -> 0 | R167: =IFERROR(VLOOKUP($C167,OFFSET('UR & ECL'!$F$400,MATCH($C$81,'UR & ECL'!$F$400:$F$515,0),0,11,12),R$4,0),0) -> 0 | S167: =IFERROR(VLOOKUP($C167,OFFSET('UR & ECL'!$F$400,MATCH($C$81,'UR & ECL'!$F$400:$F$515,0),0,11,12),S$4,0),0) -> 0 | T167: 0 | U167: 0 | V167: =IFERROR(VLOOKUP($C167,OFFSET(Budget!$C$43,MATCH($C$81,Budget!$C$43:$C$349,0)+3,0,11,154),44+$G$2,0),0) -> 0 | X167: 0 | Y167: 0 | Z167: =IFERROR(VLOOKUP($C167,OFFSET(Budget!$C$43,MATCH($C$81,Budget!$C$43:$C$349,0)+3,0,11,154),101+$G$2,0),0) -> 0 | AA167: =IFERROR(HLOOKUP($Y$7,EQUITY!$AJ$68:$AU$76,3,FALSE)+HLOOKUP($Y$7,EQUITY!$AJ$68:$AU$76,4,FALSE)+HLOOKUP($Y$7,EQUITY!$AJ$68:$AU$76,5,FALSE)+HLOOKUP($Y$7,EQUITY!$AJ$68:$AU$76,6,FALSE)+HLOOKUP($Y$7,EQUITY!$AJ$68:$AU$76,7,FALSE),0) -> 0 | AB167: =IFERROR(SUM(OFFSET(Budget!$C$43,MATCH($C$81,Budget!$C$43:$C$349,0)+2+A167,101,1,$G$2)),0) -> 0 | AC167: =IFERROR(VLOOKUP($C167,OFFSET(Budget!$C$43,MATCH($C$81,Budget!$C$43:$C$349,0)+3,0,11,154),114,0),0) -> 0 | AD167: 0 | AE167: =IFERROR(SUM(OFFSET(Budget!$C$43,MATCH($C$81,Budget!$C$43:$C$349,0)+2+$A167,141,1,$G$2)),"") ->  | AF167: =IFERROR(VLOOKUP($C167,OFFSET(Budget!$C$43,MATCH($C$81,Budget!$C$43:$C$349,0)+3,0,12,154),58,0),"") ->  | AJ167: =C174 -> Properties | AK167: =O174 -> 0 | AL167: 0 | AM167: 0 | AN167: 0 | AO167: 0
